Workbook

Sheet Total Program Inputs
A1: MONTANA-DAKOTA UTILITIES CO.
A2: GAS UTILITY - SOUTH DAKOTA
A3: DSM SUMMARY
A4: 2023 ACTUAL
A6: Incentive Year: | C6: 2023
I8: Incentive | K8: Admin | M8: Admin | O8: Total
E9: Participants | G9: Dk Savings | I9: Expense | K9: Allocation | M9: Expense 1/ | O9: Expense | Q9: Incentive | S9: dk/part.
A10: Residential
A11: High Efficiency Furnace - 95%+ (new) | E11: 98 | G11: 506 | I11: 14700 | K11: =+ROUND(I11/$I$27,4) -> 0.1466 | M11: =+ROUND(K11*$E$32,0)+1 -> 2725 | O11: =+I11+M11 -> 17425 | Q11: 150 | S11: =ROUND(+G11/E11,1) -> 5.2
A12: High Efficiency Furnace - 95%+ (replacement) | E12: 224 | G12: 4099 | I12: 67200 | K12: =+ROUND(I12/$I$27,4) -> 0.6702 | M12: =+ROUND(K12*$E$32,0) -> 12454 | O12: =+I12+M12 -> 79654 | Q12: 300 | S12: =ROUND(+G12/E12,1) -> 18.3
A13: Programmable Thermostats - Tier 1 | E13: 73 | G13: 168 | I13: 1095 | K13: =+ROUND(I13/$I$27,4) -> 0.0109 | M13: =+ROUND(K13*$E$32,0) -> 203 | O13: =+I13+M13 -> 1298 | Q13: 15 | S13: 2.3
A14: Programmable Thermostats - Tier 2 | E14: 192 | G14: 1197 | I14: 11516 | K14: =+ROUND(I14/$I$27,4) -> 0.1149 | M14: =+ROUND(K14*$E$32,0) -> 2135 | O14: =+I14+M14 -> 13651 | Q14: 60 | S14: =ROUND(+G14/E14,1) -> 6.2
A15: Total Residential | E15: =SUM(E11:E14) -> 587 | G15: =SUM(G11:G14) -> 5970 | I15: =SUM(I11:I14) -> 94511 | K15: =SUM(K11:K14) -> 0.9426 | M15: =SUM(M11:M14) -> 17517 | O15: =SUM(O11:O14) -> 112028
A17: Commmercial & Industrial
A18: High Efficiency Furnace - 95%+ (new) | E18: 5 | G18: 36 | I18: 750 | K18: =+ROUND(I18/$I$27,4) -> 0.0075 | M18: =+ROUNDDOWN(K18*$E$32,0) -> 139 | O18: =+I18+M18 -> 889 | Q18: 150 | S18: =ROUND(+G18/E18,1) -> 7.2
A19: High Efficiency Furnace - 95%+ (replacement) | E19: 12 | G19: 298 | I19: 3600 | K19: =+ROUND(I19/$I$27,4) -> 0.0359 | M19: =+ROUND(K19*$E$32,0) -> 667 | O19: =+I19+M19 -> 4267 | Q19: 300 | S19: =ROUND(+G19/E19,1) -> 24.8
A20: Custom | E20: 1 | G20: 234 | I20: 1403 | K20: 0.014 | M20: =+ROUND(K20*$E$32,0) -> 260 | O20: =+I20+M20 -> 1663 | Q20: =+I20 -> 1403 | S20: =ROUND(+G20/E20,1) -> 234
A21: Total Commercial and Industrial | E21: =SUM(E18:E20) -> 18 | G21: =SUM(G18:G20) -> 568 | I21: =SUM(I18:I20) -> 5753 | K21: =SUM(K18:K20) -> 0.0574 | M21: =SUM(M18:M20) -> 1066 | O21: =SUM(O18:O20) -> 6819
A23: Subtotal | E23: =+E21+E15 -> 605 | G23: =+G21+G15 -> 6538 | I23: =+I21+I15 -> 100264 | K23: =+K21+K15 -> 1 | M23: =+M21+M15 -> 18583 | O23: =+O21+O15 -> 118847
A25: Energy Audits | E25: 0 | G25: 0 | I25: 0 | K25: =+ROUND(I25/$I$27,4) -> 0 | M25: =+ROUND(K25*$E$32,0) -> 0 | O25: =+I25+M25 -> 0
A27: Total South Dakota | E27: =+E25+E23 -> 605 | G27: =+G25+G23 -> 6538 | I27: =+I25+I23 -> 100264 | K27: =+K25+K23 -> 1 | M27: =+M25+M23 -> 18583 | O27: =+O25+O23 -> 118847
A30: 1/ Administration expense allocated on incentive and program costs.
A32: Admin costs | E32: =5535+13048 -> 18583

Sheet Database Inputs
A1: South Dakota Natural Gas DSM Programs
A2: Technical Assumptions
I3: Cost Assumptions
H5: Average | M5: Year 1 | N5: Total
C6: # of | F6: Average | G6: Average | H6: Non-Energy | L6: Avg | M6: Total | N6: Operating/ | O6: Admin &
B7: Customer | C7: Particip | D7: Project | E7: Baseline | F7: High | G7: dk Saved | H7: Benefits | I7: Cost | J7: Cost High | K7: Increm | L7: Incentive | M7: Admin | N7: Marketing | O7: Promo | R7: Total | S7: Total | T7: Total
A8: 2021 - 2023 Program Years | B8: Class | C8: =+'Total Program Inputs'!C6 -> 2023 | D8: Life | E8: Efficiency | F8: Efficiency | G8: / part | H8: / Part | I8: Std Equip | J8: Eff Equip | K8: Cost | L8: / Part | M8: Costs | N8: Costs | O8: Cost | P8: Technical Notes | Q8: Participation Notes | R8: Incentives | S8: Incentives | T8: Incentives
A9: Residential | R9: Year 1 | S9: Year 2 | T9: Year 3
A10: Furnace Tier 2 - 95%+ AFUE - New | B10: Res | C10: =+'Total Program Inputs'!E11 -> 98 | D10: 20 | E10: 90 | F10: 95 | G10: =+'Total Program Inputs'!S11 -> 5.2 | H10: 0 | I10: 1380 | J10: 2000 | K10: 165 | L10: 150 | M10: =+'Res .95+% Res Furnace - NEW'!$F$11 -> 2725 | N10: 0 | O10: =+'Total Program Inputs'!M11 -> 2725 | P10: 75,000 btuh Average | Q10: Past program History | R10: =ROUND(L10*C10,0) -> 14700 | S10: =ROUND(#REF!*L10,0) ->  | T10: =ROUND(L10*#REF!,0) ->  | V10: Updated incremental costs to the 2020 MN TRM
A11: Furnace Tier 2 - 95%+ AFUE - Replacement | B11: Res | C11: =+'Total Program Inputs'!E12 -> 224 | D11: 20 | E11: 80 | F11: 95 | G11: =+'Total Program Inputs'!S12 -> 18.3 | H11: 720 | I11: 880 | J11: 2000 | K11: 736 | L11: 300 | M11: =+'Res .95+% Res Furnace - Replace'!$F$11 -> 12454 | N11: 0 | O11: =+'Total Program Inputs'!M12 -> 12454 | P11: 75,000 btuh Average | Q11: Past program History | R11: =ROUND(L11*C11,0) -> 67200 | S11: =ROUND(#REF!*L11,0) ->  | T11: =ROUND(L11*#REF!,0) ->  | V11: Updated incremental costs to the 2020 MN TRM
A12: Programmable Thermostats - Tier 1 | B12: Res | C12: =+'Total Program Inputs'!E13 -> 73 | D12: 10 | E12: NA | F12: NA | G12: =+'Total Program Inputs'!S13 -> 2.3 | H12: 0 | I12: NA | J12: NA | K12: 30 | L12: 15 | M12: ='Programmable Tstats - Tier 1'!$F$11 -> 203 | N12: 0 | O12: =+'Total Program Inputs'!M13 -> 203 | P12: 1 showerhead, 1kitchen, 2 faucet | Q12: assume 50% app rate | R12: =ROUND(L12*C12,0) -> 1095 | S12: =ROUND(#REF!*L12,0) ->  | T12: =ROUND(L12*#REF!,0) -> 
A13: Programmable Thermostats - Tier 2 | B13: Res | C13: =+'Total Program Inputs'!E14 -> 192 | D13: 10 | E13: NA | F13: NA | G13: =+'Total Program Inputs'!S14 -> 6.2 | H13: 41 | K13: 154.7 | L13: 60 | O13: =+'Total Program Inputs'!M14 -> 2135 | S13: =ROUND(#REF!*L13,0) ->  | V13: 35% Tier 2, 65% Tier 3 per the table in the TRM
A14: Commercial
A15: Furnace Tier 2 - 95%+ AFUE - New | B15: Comm | C15: =+'Total Program Inputs'!E18 -> 5 | D15: 20 | E15: 90 | F15: 95 | G15: =+'Total Program Inputs'!S18 -> 7.2 | H15: 0 | I15: 880 | J15: 2000 | K15: 165 | L15: 150 | M15: =+'Comm 95+% Furnace - NEW'!$F$11 -> 139 | N15: 0 | O15: =+'Total Program Inputs'!M18 -> 139 | P15: 75,000 btuh Average | Q15: Market Information | R15: =ROUND(L15*C15,0) -> 750 | S15: =ROUND(#REF!*L15,0) ->  | T15: =ROUND(L15*#REF!,0) ->  | V15: Updated incremental costs to the 2020 MN TRM, used the costs of Residental furnaces for commercial due to rebate amount at 120,000 dkt or less (essentially residential)
A16: Furnace Tier 2 - 95%+ AFUE - Replacement | B16: Comm | C16: =+'Total Program Inputs'!E19 -> 12 | D16: 20 | E16: 80 | F16: 95 | G16: =+'Total Program Inputs'!S19 -> 24.8 | H16: 720 | I16: 880 | J16: 2000 | K16: 736 | L16: 300 | M16: =+'Comm 95+% Furnace - Replace'!$F$11 -> 667 | N16: 0 | O16: =+'Total Program Inputs'!M19 -> 667 | P16: 75,000 btuh Average | Q16: Market Information | R16: =ROUND(L16*C16,0) -> 3600 | S16: =ROUND(#REF!*L16,0) ->  | T16: =ROUND(L16*#REF!,0) ->  | V16: Updated incremental costs to the 2020 MN TRM, used the costs of Residental furnaces for commercial due to rebate amount at 120,000 dkt or less (essentially residential)
A17: Custom Efficiency | B17: Comm | C17: =+'Total Program Inputs'!E20 -> 1 | D17: 20 | E17: NA | F17: NA | G17: =+'Total Program Inputs'!S20 -> 234 | H17: 0 | I17: NA | J17: NA | K17: 7750 | L17: 3000 | M17: =+'Comm Custom'!F11 -> 260 | N17: 0 | O17: =+'Total Program Inputs'!M20 -> 260 | R17: =ROUND(L17*C17,0) -> 3000 | S17: =ROUND(#REF!*L17,0) ->  | T17: =ROUND(L17*#REF!,0) -> 
A18: Totals | B18: =SUM(C18:C18) -> 605 | C18: =SUM(C10:C17) -> 605 | Q18: Total Incentives
Q19: Customer Education/info

Sheet Gas Input Table Summary
A1: Montana-Dakota Utilities Co.
A2: 2024 Input Data Summary
A3: South Dakota Natural Gas Conservation Model
A6: Input No. | B6: Input Data Description | C6: Information Source | D6: SD Res. | E6: SD Comm.
A7: 1 | B7: Retail Rate ($/dk) | C7: Projected average 2024 Cost of Gas plus authorized Distribution Delivery Charge. | D7: =+'Gas Costs'!C11 -> 6.902 | E7: =+'Gas Costs'!E11 -> 5.996
B8: Escalation Rate | D8: 0.03 | E8: 0.03
A9: 2 | B9: Non-Gas Fuel Retail ($/fuel/unit) | C9: Average retail cost of non gas fuel if measures also saves kWh, gallons of water, etc. (for analysis purposes, used electric as Non-Gas Fuel Retail Rate) | D9: =+'Gas Costs'!G41 -> 0.13068 | E9: =+'Gas Costs'!G54 -> 0.12684
B10: Escalation Rate | D10: 0.03 | E10: 0.03
B11: Non-Gas Fuel Units (ie. kWh, Gallons, etc) | D11: Kwh | E11: Kwh
A12: 3 | B12: Commodity Cost ($/dk) | C12: Estimated gas costs using projected 2024 winter gas costs February 2024 pipeline commodity | D12: =+'Gas Costs'!C20 -> 2.789 | E12: =+D12 -> 2.789
B13: Escalation Rate | D13: 0.03 | E13: 0.03
A14: 4 | B14: Demand Cost ($/dk/Yr) | C14: Annual cost of firm capacity on pipeline | D14: =+'Gas Costs'!C25 -> 162.85 | E14: =+D14 -> 162.85
B15: Escalation Rate | D15: 0.01 | E15: 0.01
A16: 5 | B16: Peak Reduction Factor | C16: Estimated average peak day reduction factor caused by implementing the measure (s) | D16: 0.01 | E16: 0.01
A17: 6 | B17: Variable O&M ($/dk) | C17: Estimated variable O&M that will be avoided due the implementing the measure | D17: 0 | E17: 0
B18: Escalation Rate | D18: 0 | E18: 0
A19: 7 | B19: Non-Gas Fuel Cost ($/Fuel Unit) | C19: Average commodity cost of non gas fuel if measures also saves kWh, gallons of water, etc. (for analysis purposes, used electric as Non-Gas Fuel Cost) | D19: =+'Gas Costs'!B56 -> 0.02284 | E19: =+D19 -> 0.02284
B20: Escalation Rate | D20: 0.03 | E20: 0.03
A21: 8 | B21: Non-Gas Fuel Loss Factor | C21: Non-Gas fuel loss factor (for analysis purposes, used Montana-Dakota Utilities 12 month average ending November 2019 line loss factor) | D21: 0.073 | E21: 0.073
A22: 9 | B22: Gas Environmental Damage Factor | C22: Per Minnesota CIP triennium 2021-2023 | D22: 2.07 | E22: 2.07
B23: Escalation Rate | D23: 0.023 | E23: 0.023
A24: 10 | B24: Non Gas Fuel Environmental Damage Factor | C24: Not Applicable | D24: 0 | E24: 0
B25: Escalation Rate | D25: 0 | E25: 0
A26: 11 | B26: Participant Discount Rate | C26: Federal Reserve Consumer Credit Interest Rate 12 Months ended December 31, 2019 | D26: 0.1032 | E26: =+D26 -> 0.1032
A27: 12 | B27: Utility Discount Rate | C27: Montana-Dakota's authorized average cost of capital | D27: 0.07216 | E27: 0.07216
A28: 13 | B28: Societal Discount Rate | C28: Equal to the 30 year T-Bill rate average for Twelve Months Ending December 31, 2023 | D28: ='T bill'!B72/100 -> 0.0231 | E28: =D28 -> 0.0231
A29: 14 | B29: General Input Data Year = | C29: Year data was input | D29: =+'Total Program Inputs'!C6 -> 2023 | E29: =+D29 -> 2023
A30: 15 | B30: Project Analysis Year | C30: Year(s) program will be implemented | D30: ='Total Program Inputs'!C6 -> 2023 | E30: =+D30 -> 2023
D31: =D30+1 -> 2024 | E31: =+D31 -> 2024
D32: 2025 | E32: =+D32 -> 2025
A33: 16 | B33: Utility Project Costs | C33: Total direct cost to the utility caused by implementing the program(s)
A34: 17 | B34: Direct Participant Costs ($/Part.) | C34: Direct costs that the participant would have to participate in the program
A35: 18 | B35: Participant Non-Energy Costs (Annual $/Part.) Yr. 1 | C35: Annual participant non-energy costs if applicable caused by implementing the measure (Not Applicable) | D35: 0 | E35: 0
B36: Yr. 2 | D36: 0 | E36: 0
B37: Yr. 3 | D37: 0 | E37: 0
B38: Escalation Rate Yr. 1 | D38: 0 | E38: 0
B39: Escalation Rate Yr. 2 | D39: 0 | E39: 0
B40: Escalation Rate Yr. 3 | D40: 0 | E40: 0
A41: 19 | B41: Participant Non-Energy Savings (Annual $/Part) Yr. 1 | C41: Participant non energy savings if applicable caused by implementing the measure (Not Applicable) | D41: 0 | E41: 0
B42: Yr. 2 | D42: 0 | E42: 0
B43: Yr. 3 | D43: 0 | E43: 0
B44: Escalation Rate Yr. 1 | D44: 0 | E44: 0
B45: Escalation Rate Yr. 2 | D45: 0 | E45: 0
B46: Escalation Rate Yr. 3 | D46: 0 | E46: 0
A47: 20 | B47: Project Life (Years) | C47: Based on the estimated useful life of the energy saving equipment (20 years maximum)
A48: 21 | B48: Avg. Dk/Part. Saved | C48: Avg energy reduction (Dk) caused by the program(s)
A49: 22 | B49: Avg Non-Gas Fuel Units/Part. Saved Yr. 1 | C49: Average non-gas fuel units saved or added due to implementing the measure (for analysis purposes, used Kwh)
B50: Yr. 2 | D50: 0 | E50: 0
B51: Yr. 3 | D51: 0 | E51: 0
A52: 22a | B52: Avg Additional Non-Gas Fuel Units/ Part. Used Yr. 1 | D52: 0 | E52: 0
B53: Yr. 2 | D53: 0 | E53: 0
B54: Yr. 3 | D54: 0 | E54: 0
A55: 23 | B55: Number of Participants | C55: Total number of expected participants is the program(s)
A56: 24 | B56: Total Annual Dk Saved | C56: Total Dk saved from the program in the year implemented
A57: 25 | B57: Incentive/Participant | C57: Incentive provided to the participant
A58: 26 | B58: Distribution Delivery Charge | C58: Weighted Average of Montana-Dakota's Distribution Delivery Charge | D58: =+'Gas Costs'!C10 -> 1.836 | E58: =+'Gas Costs'!E10 -> 0.93
A59: 27 | B59: Effective Fed & State Income Tax Rate | C59: Montana-Dakota's effective tax rate | D59: 0.21 | E59: 0.21

Sheet Gas Costs
A1: MONTANA-DAKOTA UTILITIES CO.
A2: GAS UTILITY - SOUTH DAKOTA
A3: PROJECTED COST OF GAS - 2024
C6: South Dakota
C7: Residential | E7: Firm General
A8: Retail Rate
A9: Average cost of gas 1/ | C9: 5.066 | E9: =+C9 -> 5.066
A10: Margin | C10: 1.836 | E10: 0.93 | F10: 2/
A11: Total Retail Rate | C11: =SUM(C9:C10) -> 6.902 | E11: =SUM(E9:E10) -> 5.996
A14: Gas Commodity | C14: 19297203
A15: Non-gas commodity | C15: 650224
A16: Total | C16: =SUM(C14:C15) -> 19947427
A18: Dk deliveries | C18: 7224711
C20: =ROUND(+C16/C18/0.99,3) -> 2.789 | D20: per dk adj. for losses
A22: Demand Cost (Avoided Capacity) ($/dk/yr)
A23: Total Demand Charges (February 2024 PGA) | C23: 16053787
A24: Capacity requirements 3/ | C24: 98579
A25: Demand Costs | C25: =+ROUND(C23/C24,2) -> 162.85
A28: 1/ Based on February 2024 PGA adjusted to reflect the projected annual 2024 gas commodity cost.
A29: 2/ Meters rated < 500 cubic feet.
A30: 3/ FT-1, FT-1 negotiated contract and T-FTG-1 capacity.
A33: Electric - Black Hills Power
A34: Residential
A35: Base Rate | B35: 2020-01-01 | C35: 12 | E35: 12 | G35: 0 | H35: 4/
A36: Energy Charge
A37: All Kwh | C37: 12000 | E37: 0.08827 | G37: =C37*E37 -> 1059.24
A38: Cost Adjustment | C38: 12000 | E38: 0.04241 | G38: =C38*E38 -> 508.92
A39: Total Bill | G39: =SUM(G35:G38) -> 1568.16
A41: Average Realization | G41: =ROUND(G39/C37,5) -> 0.13068
A43: Commercial (Small general service)
A44: Base Rate | C44: 12 | E44: 15 | G44: 0 | H44: 4/
A45: Energy Charge
A46: First 3000 Kwh | C46: 3000 | E46: 0.077 | G46: =C46*E46 -> 231
A47: Over 3,000 Kwh | C47: 69000 | E47: 0.06026 | G47: =C47*E47 -> 4157.94
A48: Cost Adjustment | C48: =SUM(C46:C47) -> 72000 | E48: 0.04431 | G48: =C48*E48 -> 3190.32
A49: Demand Charge
A50: First 50 KW | C50: 50 | E50: 8 | G50: =C50*E50 -> 400
A51: Over 50 KW | C51: 150 | E51: 7.69 | G51: =C51*E51 -> 1153.5
A52: Total Bill | G52: =SUM(G44:G51) -> 9132.76
A54: Average Realization | G54: =ROUND(G52/C48,5) -> 0.12684
A56: Fuel Cost: | B56: 0.02284 | C56: BHE Section No. 3C, 16th Revised Sheet No. 12
A58: 4/ Base charge not included for conservation calculations as it has no relation to savings
A59: on consumption.

Sheet T bill
A2: Website Hyperlink: | B2: https://www.federalreserve.gov/datadownload/Choose.aspx?rel=H15
A4: Then follow instructions to "build your package"
A6: Download Page | B6: H.15 Selected Interest Rates for Nov 09, 2016
A7: Series Description | B7: 3-month Treasury bill secondary market rate discount basis
A8: Unit: | B8: Percent:_Per_Year
A9: Multiplier: | B9: 1
A10: Currency: | B10: NA
A11: Unique Identifier: | B11: H15/H15/RIFSGFSM03_N.A
A12: Time Period | B12: RIFSGFSM03_N.A
A13: 1966 | B13: 4.86
A14: 1967 | B14: 4.29
A15: 1968 | B15: 5.34
A16: 1969 | B16: 6.67
A17: 1970 | B17: 6.39
A18: 1971 | B18: 4.33
A19: 1972 | B19: 4.06
A20: 1973 | B20: 7.04
A21: 1974 | B21: 7.85
A22: 1975 | B22: 5.79
A23: 1976 | B23: 4.98
A24: 1977 | B24: 5.26
A25: 1978 | B25: 7.18
A26: 1979 | B26: 10.05
A27: 1980 | B27: 11.39
A28: 1981 | B28: 14.04
A29: 1982 | B29: 10.6
A30: 1983 | B30: 8.62
A31: 1984 | B31: 9.54
A32: 1985 | B32: 7.47
A33: 1986 | B33: 5.97
A34: 1987 | B34: 5.78
A35: 1988 | B35: 6.67
A36: 1989 | B36: 8.11
A37: 1990 | B37: 7.5
A38: 1991 | B38: 5.38
A39: 1992 | B39: 3.43
A40: 1993 | B40: 3
A41: 1994 | B41: 4.25
A42: 1995 | B42: 5.49
A43: 1996 | B43: 5.01
A44: 1997 | B44: 5.06
A45: 1998 | B45: 4.78
A46: 1999 | B46: 4.64
A47: 2000 | B47: 5.82
A48: 2001 | B48: 3.4
A49: 2002 | B49: 1.61
A50: 2003 | B50: 1.01
A51: 2004 | B51: 1.37
A52: 2005 | B52: 3.15
A53: 2006 | B53: 4.73
A54: 2007 | B54: 4.36
A55: 2008 | B55: 1.37
A56: 2009 | B56: 0.15
A57: 2010 | B57: 0.14
A58: 2011 | B58: 0.05
A59: 2012 | B59: 0.09
A60: 2013 | B60: 0.06
A61: 2014 | B61: 0.03
A62: 2015 | B62: 0.05
A63: 2016 | B63: 0.32
A64: 2017 | B64: 0.93
A65: 2018 | B65: 1.94
A66: 2019 | B66: 2.06
A67: 2020 | B67: 0.37
A68: 2021 | B68: 0.04
A69: 2022 | B69: 2.02
A70: 2023 | B70: 5.07
A72: 30 Year Average | B72: =ROUND(AVERAGE(B41:B70),2) -> 2.31

Sheet Summary of Ratios
A1: Montana-Dakota Utilities Co.
A2: South Dakota Gas DSM Program Summary
B6: Customer | G6: Total Resource
A7: Program | B7: Class | C7: RIM | D7: Utility | E7: Societal | F7: Participant | G7: Cost
A8: Total Portfolio | C8: ='Total Program'!G42 -> 1.5 | D8: ='Total Program'!G43 -> 2.97 | E8: ='Total Program'!G44 -> 3.42 | F8: ='Total Program'!G45 -> 3.577665794 | G8: ='Total Program'!G46 -> 1.66
A10: Furnace (95+%) - New | B10: Residential | C10: ='Res .95+% Res Furnace - NEW'!G42 -> 1.07 | D10: ='Res .95+% Res Furnace - NEW'!G43 -> 1.71 | E10: ='Res .95+% Res Furnace - NEW'!G44 -> 3.48 | F10: ='Res .95+% Res Furnace - NEW'!G45 -> 3.34 | G10: ='Res .95+% Res Furnace - NEW'!G46 -> 1.58
A11: Furnace (95+%) - Replacement | B11: Residential | C11: ='Res .95+% Res Furnace - Replace'!G42 -> 1.48 | D11: ='Res .95+% Res Furnace - Replace'!G43 -> 3.02 | E11: ='Res .95+% Res Furnace - Replace'!G44 -> 3.48 | F11: ='Res .95+% Res Furnace - Replace'!G45 -> 3.78 | G11: ='Res .95+% Res Furnace - Replace'!G46 -> 1.67
A12: ='Database Inputs'!A12 -> Programmable Thermostats - Tier 1 | B12: Residential | C12: ='Programmable Tstats - Tier 1'!G42 -> 1.82 | D12: =+'Programmable Tstats - Tier 1'!AG42 -> 4.69 | E12: ='Programmable Tstats - Tier 1'!G44 -> 4.56 | F12: ='Programmable Tstats - Tier 1'!G45 -> 4.46 | G12: ='Programmable Tstats - Tier 1'!G46 -> 2.54
A13: ='Database Inputs'!A13 -> Programmable Thermostats - Tier 2 | B13: Residential | C13: ='Programmable Tstats - Tier 2'!G42 -> 1.53 | D13: ='Programmable Tstats - Tier 2'!G43 -> 3.16 | E13: ='Programmable Tstats - Tier 2'!G44 -> 2.5 | F13: ='Programmable Tstats - Tier 2'!G45 -> 2.72 | G13: ='Programmable Tstats - Tier 2'!G46 -> 1.41
A14: Furnace (95+%) - New | B14: Commercial | C14: ='Comm 95+% Furnace - NEW'!G42 -> 1.74 | D14: ='Comm 95+% Furnace - NEW'!G43 -> 2.46 | E14: ='Comm 95+% Furnace - NEW'!G44 -> 4.96 | F14: ='Comm 95+% Furnace - NEW'!G45 -> 3.85 | G14: ='Comm 95+% Furnace - NEW'!G46 -> 2.27
A15: Furnace (95+%) - Replacement | B15: Commercial | C15: ='Comm 95+% Furnace - Replace'!G42 -> 2.39 | D15: ='Comm 95+% Furnace - Replace'!G43 -> 4.11 | E15: ='Comm 95+% Furnace - Replace'!G44 -> 4.55 | F15: ='Comm 95+% Furnace - Replace'!G45 -> 4.08 | G15: ='Comm 95+% Furnace - Replace'!G46 -> 2.16
A16: Custom Efficiency | B16: Commercial | C16: =+'Comm Custom'!G42 -> 3.35 | D16: =+'Comm Custom'!G43 -> 8.21 | E16: =+'Comm Custom'!G44 -> 3.78 | F16: =+'Comm Custom'!G45 -> 2.22 | G16: =+'Comm Custom'!G46 -> 1.71

Sheet Total Program
A1: NATURAL GAS CONSERVATION PROGRAMS/DEMAND-SIDE MANAGEMENT | K1: Table 1 | AD1: Table 2 | AP1: Table 3 | BG1: Table 4 | BV1: Table 5
A2: BEN/COST ANALYSIS FOR GAS CONSERVATION | K2: Ratepayer Impact Measure Test | AD2: Utility Cost Test | AP2: Societal Test | BG2: Participant Test | BV2: Total Resource Cost Test
A4: Company: | B4: Montana-Dakota Utilities Co. | K4: Company: | M4: =B4 -> Montana-Dakota Utilities Co. | AD4: Company: | AF4: =B4 -> Montana-Dakota Utilities Co. | AP4: Company: | AR4: =AF4 -> Montana-Dakota Utilities Co. | BH4: Company: | BI4: =AR4 -> Montana-Dakota Utilities Co. | BW4: Company: | BX4: =BI4 -> Montana-Dakota Utilities Co.
A5: Project: | B5: Total South Dakota Program | K5: Project: | M5: =$B$5 -> Total South Dakota Program | AD5: Project: | AF5: =$B$5 -> Total South Dakota Program | AP5: Project: | AR5: =$B$5 -> Total South Dakota Program | BH5: Project: | BI5: =$B$5 -> Total South Dakota Program | BW5: Project: | BX5: =$B$5 -> Total South Dakota Program
A6: Program Years: | B6: =+'Total Program Inputs'!C6 -> 2023
N7: Benefits | X7: Costs | AF7: Benefits | AJ7: Costs | AR7: Benefits | BB7: Costs | BI7: Benefits | BR7: Costs | BX7: Benefits | CC7: Costs
A8: Input Data | F8: =+'Total Program Inputs'!C6 -> 2023 | AB8: Annual | AN8: Annual | AT8: Non-Gas | BE8: Annual | BT8: Annual | CG8: Annual
M9: Total | N9: Gas | O9: Gas | P9: Variable | Q9: Variable | R9: Total | S9: Peak Dk | T9: Dmd | U9: Total | W9: Distribution | Y9: Program | AA9: Total | AB9: Benefits | AF9: Total | AG9: Total | AH9: Annual | AJ9: Program | AL9: Utility | AN9: Benefits | AR9: Total | AS9: Total | AT9: Energy | AU9: Non-Gas | AV9: Environmental | AW9: Environmental | AZ9: Annual | BB9: Utility | BC9: Participants' | BD9: Annual | BE9: Benefits | BJ9: Total | BL9: Gas | BM9: Non-Gas | BN9: Non-Gas | BP9: Total | BR9: Direct | BT9: Benefits | BX9: Total | BY9: Total | BZ9: Non-Gas | CA9: Total | CC9: Utility | CD9: Participants' | CG9: Benefits
A10: 1) Retail Rate ($/Dk) = | E10: 16) Utility Project Costs | M10: Energy | N10: Commodity | O10: Commodity | P10: O & M | Q10: O & M | R10: Energy | S10: Demand | T10: Savings | U10: Demand | V10: Total | W10: Delivery | X10: Lost | Y10: Admin | Z10: Incentive | AA10: Program | AB10: Less | AF10: Energy | AG10: Demand | AH10: Total | AJ10: Admin | AK10: Incentive | AL10: Program | AN10: Less | AR10: Energy | AS10: Demand | AT10: Savings | AU10: Energy | AV10: Damage | AW10: Damage | AZ10: Total | BB10: Program | BC10: Costs Net | BD10: Total | BE10: Less | BI10: Incentives | BJ10: Energy | BK10: Retail | BL10: Bill | BM10: Fuel | BN10: Energy | BP10: Annual | BR10: Participant | BT10: Less | BX10: Energy | BY10: Demand | BZ10: Energy | CA10: Annual | CC10: Program | CD10: Costs Net | CE10: Total | CG10: Less
A11: Escalation Rate = | E11: 16a) Administrative & Operating Costs = 1/ | F11: =+'Res .95+% Res Furnace - NEW'!F11+'Res .95+% Res Furnace - Replace'!F11+'Programmable Tstats - Tier 1'!F11+'Programmable Tstats - Tier 2'!F11+'Comm 95+% Furnace - NEW'!F11+'Comm 95+% Furnace - Replace'!F11+'Comm Custom'!F11 -> 18583 | J11: t | M11: Reduction | N11: Cost/Dk | O11: Savings | P11: Cost/Dk | Q11: Savings | R11: Savings | S11: Reduction | T11: '/ Unit | U11: Savings | V11: Savings | W11: Charge | X11: Margin | Y11: Costs | Z11: Costs | AA11: Costs | AB11: Costs | AF11: Savings | AG11: Savings | AH11: Savings | AJ11: Costs | AK11: Costs | AL11: Costs | AN11: Costs | AR11: Savings | AS11: Savings | AT11: ($/Part.) | AU11: Savings | AV11: Savings/Dk | AW11: Savings | AZ11: Savings | BB11: Costs | BC11: of Rebate | BD11: Costs | BE11: Costs | BI11: Received | BJ11: Reduction | BK11: Rate | BL11: Savings | BM11: Retail Rate | BN11: Savings | BP11: Benefits | BR11: Costs | BT11: Costs | BX11: Savings | BY11: Savings | BZ11: Savings | CA11: Benefits | CC11: Costs | CD11: of Rebate | CE11: Costs | CG11: Costs
E12: 16b) Incentive Costs = | F12: =+'Res .95+% Res Furnace - NEW'!F12+'Res .95+% Res Furnace - Replace'!F12+'Programmable Tstats - Tier 1'!F12+'Programmable Tstats - Tier 2'!F12+'Comm 95+% Furnace - NEW'!F12+'Comm 95+% Furnace - Replace'!F12+'Comm Custom'!F12 -> 100264 | L12: Year | M12: (A) | N12: (B) | O12: (C) | P12: (D) | Q12: (E) | R12: (F) | S12: (G) | T12: (H) | U12: (I) | V12: (J) | W12: (K) | X12: (L) | Y12: (M) | Z12: (N) | AA12: (O) | AB12: (P) | AE12: Year | AF12: (A) | AG12: (B) | AH12: (C) | AJ12: (D) | AK12: (E) | AL12: (F) | AN12: (G) | AQ12: Year | AR12: (A) | AS12: (B) | AT12: (C) | AU12: (D) | AV12: (E) | AW12: (F) | AZ12: (G) | BB12: (H) | BC12: (I) | BD12: (J) | BE12: (K) | BH12: Year | BI12: (A) | BJ12: (B) | BK12: (C) | BL12: (D) | BM12: (E) | BN12: (F) | BP12: (G) | BR12: (H) | BT12: (I) | BW12: Year | BX12: (A) | BY12: (B) | BZ12: (C) | CA12: (D) | CC12: (E) | CD12: (F) | CE12: (G) | CG12: (H)
A13: 2) Non-Gas Fuel Retail Rate ($/Fuel Unit) = | E13: 16c) Total Utility Project Costs = | F13: =SUM(F11:F12) -> 118847
A14: Escalation Rate = | J14: =$C$47-$C$45 -> 0 | L14: =$C$47 -> 2023 | M14: =ROUND(+'Res .95+% Res Furnace - NEW'!M14+'Res .95+% Res Furnace - Replace'!M14+'Programmable Tstats - Tier 1'!M14+'Programmable Tstats - Tier 2'!M14+'Comm 95+% Furnace - NEW'!M14+'Comm 95+% Furnace - Replace'!M14+'Comm Custom'!M14,0) -> 6538 | O14: =ROUND(+'Res .95+% Res Furnace - NEW'!O14+'Res .95+% Res Furnace - Replace'!O14+'Programmable Tstats - Tier 1'!O14+'Programmable Tstats - Tier 2'!O14+'Comm 95+% Furnace - NEW'!O14+'Comm 95+% Furnace - Replace'!O14+'Comm Custom'!O14,0) -> 18234 | Q14: =ROUND(+'Res .95+% Res Furnace - NEW'!Q14+'Res .95+% Res Furnace - Replace'!Q14+'Programmable Tstats - Tier 1'!Q14+'Programmable Tstats - Tier 2'!Q14+'Comm 95+% Furnace - NEW'!Q14+'Comm 95+% Furnace - Replace'!Q14+'Comm Custom'!Q14,0) -> 0 | R14: =ROUND(+'Res .95+% Res Furnace - NEW'!R14+'Res .95+% Res Furnace - Replace'!R14+'Programmable Tstats - Tier 1'!R14+'Programmable Tstats - Tier 2'!R14+'Comm 95+% Furnace - NEW'!R14+'Comm 95+% Furnace - Replace'!R14+'Comm Custom'!R14,0) -> 18234 | S14: =ROUND(+'Res .95+% Res Furnace - NEW'!S14+'Res .95+% Res Furnace - Replace'!S14+'Programmable Tstats - Tier 1'!S14+'Programmable Tstats - Tier 2'!S14+'Comm 95+% Furnace - NEW'!S14+'Comm 95+% Furnace - Replace'!S14+'Comm Custom'!S14,0) -> 66 | U14: =ROUND(+'Res .95+% Res Furnace - NEW'!U14+'Res .95+% Res Furnace - Replace'!U14+'Programmable Tstats - Tier 1'!U14+'Programmable Tstats - Tier 2'!U14+'Comm 95+% Furnace - NEW'!U14+'Comm 95+% Furnace - Replace'!U14+'Comm Custom'!U14,0) -> 10676 | V14: =ROUND(+'Res .95+% Res Furnace - NEW'!V14+'Res .95+% Res Furnace - Replace'!V14+'Programmable Tstats - Tier 1'!V14+'Programmable Tstats - Tier 2'!V14+'Comm 95+% Furnace - NEW'!V14+'Comm 95+% Furnace - Replace'!V14+'Comm Custom'!V14,0) -> 28910 | X14: =ROUND(+'Res .95+% Res Furnace - NEW'!X14+'Res .95+% Res Furnace - Replace'!X14+'Programmable Tstats - Tier 1'!X14+'Programmable Tstats - Tier 2'!X14+'Comm 95+% Furnace - NEW'!X14+'Comm 95+% Furnace - Replace'!X14+'Comm Custom'!X14,0) -> 9076 | Y14: =ROUND(+'Res .95+% Res Furnace - NEW'!Y14+'Res .95+% Res Furnace - Replace'!Y14+'Programmable Tstats - Tier 1'!Y14+'Programmable Tstats - Tier 2'!Y14+'Comm 95+% Furnace - NEW'!Y14+'Comm 95+% Furnace - Replace'!Y14+'Comm Custom'!Y14,0) -> 18583 | Z14: =ROUND(+'Res .95+% Res Furnace - NEW'!Z14+'Res .95+% Res Furnace - Replace'!Z14+'Programmable Tstats - Tier 1'!Z14+'Programmable Tstats - Tier 2'!Z14+'Comm 95+% Furnace - NEW'!Z14+'Comm 95+% Furnace - Replace'!Z14+'Comm Custom'!Z14,0) -> 100264 | AA14: =ROUND(+'Res .95+% Res Furnace - NEW'!AA14+'Res .95+% Res Furnace - Replace'!AA14+'Programmable Tstats - Tier 1'!AA14+'Programmable Tstats - Tier 2'!AA14+'Comm 95+% Furnace - NEW'!AA14+'Comm 95+% Furnace - Replace'!AA14+'Comm Custom'!AA14,0) -> 127923 | AB14: =ROUND(+'Res .95+% Res Furnace - NEW'!AB14+'Res .95+% Res Furnace - Replace'!AB14+'Programmable Tstats - Tier 1'!AB14+'Programmable Tstats - Tier 2'!AB14+'Comm 95+% Furnace - NEW'!AB14+'Comm 95+% Furnace - Replace'!AB14+'Comm Custom'!AB14,0) -> -99013 | AE14: =$C$47 -> 2023 | AF14: =+R14 -> 18234 | AG14: =+U14 -> 10676 | AH14: =+AG14+AF14 -> 28910 | AJ14: =ROUND(Y14,0) -> 18583 | AK14: =ROUND(Z14,0) -> 100264 | AL14: =SUM(AJ14:AK14) -> 118847 | AN14: =+AH14-AL14 -> -89937 | AQ14: =$C$47 -> 2023 | AR14: =AF14 -> 18234 | AS14: =+AG14 -> 10676 | AU14: =ROUND(+'Res .95+% Res Furnace - NEW'!AU14+'Res .95+% Res Furnace - Replace'!AU14+'Programmable Tstats - Tier 1'!AU14+'Programmable Tstats - Tier 2'!AU14+'Comm 95+% Furnace - NEW'!AU14+'Comm 95+% Furnace - Replace'!AU14+'Comm Custom'!AU14,0) -> 4445 | AW14: =ROUND(+'Res .95+% Res Furnace - NEW'!AW14+'Res .95+% Res Furnace - Replace'!AW14+'Programmable Tstats - Tier 1'!AW14+'Programmable Tstats - Tier 2'!AW14+'Comm 95+% Furnace - NEW'!AW14+'Comm 95+% Furnace - Replace'!AW14+'Comm Custom'!AW14,0) -> 13534 | AZ14: =ROUND(AR14+AS14+AU14+AW14+AY14,0) -> 46889 | BB14: =ROUND(+'Res .95+% Res Furnace - NEW'!BB14+'Res .95+% Res Furnace - Replace'!BB14+'Programmable Tstats - Tier 1'!BB14+'Programmable Tstats - Tier 2'!BB14+'Comm 95+% Furnace - NEW'!BB14+'Comm 95+% Furnace - Replace'!BB14+'Comm Custom'!BB14,0) -> 118847 | BC14: =ROUND(+'Res .95+% Res Furnace - NEW'!BC14+'Res .95+% Res Furnace - Replace'!BC14+'Programmable Tstats - Tier 1'!BC14+'Programmable Tstats - Tier 2'!BC14+'Comm 95+% Furnace - NEW'!BC14+'Comm 95+% Furnace - Replace'!BC14+'Comm Custom'!BC14,0) -> 130127 | BD14: =BB14+BC14 -> 248974 | BE14: =AZ14-BD14 -> -202085 | BH14: =$C$47 -> 2023 | BI14: =ROUND(+'Res .95+% Res Furnace - NEW'!BI14+'Res .95+% Res Furnace - Replace'!BI14+'Programmable Tstats - Tier 1'!BI14+'Programmable Tstats - Tier 2'!BI14+'Comm 95+% Furnace - NEW'!BI14+'Comm 95+% Furnace - Replace'!BI14+'Comm Custom'!BI14,0) -> 100264 | BJ14: =ROUND(+'Res .95+% Res Furnace - NEW'!BJ14+'Res .95+% Res Furnace - Replace'!BJ14+'Programmable Tstats - Tier 1'!BJ14+'Programmable Tstats - Tier 2'!BJ14+'Comm 95+% Furnace - NEW'!BJ14+'Comm 95+% Furnace - Replace'!BJ14+'Comm Custom'!BJ14,0) -> 6538 | BL14: =ROUND(+'Res .95+% Res Furnace - NEW'!BL14+'Res .95+% Res Furnace - Replace'!BL14+'Programmable Tstats - Tier 1'!BL14+'Programmable Tstats - Tier 2'!BL14+'Comm 95+% Furnace - NEW'!BL14+'Comm 95+% Furnace - Replace'!BL14+'Comm Custom'!BL14,0) -> 44611 | BN14: =ROUND(+'Res .95+% Res Furnace - NEW'!BN14+'Res .95+% Res Furnace - Replace'!BN14+'Programmable Tstats - Tier 1'!BN14+'Programmable Tstats - Tier 2'!BN14+'Comm 95+% Furnace - NEW'!BN14+'Comm 95+% Furnace - Replace'!BN14+'Comm Custom'!BN14,0) -> 23256 | BP14: =BI14+BL14+BN14+BO14 -> 168131 | BR14: =ROUND(+'Res .95+% Res Furnace - NEW'!BR14+'Res .95+% Res Furnace - Replace'!BR14+'Programmable Tstats - Tier 1'!BR14+'Programmable Tstats - Tier 2'!BR14+'Comm 95+% Furnace - NEW'!BR14+'Comm 95+% Furnace - Replace'!BR14+'Comm Custom'!BR14,0) -> 230391 | BT14: =BP14-BR14 -> -62260 | BW14: =$C$47 -> 2023 | BX14: =$R14 -> 18234 | BY14: =U14 -> 10676 | BZ14: =AU14 -> 4445 | CA14: =SUM(BX14:BZ14) -> 33355 | CC14: =BB14 -> 118847 | CD14: =BC14 -> 130127 | CE14: =SUM(CC14:CD14) -> 248974 | CG14: =CA14-CE14 -> -215619
A15: Non-Gas Fuel Units (ie. kWh,Gallons, etc) = | E15: 17) Direct Participant Costs ($/Part.) = | J15: =J14+1 -> 1 | L15: =L14+1 -> 2024 | M15: =ROUND(+'Res .95+% Res Furnace - NEW'!M15+'Res .95+% Res Furnace - Replace'!M15+'Programmable Tstats - Tier 1'!M15+'Programmable Tstats - Tier 2'!M15+'Comm 95+% Furnace - NEW'!M15+'Comm 95+% Furnace - Replace'!M15+'Comm Custom'!M15,0) -> 6538 | O15: =ROUND(+'Res .95+% Res Furnace - NEW'!O15+'Res .95+% Res Furnace - Replace'!O15+'Programmable Tstats - Tier 1'!O15+'Programmable Tstats - Tier 2'!O15+'Comm 95+% Furnace - NEW'!O15+'Comm 95+% Furnace - Replace'!O15+'Comm Custom'!O15,0) -> 18783 | Q15: =ROUND(+'Res .95+% Res Furnace - NEW'!Q15+'Res .95+% Res Furnace - Replace'!Q15+'Programmable Tstats - Tier 1'!Q15+'Programmable Tstats - Tier 2'!Q15+'Comm 95+% Furnace - NEW'!Q15+'Comm 95+% Furnace - Replace'!Q15+'Comm Custom'!Q15,0) -> 0 | R15: =ROUND(+'Res .95+% Res Furnace - NEW'!R15+'Res .95+% Res Furnace - Replace'!R15+'Programmable Tstats - Tier 1'!R15+'Programmable Tstats - Tier 2'!R15+'Comm 95+% Furnace - NEW'!R15+'Comm 95+% Furnace - Replace'!R15+'Comm Custom'!R15,0) -> 18783 | S15: =ROUND(+'Res .95+% Res Furnace - NEW'!S15+'Res .95+% Res Furnace - Replace'!S15+'Programmable Tstats - Tier 1'!S15+'Programmable Tstats - Tier 2'!S15+'Comm 95+% Furnace - NEW'!S15+'Comm 95+% Furnace - Replace'!S15+'Comm Custom'!S15,0) -> 66 | U15: =ROUND(+'Res .95+% Res Furnace - NEW'!U15+'Res .95+% Res Furnace - Replace'!U15+'Programmable Tstats - Tier 1'!U15+'Programmable Tstats - Tier 2'!U15+'Comm 95+% Furnace - NEW'!U15+'Comm 95+% Furnace - Replace'!U15+'Comm Custom'!U15,0) -> 10742 | V15: =ROUND(+'Res .95+% Res Furnace - NEW'!V15+'Res .95+% Res Furnace - Replace'!V15+'Programmable Tstats - Tier 1'!V15+'Programmable Tstats - Tier 2'!V15+'Comm 95+% Furnace - NEW'!V15+'Comm 95+% Furnace - Replace'!V15+'Comm Custom'!V15,0) -> 29525 | X15: =ROUND(+'Res .95+% Res Furnace - NEW'!X15+'Res .95+% Res Furnace - Replace'!X15+'Programmable Tstats - Tier 1'!X15+'Programmable Tstats - Tier 2'!X15+'Comm 95+% Furnace - NEW'!X15+'Comm 95+% Furnace - Replace'!X15+'Comm Custom'!X15,0) -> 9348 | Y15: =ROUND(+'Res .95+% Res Furnace - NEW'!Y15+'Res .95+% Res Furnace - Replace'!Y15+'Programmable Tstats - Tier 1'!Y15+'Programmable Tstats - Tier 2'!Y15+'Comm 95+% Furnace - NEW'!Y15+'Comm 95+% Furnace - Replace'!Y15+'Comm Custom'!Y15,0) -> 0 | Z15: =ROUND(+'Res .95+% Res Furnace - NEW'!Z15+'Res .95+% Res Furnace - Replace'!Z15+'Programmable Tstats - Tier 1'!Z15+'Programmable Tstats - Tier 2'!Z15+'Comm 95+% Furnace - NEW'!Z15+'Comm 95+% Furnace - Replace'!Z15+'Comm Custom'!Z15,0) -> 0 | AA15: =ROUND(+'Res .95+% Res Furnace - NEW'!AA15+'Res .95+% Res Furnace - Replace'!AA15+'Programmable Tstats - Tier 1'!AA15+'Programmable Tstats - Tier 2'!AA15+'Comm 95+% Furnace - NEW'!AA15+'Comm 95+% Furnace - Replace'!AA15+'Comm Custom'!AA15,0) -> 9348 | AB15: =ROUND(+'Res .95+% Res Furnace - NEW'!AB15+'Res .95+% Res Furnace - Replace'!AB15+'Programmable Tstats - Tier 1'!AB15+'Programmable Tstats - Tier 2'!AB15+'Comm 95+% Furnace - NEW'!AB15+'Comm 95+% Furnace - Replace'!AB15+'Comm Custom'!AB15,0) -> 20177 | AE15: =AE14+1 -> 2024 | AF15: 18783 | AG15: 10742 | AH15: =+AG15+AF15 -> 29525 | AJ15: =ROUND(Y15,0) -> 0 | AK15: 0 | AL15: 0 | AN15: =+AH15-AL15 -> 29525 | AQ15: =AQ14+1 -> 2024 | AR15: 18783 | AS15: 10742 | AU15: =ROUND(+'Res .95+% Res Furnace - NEW'!AU15+'Res .95+% Res Furnace - Replace'!AU15+'Programmable Tstats - Tier 1'!AU15+'Programmable Tstats - Tier 2'!AU15+'Comm 95+% Furnace - NEW'!AU15+'Comm 95+% Furnace - Replace'!AU15+'Comm Custom'!AU15,0) -> 4445 | AW15: =ROUND(+'Res .95+% Res Furnace - NEW'!AW15+'Res .95+% Res Furnace - Replace'!AW15+'Programmable Tstats - Tier 1'!AW15+'Programmable Tstats - Tier 2'!AW15+'Comm 95+% Furnace - NEW'!AW15+'Comm 95+% Furnace - Replace'!AW15+'Comm Custom'!AW15,0) -> 13848 | AZ15: =ROUND(AR15+AS15+AU15+AW15+AY15,0) -> 47818 | BB15: =ROUND(+'Res .95+% Res Furnace - NEW'!BB15+'Res .95+% Res Furnace - Replace'!BB15+'Programmable Tstats - Tier 1'!BB15+'Programmable Tstats - Tier 2'!BB15+'Comm 95+% Furnace - NEW'!BB15+'Comm 95+% Furnace - Replace'!BB15+'Comm Custom'!BB15,0) -> 0 | BC15: =ROUND(+'Res .95+% Res Furnace - NEW'!BC15+'Res .95+% Res Furnace - Replace'!BC15+'Programmable Tstats - Tier 1'!BC15+'Programmable Tstats - Tier 2'!BC15+'Comm 95+% Furnace - NEW'!BC15+'Comm 95+% Furnace - Replace'!BC15+'Comm Custom'!BC15,0) -> 0 | BD15: =BB15+BC15 -> 0 | BE15: 47818 | BH15: =BH14+1 -> 2024 | BI15: =ROUND(+'Res .95+% Res Furnace - NEW'!BI15+'Res .95+% Res Furnace - Replace'!BI15+'Programmable Tstats - Tier 1'!BI15+'Programmable Tstats - Tier 2'!BI15+'Comm 95+% Furnace - NEW'!BI15+'Comm 95+% Furnace - Replace'!BI15+'Comm Custom'!BI15,0) -> 0 | BJ15: =ROUND(+'Res .95+% Res Furnace - NEW'!BJ15+'Res .95+% Res Furnace - Replace'!BJ15+'Programmable Tstats - Tier 1'!BJ15+'Programmable Tstats - Tier 2'!BJ15+'Comm 95+% Furnace - NEW'!BJ15+'Comm 95+% Furnace - Replace'!BJ15+'Comm Custom'!BJ15,0) -> 6538 | BL15: =ROUND(+'Res .95+% Res Furnace - NEW'!BL15+'Res .95+% Res Furnace - Replace'!BL15+'Programmable Tstats - Tier 1'!BL15+'Programmable Tstats - Tier 2'!BL15+'Comm 95+% Furnace - NEW'!BL15+'Comm 95+% Furnace - Replace'!BL15+'Comm Custom'!BL15,0) -> 45947 | BN15: =ROUND(+'Res .95+% Res Furnace - NEW'!BN15+'Res .95+% Res Furnace - Replace'!BN15+'Programmable Tstats - Tier 1'!BN15+'Programmable Tstats - Tier 2'!BN15+'Comm 95+% Furnace - NEW'!BN15+'Comm 95+% Furnace - Replace'!BN15+'Comm Custom'!BN15,0) -> 23968 | BP15: 69915 | BR15: =ROUND(+'Res .95+% Res Furnace - NEW'!BR15+'Res .95+% Res Furnace - Replace'!BR15+'Programmable Tstats - Tier 1'!BR15+'Programmable Tstats - Tier 2'!BR15+'Comm 95+% Furnace - NEW'!BR15+'Comm 95+% Furnace - Replace'!BR15+'Comm Custom'!BR15,0) -> 0 | BT15: =BP15-BR15 -> 69915 | BW15: =BW14+1 -> 2024 | BX15: =$R15 -> 18783 | BY15: =U15 -> 10742 | BZ15: =AU15 -> 4445 | CA15: =SUM(BX15:BZ15) -> 33970 | CC15: =BB15 -> 0 | CD15: =BC15 -> 0 | CE15: =SUM(CC15:CD15) -> 0 | CG15: =CA15-CE15 -> 33970
J16: 2 | L16: 2025 | M16: =ROUND(+'Res .95+% Res Furnace - NEW'!M16+'Res .95+% Res Furnace - Replace'!M16+'Programmable Tstats - Tier 1'!M16+'Programmable Tstats - Tier 2'!M16+'Comm 95+% Furnace - NEW'!M16+'Comm 95+% Furnace - Replace'!M16+'Comm Custom'!M16,0) -> 6538 | O16: =ROUND(+'Res .95+% Res Furnace - NEW'!O16+'Res .95+% Res Furnace - Replace'!O16+'Programmable Tstats - Tier 1'!O16+'Programmable Tstats - Tier 2'!O16+'Comm 95+% Furnace - NEW'!O16+'Comm 95+% Furnace - Replace'!O16+'Comm Custom'!O16,0) -> 19346 | Q16: =ROUND(+'Res .95+% Res Furnace - NEW'!Q16+'Res .95+% Res Furnace - Replace'!Q16+'Programmable Tstats - Tier 1'!Q16+'Programmable Tstats - Tier 2'!Q16+'Comm 95+% Furnace - NEW'!Q16+'Comm 95+% Furnace - Replace'!Q16+'Comm Custom'!Q16,0) -> 0 | R16: =ROUND(+'Res .95+% Res Furnace - NEW'!R16+'Res .95+% Res Furnace - Replace'!R16+'Programmable Tstats - Tier 1'!R16+'Programmable Tstats - Tier 2'!R16+'Comm 95+% Furnace - NEW'!R16+'Comm 95+% Furnace - Replace'!R16+'Comm Custom'!R16,0) -> 19346 | S16: =ROUND(+'Res .95+% Res Furnace - NEW'!S16+'Res .95+% Res Furnace - Replace'!S16+'Programmable Tstats - Tier 1'!S16+'Programmable Tstats - Tier 2'!S16+'Comm 95+% Furnace - NEW'!S16+'Comm 95+% Furnace - Replace'!S16+'Comm Custom'!S16,0) -> 66 | U16: =ROUND(+'Res .95+% Res Furnace - NEW'!U16+'Res .95+% Res Furnace - Replace'!U16+'Programmable Tstats - Tier 1'!U16+'Programmable Tstats - Tier 2'!U16+'Comm 95+% Furnace - NEW'!U16+'Comm 95+% Furnace - Replace'!U16+'Comm Custom'!U16,0) -> 10873 | V16: =ROUND(+'Res .95+% Res Furnace - NEW'!V16+'Res .95+% Res Furnace - Replace'!V16+'Programmable Tstats - Tier 1'!V16+'Programmable Tstats - Tier 2'!V16+'Comm 95+% Furnace - NEW'!V16+'Comm 95+% Furnace - Replace'!V16+'Comm Custom'!V16,0) -> 30219 | X16: =ROUND(+'Res .95+% Res Furnace - NEW'!X16+'Res .95+% Res Furnace - Replace'!X16+'Programmable Tstats - Tier 1'!X16+'Programmable Tstats - Tier 2'!X16+'Comm 95+% Furnace - NEW'!X16+'Comm 95+% Furnace - Replace'!X16+'Comm Custom'!X16,0) -> 9630 | Y16: =ROUND(+'Res .95+% Res Furnace - NEW'!Y16+'Res .95+% Res Furnace - Replace'!Y16+'Programmable Tstats - Tier 1'!Y16+'Programmable Tstats - Tier 2'!Y16+'Comm 95+% Furnace - NEW'!Y16+'Comm 95+% Furnace - Replace'!Y16+'Comm Custom'!Y16,0) -> 0 | Z16: =ROUND(+'Res .95+% Res Furnace - NEW'!Z16+'Res .95+% Res Furnace - Replace'!Z16+'Programmable Tstats - Tier 1'!Z16+'Programmable Tstats - Tier 2'!Z16+'Comm 95+% Furnace - NEW'!Z16+'Comm 95+% Furnace - Replace'!Z16+'Comm Custom'!Z16,0) -> 0 | AA16: =ROUND(+'Res .95+% Res Furnace - NEW'!AA16+'Res .95+% Res Furnace - Replace'!AA16+'Programmable Tstats - Tier 1'!AA16+'Programmable Tstats - Tier 2'!AA16+'Comm 95+% Furnace - NEW'!AA16+'Comm 95+% Furnace - Replace'!AA16+'Comm Custom'!AA16,0) -> 9630 | AB16: =ROUND(+'Res .95+% Res Furnace - NEW'!AB16+'Res .95+% Res Furnace - Replace'!AB16+'Programmable Tstats - Tier 1'!AB16+'Programmable Tstats - Tier 2'!AB16+'Comm 95+% Furnace - NEW'!AB16+'Comm 95+% Furnace - Replace'!AB16+'Comm Custom'!AB16,0) -> 20589 | AE16: 2025 | AF16: 19346 | AG16: 10873 | AH16: =+AG16+AF16 -> 30219 | AJ16: 0 | AK16: 0 | AL16: 0 | AN16: 30219 | AQ16: 2025 | AR16: 19346 | AS16: 10873 | AU16: =ROUND(+'Res .95+% Res Furnace - NEW'!AU16+'Res .95+% Res Furnace - Replace'!AU16+'Programmable Tstats - Tier 1'!AU16+'Programmable Tstats - Tier 2'!AU16+'Comm 95+% Furnace - NEW'!AU16+'Comm 95+% Furnace - Replace'!AU16+'Comm Custom'!AU16,0) -> 4623 | AW16: =ROUND(+'Res .95+% Res Furnace - NEW'!AW16+'Res .95+% Res Furnace - Replace'!AW16+'Programmable Tstats - Tier 1'!AW16+'Programmable Tstats - Tier 2'!AW16+'Comm 95+% Furnace - NEW'!AW16+'Comm 95+% Furnace - Replace'!AW16+'Comm Custom'!AW16,0) -> 14161 | AZ16: 49003 | BB16: =ROUND(+'Res .95+% Res Furnace - NEW'!BB16+'Res .95+% Res Furnace - Replace'!BB16+'Programmable Tstats - Tier 1'!BB16+'Programmable Tstats - Tier 2'!BB16+'Comm 95+% Furnace - NEW'!BB16+'Comm 95+% Furnace - Replace'!BB16+'Comm Custom'!BB16,0) -> 0 | BC16: =ROUND(+'Res .95+% Res Furnace - NEW'!BC16+'Res .95+% Res Furnace - Replace'!BC16+'Programmable Tstats - Tier 1'!BC16+'Programmable Tstats - Tier 2'!BC16+'Comm 95+% Furnace - NEW'!BC16+'Comm 95+% Furnace - Replace'!BC16+'Comm Custom'!BC16,0) -> 0 | BD16: 0 | BE16: 49003 | BH16: 2025 | BI16: =ROUND(+'Res .95+% Res Furnace - NEW'!BI16+'Res .95+% Res Furnace - Replace'!BI16+'Programmable Tstats - Tier 1'!BI16+'Programmable Tstats - Tier 2'!BI16+'Comm 95+% Furnace - NEW'!BI16+'Comm 95+% Furnace - Replace'!BI16+'Comm Custom'!BI16,0) -> 0 | BJ16: =ROUND(+'Res .95+% Res Furnace - NEW'!BJ16+'Res .95+% Res Furnace - Replace'!BJ16+'Programmable Tstats - Tier 1'!BJ16+'Programmable Tstats - Tier 2'!BJ16+'Comm 95+% Furnace - NEW'!BJ16+'Comm 95+% Furnace - Replace'!BJ16+'Comm Custom'!BJ16,0) -> 6538 | BL16: =ROUND(+'Res .95+% Res Furnace - NEW'!BL16+'Res .95+% Res Furnace - Replace'!BL16+'Programmable Tstats - Tier 1'!BL16+'Programmable Tstats - Tier 2'!BL16+'Comm 95+% Furnace - NEW'!BL16+'Comm 95+% Furnace - Replace'!BL16+'Comm Custom'!BL16,0) -> 47325 | BN16: =ROUND(+'Res .95+% Res Furnace - NEW'!BN16+'Res .95+% Res Furnace - Replace'!BN16+'Programmable Tstats - Tier 1'!BN16+'Programmable Tstats - Tier 2'!BN16+'Comm 95+% Furnace - NEW'!BN16+'Comm 95+% Furnace - Replace'!BN16+'Comm Custom'!BN16,0) -> 24678 | BP16: 72003 | BR16: =ROUND(+'Res .95+% Res Furnace - NEW'!BR16+'Res .95+% Res Furnace - Replace'!BR16+'Programmable Tstats - Tier 1'!BR16+'Programmable Tstats - Tier 2'!BR16+'Comm 95+% Furnace - NEW'!BR16+'Comm 95+% Furnace - Replace'!BR16+'Comm Custom'!BR16,0) -> 0 | BT16: 72003 | BW16: 2025 | BX16: 19346 | BY16: =U16 -> 10873 | BZ16: 4623 | CA16: 34842 | CC16: =BB16 -> 0 | CD16: 0 | CE16: =SUM(CC16:CD16) -> 0 | CG16: 34842
A17: 3) Commodity Cost ($/Dk) = | E17: 18) Participant Non-Energy Costs (Annual $/Part.) = | J17: 3 | L17: 2026 | M17: =ROUND(+'Res .95+% Res Furnace - NEW'!M17+'Res .95+% Res Furnace - Replace'!M17+'Programmable Tstats - Tier 1'!M17+'Programmable Tstats - Tier 2'!M17+'Comm 95+% Furnace - NEW'!M17+'Comm 95+% Furnace - Replace'!M17+'Comm Custom'!M17,0) -> 6538 | O17: =ROUND(+'Res .95+% Res Furnace - NEW'!O17+'Res .95+% Res Furnace - Replace'!O17+'Programmable Tstats - Tier 1'!O17+'Programmable Tstats - Tier 2'!O17+'Comm 95+% Furnace - NEW'!O17+'Comm 95+% Furnace - Replace'!O17+'Comm Custom'!O17,0) -> 19927 | Q17: =ROUND(+'Res .95+% Res Furnace - NEW'!Q17+'Res .95+% Res Furnace - Replace'!Q17+'Programmable Tstats - Tier 1'!Q17+'Programmable Tstats - Tier 2'!Q17+'Comm 95+% Furnace - NEW'!Q17+'Comm 95+% Furnace - Replace'!Q17+'Comm Custom'!Q17,0) -> 0 | R17: =ROUND(+'Res .95+% Res Furnace - NEW'!R17+'Res .95+% Res Furnace - Replace'!R17+'Programmable Tstats - Tier 1'!R17+'Programmable Tstats - Tier 2'!R17+'Comm 95+% Furnace - NEW'!R17+'Comm 95+% Furnace - Replace'!R17+'Comm Custom'!R17,0) -> 19927 | S17: =ROUND(+'Res .95+% Res Furnace - NEW'!S17+'Res .95+% Res Furnace - Replace'!S17+'Programmable Tstats - Tier 1'!S17+'Programmable Tstats - Tier 2'!S17+'Comm 95+% Furnace - NEW'!S17+'Comm 95+% Furnace - Replace'!S17+'Comm Custom'!S17,0) -> 66 | U17: =ROUND(+'Res .95+% Res Furnace - NEW'!U17+'Res .95+% Res Furnace - Replace'!U17+'Programmable Tstats - Tier 1'!U17+'Programmable Tstats - Tier 2'!U17+'Comm 95+% Furnace - NEW'!U17+'Comm 95+% Furnace - Replace'!U17+'Comm Custom'!U17,0) -> 11004 | V17: =ROUND(+'Res .95+% Res Furnace - NEW'!V17+'Res .95+% Res Furnace - Replace'!V17+'Programmable Tstats - Tier 1'!V17+'Programmable Tstats - Tier 2'!V17+'Comm 95+% Furnace - NEW'!V17+'Comm 95+% Furnace - Replace'!V17+'Comm Custom'!V17,0) -> 30931 | X17: =ROUND(+'Res .95+% Res Furnace - NEW'!X17+'Res .95+% Res Furnace - Replace'!X17+'Programmable Tstats - Tier 1'!X17+'Programmable Tstats - Tier 2'!X17+'Comm 95+% Furnace - NEW'!X17+'Comm 95+% Furnace - Replace'!X17+'Comm Custom'!X17,0) -> 9917 | Y17: =ROUND(+'Res .95+% Res Furnace - NEW'!Y17+'Res .95+% Res Furnace - Replace'!Y17+'Programmable Tstats - Tier 1'!Y17+'Programmable Tstats - Tier 2'!Y17+'Comm 95+% Furnace - NEW'!Y17+'Comm 95+% Furnace - Replace'!Y17+'Comm Custom'!Y17,0) -> 0 | Z17: =ROUND(+'Res .95+% Res Furnace - NEW'!Z17+'Res .95+% Res Furnace - Replace'!Z17+'Programmable Tstats - Tier 1'!Z17+'Programmable Tstats - Tier 2'!Z17+'Comm 95+% Furnace - NEW'!Z17+'Comm 95+% Furnace - Replace'!Z17+'Comm Custom'!Z17,0) -> 0 | AA17: =ROUND(+'Res .95+% Res Furnace - NEW'!AA17+'Res .95+% Res Furnace - Replace'!AA17+'Programmable Tstats - Tier 1'!AA17+'Programmable Tstats - Tier 2'!AA17+'Comm 95+% Furnace - NEW'!AA17+'Comm 95+% Furnace - Replace'!AA17+'Comm Custom'!AA17,0) -> 9917 | AB17: =ROUND(+'Res .95+% Res Furnace - NEW'!AB17+'Res .95+% Res Furnace - Replace'!AB17+'Programmable Tstats - Tier 1'!AB17+'Programmable Tstats - Tier 2'!AB17+'Comm 95+% Furnace - NEW'!AB17+'Comm 95+% Furnace - Replace'!AB17+'Comm Custom'!AB17,0) -> 21014 | AE17: 2026 | AF17: 19927 | AG17: 11004 | AH17: 30931 | AJ17: 0 | AK17: 0 | AL17: 0 | AN17: 30931 | AQ17: 2026 | AR17: 19927 | AS17: 11004 | AU17: =ROUND(+'Res .95+% Res Furnace - NEW'!AU17+'Res .95+% Res Furnace - Replace'!AU17+'Programmable Tstats - Tier 1'!AU17+'Programmable Tstats - Tier 2'!AU17+'Comm 95+% Furnace - NEW'!AU17+'Comm 95+% Furnace - Replace'!AU17+'Comm Custom'!AU17,0) -> 4801 | AW17: =ROUND(+'Res .95+% Res Furnace - NEW'!AW17+'Res .95+% Res Furnace - Replace'!AW17+'Programmable Tstats - Tier 1'!AW17+'Programmable Tstats - Tier 2'!AW17+'Comm 95+% Furnace - NEW'!AW17+'Comm 95+% Furnace - Replace'!AW17+'Comm Custom'!AW17,0) -> 14488 | AZ17: 50220 | BB17: =ROUND(+'Res .95+% Res Furnace - NEW'!BB17+'Res .95+% Res Furnace - Replace'!BB17+'Programmable Tstats - Tier 1'!BB17+'Programmable Tstats - Tier 2'!BB17+'Comm 95+% Furnace - NEW'!BB17+'Comm 95+% Furnace - Replace'!BB17+'Comm Custom'!BB17,0) -> 0 | BC17: =ROUND(+'Res .95+% Res Furnace - NEW'!BC17+'Res .95+% Res Furnace - Replace'!BC17+'Programmable Tstats - Tier 1'!BC17+'Programmable Tstats - Tier 2'!BC17+'Comm 95+% Furnace - NEW'!BC17+'Comm 95+% Furnace - Replace'!BC17+'Comm Custom'!BC17,0) -> 0 | BD17: 0 | BE17: 50220 | BH17: 2026 | BI17: =ROUND(+'Res .95+% Res Furnace - NEW'!BI17+'Res .95+% Res Furnace - Replace'!BI17+'Programmable Tstats - Tier 1'!BI17+'Programmable Tstats - Tier 2'!BI17+'Comm 95+% Furnace - NEW'!BI17+'Comm 95+% Furnace - Replace'!BI17+'Comm Custom'!BI17,0) -> 0 | BJ17: =ROUND(+'Res .95+% Res Furnace - NEW'!BJ17+'Res .95+% Res Furnace - Replace'!BJ17+'Programmable Tstats - Tier 1'!BJ17+'Programmable Tstats - Tier 2'!BJ17+'Comm 95+% Furnace - NEW'!BJ17+'Comm 95+% Furnace - Replace'!BJ17+'Comm Custom'!BJ17,0) -> 6538 | BL17: =ROUND(+'Res .95+% Res Furnace - NEW'!BL17+'Res .95+% Res Furnace - Replace'!BL17+'Programmable Tstats - Tier 1'!BL17+'Programmable Tstats - Tier 2'!BL17+'Comm 95+% Furnace - NEW'!BL17+'Comm 95+% Furnace - Replace'!BL17+'Comm Custom'!BL17,0) -> 48747 | BN17: =ROUND(+'Res .95+% Res Furnace - NEW'!BN17+'Res .95+% Res Furnace - Replace'!BN17+'Programmable Tstats - Tier 1'!BN17+'Programmable Tstats - Tier 2'!BN17+'Comm 95+% Furnace - NEW'!BN17+'Comm 95+% Furnace - Replace'!BN17+'Comm Custom'!BN17,0) -> 25390 | BP17: 74137 | BR17: =ROUND(+'Res .95+% Res Furnace - NEW'!BR17+'Res .95+% Res Furnace - Replace'!BR17+'Programmable Tstats - Tier 1'!BR17+'Programmable Tstats - Tier 2'!BR17+'Comm 95+% Furnace - NEW'!BR17+'Comm 95+% Furnace - Replace'!BR17+'Comm Custom'!BR17,0) -> 0 | BT17: 74137 | BW17: 2026 | BX17: 19927 | BY17: 11004 | BZ17: 4801 | CA17: 35732 | CC17: 0 | CD17: 0 | CE17: =SUM(CC17:CD17) -> 0 | CG17: 35732
A18: Escalation Rate = | E18: Escalation Rate = | J18: 4 | L18: 2027 | M18: =ROUND(+'Res .95+% Res Furnace - NEW'!M18+'Res .95+% Res Furnace - Replace'!M18+'Programmable Tstats - Tier 1'!M18+'Programmable Tstats - Tier 2'!M18+'Comm 95+% Furnace - NEW'!M18+'Comm 95+% Furnace - Replace'!M18+'Comm Custom'!M18,0) -> 6538 | O18: =ROUND(+'Res .95+% Res Furnace - NEW'!O18+'Res .95+% Res Furnace - Replace'!O18+'Programmable Tstats - Tier 1'!O18+'Programmable Tstats - Tier 2'!O18+'Comm 95+% Furnace - NEW'!O18+'Comm 95+% Furnace - Replace'!O18+'Comm Custom'!O18,0) -> 20522 | Q18: =ROUND(+'Res .95+% Res Furnace - NEW'!Q18+'Res .95+% Res Furnace - Replace'!Q18+'Programmable Tstats - Tier 1'!Q18+'Programmable Tstats - Tier 2'!Q18+'Comm 95+% Furnace - NEW'!Q18+'Comm 95+% Furnace - Replace'!Q18+'Comm Custom'!Q18,0) -> 0 | R18: =ROUND(+'Res .95+% Res Furnace - NEW'!R18+'Res .95+% Res Furnace - Replace'!R18+'Programmable Tstats - Tier 1'!R18+'Programmable Tstats - Tier 2'!R18+'Comm 95+% Furnace - NEW'!R18+'Comm 95+% Furnace - Replace'!R18+'Comm Custom'!R18,0) -> 20522 | S18: =ROUND(+'Res .95+% Res Furnace - NEW'!S18+'Res .95+% Res Furnace - Replace'!S18+'Programmable Tstats - Tier 1'!S18+'Programmable Tstats - Tier 2'!S18+'Comm 95+% Furnace - NEW'!S18+'Comm 95+% Furnace - Replace'!S18+'Comm Custom'!S18,0) -> 66 | U18: =ROUND(+'Res .95+% Res Furnace - NEW'!U18+'Res .95+% Res Furnace - Replace'!U18+'Programmable Tstats - Tier 1'!U18+'Programmable Tstats - Tier 2'!U18+'Comm 95+% Furnace - NEW'!U18+'Comm 95+% Furnace - Replace'!U18+'Comm Custom'!U18,0) -> 11070 | V18: =ROUND(+'Res .95+% Res Furnace - NEW'!V18+'Res .95+% Res Furnace - Replace'!V18+'Programmable Tstats - Tier 1'!V18+'Programmable Tstats - Tier 2'!V18+'Comm 95+% Furnace - NEW'!V18+'Comm 95+% Furnace - Replace'!V18+'Comm Custom'!V18,0) -> 31592 | X18: =ROUND(+'Res .95+% Res Furnace - NEW'!X18+'Res .95+% Res Furnace - Replace'!X18+'Programmable Tstats - Tier 1'!X18+'Programmable Tstats - Tier 2'!X18+'Comm 95+% Furnace - NEW'!X18+'Comm 95+% Furnace - Replace'!X18+'Comm Custom'!X18,0) -> 10214 | Y18: =ROUND(+'Res .95+% Res Furnace - NEW'!Y18+'Res .95+% Res Furnace - Replace'!Y18+'Programmable Tstats - Tier 1'!Y18+'Programmable Tstats - Tier 2'!Y18+'Comm 95+% Furnace - NEW'!Y18+'Comm 95+% Furnace - Replace'!Y18+'Comm Custom'!Y18,0) -> 0 | Z18: =ROUND(+'Res .95+% Res Furnace - NEW'!Z18+'Res .95+% Res Furnace - Replace'!Z18+'Programmable Tstats - Tier 1'!Z18+'Programmable Tstats - Tier 2'!Z18+'Comm 95+% Furnace - NEW'!Z18+'Comm 95+% Furnace - Replace'!Z18+'Comm Custom'!Z18,0) -> 0 | AA18: =ROUND(+'Res .95+% Res Furnace - NEW'!AA18+'Res .95+% Res Furnace - Replace'!AA18+'Programmable Tstats - Tier 1'!AA18+'Programmable Tstats - Tier 2'!AA18+'Comm 95+% Furnace - NEW'!AA18+'Comm 95+% Furnace - Replace'!AA18+'Comm Custom'!AA18,0) -> 10214 | AB18: =ROUND(+'Res .95+% Res Furnace - NEW'!AB18+'Res .95+% Res Furnace - Replace'!AB18+'Programmable Tstats - Tier 1'!AB18+'Programmable Tstats - Tier 2'!AB18+'Comm 95+% Furnace - NEW'!AB18+'Comm 95+% Furnace - Replace'!AB18+'Comm Custom'!AB18,0) -> 21378 | AE18: 2027 | AF18: 20522 | AG18: 11070 | AH18: 31592 | AJ18: 0 | AK18: 0 | AL18: 0 | AN18: 31592 | AQ18: 2027 | AR18: 20522 | AS18: 11070 | AU18: =ROUND(+'Res .95+% Res Furnace - NEW'!AU18+'Res .95+% Res Furnace - Replace'!AU18+'Programmable Tstats - Tier 1'!AU18+'Programmable Tstats - Tier 2'!AU18+'Comm 95+% Furnace - NEW'!AU18+'Comm 95+% Furnace - Replace'!AU18+'Comm Custom'!AU18,0) -> 4978 | AW18: =ROUND(+'Res .95+% Res Furnace - NEW'!AW18+'Res .95+% Res Furnace - Replace'!AW18+'Programmable Tstats - Tier 1'!AW18+'Programmable Tstats - Tier 2'!AW18+'Comm 95+% Furnace - NEW'!AW18+'Comm 95+% Furnace - Replace'!AW18+'Comm Custom'!AW18,0) -> 14822 | AZ18: 51392 | BB18: =ROUND(+'Res .95+% Res Furnace - NEW'!BB18+'Res .95+% Res Furnace - Replace'!BB18+'Programmable Tstats - Tier 1'!BB18+'Programmable Tstats - Tier 2'!BB18+'Comm 95+% Furnace - NEW'!BB18+'Comm 95+% Furnace - Replace'!BB18+'Comm Custom'!BB18,0) -> 0 | BC18: =ROUND(+'Res .95+% Res Furnace - NEW'!BC18+'Res .95+% Res Furnace - Replace'!BC18+'Programmable Tstats - Tier 1'!BC18+'Programmable Tstats - Tier 2'!BC18+'Comm 95+% Furnace - NEW'!BC18+'Comm 95+% Furnace - Replace'!BC18+'Comm Custom'!BC18,0) -> 0 | BD18: 0 | BE18: 51392 | BH18: 2027 | BI18: =ROUND(+'Res .95+% Res Furnace - NEW'!BI18+'Res .95+% Res Furnace - Replace'!BI18+'Programmable Tstats - Tier 1'!BI18+'Programmable Tstats - Tier 2'!BI18+'Comm 95+% Furnace - NEW'!BI18+'Comm 95+% Furnace - Replace'!BI18+'Comm Custom'!BI18,0) -> 0 | BJ18: =ROUND(+'Res .95+% Res Furnace - NEW'!BJ18+'Res .95+% Res Furnace - Replace'!BJ18+'Programmable Tstats - Tier 1'!BJ18+'Programmable Tstats - Tier 2'!BJ18+'Comm 95+% Furnace - NEW'!BJ18+'Comm 95+% Furnace - Replace'!BJ18+'Comm Custom'!BJ18,0) -> 6538 | BL18: =ROUND(+'Res .95+% Res Furnace - NEW'!BL18+'Res .95+% Res Furnace - Replace'!BL18+'Programmable Tstats - Tier 1'!BL18+'Programmable Tstats - Tier 2'!BL18+'Comm 95+% Furnace - NEW'!BL18+'Comm 95+% Furnace - Replace'!BL18+'Comm Custom'!BL18,0) -> 50208 | BN18: =ROUND(+'Res .95+% Res Furnace - NEW'!BN18+'Res .95+% Res Furnace - Replace'!BN18+'Programmable Tstats - Tier 1'!BN18+'Programmable Tstats - Tier 2'!BN18+'Comm 95+% Furnace - NEW'!BN18+'Comm 95+% Furnace - Replace'!BN18+'Comm Custom'!BN18,0) -> 26101 | BP18: 76309 | BR18: =ROUND(+'Res .95+% Res Furnace - NEW'!BR18+'Res .95+% Res Furnace - Replace'!BR18+'Programmable Tstats - Tier 1'!BR18+'Programmable Tstats - Tier 2'!BR18+'Comm 95+% Furnace - NEW'!BR18+'Comm 95+% Furnace - Replace'!BR18+'Comm Custom'!BR18,0) -> 0 | BT18: 76309 | BW18: 2027 | BX18: 20522 | BY18: 11070 | BZ18: 4978 | CA18: =SUM(BX18:BZ18) -> 36570 | CC18: 0 | CD18: 0 | CE18: 0 | CG18: 36570
J19: 5 | L19: 2028 | M19: =ROUND(+'Res .95+% Res Furnace - NEW'!M19+'Res .95+% Res Furnace - Replace'!M19+'Programmable Tstats - Tier 1'!M19+'Programmable Tstats - Tier 2'!M19+'Comm 95+% Furnace - NEW'!M19+'Comm 95+% Furnace - Replace'!M19+'Comm Custom'!M19,0) -> 6538 | O19: =ROUND(+'Res .95+% Res Furnace - NEW'!O19+'Res .95+% Res Furnace - Replace'!O19+'Programmable Tstats - Tier 1'!O19+'Programmable Tstats - Tier 2'!O19+'Comm 95+% Furnace - NEW'!O19+'Comm 95+% Furnace - Replace'!O19+'Comm Custom'!O19,0) -> 21137 | Q19: =ROUND(+'Res .95+% Res Furnace - NEW'!Q19+'Res .95+% Res Furnace - Replace'!Q19+'Programmable Tstats - Tier 1'!Q19+'Programmable Tstats - Tier 2'!Q19+'Comm 95+% Furnace - NEW'!Q19+'Comm 95+% Furnace - Replace'!Q19+'Comm Custom'!Q19,0) -> 0 | R19: =ROUND(+'Res .95+% Res Furnace - NEW'!R19+'Res .95+% Res Furnace - Replace'!R19+'Programmable Tstats - Tier 1'!R19+'Programmable Tstats - Tier 2'!R19+'Comm 95+% Furnace - NEW'!R19+'Comm 95+% Furnace - Replace'!R19+'Comm Custom'!R19,0) -> 21137 | S19: =ROUND(+'Res .95+% Res Furnace - NEW'!S19+'Res .95+% Res Furnace - Replace'!S19+'Programmable Tstats - Tier 1'!S19+'Programmable Tstats - Tier 2'!S19+'Comm 95+% Furnace - NEW'!S19+'Comm 95+% Furnace - Replace'!S19+'Comm Custom'!S19,0) -> 66 | U19: =ROUND(+'Res .95+% Res Furnace - NEW'!U19+'Res .95+% Res Furnace - Replace'!U19+'Programmable Tstats - Tier 1'!U19+'Programmable Tstats - Tier 2'!U19+'Comm 95+% Furnace - NEW'!U19+'Comm 95+% Furnace - Replace'!U19+'Comm Custom'!U19,0) -> 11200 | V19: =ROUND(+'Res .95+% Res Furnace - NEW'!V19+'Res .95+% Res Furnace - Replace'!V19+'Programmable Tstats - Tier 1'!V19+'Programmable Tstats - Tier 2'!V19+'Comm 95+% Furnace - NEW'!V19+'Comm 95+% Furnace - Replace'!V19+'Comm Custom'!V19,0) -> 32337 | X19: =ROUND(+'Res .95+% Res Furnace - NEW'!X19+'Res .95+% Res Furnace - Replace'!X19+'Programmable Tstats - Tier 1'!X19+'Programmable Tstats - Tier 2'!X19+'Comm 95+% Furnace - NEW'!X19+'Comm 95+% Furnace - Replace'!X19+'Comm Custom'!X19,0) -> 10520 | Y19: =ROUND(+'Res .95+% Res Furnace - NEW'!Y19+'Res .95+% Res Furnace - Replace'!Y19+'Programmable Tstats - Tier 1'!Y19+'Programmable Tstats - Tier 2'!Y19+'Comm 95+% Furnace - NEW'!Y19+'Comm 95+% Furnace - Replace'!Y19+'Comm Custom'!Y19,0) -> 0 | Z19: =ROUND(+'Res .95+% Res Furnace - NEW'!Z19+'Res .95+% Res Furnace - Replace'!Z19+'Programmable Tstats - Tier 1'!Z19+'Programmable Tstats - Tier 2'!Z19+'Comm 95+% Furnace - NEW'!Z19+'Comm 95+% Furnace - Replace'!Z19+'Comm Custom'!Z19,0) -> 0 | AA19: =ROUND(+'Res .95+% Res Furnace - NEW'!AA19+'Res .95+% Res Furnace - Replace'!AA19+'Programmable Tstats - Tier 1'!AA19+'Programmable Tstats - Tier 2'!AA19+'Comm 95+% Furnace - NEW'!AA19+'Comm 95+% Furnace - Replace'!AA19+'Comm Custom'!AA19,0) -> 10520 | AB19: =ROUND(+'Res .95+% Res Furnace - NEW'!AB19+'Res .95+% Res Furnace - Replace'!AB19+'Programmable Tstats - Tier 1'!AB19+'Programmable Tstats - Tier 2'!AB19+'Comm 95+% Furnace - NEW'!AB19+'Comm 95+% Furnace - Replace'!AB19+'Comm Custom'!AB19,0) -> 21817 | AE19: 2028 | AF19: 21137 | AG19: 11200 | AH19: 32337 | AJ19: 0 | AK19: 0 | AL19: 0 | AN19: 32337 | AQ19: 2028 | AR19: 21137 | AS19: 11200 | AU19: =ROUND(+'Res .95+% Res Furnace - NEW'!AU19+'Res .95+% Res Furnace - Replace'!AU19+'Programmable Tstats - Tier 1'!AU19+'Programmable Tstats - Tier 2'!AU19+'Comm 95+% Furnace - NEW'!AU19+'Comm 95+% Furnace - Replace'!AU19+'Comm Custom'!AU19,0) -> 5156 | AW19: =ROUND(+'Res .95+% Res Furnace - NEW'!AW19+'Res .95+% Res Furnace - Replace'!AW19+'Programmable Tstats - Tier 1'!AW19+'Programmable Tstats - Tier 2'!AW19+'Comm 95+% Furnace - NEW'!AW19+'Comm 95+% Furnace - Replace'!AW19+'Comm Custom'!AW19,0) -> 15162 | AZ19: 52655 | BB19: =ROUND(+'Res .95+% Res Furnace - NEW'!BB19+'Res .95+% Res Furnace - Replace'!BB19+'Programmable Tstats - Tier 1'!BB19+'Programmable Tstats - Tier 2'!BB19+'Comm 95+% Furnace - NEW'!BB19+'Comm 95+% Furnace - Replace'!BB19+'Comm Custom'!BB19,0) -> 0 | BC19: =ROUND(+'Res .95+% Res Furnace - NEW'!BC19+'Res .95+% Res Furnace - Replace'!BC19+'Programmable Tstats - Tier 1'!BC19+'Programmable Tstats - Tier 2'!BC19+'Comm 95+% Furnace - NEW'!BC19+'Comm 95+% Furnace - Replace'!BC19+'Comm Custom'!BC19,0) -> 0 | BD19: 0 | BE19: 52655 | BH19: 2028 | BI19: =ROUND(+'Res .95+% Res Furnace - NEW'!BI19+'Res .95+% Res Furnace - Replace'!BI19+'Programmable Tstats - Tier 1'!BI19+'Programmable Tstats - Tier 2'!BI19+'Comm 95+% Furnace - NEW'!BI19+'Comm 95+% Furnace - Replace'!BI19+'Comm Custom'!BI19,0) -> 0 | BJ19: =ROUND(+'Res .95+% Res Furnace - NEW'!BJ19+'Res .95+% Res Furnace - Replace'!BJ19+'Programmable Tstats - Tier 1'!BJ19+'Programmable Tstats - Tier 2'!BJ19+'Comm 95+% Furnace - NEW'!BJ19+'Comm 95+% Furnace - Replace'!BJ19+'Comm Custom'!BJ19,0) -> 6538 | BL19: =ROUND(+'Res .95+% Res Furnace - NEW'!BL19+'Res .95+% Res Furnace - Replace'!BL19+'Programmable Tstats - Tier 1'!BL19+'Programmable Tstats - Tier 2'!BL19+'Comm 95+% Furnace - NEW'!BL19+'Comm 95+% Furnace - Replace'!BL19+'Comm Custom'!BL19,0) -> 51714 | BN19: =ROUND(+'Res .95+% Res Furnace - NEW'!BN19+'Res .95+% Res Furnace - Replace'!BN19+'Programmable Tstats - Tier 1'!BN19+'Programmable Tstats - Tier 2'!BN19+'Comm 95+% Furnace - NEW'!BN19+'Comm 95+% Furnace - Replace'!BN19+'Comm Custom'!BN19,0) -> 26812 | BP19: 78526 | BR19: =ROUND(+'Res .95+% Res Furnace - NEW'!BR19+'Res .95+% Res Furnace - Replace'!BR19+'Programmable Tstats - Tier 1'!BR19+'Programmable Tstats - Tier 2'!BR19+'Comm 95+% Furnace - NEW'!BR19+'Comm 95+% Furnace - Replace'!BR19+'Comm Custom'!BR19,0) -> 0 | BT19: 78526 | BW19: 2028 | BX19: 21137 | BY19: 11200 | BZ19: 5156 | CA19: 37493 | CC19: 0 | CD19: 0 | CE19: 0 | CG19: 37493
A20: 4) Demand Cost ($/Unit/Yr) = | E20: 19) Participant Non-Energy Savings (Annual $/Part) = | J20: 6 | L20: 2029 | M20: =ROUND(+'Res .95+% Res Furnace - NEW'!M20+'Res .95+% Res Furnace - Replace'!M20+'Programmable Tstats - Tier 1'!M20+'Programmable Tstats - Tier 2'!M20+'Comm 95+% Furnace - NEW'!M20+'Comm 95+% Furnace - Replace'!M20+'Comm Custom'!M20,0) -> 6538 | O20: =ROUND(+'Res .95+% Res Furnace - NEW'!O20+'Res .95+% Res Furnace - Replace'!O20+'Programmable Tstats - Tier 1'!O20+'Programmable Tstats - Tier 2'!O20+'Comm 95+% Furnace - NEW'!O20+'Comm 95+% Furnace - Replace'!O20+'Comm Custom'!O20,0) -> 21771 | Q20: =ROUND(+'Res .95+% Res Furnace - NEW'!Q20+'Res .95+% Res Furnace - Replace'!Q20+'Programmable Tstats - Tier 1'!Q20+'Programmable Tstats - Tier 2'!Q20+'Comm 95+% Furnace - NEW'!Q20+'Comm 95+% Furnace - Replace'!Q20+'Comm Custom'!Q20,0) -> 0 | R20: =ROUND(+'Res .95+% Res Furnace - NEW'!R20+'Res .95+% Res Furnace - Replace'!R20+'Programmable Tstats - Tier 1'!R20+'Programmable Tstats - Tier 2'!R20+'Comm 95+% Furnace - NEW'!R20+'Comm 95+% Furnace - Replace'!R20+'Comm Custom'!R20,0) -> 21771 | S20: =ROUND(+'Res .95+% Res Furnace - NEW'!S20+'Res .95+% Res Furnace - Replace'!S20+'Programmable Tstats - Tier 1'!S20+'Programmable Tstats - Tier 2'!S20+'Comm 95+% Furnace - NEW'!S20+'Comm 95+% Furnace - Replace'!S20+'Comm Custom'!S20,0) -> 66 | U20: =ROUND(+'Res .95+% Res Furnace - NEW'!U20+'Res .95+% Res Furnace - Replace'!U20+'Programmable Tstats - Tier 1'!U20+'Programmable Tstats - Tier 2'!U20+'Comm 95+% Furnace - NEW'!U20+'Comm 95+% Furnace - Replace'!U20+'Comm Custom'!U20,0) -> 11331 | V20: =ROUND(+'Res .95+% Res Furnace - NEW'!V20+'Res .95+% Res Furnace - Replace'!V20+'Programmable Tstats - Tier 1'!V20+'Programmable Tstats - Tier 2'!V20+'Comm 95+% Furnace - NEW'!V20+'Comm 95+% Furnace - Replace'!V20+'Comm Custom'!V20,0) -> 33102 | X20: =ROUND(+'Res .95+% Res Furnace - NEW'!X20+'Res .95+% Res Furnace - Replace'!X20+'Programmable Tstats - Tier 1'!X20+'Programmable Tstats - Tier 2'!X20+'Comm 95+% Furnace - NEW'!X20+'Comm 95+% Furnace - Replace'!X20+'Comm Custom'!X20,0) -> 10836 | Y20: =ROUND(+'Res .95+% Res Furnace - NEW'!Y20+'Res .95+% Res Furnace - Replace'!Y20+'Programmable Tstats - Tier 1'!Y20+'Programmable Tstats - Tier 2'!Y20+'Comm 95+% Furnace - NEW'!Y20+'Comm 95+% Furnace - Replace'!Y20+'Comm Custom'!Y20,0) -> 0 | Z20: =ROUND(+'Res .95+% Res Furnace - NEW'!Z20+'Res .95+% Res Furnace - Replace'!Z20+'Programmable Tstats - Tier 1'!Z20+'Programmable Tstats - Tier 2'!Z20+'Comm 95+% Furnace - NEW'!Z20+'Comm 95+% Furnace - Replace'!Z20+'Comm Custom'!Z20,0) -> 0 | AA20: =ROUND(+'Res .95+% Res Furnace - NEW'!AA20+'Res .95+% Res Furnace - Replace'!AA20+'Programmable Tstats - Tier 1'!AA20+'Programmable Tstats - Tier 2'!AA20+'Comm 95+% Furnace - NEW'!AA20+'Comm 95+% Furnace - Replace'!AA20+'Comm Custom'!AA20,0) -> 10836 | AB20: =ROUND(+'Res .95+% Res Furnace - NEW'!AB20+'Res .95+% Res Furnace - Replace'!AB20+'Programmable Tstats - Tier 1'!AB20+'Programmable Tstats - Tier 2'!AB20+'Comm 95+% Furnace - NEW'!AB20+'Comm 95+% Furnace - Replace'!AB20+'Comm Custom'!AB20,0) -> 22266 | AE20: 2029 | AF20: 21771 | AG20: 11331 | AH20: 33102 | AJ20: 0 | AK20: 0 | AL20: 0 | AN20: 33102 | AQ20: 2029 | AR20: 21771 | AS20: 11331 | AU20: =ROUND(+'Res .95+% Res Furnace - NEW'!AU20+'Res .95+% Res Furnace - Replace'!AU20+'Programmable Tstats - Tier 1'!AU20+'Programmable Tstats - Tier 2'!AU20+'Comm 95+% Furnace - NEW'!AU20+'Comm 95+% Furnace - Replace'!AU20+'Comm Custom'!AU20,0) -> 5156 | AW20: =ROUND(+'Res .95+% Res Furnace - NEW'!AW20+'Res .95+% Res Furnace - Replace'!AW20+'Programmable Tstats - Tier 1'!AW20+'Programmable Tstats - Tier 2'!AW20+'Comm 95+% Furnace - NEW'!AW20+'Comm 95+% Furnace - Replace'!AW20+'Comm Custom'!AW20,0) -> 15514 | AZ20: 53772 | BB20: =ROUND(+'Res .95+% Res Furnace - NEW'!BB20+'Res .95+% Res Furnace - Replace'!BB20+'Programmable Tstats - Tier 1'!BB20+'Programmable Tstats - Tier 2'!BB20+'Comm 95+% Furnace - NEW'!BB20+'Comm 95+% Furnace - Replace'!BB20+'Comm Custom'!BB20,0) -> 0 | BC20: =ROUND(+'Res .95+% Res Furnace - NEW'!BC20+'Res .95+% Res Furnace - Replace'!BC20+'Programmable Tstats - Tier 1'!BC20+'Programmable Tstats - Tier 2'!BC20+'Comm 95+% Furnace - NEW'!BC20+'Comm 95+% Furnace - Replace'!BC20+'Comm Custom'!BC20,0) -> 0 | BD20: 0 | BE20: 53772 | BH20: 2029 | BI20: =ROUND(+'Res .95+% Res Furnace - NEW'!BI20+'Res .95+% Res Furnace - Replace'!BI20+'Programmable Tstats - Tier 1'!BI20+'Programmable Tstats - Tier 2'!BI20+'Comm 95+% Furnace - NEW'!BI20+'Comm 95+% Furnace - Replace'!BI20+'Comm Custom'!BI20,0) -> 0 | BJ20: =ROUND(+'Res .95+% Res Furnace - NEW'!BJ20+'Res .95+% Res Furnace - Replace'!BJ20+'Programmable Tstats - Tier 1'!BJ20+'Programmable Tstats - Tier 2'!BJ20+'Comm 95+% Furnace - NEW'!BJ20+'Comm 95+% Furnace - Replace'!BJ20+'Comm Custom'!BJ20,0) -> 6538 | BL20: =ROUND(+'Res .95+% Res Furnace - NEW'!BL20+'Res .95+% Res Furnace - Replace'!BL20+'Programmable Tstats - Tier 1'!BL20+'Programmable Tstats - Tier 2'!BL20+'Comm 95+% Furnace - NEW'!BL20+'Comm 95+% Furnace - Replace'!BL20+'Comm Custom'!BL20,0) -> 53265 | BN20: =ROUND(+'Res .95+% Res Furnace - NEW'!BN20+'Res .95+% Res Furnace - Replace'!BN20+'Programmable Tstats - Tier 1'!BN20+'Programmable Tstats - Tier 2'!BN20+'Comm 95+% Furnace - NEW'!BN20+'Comm 95+% Furnace - Replace'!BN20+'Comm Custom'!BN20,0) -> 27693 | BP20: 80958 | BR20: =ROUND(+'Res .95+% Res Furnace - NEW'!BR20+'Res .95+% Res Furnace - Replace'!BR20+'Programmable Tstats - Tier 1'!BR20+'Programmable Tstats - Tier 2'!BR20+'Comm 95+% Furnace - NEW'!BR20+'Comm 95+% Furnace - Replace'!BR20+'Comm Custom'!BR20,0) -> 0 | BT20: 80958 | BW20: 2029 | BX20: 21771 | BY20: 11331 | BZ20: 5156 | CA20: 38258 | CC20: 0 | CD20: 0 | CE20: 0 | CG20: 38258
A21: Escalation Rate = | E21: Escalation Rate = | J21: 7 | L21: 2030 | M21: =ROUND(+'Res .95+% Res Furnace - NEW'!M21+'Res .95+% Res Furnace - Replace'!M21+'Programmable Tstats - Tier 1'!M21+'Programmable Tstats - Tier 2'!M21+'Comm 95+% Furnace - NEW'!M21+'Comm 95+% Furnace - Replace'!M21+'Comm Custom'!M21,0) -> 6538 | O21: =ROUND(+'Res .95+% Res Furnace - NEW'!O21+'Res .95+% Res Furnace - Replace'!O21+'Programmable Tstats - Tier 1'!O21+'Programmable Tstats - Tier 2'!O21+'Comm 95+% Furnace - NEW'!O21+'Comm 95+% Furnace - Replace'!O21+'Comm Custom'!O21,0) -> 22426 | Q21: =ROUND(+'Res .95+% Res Furnace - NEW'!Q21+'Res .95+% Res Furnace - Replace'!Q21+'Programmable Tstats - Tier 1'!Q21+'Programmable Tstats - Tier 2'!Q21+'Comm 95+% Furnace - NEW'!Q21+'Comm 95+% Furnace - Replace'!Q21+'Comm Custom'!Q21,0) -> 0 | R21: =ROUND(+'Res .95+% Res Furnace - NEW'!R21+'Res .95+% Res Furnace - Replace'!R21+'Programmable Tstats - Tier 1'!R21+'Programmable Tstats - Tier 2'!R21+'Comm 95+% Furnace - NEW'!R21+'Comm 95+% Furnace - Replace'!R21+'Comm Custom'!R21,0) -> 22426 | S21: =ROUND(+'Res .95+% Res Furnace - NEW'!S21+'Res .95+% Res Furnace - Replace'!S21+'Programmable Tstats - Tier 1'!S21+'Programmable Tstats - Tier 2'!S21+'Comm 95+% Furnace - NEW'!S21+'Comm 95+% Furnace - Replace'!S21+'Comm Custom'!S21,0) -> 66 | U21: =ROUND(+'Res .95+% Res Furnace - NEW'!U21+'Res .95+% Res Furnace - Replace'!U21+'Programmable Tstats - Tier 1'!U21+'Programmable Tstats - Tier 2'!U21+'Comm 95+% Furnace - NEW'!U21+'Comm 95+% Furnace - Replace'!U21+'Comm Custom'!U21,0) -> 11464 | V21: =ROUND(+'Res .95+% Res Furnace - NEW'!V21+'Res .95+% Res Furnace - Replace'!V21+'Programmable Tstats - Tier 1'!V21+'Programmable Tstats - Tier 2'!V21+'Comm 95+% Furnace - NEW'!V21+'Comm 95+% Furnace - Replace'!V21+'Comm Custom'!V21,0) -> 33890 | X21: =ROUND(+'Res .95+% Res Furnace - NEW'!X21+'Res .95+% Res Furnace - Replace'!X21+'Programmable Tstats - Tier 1'!X21+'Programmable Tstats - Tier 2'!X21+'Comm 95+% Furnace - NEW'!X21+'Comm 95+% Furnace - Replace'!X21+'Comm Custom'!X21,0) -> 11163 | Y21: =ROUND(+'Res .95+% Res Furnace - NEW'!Y21+'Res .95+% Res Furnace - Replace'!Y21+'Programmable Tstats - Tier 1'!Y21+'Programmable Tstats - Tier 2'!Y21+'Comm 95+% Furnace - NEW'!Y21+'Comm 95+% Furnace - Replace'!Y21+'Comm Custom'!Y21,0) -> 0 | Z21: =ROUND(+'Res .95+% Res Furnace - NEW'!Z21+'Res .95+% Res Furnace - Replace'!Z21+'Programmable Tstats - Tier 1'!Z21+'Programmable Tstats - Tier 2'!Z21+'Comm 95+% Furnace - NEW'!Z21+'Comm 95+% Furnace - Replace'!Z21+'Comm Custom'!Z21,0) -> 0 | AA21: =ROUND(+'Res .95+% Res Furnace - NEW'!AA21+'Res .95+% Res Furnace - Replace'!AA21+'Programmable Tstats - Tier 1'!AA21+'Programmable Tstats - Tier 2'!AA21+'Comm 95+% Furnace - NEW'!AA21+'Comm 95+% Furnace - Replace'!AA21+'Comm Custom'!AA21,0) -> 11163 | AB21: =ROUND(+'Res .95+% Res Furnace - NEW'!AB21+'Res .95+% Res Furnace - Replace'!AB21+'Programmable Tstats - Tier 1'!AB21+'Programmable Tstats - Tier 2'!AB21+'Comm 95+% Furnace - NEW'!AB21+'Comm 95+% Furnace - Replace'!AB21+'Comm Custom'!AB21,0) -> 22727 | AE21: 2030 | AF21: 22426 | AG21: 11464 | AH21: 33890 | AJ21: 0 | AK21: 0 | AL21: 0 | AN21: 33890 | AQ21: 2030 | AR21: 22426 | AS21: 11464 | AU21: =ROUND(+'Res .95+% Res Furnace - NEW'!AU21+'Res .95+% Res Furnace - Replace'!AU21+'Programmable Tstats - Tier 1'!AU21+'Programmable Tstats - Tier 2'!AU21+'Comm 95+% Furnace - NEW'!AU21+'Comm 95+% Furnace - Replace'!AU21+'Comm Custom'!AU21,0) -> 5333 | AW21: =ROUND(+'Res .95+% Res Furnace - NEW'!AW21+'Res .95+% Res Furnace - Replace'!AW21+'Programmable Tstats - Tier 1'!AW21+'Programmable Tstats - Tier 2'!AW21+'Comm 95+% Furnace - NEW'!AW21+'Comm 95+% Furnace - Replace'!AW21+'Comm Custom'!AW21,0) -> 15867 | AZ21: 55090 | BB21: =ROUND(+'Res .95+% Res Furnace - NEW'!BB21+'Res .95+% Res Furnace - Replace'!BB21+'Programmable Tstats - Tier 1'!BB21+'Programmable Tstats - Tier 2'!BB21+'Comm 95+% Furnace - NEW'!BB21+'Comm 95+% Furnace - Replace'!BB21+'Comm Custom'!BB21,0) -> 0 | BC21: =ROUND(+'Res .95+% Res Furnace - NEW'!BC21+'Res .95+% Res Furnace - Replace'!BC21+'Programmable Tstats - Tier 1'!BC21+'Programmable Tstats - Tier 2'!BC21+'Comm 95+% Furnace - NEW'!BC21+'Comm 95+% Furnace - Replace'!BC21+'Comm Custom'!BC21,0) -> 0 | BD21: 0 | BE21: 55090 | BH21: 2030 | BI21: =ROUND(+'Res .95+% Res Furnace - NEW'!BI21+'Res .95+% Res Furnace - Replace'!BI21+'Programmable Tstats - Tier 1'!BI21+'Programmable Tstats - Tier 2'!BI21+'Comm 95+% Furnace - NEW'!BI21+'Comm 95+% Furnace - Replace'!BI21+'Comm Custom'!BI21,0) -> 0 | BJ21: =ROUND(+'Res .95+% Res Furnace - NEW'!BJ21+'Res .95+% Res Furnace - Replace'!BJ21+'Programmable Tstats - Tier 1'!BJ21+'Programmable Tstats - Tier 2'!BJ21+'Comm 95+% Furnace - NEW'!BJ21+'Comm 95+% Furnace - Replace'!BJ21+'Comm Custom'!BJ21,0) -> 6538 | BL21: =ROUND(+'Res .95+% Res Furnace - NEW'!BL21+'Res .95+% Res Furnace - Replace'!BL21+'Programmable Tstats - Tier 1'!BL21+'Programmable Tstats - Tier 2'!BL21+'Comm 95+% Furnace - NEW'!BL21+'Comm 95+% Furnace - Replace'!BL21+'Comm Custom'!BL21,0) -> 54866 | BN21: =ROUND(+'Res .95+% Res Furnace - NEW'!BN21+'Res .95+% Res Furnace - Replace'!BN21+'Programmable Tstats - Tier 1'!BN21+'Programmable Tstats - Tier 2'!BN21+'Comm 95+% Furnace - NEW'!BN21+'Comm 95+% Furnace - Replace'!BN21+'Comm Custom'!BN21,0) -> 28581 | BP21: 83447 | BR21: =ROUND(+'Res .95+% Res Furnace - NEW'!BR21+'Res .95+% Res Furnace - Replace'!BR21+'Programmable Tstats - Tier 1'!BR21+'Programmable Tstats - Tier 2'!BR21+'Comm 95+% Furnace - NEW'!BR21+'Comm 95+% Furnace - Replace'!BR21+'Comm Custom'!BR21,0) -> 0 | BT21: 83447 | BW21: 2030 | BX21: 22426 | BY21: 11464 | BZ21: 5333 | CA21: 39223 | CC21: 0 | CD21: 0 | CE21: 0 | CG21: 39223
J22: 8 | L22: 2031 | M22: =ROUND(+'Res .95+% Res Furnace - NEW'!M22+'Res .95+% Res Furnace - Replace'!M22+'Programmable Tstats - Tier 1'!M22+'Programmable Tstats - Tier 2'!M22+'Comm 95+% Furnace - NEW'!M22+'Comm 95+% Furnace - Replace'!M22+'Comm Custom'!M22,0) -> 6538 | O22: =ROUND(+'Res .95+% Res Furnace - NEW'!O22+'Res .95+% Res Furnace - Replace'!O22+'Programmable Tstats - Tier 1'!O22+'Programmable Tstats - Tier 2'!O22+'Comm 95+% Furnace - NEW'!O22+'Comm 95+% Furnace - Replace'!O22+'Comm Custom'!O22,0) -> 23100 | Q22: =ROUND(+'Res .95+% Res Furnace - NEW'!Q22+'Res .95+% Res Furnace - Replace'!Q22+'Programmable Tstats - Tier 1'!Q22+'Programmable Tstats - Tier 2'!Q22+'Comm 95+% Furnace - NEW'!Q22+'Comm 95+% Furnace - Replace'!Q22+'Comm Custom'!Q22,0) -> 0 | R22: =ROUND(+'Res .95+% Res Furnace - NEW'!R22+'Res .95+% Res Furnace - Replace'!R22+'Programmable Tstats - Tier 1'!R22+'Programmable Tstats - Tier 2'!R22+'Comm 95+% Furnace - NEW'!R22+'Comm 95+% Furnace - Replace'!R22+'Comm Custom'!R22,0) -> 23100 | S22: =ROUND(+'Res .95+% Res Furnace - NEW'!S22+'Res .95+% Res Furnace - Replace'!S22+'Programmable Tstats - Tier 1'!S22+'Programmable Tstats - Tier 2'!S22+'Comm 95+% Furnace - NEW'!S22+'Comm 95+% Furnace - Replace'!S22+'Comm Custom'!S22,0) -> 66 | U22: =ROUND(+'Res .95+% Res Furnace - NEW'!U22+'Res .95+% Res Furnace - Replace'!U22+'Programmable Tstats - Tier 1'!U22+'Programmable Tstats - Tier 2'!U22+'Comm 95+% Furnace - NEW'!U22+'Comm 95+% Furnace - Replace'!U22+'Comm Custom'!U22,0) -> 11528 | V22: =ROUND(+'Res .95+% Res Furnace - NEW'!V22+'Res .95+% Res Furnace - Replace'!V22+'Programmable Tstats - Tier 1'!V22+'Programmable Tstats - Tier 2'!V22+'Comm 95+% Furnace - NEW'!V22+'Comm 95+% Furnace - Replace'!V22+'Comm Custom'!V22,0) -> 34628 | X22: =ROUND(+'Res .95+% Res Furnace - NEW'!X22+'Res .95+% Res Furnace - Replace'!X22+'Programmable Tstats - Tier 1'!X22+'Programmable Tstats - Tier 2'!X22+'Comm 95+% Furnace - NEW'!X22+'Comm 95+% Furnace - Replace'!X22+'Comm Custom'!X22,0) -> 11500 | Y22: =ROUND(+'Res .95+% Res Furnace - NEW'!Y22+'Res .95+% Res Furnace - Replace'!Y22+'Programmable Tstats - Tier 1'!Y22+'Programmable Tstats - Tier 2'!Y22+'Comm 95+% Furnace - NEW'!Y22+'Comm 95+% Furnace - Replace'!Y22+'Comm Custom'!Y22,0) -> 0 | Z22: =ROUND(+'Res .95+% Res Furnace - NEW'!Z22+'Res .95+% Res Furnace - Replace'!Z22+'Programmable Tstats - Tier 1'!Z22+'Programmable Tstats - Tier 2'!Z22+'Comm 95+% Furnace - NEW'!Z22+'Comm 95+% Furnace - Replace'!Z22+'Comm Custom'!Z22,0) -> 0 | AA22: =ROUND(+'Res .95+% Res Furnace - NEW'!AA22+'Res .95+% Res Furnace - Replace'!AA22+'Programmable Tstats - Tier 1'!AA22+'Programmable Tstats - Tier 2'!AA22+'Comm 95+% Furnace - NEW'!AA22+'Comm 95+% Furnace - Replace'!AA22+'Comm Custom'!AA22,0) -> 11500 | AB22: =ROUND(+'Res .95+% Res Furnace - NEW'!AB22+'Res .95+% Res Furnace - Replace'!AB22+'Programmable Tstats - Tier 1'!AB22+'Programmable Tstats - Tier 2'!AB22+'Comm 95+% Furnace - NEW'!AB22+'Comm 95+% Furnace - Replace'!AB22+'Comm Custom'!AB22,0) -> 23128 | AE22: 2031 | AF22: 23100 | AG22: 11528 | AH22: 34628 | AJ22: 0 | AK22: 0 | AL22: 0 | AN22: 34628 | AQ22: 2031 | AR22: 23100 | AS22: 11528 | AU22: =ROUND(+'Res .95+% Res Furnace - NEW'!AU22+'Res .95+% Res Furnace - Replace'!AU22+'Programmable Tstats - Tier 1'!AU22+'Programmable Tstats - Tier 2'!AU22+'Comm 95+% Furnace - NEW'!AU22+'Comm 95+% Furnace - Replace'!AU22+'Comm Custom'!AU22,0) -> 5512 | AW22: =ROUND(+'Res .95+% Res Furnace - NEW'!AW22+'Res .95+% Res Furnace - Replace'!AW22+'Programmable Tstats - Tier 1'!AW22+'Programmable Tstats - Tier 2'!AW22+'Comm 95+% Furnace - NEW'!AW22+'Comm 95+% Furnace - Replace'!AW22+'Comm Custom'!AW22,0) -> 16233 | AZ22: 56373 | BB22: =ROUND(+'Res .95+% Res Furnace - NEW'!BB22+'Res .95+% Res Furnace - Replace'!BB22+'Programmable Tstats - Tier 1'!BB22+'Programmable Tstats - Tier 2'!BB22+'Comm 95+% Furnace - NEW'!BB22+'Comm 95+% Furnace - Replace'!BB22+'Comm Custom'!BB22,0) -> 0 | BC22: =ROUND(+'Res .95+% Res Furnace - NEW'!BC22+'Res .95+% Res Furnace - Replace'!BC22+'Programmable Tstats - Tier 1'!BC22+'Programmable Tstats - Tier 2'!BC22+'Comm 95+% Furnace - NEW'!BC22+'Comm 95+% Furnace - Replace'!BC22+'Comm Custom'!BC22,0) -> 0 | BD22: 0 | BE22: 56373 | BH22: 2031 | BI22: =ROUND(+'Res .95+% Res Furnace - NEW'!BI22+'Res .95+% Res Furnace - Replace'!BI22+'Programmable Tstats - Tier 1'!BI22+'Programmable Tstats - Tier 2'!BI22+'Comm 95+% Furnace - NEW'!BI22+'Comm 95+% Furnace - Replace'!BI22+'Comm Custom'!BI22,0) -> 0 | BJ22: =ROUND(+'Res .95+% Res Furnace - NEW'!BJ22+'Res .95+% Res Furnace - Replace'!BJ22+'Programmable Tstats - Tier 1'!BJ22+'Programmable Tstats - Tier 2'!BJ22+'Comm 95+% Furnace - NEW'!BJ22+'Comm 95+% Furnace - Replace'!BJ22+'Comm Custom'!BJ22,0) -> 6538 | BL22: =ROUND(+'Res .95+% Res Furnace - NEW'!BL22+'Res .95+% Res Furnace - Replace'!BL22+'Programmable Tstats - Tier 1'!BL22+'Programmable Tstats - Tier 2'!BL22+'Comm 95+% Furnace - NEW'!BL22+'Comm 95+% Furnace - Replace'!BL22+'Comm Custom'!BL22,0) -> 56510 | BN22: =ROUND(+'Res .95+% Res Furnace - NEW'!BN22+'Res .95+% Res Furnace - Replace'!BN22+'Programmable Tstats - Tier 1'!BN22+'Programmable Tstats - Tier 2'!BN22+'Comm 95+% Furnace - NEW'!BN22+'Comm 95+% Furnace - Replace'!BN22+'Comm Custom'!BN22,0) -> 29470 | BP22: 85980 | BR22: =ROUND(+'Res .95+% Res Furnace - NEW'!BR22+'Res .95+% Res Furnace - Replace'!BR22+'Programmable Tstats - Tier 1'!BR22+'Programmable Tstats - Tier 2'!BR22+'Comm 95+% Furnace - NEW'!BR22+'Comm 95+% Furnace - Replace'!BR22+'Comm Custom'!BR22,0) -> 0 | BT22: 85980 | BW22: 2031 | BX22: 23100 | BY22: 11528 | BZ22: 5512 | CA22: 40140 | CC22: 0 | CD22: 0 | CE22: 0 | CG22: 40140
A23: 5) Peak Reduction Factor = | E23: 20) Project Life (Years) = | J23: 9 | L23: 2032 | M23: =ROUND(+'Res .95+% Res Furnace - NEW'!M23+'Res .95+% Res Furnace - Replace'!M23+'Programmable Tstats - Tier 1'!M23+'Programmable Tstats - Tier 2'!M23+'Comm 95+% Furnace - NEW'!M23+'Comm 95+% Furnace - Replace'!M23+'Comm Custom'!M23,0) -> 6538 | O23: =ROUND(+'Res .95+% Res Furnace - NEW'!O23+'Res .95+% Res Furnace - Replace'!O23+'Programmable Tstats - Tier 1'!O23+'Programmable Tstats - Tier 2'!O23+'Comm 95+% Furnace - NEW'!O23+'Comm 95+% Furnace - Replace'!O23+'Comm Custom'!O23,0) -> 23791 | Q23: =ROUND(+'Res .95+% Res Furnace - NEW'!Q23+'Res .95+% Res Furnace - Replace'!Q23+'Programmable Tstats - Tier 1'!Q23+'Programmable Tstats - Tier 2'!Q23+'Comm 95+% Furnace - NEW'!Q23+'Comm 95+% Furnace - Replace'!Q23+'Comm Custom'!Q23,0) -> 0 | R23: =ROUND(+'Res .95+% Res Furnace - NEW'!R23+'Res .95+% Res Furnace - Replace'!R23+'Programmable Tstats - Tier 1'!R23+'Programmable Tstats - Tier 2'!R23+'Comm 95+% Furnace - NEW'!R23+'Comm 95+% Furnace - Replace'!R23+'Comm Custom'!R23,0) -> 23791 | S23: =ROUND(+'Res .95+% Res Furnace - NEW'!S23+'Res .95+% Res Furnace - Replace'!S23+'Programmable Tstats - Tier 1'!S23+'Programmable Tstats - Tier 2'!S23+'Comm 95+% Furnace - NEW'!S23+'Comm 95+% Furnace - Replace'!S23+'Comm Custom'!S23,0) -> 66 | U23: =ROUND(+'Res .95+% Res Furnace - NEW'!U23+'Res .95+% Res Furnace - Replace'!U23+'Programmable Tstats - Tier 1'!U23+'Programmable Tstats - Tier 2'!U23+'Comm 95+% Furnace - NEW'!U23+'Comm 95+% Furnace - Replace'!U23+'Comm Custom'!U23,0) -> 11659 | V23: =ROUND(+'Res .95+% Res Furnace - NEW'!V23+'Res .95+% Res Furnace - Replace'!V23+'Programmable Tstats - Tier 1'!V23+'Programmable Tstats - Tier 2'!V23+'Comm 95+% Furnace - NEW'!V23+'Comm 95+% Furnace - Replace'!V23+'Comm Custom'!V23,0) -> 35450 | X23: =ROUND(+'Res .95+% Res Furnace - NEW'!X23+'Res .95+% Res Furnace - Replace'!X23+'Programmable Tstats - Tier 1'!X23+'Programmable Tstats - Tier 2'!X23+'Comm 95+% Furnace - NEW'!X23+'Comm 95+% Furnace - Replace'!X23+'Comm Custom'!X23,0) -> 11845 | Y23: =ROUND(+'Res .95+% Res Furnace - NEW'!Y23+'Res .95+% Res Furnace - Replace'!Y23+'Programmable Tstats - Tier 1'!Y23+'Programmable Tstats - Tier 2'!Y23+'Comm 95+% Furnace - NEW'!Y23+'Comm 95+% Furnace - Replace'!Y23+'Comm Custom'!Y23,0) -> 0 | Z23: =ROUND(+'Res .95+% Res Furnace - NEW'!Z23+'Res .95+% Res Furnace - Replace'!Z23+'Programmable Tstats - Tier 1'!Z23+'Programmable Tstats - Tier 2'!Z23+'Comm 95+% Furnace - NEW'!Z23+'Comm 95+% Furnace - Replace'!Z23+'Comm Custom'!Z23,0) -> 0 | AA23: =ROUND(+'Res .95+% Res Furnace - NEW'!AA23+'Res .95+% Res Furnace - Replace'!AA23+'Programmable Tstats - Tier 1'!AA23+'Programmable Tstats - Tier 2'!AA23+'Comm 95+% Furnace - NEW'!AA23+'Comm 95+% Furnace - Replace'!AA23+'Comm Custom'!AA23,0) -> 11845 | AB23: =ROUND(+'Res .95+% Res Furnace - NEW'!AB23+'Res .95+% Res Furnace - Replace'!AB23+'Programmable Tstats - Tier 1'!AB23+'Programmable Tstats - Tier 2'!AB23+'Comm 95+% Furnace - NEW'!AB23+'Comm 95+% Furnace - Replace'!AB23+'Comm Custom'!AB23,0) -> 23605 | AE23: 2032 | AF23: 23791 | AG23: 11659 | AH23: 35450 | AJ23: 0 | AK23: 0 | AL23: 0 | AN23: 35450 | AQ23: 2032 | AR23: 23791 | AS23: 11659 | AU23: =ROUND(+'Res .95+% Res Furnace - NEW'!AU23+'Res .95+% Res Furnace - Replace'!AU23+'Programmable Tstats - Tier 1'!AU23+'Programmable Tstats - Tier 2'!AU23+'Comm 95+% Furnace - NEW'!AU23+'Comm 95+% Furnace - Replace'!AU23+'Comm Custom'!AU23,0) -> 5689 | AW23: =ROUND(+'Res .95+% Res Furnace - NEW'!AW23+'Res .95+% Res Furnace - Replace'!AW23+'Programmable Tstats - Tier 1'!AW23+'Programmable Tstats - Tier 2'!AW23+'Comm 95+% Furnace - NEW'!AW23+'Comm 95+% Furnace - Replace'!AW23+'Comm Custom'!AW23,0) -> 16605 | AZ23: 57744 | BB23: =ROUND(+'Res .95+% Res Furnace - NEW'!BB23+'Res .95+% Res Furnace - Replace'!BB23+'Programmable Tstats - Tier 1'!BB23+'Programmable Tstats - Tier 2'!BB23+'Comm 95+% Furnace - NEW'!BB23+'Comm 95+% Furnace - Replace'!BB23+'Comm Custom'!BB23,0) -> 0 | BC23: =ROUND(+'Res .95+% Res Furnace - NEW'!BC23+'Res .95+% Res Furnace - Replace'!BC23+'Programmable Tstats - Tier 1'!BC23+'Programmable Tstats - Tier 2'!BC23+'Comm 95+% Furnace - NEW'!BC23+'Comm 95+% Furnace - Replace'!BC23+'Comm Custom'!BC23,0) -> 0 | BD23: 0 | BE23: 57744 | BH23: 2032 | BI23: =ROUND(+'Res .95+% Res Furnace - NEW'!BI23+'Res .95+% Res Furnace - Replace'!BI23+'Programmable Tstats - Tier 1'!BI23+'Programmable Tstats - Tier 2'!BI23+'Comm 95+% Furnace - NEW'!BI23+'Comm 95+% Furnace - Replace'!BI23+'Comm Custom'!BI23,0) -> 0 | BJ23: =ROUND(+'Res .95+% Res Furnace - NEW'!BJ23+'Res .95+% Res Furnace - Replace'!BJ23+'Programmable Tstats - Tier 1'!BJ23+'Programmable Tstats - Tier 2'!BJ23+'Comm 95+% Furnace - NEW'!BJ23+'Comm 95+% Furnace - Replace'!BJ23+'Comm Custom'!BJ23,0) -> 6538 | BL23: =ROUND(+'Res .95+% Res Furnace - NEW'!BL23+'Res .95+% Res Furnace - Replace'!BL23+'Programmable Tstats - Tier 1'!BL23+'Programmable Tstats - Tier 2'!BL23+'Comm 95+% Furnace - NEW'!BL23+'Comm 95+% Furnace - Replace'!BL23+'Comm Custom'!BL23,0) -> 58210 | BN23: =ROUND(+'Res .95+% Res Furnace - NEW'!BN23+'Res .95+% Res Furnace - Replace'!BN23+'Programmable Tstats - Tier 1'!BN23+'Programmable Tstats - Tier 2'!BN23+'Comm 95+% Furnace - NEW'!BN23+'Comm 95+% Furnace - Replace'!BN23+'Comm Custom'!BN23,0) -> 30351 | BP23: 88561 | BR23: =ROUND(+'Res .95+% Res Furnace - NEW'!BR23+'Res .95+% Res Furnace - Replace'!BR23+'Programmable Tstats - Tier 1'!BR23+'Programmable Tstats - Tier 2'!BR23+'Comm 95+% Furnace - NEW'!BR23+'Comm 95+% Furnace - Replace'!BR23+'Comm Custom'!BR23,0) -> 0 | BT23: 88561 | BW23: 2032 | BX23: 23791 | BY23: 11659 | BZ23: 5689 | CA23: 41139 | CC23: 0 | CD23: 0 | CE23: 0 | CG23: 41139
J24: 10 | L24: 2033 | M24: =ROUND(+'Res .95+% Res Furnace - NEW'!M24+'Res .95+% Res Furnace - Replace'!M24+'Programmable Tstats - Tier 1'!M24+'Programmable Tstats - Tier 2'!M24+'Comm 95+% Furnace - NEW'!M24+'Comm 95+% Furnace - Replace'!M24+'Comm Custom'!M24,0) -> 5173 | O24: =ROUND(+'Res .95+% Res Furnace - NEW'!O24+'Res .95+% Res Furnace - Replace'!O24+'Programmable Tstats - Tier 1'!O24+'Programmable Tstats - Tier 2'!O24+'Comm 95+% Furnace - NEW'!O24+'Comm 95+% Furnace - Replace'!O24+'Comm Custom'!O24,0) -> 19388 | Q24: =ROUND(+'Res .95+% Res Furnace - NEW'!Q24+'Res .95+% Res Furnace - Replace'!Q24+'Programmable Tstats - Tier 1'!Q24+'Programmable Tstats - Tier 2'!Q24+'Comm 95+% Furnace - NEW'!Q24+'Comm 95+% Furnace - Replace'!Q24+'Comm Custom'!Q24,0) -> 0 | R24: =ROUND(+'Res .95+% Res Furnace - NEW'!R24+'Res .95+% Res Furnace - Replace'!R24+'Programmable Tstats - Tier 1'!R24+'Programmable Tstats - Tier 2'!R24+'Comm 95+% Furnace - NEW'!R24+'Comm 95+% Furnace - Replace'!R24+'Comm Custom'!R24,0) -> 19388 | S24: =ROUND(+'Res .95+% Res Furnace - NEW'!S24+'Res .95+% Res Furnace - Replace'!S24+'Programmable Tstats - Tier 1'!S24+'Programmable Tstats - Tier 2'!S24+'Comm 95+% Furnace - NEW'!S24+'Comm 95+% Furnace - Replace'!S24+'Comm Custom'!S24,0) -> 52 | U24: =ROUND(+'Res .95+% Res Furnace - NEW'!U24+'Res .95+% Res Furnace - Replace'!U24+'Programmable Tstats - Tier 1'!U24+'Programmable Tstats - Tier 2'!U24+'Comm 95+% Furnace - NEW'!U24+'Comm 95+% Furnace - Replace'!U24+'Comm Custom'!U24,0) -> 9324 | V24: =ROUND(+'Res .95+% Res Furnace - NEW'!V24+'Res .95+% Res Furnace - Replace'!V24+'Programmable Tstats - Tier 1'!V24+'Programmable Tstats - Tier 2'!V24+'Comm 95+% Furnace - NEW'!V24+'Comm 95+% Furnace - Replace'!V24+'Comm Custom'!V24,0) -> 28712 | X24: =ROUND(+'Res .95+% Res Furnace - NEW'!X24+'Res .95+% Res Furnace - Replace'!X24+'Programmable Tstats - Tier 1'!X24+'Programmable Tstats - Tier 2'!X24+'Comm 95+% Furnace - NEW'!X24+'Comm 95+% Furnace - Replace'!X24+'Comm Custom'!X24,0) -> 9536 | Y24: =ROUND(+'Res .95+% Res Furnace - NEW'!Y24+'Res .95+% Res Furnace - Replace'!Y24+'Programmable Tstats - Tier 1'!Y24+'Programmable Tstats - Tier 2'!Y24+'Comm 95+% Furnace - NEW'!Y24+'Comm 95+% Furnace - Replace'!Y24+'Comm Custom'!Y24,0) -> 0 | Z24: =ROUND(+'Res .95+% Res Furnace - NEW'!Z24+'Res .95+% Res Furnace - Replace'!Z24+'Programmable Tstats - Tier 1'!Z24+'Programmable Tstats - Tier 2'!Z24+'Comm 95+% Furnace - NEW'!Z24+'Comm 95+% Furnace - Replace'!Z24+'Comm Custom'!Z24,0) -> 0 | AA24: =ROUND(+'Res .95+% Res Furnace - NEW'!AA24+'Res .95+% Res Furnace - Replace'!AA24+'Programmable Tstats - Tier 1'!AA24+'Programmable Tstats - Tier 2'!AA24+'Comm 95+% Furnace - NEW'!AA24+'Comm 95+% Furnace - Replace'!AA24+'Comm Custom'!AA24,0) -> 9536 | AB24: =ROUND(+'Res .95+% Res Furnace - NEW'!AB24+'Res .95+% Res Furnace - Replace'!AB24+'Programmable Tstats - Tier 1'!AB24+'Programmable Tstats - Tier 2'!AB24+'Comm 95+% Furnace - NEW'!AB24+'Comm 95+% Furnace - Replace'!AB24+'Comm Custom'!AB24,0) -> 19176 | AE24: 2033 | AF24: 19388 | AG24: 9324 | AH24: 28712 | AJ24: 0 | AK24: 0 | AL24: 0 | AN24: 28712 | AQ24: 2033 | AR24: 19388 | AS24: 9324 | AU24: =ROUND(+'Res .95+% Res Furnace - NEW'!AU24+'Res .95+% Res Furnace - Replace'!AU24+'Programmable Tstats - Tier 1'!AU24+'Programmable Tstats - Tier 2'!AU24+'Comm 95+% Furnace - NEW'!AU24+'Comm 95+% Furnace - Replace'!AU24+'Comm Custom'!AU24,0) -> 5607 | AW24: =ROUND(+'Res .95+% Res Furnace - NEW'!AW24+'Res .95+% Res Furnace - Replace'!AW24+'Programmable Tstats - Tier 1'!AW24+'Programmable Tstats - Tier 2'!AW24+'Comm 95+% Furnace - NEW'!AW24+'Comm 95+% Furnace - Replace'!AW24+'Comm Custom'!AW24,0) -> 13445 | AZ24: 47764 | BB24: =ROUND(+'Res .95+% Res Furnace - NEW'!BB24+'Res .95+% Res Furnace - Replace'!BB24+'Programmable Tstats - Tier 1'!BB24+'Programmable Tstats - Tier 2'!BB24+'Comm 95+% Furnace - NEW'!BB24+'Comm 95+% Furnace - Replace'!BB24+'Comm Custom'!BB24,0) -> 0 | BC24: =ROUND(+'Res .95+% Res Furnace - NEW'!BC24+'Res .95+% Res Furnace - Replace'!BC24+'Programmable Tstats - Tier 1'!BC24+'Programmable Tstats - Tier 2'!BC24+'Comm 95+% Furnace - NEW'!BC24+'Comm 95+% Furnace - Replace'!BC24+'Comm Custom'!BC24,0) -> 0 | BD24: 0 | BE24: 47764 | BH24: 2033 | BI24: =ROUND(+'Res .95+% Res Furnace - NEW'!BI24+'Res .95+% Res Furnace - Replace'!BI24+'Programmable Tstats - Tier 1'!BI24+'Programmable Tstats - Tier 2'!BI24+'Comm 95+% Furnace - NEW'!BI24+'Comm 95+% Furnace - Replace'!BI24+'Comm Custom'!BI24,0) -> 0 | BJ24: =ROUND(+'Res .95+% Res Furnace - NEW'!BJ24+'Res .95+% Res Furnace - Replace'!BJ24+'Programmable Tstats - Tier 1'!BJ24+'Programmable Tstats - Tier 2'!BJ24+'Comm 95+% Furnace - NEW'!BJ24+'Comm 95+% Furnace - Replace'!BJ24+'Comm Custom'!BJ24,0) -> 5173 | BL24: =ROUND(+'Res .95+% Res Furnace - NEW'!BL24+'Res .95+% Res Furnace - Replace'!BL24+'Programmable Tstats - Tier 1'!BL24+'Programmable Tstats - Tier 2'!BL24+'Comm 95+% Furnace - NEW'!BL24+'Comm 95+% Furnace - Replace'!BL24+'Comm Custom'!BL24,0) -> 47293 | BN24: =ROUND(+'Res .95+% Res Furnace - NEW'!BN24+'Res .95+% Res Furnace - Replace'!BN24+'Programmable Tstats - Tier 1'!BN24+'Programmable Tstats - Tier 2'!BN24+'Comm 95+% Furnace - NEW'!BN24+'Comm 95+% Furnace - Replace'!BN24+'Comm Custom'!BN24,0) -> 29854 | BP24: 77147 | BR24: =ROUND(+'Res .95+% Res Furnace - NEW'!BR24+'Res .95+% Res Furnace - Replace'!BR24+'Programmable Tstats - Tier 1'!BR24+'Programmable Tstats - Tier 2'!BR24+'Comm 95+% Furnace - NEW'!BR24+'Comm 95+% Furnace - Replace'!BR24+'Comm Custom'!BR24,0) -> 0 | BT24: 77147 | BW24: 2033 | BX24: 19388 | BY24: 9324 | BZ24: 5607 | CA24: 34319 | CC24: 0 | CD24: 0 | CE24: 0 | CG24: 34319
A25: 6) Variable O&M ($/Dk) = | E25: 21) Avg. Dk/Part. Saved = | J25: 11 | L25: 2034 | M25: =ROUND(+'Res .95+% Res Furnace - NEW'!M25+'Res .95+% Res Furnace - Replace'!M25+'Programmable Tstats - Tier 1'!M25+'Programmable Tstats - Tier 2'!M25+'Comm 95+% Furnace - NEW'!M25+'Comm 95+% Furnace - Replace'!M25+'Comm Custom'!M25,0) -> 5173 | O25: =ROUND(+'Res .95+% Res Furnace - NEW'!O25+'Res .95+% Res Furnace - Replace'!O25+'Programmable Tstats - Tier 1'!O25+'Programmable Tstats - Tier 2'!O25+'Comm 95+% Furnace - NEW'!O25+'Comm 95+% Furnace - Replace'!O25+'Comm Custom'!O25,0) -> 19973 | Q25: =ROUND(+'Res .95+% Res Furnace - NEW'!Q25+'Res .95+% Res Furnace - Replace'!Q25+'Programmable Tstats - Tier 1'!Q25+'Programmable Tstats - Tier 2'!Q25+'Comm 95+% Furnace - NEW'!Q25+'Comm 95+% Furnace - Replace'!Q25+'Comm Custom'!Q25,0) -> 0 | R25: =ROUND(+'Res .95+% Res Furnace - NEW'!R25+'Res .95+% Res Furnace - Replace'!R25+'Programmable Tstats - Tier 1'!R25+'Programmable Tstats - Tier 2'!R25+'Comm 95+% Furnace - NEW'!R25+'Comm 95+% Furnace - Replace'!R25+'Comm Custom'!R25,0) -> 19973 | S25: =ROUND(+'Res .95+% Res Furnace - NEW'!S25+'Res .95+% Res Furnace - Replace'!S25+'Programmable Tstats - Tier 1'!S25+'Programmable Tstats - Tier 2'!S25+'Comm 95+% Furnace - NEW'!S25+'Comm 95+% Furnace - Replace'!S25+'Comm Custom'!S25,0) -> 52 | U25: =ROUND(+'Res .95+% Res Furnace - NEW'!U25+'Res .95+% Res Furnace - Replace'!U25+'Programmable Tstats - Tier 1'!U25+'Programmable Tstats - Tier 2'!U25+'Comm 95+% Furnace - NEW'!U25+'Comm 95+% Furnace - Replace'!U25+'Comm Custom'!U25,0) -> 9428 | V25: =ROUND(+'Res .95+% Res Furnace - NEW'!V25+'Res .95+% Res Furnace - Replace'!V25+'Programmable Tstats - Tier 1'!V25+'Programmable Tstats - Tier 2'!V25+'Comm 95+% Furnace - NEW'!V25+'Comm 95+% Furnace - Replace'!V25+'Comm Custom'!V25,0) -> 29401 | X25: =ROUND(+'Res .95+% Res Furnace - NEW'!X25+'Res .95+% Res Furnace - Replace'!X25+'Programmable Tstats - Tier 1'!X25+'Programmable Tstats - Tier 2'!X25+'Comm 95+% Furnace - NEW'!X25+'Comm 95+% Furnace - Replace'!X25+'Comm Custom'!X25,0) -> 9822 | Y25: =ROUND(+'Res .95+% Res Furnace - NEW'!Y25+'Res .95+% Res Furnace - Replace'!Y25+'Programmable Tstats - Tier 1'!Y25+'Programmable Tstats - Tier 2'!Y25+'Comm 95+% Furnace - NEW'!Y25+'Comm 95+% Furnace - Replace'!Y25+'Comm Custom'!Y25,0) -> 0 | Z25: =ROUND(+'Res .95+% Res Furnace - NEW'!Z25+'Res .95+% Res Furnace - Replace'!Z25+'Programmable Tstats - Tier 1'!Z25+'Programmable Tstats - Tier 2'!Z25+'Comm 95+% Furnace - NEW'!Z25+'Comm 95+% Furnace - Replace'!Z25+'Comm Custom'!Z25,0) -> 0 | AA25: =ROUND(+'Res .95+% Res Furnace - NEW'!AA25+'Res .95+% Res Furnace - Replace'!AA25+'Programmable Tstats - Tier 1'!AA25+'Programmable Tstats - Tier 2'!AA25+'Comm 95+% Furnace - NEW'!AA25+'Comm 95+% Furnace - Replace'!AA25+'Comm Custom'!AA25,0) -> 9822 | AB25: =ROUND(+'Res .95+% Res Furnace - NEW'!AB25+'Res .95+% Res Furnace - Replace'!AB25+'Programmable Tstats - Tier 1'!AB25+'Programmable Tstats - Tier 2'!AB25+'Comm 95+% Furnace - NEW'!AB25+'Comm 95+% Furnace - Replace'!AB25+'Comm Custom'!AB25,0) -> 19579 | AE25: 2034 | AF25: 19973 | AG25: 9428 | AH25: 29401 | AJ25: 0 | AK25: 0 | AL25: 0 | AN25: 29401 | AQ25: 2034 | AR25: 19973 | AS25: 9428 | AU25: =ROUND(+'Res .95+% Res Furnace - NEW'!AU25+'Res .95+% Res Furnace - Replace'!AU25+'Programmable Tstats - Tier 1'!AU25+'Programmable Tstats - Tier 2'!AU25+'Comm 95+% Furnace - NEW'!AU25+'Comm 95+% Furnace - Replace'!AU25+'Comm Custom'!AU25,0) -> 5778 | AW25: =ROUND(+'Res .95+% Res Furnace - NEW'!AW25+'Res .95+% Res Furnace - Replace'!AW25+'Programmable Tstats - Tier 1'!AW25+'Programmable Tstats - Tier 2'!AW25+'Comm 95+% Furnace - NEW'!AW25+'Comm 95+% Furnace - Replace'!AW25+'Comm Custom'!AW25,0) -> 13750 | AZ25: 48929 | BB25: =ROUND(+'Res .95+% Res Furnace - NEW'!BB25+'Res .95+% Res Furnace - Replace'!BB25+'Programmable Tstats - Tier 1'!BB25+'Programmable Tstats - Tier 2'!BB25+'Comm 95+% Furnace - NEW'!BB25+'Comm 95+% Furnace - Replace'!BB25+'Comm Custom'!BB25,0) -> 0 | BC25: =ROUND(+'Res .95+% Res Furnace - NEW'!BC25+'Res .95+% Res Furnace - Replace'!BC25+'Programmable Tstats - Tier 1'!BC25+'Programmable Tstats - Tier 2'!BC25+'Comm 95+% Furnace - NEW'!BC25+'Comm 95+% Furnace - Replace'!BC25+'Comm Custom'!BC25,0) -> 0 | BD25: 0 | BE25: 48929 | BH25: 2034 | BI25: =ROUND(+'Res .95+% Res Furnace - NEW'!BI25+'Res .95+% Res Furnace - Replace'!BI25+'Programmable Tstats - Tier 1'!BI25+'Programmable Tstats - Tier 2'!BI25+'Comm 95+% Furnace - NEW'!BI25+'Comm 95+% Furnace - Replace'!BI25+'Comm Custom'!BI25,0) -> 0 | BJ25: =ROUND(+'Res .95+% Res Furnace - NEW'!BJ25+'Res .95+% Res Furnace - Replace'!BJ25+'Programmable Tstats - Tier 1'!BJ25+'Programmable Tstats - Tier 2'!BJ25+'Comm 95+% Furnace - NEW'!BJ25+'Comm 95+% Furnace - Replace'!BJ25+'Comm Custom'!BJ25,0) -> 5173 | BL25: =ROUND(+'Res .95+% Res Furnace - NEW'!BL25+'Res .95+% Res Furnace - Replace'!BL25+'Programmable Tstats - Tier 1'!BL25+'Programmable Tstats - Tier 2'!BL25+'Comm 95+% Furnace - NEW'!BL25+'Comm 95+% Furnace - Replace'!BL25+'Comm Custom'!BL25,0) -> 48710 | BN25: =ROUND(+'Res .95+% Res Furnace - NEW'!BN25+'Res .95+% Res Furnace - Replace'!BN25+'Programmable Tstats - Tier 1'!BN25+'Programmable Tstats - Tier 2'!BN25+'Comm 95+% Furnace - NEW'!BN25+'Comm 95+% Furnace - Replace'!BN25+'Comm Custom'!BN25,0) -> 30713 | BP25: 79423 | BR25: =ROUND(+'Res .95+% Res Furnace - NEW'!BR25+'Res .95+% Res Furnace - Replace'!BR25+'Programmable Tstats - Tier 1'!BR25+'Programmable Tstats - Tier 2'!BR25+'Comm 95+% Furnace - NEW'!BR25+'Comm 95+% Furnace - Replace'!BR25+'Comm Custom'!BR25,0) -> 0 | BT25: 79423 | BW25: 2034 | BX25: 19973 | BY25: 9428 | BZ25: 5778 | CA25: 35179 | CC25: 0 | CD25: 0 | CE25: 0 | CG25: 35179
A26: Escalation Rate = | J26: 12 | L26: 2035 | M26: =ROUND(+'Res .95+% Res Furnace - NEW'!M26+'Res .95+% Res Furnace - Replace'!M26+'Programmable Tstats - Tier 1'!M26+'Programmable Tstats - Tier 2'!M26+'Comm 95+% Furnace - NEW'!M26+'Comm 95+% Furnace - Replace'!M26+'Comm Custom'!M26,0) -> 5173 | O26: =ROUND(+'Res .95+% Res Furnace - NEW'!O26+'Res .95+% Res Furnace - Replace'!O26+'Programmable Tstats - Tier 1'!O26+'Programmable Tstats - Tier 2'!O26+'Comm 95+% Furnace - NEW'!O26+'Comm 95+% Furnace - Replace'!O26+'Comm Custom'!O26,0) -> 20568 | Q26: =ROUND(+'Res .95+% Res Furnace - NEW'!Q26+'Res .95+% Res Furnace - Replace'!Q26+'Programmable Tstats - Tier 1'!Q26+'Programmable Tstats - Tier 2'!Q26+'Comm 95+% Furnace - NEW'!Q26+'Comm 95+% Furnace - Replace'!Q26+'Comm Custom'!Q26,0) -> 0 | R26: =ROUND(+'Res .95+% Res Furnace - NEW'!R26+'Res .95+% Res Furnace - Replace'!R26+'Programmable Tstats - Tier 1'!R26+'Programmable Tstats - Tier 2'!R26+'Comm 95+% Furnace - NEW'!R26+'Comm 95+% Furnace - Replace'!R26+'Comm Custom'!R26,0) -> 20568 | S26: =ROUND(+'Res .95+% Res Furnace - NEW'!S26+'Res .95+% Res Furnace - Replace'!S26+'Programmable Tstats - Tier 1'!S26+'Programmable Tstats - Tier 2'!S26+'Comm 95+% Furnace - NEW'!S26+'Comm 95+% Furnace - Replace'!S26+'Comm Custom'!S26,0) -> 52 | U26: =ROUND(+'Res .95+% Res Furnace - NEW'!U26+'Res .95+% Res Furnace - Replace'!U26+'Programmable Tstats - Tier 1'!U26+'Programmable Tstats - Tier 2'!U26+'Comm 95+% Furnace - NEW'!U26+'Comm 95+% Furnace - Replace'!U26+'Comm Custom'!U26,0) -> 9531 | V26: =ROUND(+'Res .95+% Res Furnace - NEW'!V26+'Res .95+% Res Furnace - Replace'!V26+'Programmable Tstats - Tier 1'!V26+'Programmable Tstats - Tier 2'!V26+'Comm 95+% Furnace - NEW'!V26+'Comm 95+% Furnace - Replace'!V26+'Comm Custom'!V26,0) -> 30099 | X26: =ROUND(+'Res .95+% Res Furnace - NEW'!X26+'Res .95+% Res Furnace - Replace'!X26+'Programmable Tstats - Tier 1'!X26+'Programmable Tstats - Tier 2'!X26+'Comm 95+% Furnace - NEW'!X26+'Comm 95+% Furnace - Replace'!X26+'Comm Custom'!X26,0) -> 10120 | Y26: =ROUND(+'Res .95+% Res Furnace - NEW'!Y26+'Res .95+% Res Furnace - Replace'!Y26+'Programmable Tstats - Tier 1'!Y26+'Programmable Tstats - Tier 2'!Y26+'Comm 95+% Furnace - NEW'!Y26+'Comm 95+% Furnace - Replace'!Y26+'Comm Custom'!Y26,0) -> 0 | Z26: =ROUND(+'Res .95+% Res Furnace - NEW'!Z26+'Res .95+% Res Furnace - Replace'!Z26+'Programmable Tstats - Tier 1'!Z26+'Programmable Tstats - Tier 2'!Z26+'Comm 95+% Furnace - NEW'!Z26+'Comm 95+% Furnace - Replace'!Z26+'Comm Custom'!Z26,0) -> 0 | AA26: =ROUND(+'Res .95+% Res Furnace - NEW'!AA26+'Res .95+% Res Furnace - Replace'!AA26+'Programmable Tstats - Tier 1'!AA26+'Programmable Tstats - Tier 2'!AA26+'Comm 95+% Furnace - NEW'!AA26+'Comm 95+% Furnace - Replace'!AA26+'Comm Custom'!AA26,0) -> 10120 | AB26: =ROUND(+'Res .95+% Res Furnace - NEW'!AB26+'Res .95+% Res Furnace - Replace'!AB26+'Programmable Tstats - Tier 1'!AB26+'Programmable Tstats - Tier 2'!AB26+'Comm 95+% Furnace - NEW'!AB26+'Comm 95+% Furnace - Replace'!AB26+'Comm Custom'!AB26,0) -> 19979 | AE26: 2035 | AF26: 20568 | AG26: 9531 | AH26: 30099 | AJ26: 0 | AK26: 0 | AL26: 0 | AN26: 30099 | AQ26: 2035 | AR26: 20568 | AS26: 9531 | AU26: =ROUND(+'Res .95+% Res Furnace - NEW'!AU26+'Res .95+% Res Furnace - Replace'!AU26+'Programmable Tstats - Tier 1'!AU26+'Programmable Tstats - Tier 2'!AU26+'Comm 95+% Furnace - NEW'!AU26+'Comm 95+% Furnace - Replace'!AU26+'Comm Custom'!AU26,0) -> 5947 | AW26: =ROUND(+'Res .95+% Res Furnace - NEW'!AW26+'Res .95+% Res Furnace - Replace'!AW26+'Programmable Tstats - Tier 1'!AW26+'Programmable Tstats - Tier 2'!AW26+'Comm 95+% Furnace - NEW'!AW26+'Comm 95+% Furnace - Replace'!AW26+'Comm Custom'!AW26,0) -> 14065 | AZ26: 50111 | BB26: =ROUND(+'Res .95+% Res Furnace - NEW'!BB26+'Res .95+% Res Furnace - Replace'!BB26+'Programmable Tstats - Tier 1'!BB26+'Programmable Tstats - Tier 2'!BB26+'Comm 95+% Furnace - NEW'!BB26+'Comm 95+% Furnace - Replace'!BB26+'Comm Custom'!BB26,0) -> 0 | BC26: =ROUND(+'Res .95+% Res Furnace - NEW'!BC26+'Res .95+% Res Furnace - Replace'!BC26+'Programmable Tstats - Tier 1'!BC26+'Programmable Tstats - Tier 2'!BC26+'Comm 95+% Furnace - NEW'!BC26+'Comm 95+% Furnace - Replace'!BC26+'Comm Custom'!BC26,0) -> 0 | BD26: 0 | BE26: 50111 | BH26: 2035 | BI26: =ROUND(+'Res .95+% Res Furnace - NEW'!BI26+'Res .95+% Res Furnace - Replace'!BI26+'Programmable Tstats - Tier 1'!BI26+'Programmable Tstats - Tier 2'!BI26+'Comm 95+% Furnace - NEW'!BI26+'Comm 95+% Furnace - Replace'!BI26+'Comm Custom'!BI26,0) -> 0 | BJ26: =ROUND(+'Res .95+% Res Furnace - NEW'!BJ26+'Res .95+% Res Furnace - Replace'!BJ26+'Programmable Tstats - Tier 1'!BJ26+'Programmable Tstats - Tier 2'!BJ26+'Comm 95+% Furnace - NEW'!BJ26+'Comm 95+% Furnace - Replace'!BJ26+'Comm Custom'!BJ26,0) -> 5173 | BL26: =ROUND(+'Res .95+% Res Furnace - NEW'!BL26+'Res .95+% Res Furnace - Replace'!BL26+'Programmable Tstats - Tier 1'!BL26+'Programmable Tstats - Tier 2'!BL26+'Comm 95+% Furnace - NEW'!BL26+'Comm 95+% Furnace - Replace'!BL26+'Comm Custom'!BL26,0) -> 50174 | BN26: =ROUND(+'Res .95+% Res Furnace - NEW'!BN26+'Res .95+% Res Furnace - Replace'!BN26+'Programmable Tstats - Tier 1'!BN26+'Programmable Tstats - Tier 2'!BN26+'Comm 95+% Furnace - NEW'!BN26+'Comm 95+% Furnace - Replace'!BN26+'Comm Custom'!BN26,0) -> 31562 | BP26: 81736 | BR26: =ROUND(+'Res .95+% Res Furnace - NEW'!BR26+'Res .95+% Res Furnace - Replace'!BR26+'Programmable Tstats - Tier 1'!BR26+'Programmable Tstats - Tier 2'!BR26+'Comm 95+% Furnace - NEW'!BR26+'Comm 95+% Furnace - Replace'!BR26+'Comm Custom'!BR26,0) -> 0 | BT26: 81736 | BW26: 2035 | BX26: 20568 | BY26: 9531 | BZ26: 5947 | CA26: 36046 | CC26: 0 | CD26: 0 | CE26: 0 | CG26: 36046
E27: 22) Avg Non-Gas Fuel Units/Part. Saved = | J27: 13 | L27: 2036 | M27: =ROUND(+'Res .95+% Res Furnace - NEW'!M27+'Res .95+% Res Furnace - Replace'!M27+'Programmable Tstats - Tier 1'!M27+'Programmable Tstats - Tier 2'!M27+'Comm 95+% Furnace - NEW'!M27+'Comm 95+% Furnace - Replace'!M27+'Comm Custom'!M27,0) -> 5173 | O27: =ROUND(+'Res .95+% Res Furnace - NEW'!O27+'Res .95+% Res Furnace - Replace'!O27+'Programmable Tstats - Tier 1'!O27+'Programmable Tstats - Tier 2'!O27+'Comm 95+% Furnace - NEW'!O27+'Comm 95+% Furnace - Replace'!O27+'Comm Custom'!O27,0) -> 21189 | Q27: =ROUND(+'Res .95+% Res Furnace - NEW'!Q27+'Res .95+% Res Furnace - Replace'!Q27+'Programmable Tstats - Tier 1'!Q27+'Programmable Tstats - Tier 2'!Q27+'Comm 95+% Furnace - NEW'!Q27+'Comm 95+% Furnace - Replace'!Q27+'Comm Custom'!Q27,0) -> 0 | R27: =ROUND(+'Res .95+% Res Furnace - NEW'!R27+'Res .95+% Res Furnace - Replace'!R27+'Programmable Tstats - Tier 1'!R27+'Programmable Tstats - Tier 2'!R27+'Comm 95+% Furnace - NEW'!R27+'Comm 95+% Furnace - Replace'!R27+'Comm Custom'!R27,0) -> 21189 | S27: =ROUND(+'Res .95+% Res Furnace - NEW'!S27+'Res .95+% Res Furnace - Replace'!S27+'Programmable Tstats - Tier 1'!S27+'Programmable Tstats - Tier 2'!S27+'Comm 95+% Furnace - NEW'!S27+'Comm 95+% Furnace - Replace'!S27+'Comm Custom'!S27,0) -> 52 | U27: =ROUND(+'Res .95+% Res Furnace - NEW'!U27+'Res .95+% Res Furnace - Replace'!U27+'Programmable Tstats - Tier 1'!U27+'Programmable Tstats - Tier 2'!U27+'Comm 95+% Furnace - NEW'!U27+'Comm 95+% Furnace - Replace'!U27+'Comm Custom'!U27,0) -> 9584 | V27: =ROUND(+'Res .95+% Res Furnace - NEW'!V27+'Res .95+% Res Furnace - Replace'!V27+'Programmable Tstats - Tier 1'!V27+'Programmable Tstats - Tier 2'!V27+'Comm 95+% Furnace - NEW'!V27+'Comm 95+% Furnace - Replace'!V27+'Comm Custom'!V27,0) -> 30773 | X27: =ROUND(+'Res .95+% Res Furnace - NEW'!X27+'Res .95+% Res Furnace - Replace'!X27+'Programmable Tstats - Tier 1'!X27+'Programmable Tstats - Tier 2'!X27+'Comm 95+% Furnace - NEW'!X27+'Comm 95+% Furnace - Replace'!X27+'Comm Custom'!X27,0) -> 10422 | Y27: =ROUND(+'Res .95+% Res Furnace - NEW'!Y27+'Res .95+% Res Furnace - Replace'!Y27+'Programmable Tstats - Tier 1'!Y27+'Programmable Tstats - Tier 2'!Y27+'Comm 95+% Furnace - NEW'!Y27+'Comm 95+% Furnace - Replace'!Y27+'Comm Custom'!Y27,0) -> 0 | Z27: =ROUND(+'Res .95+% Res Furnace - NEW'!Z27+'Res .95+% Res Furnace - Replace'!Z27+'Programmable Tstats - Tier 1'!Z27+'Programmable Tstats - Tier 2'!Z27+'Comm 95+% Furnace - NEW'!Z27+'Comm 95+% Furnace - Replace'!Z27+'Comm Custom'!Z27,0) -> 0 | AA27: =ROUND(+'Res .95+% Res Furnace - NEW'!AA27+'Res .95+% Res Furnace - Replace'!AA27+'Programmable Tstats - Tier 1'!AA27+'Programmable Tstats - Tier 2'!AA27+'Comm 95+% Furnace - NEW'!AA27+'Comm 95+% Furnace - Replace'!AA27+'Comm Custom'!AA27,0) -> 10422 | AB27: =ROUND(+'Res .95+% Res Furnace - NEW'!AB27+'Res .95+% Res Furnace - Replace'!AB27+'Programmable Tstats - Tier 1'!AB27+'Programmable Tstats - Tier 2'!AB27+'Comm 95+% Furnace - NEW'!AB27+'Comm 95+% Furnace - Replace'!AB27+'Comm Custom'!AB27,0) -> 20351 | AE27: 2036 | AF27: 21189 | AG27: 9584 | AH27: 30773 | AJ27: 0 | AK27: 0 | AL27: 0 | AN27: 30773 | AQ27: 2036 | AR27: 21189 | AS27: 9584 | AU27: =ROUND(+'Res .95+% Res Furnace - NEW'!AU27+'Res .95+% Res Furnace - Replace'!AU27+'Programmable Tstats - Tier 1'!AU27+'Programmable Tstats - Tier 2'!AU27+'Comm 95+% Furnace - NEW'!AU27+'Comm 95+% Furnace - Replace'!AU27+'Comm Custom'!AU27,0) -> 6117 | AW27: =ROUND(+'Res .95+% Res Furnace - NEW'!AW27+'Res .95+% Res Furnace - Replace'!AW27+'Programmable Tstats - Tier 1'!AW27+'Programmable Tstats - Tier 2'!AW27+'Comm 95+% Furnace - NEW'!AW27+'Comm 95+% Furnace - Replace'!AW27+'Comm Custom'!AW27,0) -> 14391 | AZ27: 51281 | BB27: =ROUND(+'Res .95+% Res Furnace - NEW'!BB27+'Res .95+% Res Furnace - Replace'!BB27+'Programmable Tstats - Tier 1'!BB27+'Programmable Tstats - Tier 2'!BB27+'Comm 95+% Furnace - NEW'!BB27+'Comm 95+% Furnace - Replace'!BB27+'Comm Custom'!BB27,0) -> 0 | BC27: =ROUND(+'Res .95+% Res Furnace - NEW'!BC27+'Res .95+% Res Furnace - Replace'!BC27+'Programmable Tstats - Tier 1'!BC27+'Programmable Tstats - Tier 2'!BC27+'Comm 95+% Furnace - NEW'!BC27+'Comm 95+% Furnace - Replace'!BC27+'Comm Custom'!BC27,0) -> 0 | BD27: 0 | BE27: 51281 | BH27: 2036 | BI27: =ROUND(+'Res .95+% Res Furnace - NEW'!BI27+'Res .95+% Res Furnace - Replace'!BI27+'Programmable Tstats - Tier 1'!BI27+'Programmable Tstats - Tier 2'!BI27+'Comm 95+% Furnace - NEW'!BI27+'Comm 95+% Furnace - Replace'!BI27+'Comm Custom'!BI27,0) -> 0 | BJ27: =ROUND(+'Res .95+% Res Furnace - NEW'!BJ27+'Res .95+% Res Furnace - Replace'!BJ27+'Programmable Tstats - Tier 1'!BJ27+'Programmable Tstats - Tier 2'!BJ27+'Comm 95+% Furnace - NEW'!BJ27+'Comm 95+% Furnace - Replace'!BJ27+'Comm Custom'!BJ27,0) -> 5173 | BL27: =ROUND(+'Res .95+% Res Furnace - NEW'!BL27+'Res .95+% Res Furnace - Replace'!BL27+'Programmable Tstats - Tier 1'!BL27+'Programmable Tstats - Tier 2'!BL27+'Comm 95+% Furnace - NEW'!BL27+'Comm 95+% Furnace - Replace'!BL27+'Comm Custom'!BL27,0) -> 51677 | BN27: =ROUND(+'Res .95+% Res Furnace - NEW'!BN27+'Res .95+% Res Furnace - Replace'!BN27+'Programmable Tstats - Tier 1'!BN27+'Programmable Tstats - Tier 2'!BN27+'Comm 95+% Furnace - NEW'!BN27+'Comm 95+% Furnace - Replace'!BN27+'Comm Custom'!BN27,0) -> 32573 | BP27: 84250 | BR27: =ROUND(+'Res .95+% Res Furnace - NEW'!BR27+'Res .95+% Res Furnace - Replace'!BR27+'Programmable Tstats - Tier 1'!BR27+'Programmable Tstats - Tier 2'!BR27+'Comm 95+% Furnace - NEW'!BR27+'Comm 95+% Furnace - Replace'!BR27+'Comm Custom'!BR27,0) -> 0 | BT27: 84250 | BW27: 2036 | BX27: 21189 | BY27: 9584 | BZ27: 6117 | CA27: 36890 | CC27: 0 | CD27: 0 | CE27: 0 | CG27: 36890
A28: 7) Non-Gas Fuel Cost ($/Fuel Unit) = | E28: 22a) Avg Additional Non-Gas Fuel Units/ Part. Used = | J28: 14 | L28: 2037 | M28: =ROUND(+'Res .95+% Res Furnace - NEW'!M28+'Res .95+% Res Furnace - Replace'!M28+'Programmable Tstats - Tier 1'!M28+'Programmable Tstats - Tier 2'!M28+'Comm 95+% Furnace - NEW'!M28+'Comm 95+% Furnace - Replace'!M28+'Comm Custom'!M28,0) -> 5173 | O28: =ROUND(+'Res .95+% Res Furnace - NEW'!O28+'Res .95+% Res Furnace - Replace'!O28+'Programmable Tstats - Tier 1'!O28+'Programmable Tstats - Tier 2'!O28+'Comm 95+% Furnace - NEW'!O28+'Comm 95+% Furnace - Replace'!O28+'Comm Custom'!O28,0) -> 21825 | Q28: =ROUND(+'Res .95+% Res Furnace - NEW'!Q28+'Res .95+% Res Furnace - Replace'!Q28+'Programmable Tstats - Tier 1'!Q28+'Programmable Tstats - Tier 2'!Q28+'Comm 95+% Furnace - NEW'!Q28+'Comm 95+% Furnace - Replace'!Q28+'Comm Custom'!Q28,0) -> 0 | R28: =ROUND(+'Res .95+% Res Furnace - NEW'!R28+'Res .95+% Res Furnace - Replace'!R28+'Programmable Tstats - Tier 1'!R28+'Programmable Tstats - Tier 2'!R28+'Comm 95+% Furnace - NEW'!R28+'Comm 95+% Furnace - Replace'!R28+'Comm Custom'!R28,0) -> 21825 | S28: =ROUND(+'Res .95+% Res Furnace - NEW'!S28+'Res .95+% Res Furnace - Replace'!S28+'Programmable Tstats - Tier 1'!S28+'Programmable Tstats - Tier 2'!S28+'Comm 95+% Furnace - NEW'!S28+'Comm 95+% Furnace - Replace'!S28+'Comm Custom'!S28,0) -> 52 | U28: =ROUND(+'Res .95+% Res Furnace - NEW'!U28+'Res .95+% Res Furnace - Replace'!U28+'Programmable Tstats - Tier 1'!U28+'Programmable Tstats - Tier 2'!U28+'Comm 95+% Furnace - NEW'!U28+'Comm 95+% Furnace - Replace'!U28+'Comm Custom'!U28,0) -> 9687 | V28: =ROUND(+'Res .95+% Res Furnace - NEW'!V28+'Res .95+% Res Furnace - Replace'!V28+'Programmable Tstats - Tier 1'!V28+'Programmable Tstats - Tier 2'!V28+'Comm 95+% Furnace - NEW'!V28+'Comm 95+% Furnace - Replace'!V28+'Comm Custom'!V28,0) -> 31512 | X28: =ROUND(+'Res .95+% Res Furnace - NEW'!X28+'Res .95+% Res Furnace - Replace'!X28+'Programmable Tstats - Tier 1'!X28+'Programmable Tstats - Tier 2'!X28+'Comm 95+% Furnace - NEW'!X28+'Comm 95+% Furnace - Replace'!X28+'Comm Custom'!X28,0) -> 10734 | Y28: =ROUND(+'Res .95+% Res Furnace - NEW'!Y28+'Res .95+% Res Furnace - Replace'!Y28+'Programmable Tstats - Tier 1'!Y28+'Programmable Tstats - Tier 2'!Y28+'Comm 95+% Furnace - NEW'!Y28+'Comm 95+% Furnace - Replace'!Y28+'Comm Custom'!Y28,0) -> 0 | Z28: =ROUND(+'Res .95+% Res Furnace - NEW'!Z28+'Res .95+% Res Furnace - Replace'!Z28+'Programmable Tstats - Tier 1'!Z28+'Programmable Tstats - Tier 2'!Z28+'Comm 95+% Furnace - NEW'!Z28+'Comm 95+% Furnace - Replace'!Z28+'Comm Custom'!Z28,0) -> 0 | AA28: =ROUND(+'Res .95+% Res Furnace - NEW'!AA28+'Res .95+% Res Furnace - Replace'!AA28+'Programmable Tstats - Tier 1'!AA28+'Programmable Tstats - Tier 2'!AA28+'Comm 95+% Furnace - NEW'!AA28+'Comm 95+% Furnace - Replace'!AA28+'Comm Custom'!AA28,0) -> 10734 | AB28: =ROUND(+'Res .95+% Res Furnace - NEW'!AB28+'Res .95+% Res Furnace - Replace'!AB28+'Programmable Tstats - Tier 1'!AB28+'Programmable Tstats - Tier 2'!AB28+'Comm 95+% Furnace - NEW'!AB28+'Comm 95+% Furnace - Replace'!AB28+'Comm Custom'!AB28,0) -> 20778 | AE28: 2037 | AF28: 21825 | AG28: 9687 | AH28: 31512 | AJ28: 0 | AK28: 0 | AL28: 0 | AN28: 31512 | AQ28: 2037 | AR28: 21825 | AS28: 9687 | AU28: =ROUND(+'Res .95+% Res Furnace - NEW'!AU28+'Res .95+% Res Furnace - Replace'!AU28+'Programmable Tstats - Tier 1'!AU28+'Programmable Tstats - Tier 2'!AU28+'Comm 95+% Furnace - NEW'!AU28+'Comm 95+% Furnace - Replace'!AU28+'Comm Custom'!AU28,0) -> 6287 | AW28: =ROUND(+'Res .95+% Res Furnace - NEW'!AW28+'Res .95+% Res Furnace - Replace'!AW28+'Programmable Tstats - Tier 1'!AW28+'Programmable Tstats - Tier 2'!AW28+'Comm 95+% Furnace - NEW'!AW28+'Comm 95+% Furnace - Replace'!AW28+'Comm Custom'!AW28,0) -> 14722 | AZ28: 52521 | BB28: =ROUND(+'Res .95+% Res Furnace - NEW'!BB28+'Res .95+% Res Furnace - Replace'!BB28+'Programmable Tstats - Tier 1'!BB28+'Programmable Tstats - Tier 2'!BB28+'Comm 95+% Furnace - NEW'!BB28+'Comm 95+% Furnace - Replace'!BB28+'Comm Custom'!BB28,0) -> 0 | BC28: =ROUND(+'Res .95+% Res Furnace - NEW'!BC28+'Res .95+% Res Furnace - Replace'!BC28+'Programmable Tstats - Tier 1'!BC28+'Programmable Tstats - Tier 2'!BC28+'Comm 95+% Furnace - NEW'!BC28+'Comm 95+% Furnace - Replace'!BC28+'Comm Custom'!BC28,0) -> 0 | BD28: 0 | BE28: 52521 | BH28: 2037 | BI28: =ROUND(+'Res .95+% Res Furnace - NEW'!BI28+'Res .95+% Res Furnace - Replace'!BI28+'Programmable Tstats - Tier 1'!BI28+'Programmable Tstats - Tier 2'!BI28+'Comm 95+% Furnace - NEW'!BI28+'Comm 95+% Furnace - Replace'!BI28+'Comm Custom'!BI28,0) -> 0 | BJ28: =ROUND(+'Res .95+% Res Furnace - NEW'!BJ28+'Res .95+% Res Furnace - Replace'!BJ28+'Programmable Tstats - Tier 1'!BJ28+'Programmable Tstats - Tier 2'!BJ28+'Comm 95+% Furnace - NEW'!BJ28+'Comm 95+% Furnace - Replace'!BJ28+'Comm Custom'!BJ28,0) -> 5173 | BL28: =ROUND(+'Res .95+% Res Furnace - NEW'!BL28+'Res .95+% Res Furnace - Replace'!BL28+'Programmable Tstats - Tier 1'!BL28+'Programmable Tstats - Tier 2'!BL28+'Comm 95+% Furnace - NEW'!BL28+'Comm 95+% Furnace - Replace'!BL28+'Comm Custom'!BL28,0) -> 53228 | BN28: =ROUND(+'Res .95+% Res Furnace - NEW'!BN28+'Res .95+% Res Furnace - Replace'!BN28+'Programmable Tstats - Tier 1'!BN28+'Programmable Tstats - Tier 2'!BN28+'Comm 95+% Furnace - NEW'!BN28+'Comm 95+% Furnace - Replace'!BN28+'Comm Custom'!BN28,0) -> 33592 | BP28: 86820 | BR28: =ROUND(+'Res .95+% Res Furnace - NEW'!BR28+'Res .95+% Res Furnace - Replace'!BR28+'Programmable Tstats - Tier 1'!BR28+'Programmable Tstats - Tier 2'!BR28+'Comm 95+% Furnace - NEW'!BR28+'Comm 95+% Furnace - Replace'!BR28+'Comm Custom'!BR28,0) -> 0 | BT28: 86820 | BW28: 2037 | BX28: 21825 | BY28: 9687 | BZ28: 6287 | CA28: 37799 | CC28: 0 | CD28: 0 | CE28: 0 | CG28: 37799
A29: Escalation Rate = | J29: 15 | L29: 2038 | M29: =ROUND(+'Res .95+% Res Furnace - NEW'!M29+'Res .95+% Res Furnace - Replace'!M29+'Programmable Tstats - Tier 1'!M29+'Programmable Tstats - Tier 2'!M29+'Comm 95+% Furnace - NEW'!M29+'Comm 95+% Furnace - Replace'!M29+'Comm Custom'!M29,0) -> 5173 | O29: =ROUND(+'Res .95+% Res Furnace - NEW'!O29+'Res .95+% Res Furnace - Replace'!O29+'Programmable Tstats - Tier 1'!O29+'Programmable Tstats - Tier 2'!O29+'Comm 95+% Furnace - NEW'!O29+'Comm 95+% Furnace - Replace'!O29+'Comm Custom'!O29,0) -> 22477 | Q29: =ROUND(+'Res .95+% Res Furnace - NEW'!Q29+'Res .95+% Res Furnace - Replace'!Q29+'Programmable Tstats - Tier 1'!Q29+'Programmable Tstats - Tier 2'!Q29+'Comm 95+% Furnace - NEW'!Q29+'Comm 95+% Furnace - Replace'!Q29+'Comm Custom'!Q29,0) -> 0 | R29: =ROUND(+'Res .95+% Res Furnace - NEW'!R29+'Res .95+% Res Furnace - Replace'!R29+'Programmable Tstats - Tier 1'!R29+'Programmable Tstats - Tier 2'!R29+'Comm 95+% Furnace - NEW'!R29+'Comm 95+% Furnace - Replace'!R29+'Comm Custom'!R29,0) -> 22477 | S29: =ROUND(+'Res .95+% Res Furnace - NEW'!S29+'Res .95+% Res Furnace - Replace'!S29+'Programmable Tstats - Tier 1'!S29+'Programmable Tstats - Tier 2'!S29+'Comm 95+% Furnace - NEW'!S29+'Comm 95+% Furnace - Replace'!S29+'Comm Custom'!S29,0) -> 52 | U29: =ROUND(+'Res .95+% Res Furnace - NEW'!U29+'Res .95+% Res Furnace - Replace'!U29+'Programmable Tstats - Tier 1'!U29+'Programmable Tstats - Tier 2'!U29+'Comm 95+% Furnace - NEW'!U29+'Comm 95+% Furnace - Replace'!U29+'Comm Custom'!U29,0) -> 9791 | V29: =ROUND(+'Res .95+% Res Furnace - NEW'!V29+'Res .95+% Res Furnace - Replace'!V29+'Programmable Tstats - Tier 1'!V29+'Programmable Tstats - Tier 2'!V29+'Comm 95+% Furnace - NEW'!V29+'Comm 95+% Furnace - Replace'!V29+'Comm Custom'!V29,0) -> 32268 | X29: =ROUND(+'Res .95+% Res Furnace - NEW'!X29+'Res .95+% Res Furnace - Replace'!X29+'Programmable Tstats - Tier 1'!X29+'Programmable Tstats - Tier 2'!X29+'Comm 95+% Furnace - NEW'!X29+'Comm 95+% Furnace - Replace'!X29+'Comm Custom'!X29,0) -> 11054 | Y29: =ROUND(+'Res .95+% Res Furnace - NEW'!Y29+'Res .95+% Res Furnace - Replace'!Y29+'Programmable Tstats - Tier 1'!Y29+'Programmable Tstats - Tier 2'!Y29+'Comm 95+% Furnace - NEW'!Y29+'Comm 95+% Furnace - Replace'!Y29+'Comm Custom'!Y29,0) -> 0 | Z29: =ROUND(+'Res .95+% Res Furnace - NEW'!Z29+'Res .95+% Res Furnace - Replace'!Z29+'Programmable Tstats - Tier 1'!Z29+'Programmable Tstats - Tier 2'!Z29+'Comm 95+% Furnace - NEW'!Z29+'Comm 95+% Furnace - Replace'!Z29+'Comm Custom'!Z29,0) -> 0 | AA29: =ROUND(+'Res .95+% Res Furnace - NEW'!AA29+'Res .95+% Res Furnace - Replace'!AA29+'Programmable Tstats - Tier 1'!AA29+'Programmable Tstats - Tier 2'!AA29+'Comm 95+% Furnace - NEW'!AA29+'Comm 95+% Furnace - Replace'!AA29+'Comm Custom'!AA29,0) -> 11054 | AB29: =ROUND(+'Res .95+% Res Furnace - NEW'!AB29+'Res .95+% Res Furnace - Replace'!AB29+'Programmable Tstats - Tier 1'!AB29+'Programmable Tstats - Tier 2'!AB29+'Comm 95+% Furnace - NEW'!AB29+'Comm 95+% Furnace - Replace'!AB29+'Comm Custom'!AB29,0) -> 21214 | AE29: 2038 | AF29: 22477 | AG29: 9791 | AH29: 32268 | AJ29: 0 | AK29: 0 | AL29: 0 | AN29: 32268 | AQ29: 2038 | AR29: 22477 | AS29: 9791 | AU29: =ROUND(+'Res .95+% Res Furnace - NEW'!AU29+'Res .95+% Res Furnace - Replace'!AU29+'Programmable Tstats - Tier 1'!AU29+'Programmable Tstats - Tier 2'!AU29+'Comm 95+% Furnace - NEW'!AU29+'Comm 95+% Furnace - Replace'!AU29+'Comm Custom'!AU29,0) -> 6457 | AW29: =ROUND(+'Res .95+% Res Furnace - NEW'!AW29+'Res .95+% Res Furnace - Replace'!AW29+'Programmable Tstats - Tier 1'!AW29+'Programmable Tstats - Tier 2'!AW29+'Comm 95+% Furnace - NEW'!AW29+'Comm 95+% Furnace - Replace'!AW29+'Comm Custom'!AW29,0) -> 15058 | AZ29: 53783 | BB29: =ROUND(+'Res .95+% Res Furnace - NEW'!BB29+'Res .95+% Res Furnace - Replace'!BB29+'Programmable Tstats - Tier 1'!BB29+'Programmable Tstats - Tier 2'!BB29+'Comm 95+% Furnace - NEW'!BB29+'Comm 95+% Furnace - Replace'!BB29+'Comm Custom'!BB29,0) -> 0 | BC29: =ROUND(+'Res .95+% Res Furnace - NEW'!BC29+'Res .95+% Res Furnace - Replace'!BC29+'Programmable Tstats - Tier 1'!BC29+'Programmable Tstats - Tier 2'!BC29+'Comm 95+% Furnace - NEW'!BC29+'Comm 95+% Furnace - Replace'!BC29+'Comm Custom'!BC29,0) -> 0 | BD29: 0 | BE29: 53783 | BH29: 2038 | BI29: =ROUND(+'Res .95+% Res Furnace - NEW'!BI29+'Res .95+% Res Furnace - Replace'!BI29+'Programmable Tstats - Tier 1'!BI29+'Programmable Tstats - Tier 2'!BI29+'Comm 95+% Furnace - NEW'!BI29+'Comm 95+% Furnace - Replace'!BI29+'Comm Custom'!BI29,0) -> 0 | BJ29: =ROUND(+'Res .95+% Res Furnace - NEW'!BJ29+'Res .95+% Res Furnace - Replace'!BJ29+'Programmable Tstats - Tier 1'!BJ29+'Programmable Tstats - Tier 2'!BJ29+'Comm 95+% Furnace - NEW'!BJ29+'Comm 95+% Furnace - Replace'!BJ29+'Comm Custom'!BJ29,0) -> 5173 | BL29: =ROUND(+'Res .95+% Res Furnace - NEW'!BL29+'Res .95+% Res Furnace - Replace'!BL29+'Programmable Tstats - Tier 1'!BL29+'Programmable Tstats - Tier 2'!BL29+'Comm 95+% Furnace - NEW'!BL29+'Comm 95+% Furnace - Replace'!BL29+'Comm Custom'!BL29,0) -> 54824 | BN29: =ROUND(+'Res .95+% Res Furnace - NEW'!BN29+'Res .95+% Res Furnace - Replace'!BN29+'Programmable Tstats - Tier 1'!BN29+'Programmable Tstats - Tier 2'!BN29+'Comm 95+% Furnace - NEW'!BN29+'Comm 95+% Furnace - Replace'!BN29+'Comm Custom'!BN29,0) -> 34612 | BP29: 89436 | BR29: =ROUND(+'Res .95+% Res Furnace - NEW'!BR29+'Res .95+% Res Furnace - Replace'!BR29+'Programmable Tstats - Tier 1'!BR29+'Programmable Tstats - Tier 2'!BR29+'Comm 95+% Furnace - NEW'!BR29+'Comm 95+% Furnace - Replace'!BR29+'Comm Custom'!BR29,0) -> 0 | BT29: 89436 | BW29: 2038 | BX29: 22477 | BY29: 9791 | BZ29: 6457 | CA29: 38725 | CC29: 0 | CD29: 0 | CE29: 0 | CG29: 38725
E30: 23) Number of Participants = | F30: =+'Res .95+% Res Furnace - NEW'!F30+'Res .95+% Res Furnace - Replace'!F30+'Programmable Tstats - Tier 1'!F30+'Programmable Tstats - Tier 2'!F30+'Comm 95+% Furnace - NEW'!F30+'Comm 95+% Furnace - Replace'!F30+'Comm Custom'!F30 -> 605 | J30: 16 | L30: 2039 | M30: =ROUND(+'Res .95+% Res Furnace - NEW'!M30+'Res .95+% Res Furnace - Replace'!M30+'Programmable Tstats - Tier 1'!M30+'Programmable Tstats - Tier 2'!M30+'Comm 95+% Furnace - NEW'!M30+'Comm 95+% Furnace - Replace'!M30+'Comm Custom'!M30,0) -> 5173 | O30: =ROUND(+'Res .95+% Res Furnace - NEW'!O30+'Res .95+% Res Furnace - Replace'!O30+'Programmable Tstats - Tier 1'!O30+'Programmable Tstats - Tier 2'!O30+'Comm 95+% Furnace - NEW'!O30+'Comm 95+% Furnace - Replace'!O30+'Comm Custom'!O30,0) -> 23154 | Q30: =ROUND(+'Res .95+% Res Furnace - NEW'!Q30+'Res .95+% Res Furnace - Replace'!Q30+'Programmable Tstats - Tier 1'!Q30+'Programmable Tstats - Tier 2'!Q30+'Comm 95+% Furnace - NEW'!Q30+'Comm 95+% Furnace - Replace'!Q30+'Comm Custom'!Q30,0) -> 0 | R30: =ROUND(+'Res .95+% Res Furnace - NEW'!R30+'Res .95+% Res Furnace - Replace'!R30+'Programmable Tstats - Tier 1'!R30+'Programmable Tstats - Tier 2'!R30+'Comm 95+% Furnace - NEW'!R30+'Comm 95+% Furnace - Replace'!R30+'Comm Custom'!R30,0) -> 23154 | S30: =ROUND(+'Res .95+% Res Furnace - NEW'!S30+'Res .95+% Res Furnace - Replace'!S30+'Programmable Tstats - Tier 1'!S30+'Programmable Tstats - Tier 2'!S30+'Comm 95+% Furnace - NEW'!S30+'Comm 95+% Furnace - Replace'!S30+'Comm Custom'!S30,0) -> 52 | U30: =ROUND(+'Res .95+% Res Furnace - NEW'!U30+'Res .95+% Res Furnace - Replace'!U30+'Programmable Tstats - Tier 1'!U30+'Programmable Tstats - Tier 2'!U30+'Comm 95+% Furnace - NEW'!U30+'Comm 95+% Furnace - Replace'!U30+'Comm Custom'!U30,0) -> 9893 | V30: =ROUND(+'Res .95+% Res Furnace - NEW'!V30+'Res .95+% Res Furnace - Replace'!V30+'Programmable Tstats - Tier 1'!V30+'Programmable Tstats - Tier 2'!V30+'Comm 95+% Furnace - NEW'!V30+'Comm 95+% Furnace - Replace'!V30+'Comm Custom'!V30,0) -> 33047 | X30: =ROUND(+'Res .95+% Res Furnace - NEW'!X30+'Res .95+% Res Furnace - Replace'!X30+'Programmable Tstats - Tier 1'!X30+'Programmable Tstats - Tier 2'!X30+'Comm 95+% Furnace - NEW'!X30+'Comm 95+% Furnace - Replace'!X30+'Comm Custom'!X30,0) -> 11387 | Y30: =ROUND(+'Res .95+% Res Furnace - NEW'!Y30+'Res .95+% Res Furnace - Replace'!Y30+'Programmable Tstats - Tier 1'!Y30+'Programmable Tstats - Tier 2'!Y30+'Comm 95+% Furnace - NEW'!Y30+'Comm 95+% Furnace - Replace'!Y30+'Comm Custom'!Y30,0) -> 0 | Z30: =ROUND(+'Res .95+% Res Furnace - NEW'!Z30+'Res .95+% Res Furnace - Replace'!Z30+'Programmable Tstats - Tier 1'!Z30+'Programmable Tstats - Tier 2'!Z30+'Comm 95+% Furnace - NEW'!Z30+'Comm 95+% Furnace - Replace'!Z30+'Comm Custom'!Z30,0) -> 0 | AA30: =ROUND(+'Res .95+% Res Furnace - NEW'!AA30+'Res .95+% Res Furnace - Replace'!AA30+'Programmable Tstats - Tier 1'!AA30+'Programmable Tstats - Tier 2'!AA30+'Comm 95+% Furnace - NEW'!AA30+'Comm 95+% Furnace - Replace'!AA30+'Comm Custom'!AA30,0) -> 11387 | AB30: =ROUND(+'Res .95+% Res Furnace - NEW'!AB30+'Res .95+% Res Furnace - Replace'!AB30+'Programmable Tstats - Tier 1'!AB30+'Programmable Tstats - Tier 2'!AB30+'Comm 95+% Furnace - NEW'!AB30+'Comm 95+% Furnace - Replace'!AB30+'Comm Custom'!AB30,0) -> 21660 | AE30: 2039 | AF30: 23154 | AG30: 9893 | AH30: 33047 | AJ30: 0 | AK30: 0 | AL30: 0 | AN30: 33047 | AQ30: 2039 | AR30: 23154 | AS30: 9893 | AU30: =ROUND(+'Res .95+% Res Furnace - NEW'!AU30+'Res .95+% Res Furnace - Replace'!AU30+'Programmable Tstats - Tier 1'!AU30+'Programmable Tstats - Tier 2'!AU30+'Comm 95+% Furnace - NEW'!AU30+'Comm 95+% Furnace - Replace'!AU30+'Comm Custom'!AU30,0) -> 6797 | AW30: =ROUND(+'Res .95+% Res Furnace - NEW'!AW30+'Res .95+% Res Furnace - Replace'!AW30+'Programmable Tstats - Tier 1'!AW30+'Programmable Tstats - Tier 2'!AW30+'Comm 95+% Furnace - NEW'!AW30+'Comm 95+% Furnace - Replace'!AW30+'Comm Custom'!AW30,0) -> 15405 | AZ30: 55249 | BB30: =ROUND(+'Res .95+% Res Furnace - NEW'!BB30+'Res .95+% Res Furnace - Replace'!BB30+'Programmable Tstats - Tier 1'!BB30+'Programmable Tstats - Tier 2'!BB30+'Comm 95+% Furnace - NEW'!BB30+'Comm 95+% Furnace - Replace'!BB30+'Comm Custom'!BB30,0) -> 0 | BC30: =ROUND(+'Res .95+% Res Furnace - NEW'!BC30+'Res .95+% Res Furnace - Replace'!BC30+'Programmable Tstats - Tier 1'!BC30+'Programmable Tstats - Tier 2'!BC30+'Comm 95+% Furnace - NEW'!BC30+'Comm 95+% Furnace - Replace'!BC30+'Comm Custom'!BC30,0) -> 0 | BD30: 0 | BE30: 55249 | BH30: 2039 | BI30: =ROUND(+'Res .95+% Res Furnace - NEW'!BI30+'Res .95+% Res Furnace - Replace'!BI30+'Programmable Tstats - Tier 1'!BI30+'Programmable Tstats - Tier 2'!BI30+'Comm 95+% Furnace - NEW'!BI30+'Comm 95+% Furnace - Replace'!BI30+'Comm Custom'!BI30,0) -> 0 | BJ30: =ROUND(+'Res .95+% Res Furnace - NEW'!BJ30+'Res .95+% Res Furnace - Replace'!BJ30+'Programmable Tstats - Tier 1'!BJ30+'Programmable Tstats - Tier 2'!BJ30+'Comm 95+% Furnace - NEW'!BJ30+'Comm 95+% Furnace - Replace'!BJ30+'Comm Custom'!BJ30,0) -> 5173 | BL30: =ROUND(+'Res .95+% Res Furnace - NEW'!BL30+'Res .95+% Res Furnace - Replace'!BL30+'Programmable Tstats - Tier 1'!BL30+'Programmable Tstats - Tier 2'!BL30+'Comm 95+% Furnace - NEW'!BL30+'Comm 95+% Furnace - Replace'!BL30+'Comm Custom'!BL30,0) -> 56470 | BN30: =ROUND(+'Res .95+% Res Furnace - NEW'!BN30+'Res .95+% Res Furnace - Replace'!BN30+'Programmable Tstats - Tier 1'!BN30+'Programmable Tstats - Tier 2'!BN30+'Comm 95+% Furnace - NEW'!BN30+'Comm 95+% Furnace - Replace'!BN30+'Comm Custom'!BN30,0) -> 35632 | BP30: 92102 | BR30: =ROUND(+'Res .95+% Res Furnace - NEW'!BR30+'Res .95+% Res Furnace - Replace'!BR30+'Programmable Tstats - Tier 1'!BR30+'Programmable Tstats - Tier 2'!BR30+'Comm 95+% Furnace - NEW'!BR30+'Comm 95+% Furnace - Replace'!BR30+'Comm Custom'!BR30,0) -> 0 | BT30: 92102 | BW30: 2039 | BX30: 23154 | BY30: 9893 | BZ30: 6797 | CA30: 39844 | CC30: 0 | CD30: 0 | CE30: 0 | CG30: 39844
A31: 8) Non-Gas Fuel Loss Factor | J31: 17 | L31: 2040 | M31: =ROUND(+'Res .95+% Res Furnace - NEW'!M31+'Res .95+% Res Furnace - Replace'!M31+'Programmable Tstats - Tier 1'!M31+'Programmable Tstats - Tier 2'!M31+'Comm 95+% Furnace - NEW'!M31+'Comm 95+% Furnace - Replace'!M31+'Comm Custom'!M31,0) -> 5173 | O31: =ROUND(+'Res .95+% Res Furnace - NEW'!O31+'Res .95+% Res Furnace - Replace'!O31+'Programmable Tstats - Tier 1'!O31+'Programmable Tstats - Tier 2'!O31+'Comm 95+% Furnace - NEW'!O31+'Comm 95+% Furnace - Replace'!O31+'Comm Custom'!O31,0) -> 23848 | Q31: =ROUND(+'Res .95+% Res Furnace - NEW'!Q31+'Res .95+% Res Furnace - Replace'!Q31+'Programmable Tstats - Tier 1'!Q31+'Programmable Tstats - Tier 2'!Q31+'Comm 95+% Furnace - NEW'!Q31+'Comm 95+% Furnace - Replace'!Q31+'Comm Custom'!Q31,0) -> 0 | R31: =ROUND(+'Res .95+% Res Furnace - NEW'!R31+'Res .95+% Res Furnace - Replace'!R31+'Programmable Tstats - Tier 1'!R31+'Programmable Tstats - Tier 2'!R31+'Comm 95+% Furnace - NEW'!R31+'Comm 95+% Furnace - Replace'!R31+'Comm Custom'!R31,0) -> 23848 | S31: =ROUND(+'Res .95+% Res Furnace - NEW'!S31+'Res .95+% Res Furnace - Replace'!S31+'Programmable Tstats - Tier 1'!S31+'Programmable Tstats - Tier 2'!S31+'Comm 95+% Furnace - NEW'!S31+'Comm 95+% Furnace - Replace'!S31+'Comm Custom'!S31,0) -> 52 | U31: =ROUND(+'Res .95+% Res Furnace - NEW'!U31+'Res .95+% Res Furnace - Replace'!U31+'Programmable Tstats - Tier 1'!U31+'Programmable Tstats - Tier 2'!U31+'Comm 95+% Furnace - NEW'!U31+'Comm 95+% Furnace - Replace'!U31+'Comm Custom'!U31,0) -> 9997 | V31: =ROUND(+'Res .95+% Res Furnace - NEW'!V31+'Res .95+% Res Furnace - Replace'!V31+'Programmable Tstats - Tier 1'!V31+'Programmable Tstats - Tier 2'!V31+'Comm 95+% Furnace - NEW'!V31+'Comm 95+% Furnace - Replace'!V31+'Comm Custom'!V31,0) -> 33845 | X31: =ROUND(+'Res .95+% Res Furnace - NEW'!X31+'Res .95+% Res Furnace - Replace'!X31+'Programmable Tstats - Tier 1'!X31+'Programmable Tstats - Tier 2'!X31+'Comm 95+% Furnace - NEW'!X31+'Comm 95+% Furnace - Replace'!X31+'Comm Custom'!X31,0) -> 11731 | Y31: =ROUND(+'Res .95+% Res Furnace - NEW'!Y31+'Res .95+% Res Furnace - Replace'!Y31+'Programmable Tstats - Tier 1'!Y31+'Programmable Tstats - Tier 2'!Y31+'Comm 95+% Furnace - NEW'!Y31+'Comm 95+% Furnace - Replace'!Y31+'Comm Custom'!Y31,0) -> 0 | Z31: =ROUND(+'Res .95+% Res Furnace - NEW'!Z31+'Res .95+% Res Furnace - Replace'!Z31+'Programmable Tstats - Tier 1'!Z31+'Programmable Tstats - Tier 2'!Z31+'Comm 95+% Furnace - NEW'!Z31+'Comm 95+% Furnace - Replace'!Z31+'Comm Custom'!Z31,0) -> 0 | AA31: =ROUND(+'Res .95+% Res Furnace - NEW'!AA31+'Res .95+% Res Furnace - Replace'!AA31+'Programmable Tstats - Tier 1'!AA31+'Programmable Tstats - Tier 2'!AA31+'Comm 95+% Furnace - NEW'!AA31+'Comm 95+% Furnace - Replace'!AA31+'Comm Custom'!AA31,0) -> 11731 | AB31: =ROUND(+'Res .95+% Res Furnace - NEW'!AB31+'Res .95+% Res Furnace - Replace'!AB31+'Programmable Tstats - Tier 1'!AB31+'Programmable Tstats - Tier 2'!AB31+'Comm 95+% Furnace - NEW'!AB31+'Comm 95+% Furnace - Replace'!AB31+'Comm Custom'!AB31,0) -> 22114 | AE31: 2040 | AF31: 23848 | AG31: 9997 | AH31: 33845 | AJ31: 0 | AK31: 0 | AL31: 0 | AN31: 33845 | AQ31: 2040 | AR31: 23848 | AS31: 9997 | AU31: =ROUND(+'Res .95+% Res Furnace - NEW'!AU31+'Res .95+% Res Furnace - Replace'!AU31+'Programmable Tstats - Tier 1'!AU31+'Programmable Tstats - Tier 2'!AU31+'Comm 95+% Furnace - NEW'!AU31+'Comm 95+% Furnace - Replace'!AU31+'Comm Custom'!AU31,0) -> 6966 | AW31: =ROUND(+'Res .95+% Res Furnace - NEW'!AW31+'Res .95+% Res Furnace - Replace'!AW31+'Programmable Tstats - Tier 1'!AW31+'Programmable Tstats - Tier 2'!AW31+'Comm 95+% Furnace - NEW'!AW31+'Comm 95+% Furnace - Replace'!AW31+'Comm Custom'!AW31,0) -> 15763 | AZ31: 56574 | BB31: =ROUND(+'Res .95+% Res Furnace - NEW'!BB31+'Res .95+% Res Furnace - Replace'!BB31+'Programmable Tstats - Tier 1'!BB31+'Programmable Tstats - Tier 2'!BB31+'Comm 95+% Furnace - NEW'!BB31+'Comm 95+% Furnace - Replace'!BB31+'Comm Custom'!BB31,0) -> 0 | BC31: =ROUND(+'Res .95+% Res Furnace - NEW'!BC31+'Res .95+% Res Furnace - Replace'!BC31+'Programmable Tstats - Tier 1'!BC31+'Programmable Tstats - Tier 2'!BC31+'Comm 95+% Furnace - NEW'!BC31+'Comm 95+% Furnace - Replace'!BC31+'Comm Custom'!BC31,0) -> 0 | BD31: 0 | BE31: 56574 | BH31: 2040 | BI31: =ROUND(+'Res .95+% Res Furnace - NEW'!BI31+'Res .95+% Res Furnace - Replace'!BI31+'Programmable Tstats - Tier 1'!BI31+'Programmable Tstats - Tier 2'!BI31+'Comm 95+% Furnace - NEW'!BI31+'Comm 95+% Furnace - Replace'!BI31+'Comm Custom'!BI31,0) -> 0 | BJ31: =ROUND(+'Res .95+% Res Furnace - NEW'!BJ31+'Res .95+% Res Furnace - Replace'!BJ31+'Programmable Tstats - Tier 1'!BJ31+'Programmable Tstats - Tier 2'!BJ31+'Comm 95+% Furnace - NEW'!BJ31+'Comm 95+% Furnace - Replace'!BJ31+'Comm Custom'!BJ31,0) -> 5173 | BL31: =ROUND(+'Res .95+% Res Furnace - NEW'!BL31+'Res .95+% Res Furnace - Replace'!BL31+'Programmable Tstats - Tier 1'!BL31+'Programmable Tstats - Tier 2'!BL31+'Comm 95+% Furnace - NEW'!BL31+'Comm 95+% Furnace - Replace'!BL31+'Comm Custom'!BL31,0) -> 58162 | BN31: =ROUND(+'Res .95+% Res Furnace - NEW'!BN31+'Res .95+% Res Furnace - Replace'!BN31+'Programmable Tstats - Tier 1'!BN31+'Programmable Tstats - Tier 2'!BN31+'Comm 95+% Furnace - NEW'!BN31+'Comm 95+% Furnace - Replace'!BN31+'Comm Custom'!BN31,0) -> 36650 | BP31: 94812 | BR31: =ROUND(+'Res .95+% Res Furnace - NEW'!BR31+'Res .95+% Res Furnace - Replace'!BR31+'Programmable Tstats - Tier 1'!BR31+'Programmable Tstats - Tier 2'!BR31+'Comm 95+% Furnace - NEW'!BR31+'Comm 95+% Furnace - Replace'!BR31+'Comm Custom'!BR31,0) -> 0 | BT31: 94812 | BW31: 2040 | BX31: 23848 | BY31: 9997 | BZ31: 6966 | CA31: 40811 | CC31: 0 | CD31: 0 | CE31: 0 | CG31: 40811
E32: 24) Total Annual Dk Saved = | F32: =+'Res .95+% Res Furnace - NEW'!F32+'Res .95+% Res Furnace - Replace'!F32+'Programmable Tstats - Tier 1'!F32+'Programmable Tstats - Tier 2'!F32+'Comm 95+% Furnace - NEW'!F32+'Comm 95+% Furnace - Replace'!F32+'Comm Custom'!F32 -> 6538 | J32: 18 | L32: 2041 | M32: =ROUND(+'Res .95+% Res Furnace - NEW'!M32+'Res .95+% Res Furnace - Replace'!M32+'Programmable Tstats - Tier 1'!M32+'Programmable Tstats - Tier 2'!M32+'Comm 95+% Furnace - NEW'!M32+'Comm 95+% Furnace - Replace'!M32+'Comm Custom'!M32,0) -> 5173 | O32: =ROUND(+'Res .95+% Res Furnace - NEW'!O32+'Res .95+% Res Furnace - Replace'!O32+'Programmable Tstats - Tier 1'!O32+'Programmable Tstats - Tier 2'!O32+'Comm 95+% Furnace - NEW'!O32+'Comm 95+% Furnace - Replace'!O32+'Comm Custom'!O32,0) -> 24561 | Q32: =ROUND(+'Res .95+% Res Furnace - NEW'!Q32+'Res .95+% Res Furnace - Replace'!Q32+'Programmable Tstats - Tier 1'!Q32+'Programmable Tstats - Tier 2'!Q32+'Comm 95+% Furnace - NEW'!Q32+'Comm 95+% Furnace - Replace'!Q32+'Comm Custom'!Q32,0) -> 0 | R32: =ROUND(+'Res .95+% Res Furnace - NEW'!R32+'Res .95+% Res Furnace - Replace'!R32+'Programmable Tstats - Tier 1'!R32+'Programmable Tstats - Tier 2'!R32+'Comm 95+% Furnace - NEW'!R32+'Comm 95+% Furnace - Replace'!R32+'Comm Custom'!R32,0) -> 24561 | S32: =ROUND(+'Res .95+% Res Furnace - NEW'!S32+'Res .95+% Res Furnace - Replace'!S32+'Programmable Tstats - Tier 1'!S32+'Programmable Tstats - Tier 2'!S32+'Comm 95+% Furnace - NEW'!S32+'Comm 95+% Furnace - Replace'!S32+'Comm Custom'!S32,0) -> 52 | U32: =ROUND(+'Res .95+% Res Furnace - NEW'!U32+'Res .95+% Res Furnace - Replace'!U32+'Programmable Tstats - Tier 1'!U32+'Programmable Tstats - Tier 2'!U32+'Comm 95+% Furnace - NEW'!U32+'Comm 95+% Furnace - Replace'!U32+'Comm Custom'!U32,0) -> 10102 | V32: =ROUND(+'Res .95+% Res Furnace - NEW'!V32+'Res .95+% Res Furnace - Replace'!V32+'Programmable Tstats - Tier 1'!V32+'Programmable Tstats - Tier 2'!V32+'Comm 95+% Furnace - NEW'!V32+'Comm 95+% Furnace - Replace'!V32+'Comm Custom'!V32,0) -> 34663 | X32: =ROUND(+'Res .95+% Res Furnace - NEW'!X32+'Res .95+% Res Furnace - Replace'!X32+'Programmable Tstats - Tier 1'!X32+'Programmable Tstats - Tier 2'!X32+'Comm 95+% Furnace - NEW'!X32+'Comm 95+% Furnace - Replace'!X32+'Comm Custom'!X32,0) -> 12084 | Y32: =ROUND(+'Res .95+% Res Furnace - NEW'!Y32+'Res .95+% Res Furnace - Replace'!Y32+'Programmable Tstats - Tier 1'!Y32+'Programmable Tstats - Tier 2'!Y32+'Comm 95+% Furnace - NEW'!Y32+'Comm 95+% Furnace - Replace'!Y32+'Comm Custom'!Y32,0) -> 0 | Z32: =ROUND(+'Res .95+% Res Furnace - NEW'!Z32+'Res .95+% Res Furnace - Replace'!Z32+'Programmable Tstats - Tier 1'!Z32+'Programmable Tstats - Tier 2'!Z32+'Comm 95+% Furnace - NEW'!Z32+'Comm 95+% Furnace - Replace'!Z32+'Comm Custom'!Z32,0) -> 0 | AA32: =ROUND(+'Res .95+% Res Furnace - NEW'!AA32+'Res .95+% Res Furnace - Replace'!AA32+'Programmable Tstats - Tier 1'!AA32+'Programmable Tstats - Tier 2'!AA32+'Comm 95+% Furnace - NEW'!AA32+'Comm 95+% Furnace - Replace'!AA32+'Comm Custom'!AA32,0) -> 12084 | AB32: =ROUND(+'Res .95+% Res Furnace - NEW'!AB32+'Res .95+% Res Furnace - Replace'!AB32+'Programmable Tstats - Tier 1'!AB32+'Programmable Tstats - Tier 2'!AB32+'Comm 95+% Furnace - NEW'!AB32+'Comm 95+% Furnace - Replace'!AB32+'Comm Custom'!AB32,0) -> 22579 | AE32: 2041 | AF32: 24561 | AG32: 10102 | AH32: 34663 | AJ32: 0 | AK32: 0 | AL32: 0 | AN32: 34663 | AQ32: 2041 | AR32: 24561 | AS32: 10102 | AU32: =ROUND(+'Res .95+% Res Furnace - NEW'!AU32+'Res .95+% Res Furnace - Replace'!AU32+'Programmable Tstats - Tier 1'!AU32+'Programmable Tstats - Tier 2'!AU32+'Comm 95+% Furnace - NEW'!AU32+'Comm 95+% Furnace - Replace'!AU32+'Comm Custom'!AU32,0) -> 7137 | AW32: =ROUND(+'Res .95+% Res Furnace - NEW'!AW32+'Res .95+% Res Furnace - Replace'!AW32+'Programmable Tstats - Tier 1'!AW32+'Programmable Tstats - Tier 2'!AW32+'Comm 95+% Furnace - NEW'!AW32+'Comm 95+% Furnace - Replace'!AW32+'Comm Custom'!AW32,0) -> 16124 | AZ32: 57924 | BB32: =ROUND(+'Res .95+% Res Furnace - NEW'!BB32+'Res .95+% Res Furnace - Replace'!BB32+'Programmable Tstats - Tier 1'!BB32+'Programmable Tstats - Tier 2'!BB32+'Comm 95+% Furnace - NEW'!BB32+'Comm 95+% Furnace - Replace'!BB32+'Comm Custom'!BB32,0) -> 0 | BC32: =ROUND(+'Res .95+% Res Furnace - NEW'!BC32+'Res .95+% Res Furnace - Replace'!BC32+'Programmable Tstats - Tier 1'!BC32+'Programmable Tstats - Tier 2'!BC32+'Comm 95+% Furnace - NEW'!BC32+'Comm 95+% Furnace - Replace'!BC32+'Comm Custom'!BC32,0) -> 0 | BD32: 0 | BE32: 57924 | BH32: 2041 | BI32: =ROUND(+'Res .95+% Res Furnace - NEW'!BI32+'Res .95+% Res Furnace - Replace'!BI32+'Programmable Tstats - Tier 1'!BI32+'Programmable Tstats - Tier 2'!BI32+'Comm 95+% Furnace - NEW'!BI32+'Comm 95+% Furnace - Replace'!BI32+'Comm Custom'!BI32,0) -> 0 | BJ32: =ROUND(+'Res .95+% Res Furnace - NEW'!BJ32+'Res .95+% Res Furnace - Replace'!BJ32+'Programmable Tstats - Tier 1'!BJ32+'Programmable Tstats - Tier 2'!BJ32+'Comm 95+% Furnace - NEW'!BJ32+'Comm 95+% Furnace - Replace'!BJ32+'Comm Custom'!BJ32,0) -> 5173 | BL32: =ROUND(+'Res .95+% Res Furnace - NEW'!BL32+'Res .95+% Res Furnace - Replace'!BL32+'Programmable Tstats - Tier 1'!BL32+'Programmable Tstats - Tier 2'!BL32+'Comm 95+% Furnace - NEW'!BL32+'Comm 95+% Furnace - Replace'!BL32+'Comm Custom'!BL32,0) -> 59907 | BN32: =ROUND(+'Res .95+% Res Furnace - NEW'!BN32+'Res .95+% Res Furnace - Replace'!BN32+'Programmable Tstats - Tier 1'!BN32+'Programmable Tstats - Tier 2'!BN32+'Comm 95+% Furnace - NEW'!BN32+'Comm 95+% Furnace - Replace'!BN32+'Comm Custom'!BN32,0) -> 37670 | BP32: 97577 | BR32: =ROUND(+'Res .95+% Res Furnace - NEW'!BR32+'Res .95+% Res Furnace - Replace'!BR32+'Programmable Tstats - Tier 1'!BR32+'Programmable Tstats - Tier 2'!BR32+'Comm 95+% Furnace - NEW'!BR32+'Comm 95+% Furnace - Replace'!BR32+'Comm Custom'!BR32,0) -> 0 | BT32: 97577 | BW32: 2041 | BX32: 24561 | BY32: 10102 | BZ32: 7137 | CA32: 41800 | CC32: 0 | CD32: 0 | CE32: 0 | CG32: 41800
A33: 9) Gas Environmental Damage Factor = | J33: 19 | L33: 2042 | M33: =ROUND(+'Res .95+% Res Furnace - NEW'!M33+'Res .95+% Res Furnace - Replace'!M33+'Programmable Tstats - Tier 1'!M33+'Programmable Tstats - Tier 2'!M33+'Comm 95+% Furnace - NEW'!M33+'Comm 95+% Furnace - Replace'!M33+'Comm Custom'!M33,0) -> 5173 | O33: =ROUND(+'Res .95+% Res Furnace - NEW'!O33+'Res .95+% Res Furnace - Replace'!O33+'Programmable Tstats - Tier 1'!O33+'Programmable Tstats - Tier 2'!O33+'Comm 95+% Furnace - NEW'!O33+'Comm 95+% Furnace - Replace'!O33+'Comm Custom'!O33,0) -> 25301 | Q33: =ROUND(+'Res .95+% Res Furnace - NEW'!Q33+'Res .95+% Res Furnace - Replace'!Q33+'Programmable Tstats - Tier 1'!Q33+'Programmable Tstats - Tier 2'!Q33+'Comm 95+% Furnace - NEW'!Q33+'Comm 95+% Furnace - Replace'!Q33+'Comm Custom'!Q33,0) -> 0 | R33: =ROUND(+'Res .95+% Res Furnace - NEW'!R33+'Res .95+% Res Furnace - Replace'!R33+'Programmable Tstats - Tier 1'!R33+'Programmable Tstats - Tier 2'!R33+'Comm 95+% Furnace - NEW'!R33+'Comm 95+% Furnace - Replace'!R33+'Comm Custom'!R33,0) -> 25301 | S33: =ROUND(+'Res .95+% Res Furnace - NEW'!S33+'Res .95+% Res Furnace - Replace'!S33+'Programmable Tstats - Tier 1'!S33+'Programmable Tstats - Tier 2'!S33+'Comm 95+% Furnace - NEW'!S33+'Comm 95+% Furnace - Replace'!S33+'Comm Custom'!S33,0) -> 52 | U33: =ROUND(+'Res .95+% Res Furnace - NEW'!U33+'Res .95+% Res Furnace - Replace'!U33+'Programmable Tstats - Tier 1'!U33+'Programmable Tstats - Tier 2'!U33+'Comm 95+% Furnace - NEW'!U33+'Comm 95+% Furnace - Replace'!U33+'Comm Custom'!U33,0) -> 10205 | V33: =ROUND(+'Res .95+% Res Furnace - NEW'!V33+'Res .95+% Res Furnace - Replace'!V33+'Programmable Tstats - Tier 1'!V33+'Programmable Tstats - Tier 2'!V33+'Comm 95+% Furnace - NEW'!V33+'Comm 95+% Furnace - Replace'!V33+'Comm Custom'!V33,0) -> 35506 | X33: =ROUND(+'Res .95+% Res Furnace - NEW'!X33+'Res .95+% Res Furnace - Replace'!X33+'Programmable Tstats - Tier 1'!X33+'Programmable Tstats - Tier 2'!X33+'Comm 95+% Furnace - NEW'!X33+'Comm 95+% Furnace - Replace'!X33+'Comm Custom'!X33,0) -> 12443 | Y33: =ROUND(+'Res .95+% Res Furnace - NEW'!Y33+'Res .95+% Res Furnace - Replace'!Y33+'Programmable Tstats - Tier 1'!Y33+'Programmable Tstats - Tier 2'!Y33+'Comm 95+% Furnace - NEW'!Y33+'Comm 95+% Furnace - Replace'!Y33+'Comm Custom'!Y33,0) -> 0 | Z33: =ROUND(+'Res .95+% Res Furnace - NEW'!Z33+'Res .95+% Res Furnace - Replace'!Z33+'Programmable Tstats - Tier 1'!Z33+'Programmable Tstats - Tier 2'!Z33+'Comm 95+% Furnace - NEW'!Z33+'Comm 95+% Furnace - Replace'!Z33+'Comm Custom'!Z33,0) -> 0 | AA33: =ROUND(+'Res .95+% Res Furnace - NEW'!AA33+'Res .95+% Res Furnace - Replace'!AA33+'Programmable Tstats - Tier 1'!AA33+'Programmable Tstats - Tier 2'!AA33+'Comm 95+% Furnace - NEW'!AA33+'Comm 95+% Furnace - Replace'!AA33+'Comm Custom'!AA33,0) -> 12443 | AB33: =ROUND(+'Res .95+% Res Furnace - NEW'!AB33+'Res .95+% Res Furnace - Replace'!AB33+'Programmable Tstats - Tier 1'!AB33+'Programmable Tstats - Tier 2'!AB33+'Comm 95+% Furnace - NEW'!AB33+'Comm 95+% Furnace - Replace'!AB33+'Comm Custom'!AB33,0) -> 23063 | AE33: 2042 | AF33: 25301 | AG33: 10205 | AH33: 35506 | AJ33: 0 | AK33: 0 | AL33: 0 | AN33: 35506 | AQ33: 2042 | AR33: 25301 | AS33: 10205 | AU33: =ROUND(+'Res .95+% Res Furnace - NEW'!AU33+'Res .95+% Res Furnace - Replace'!AU33+'Programmable Tstats - Tier 1'!AU33+'Programmable Tstats - Tier 2'!AU33+'Comm 95+% Furnace - NEW'!AU33+'Comm 95+% Furnace - Replace'!AU33+'Comm Custom'!AU33,0) -> 7307 | AW33: =ROUND(+'Res .95+% Res Furnace - NEW'!AW33+'Res .95+% Res Furnace - Replace'!AW33+'Programmable Tstats - Tier 1'!AW33+'Programmable Tstats - Tier 2'!AW33+'Comm 95+% Furnace - NEW'!AW33+'Comm 95+% Furnace - Replace'!AW33+'Comm Custom'!AW33,0) -> 16497 | AZ33: 59310 | BB33: =ROUND(+'Res .95+% Res Furnace - NEW'!BB33+'Res .95+% Res Furnace - Replace'!BB33+'Programmable Tstats - Tier 1'!BB33+'Programmable Tstats - Tier 2'!BB33+'Comm 95+% Furnace - NEW'!BB33+'Comm 95+% Furnace - Replace'!BB33+'Comm Custom'!BB33,0) -> 0 | BC33: =ROUND(+'Res .95+% Res Furnace - NEW'!BC33+'Res .95+% Res Furnace - Replace'!BC33+'Programmable Tstats - Tier 1'!BC33+'Programmable Tstats - Tier 2'!BC33+'Comm 95+% Furnace - NEW'!BC33+'Comm 95+% Furnace - Replace'!BC33+'Comm Custom'!BC33,0) -> 0 | BD33: 0 | BE33: 59310 | BH33: 2042 | BI33: =ROUND(+'Res .95+% Res Furnace - NEW'!BI33+'Res .95+% Res Furnace - Replace'!BI33+'Programmable Tstats - Tier 1'!BI33+'Programmable Tstats - Tier 2'!BI33+'Comm 95+% Furnace - NEW'!BI33+'Comm 95+% Furnace - Replace'!BI33+'Comm Custom'!BI33,0) -> 0 | BJ33: =ROUND(+'Res .95+% Res Furnace - NEW'!BJ33+'Res .95+% Res Furnace - Replace'!BJ33+'Programmable Tstats - Tier 1'!BJ33+'Programmable Tstats - Tier 2'!BJ33+'Comm 95+% Furnace - NEW'!BJ33+'Comm 95+% Furnace - Replace'!BJ33+'Comm Custom'!BJ33,0) -> 5173 | BL33: =ROUND(+'Res .95+% Res Furnace - NEW'!BL33+'Res .95+% Res Furnace - Replace'!BL33+'Programmable Tstats - Tier 1'!BL33+'Programmable Tstats - Tier 2'!BL33+'Comm 95+% Furnace - NEW'!BL33+'Comm 95+% Furnace - Replace'!BL33+'Comm Custom'!BL33,0) -> 61706 | BN33: =ROUND(+'Res .95+% Res Furnace - NEW'!BN33+'Res .95+% Res Furnace - Replace'!BN33+'Programmable Tstats - Tier 1'!BN33+'Programmable Tstats - Tier 2'!BN33+'Comm 95+% Furnace - NEW'!BN33+'Comm 95+% Furnace - Replace'!BN33+'Comm Custom'!BN33,0) -> 38851 | BP33: 100557 | BR33: =ROUND(+'Res .95+% Res Furnace - NEW'!BR33+'Res .95+% Res Furnace - Replace'!BR33+'Programmable Tstats - Tier 1'!BR33+'Programmable Tstats - Tier 2'!BR33+'Comm 95+% Furnace - NEW'!BR33+'Comm 95+% Furnace - Replace'!BR33+'Comm Custom'!BR33,0) -> 0 | BT33: 100557 | BW33: 2042 | BX33: 25301 | BY33: 10205 | BZ33: 7307 | CA33: 42813 | CC33: 0 | CD33: 0 | CE33: 0 | CG33: 42813
A34: Escalation Rate = | E34: 25) Incentive/Participant = | J34: 20 | L34: 2043 | M34: =ROUND(+'Res .95+% Res Furnace - NEW'!M34+'Res .95+% Res Furnace - Replace'!M34+'Programmable Tstats - Tier 1'!M34+'Programmable Tstats - Tier 2'!M34+'Comm 95+% Furnace - NEW'!M34+'Comm 95+% Furnace - Replace'!M34+'Comm Custom'!M34,0) -> 0 | O34: =ROUND(+'Res .95+% Res Furnace - NEW'!O34+'Res .95+% Res Furnace - Replace'!O34+'Programmable Tstats - Tier 1'!O34+'Programmable Tstats - Tier 2'!O34+'Comm 95+% Furnace - NEW'!O34+'Comm 95+% Furnace - Replace'!O34+'Comm Custom'!O34,0) -> 0 | Q34: =ROUND(+'Res .95+% Res Furnace - NEW'!Q34+'Res .95+% Res Furnace - Replace'!Q34+'Programmable Tstats - Tier 1'!Q34+'Programmable Tstats - Tier 2'!Q34+'Comm 95+% Furnace - NEW'!Q34+'Comm 95+% Furnace - Replace'!Q34+'Comm Custom'!Q34,0) -> 0 | R34: =ROUND(+'Res .95+% Res Furnace - NEW'!R34+'Res .95+% Res Furnace - Replace'!R34+'Programmable Tstats - Tier 1'!R34+'Programmable Tstats - Tier 2'!R34+'Comm 95+% Furnace - NEW'!R34+'Comm 95+% Furnace - Replace'!R34+'Comm Custom'!R34,0) -> 0 | S34: =ROUND(+'Res .95+% Res Furnace - NEW'!S34+'Res .95+% Res Furnace - Replace'!S34+'Programmable Tstats - Tier 1'!S34+'Programmable Tstats - Tier 2'!S34+'Comm 95+% Furnace - NEW'!S34+'Comm 95+% Furnace - Replace'!S34+'Comm Custom'!S34,0) -> 0 | U34: =ROUND(+'Res .95+% Res Furnace - NEW'!U34+'Res .95+% Res Furnace - Replace'!U34+'Programmable Tstats - Tier 1'!U34+'Programmable Tstats - Tier 2'!U34+'Comm 95+% Furnace - NEW'!U34+'Comm 95+% Furnace - Replace'!U34+'Comm Custom'!U34,0) -> 0 | V34: =ROUND(+'Res .95+% Res Furnace - NEW'!V34+'Res .95+% Res Furnace - Replace'!V34+'Programmable Tstats - Tier 1'!V34+'Programmable Tstats - Tier 2'!V34+'Comm 95+% Furnace - NEW'!V34+'Comm 95+% Furnace - Replace'!V34+'Comm Custom'!V34,0) -> 0 | X34: =ROUND(+'Res .95+% Res Furnace - NEW'!X34+'Res .95+% Res Furnace - Replace'!X34+'Programmable Tstats - Tier 1'!X34+'Programmable Tstats - Tier 2'!X34+'Comm 95+% Furnace - NEW'!X34+'Comm 95+% Furnace - Replace'!X34+'Comm Custom'!X34,0) -> 0 | Y34: =ROUND(+'Res .95+% Res Furnace - NEW'!Y34+'Res .95+% Res Furnace - Replace'!Y34+'Programmable Tstats - Tier 1'!Y34+'Programmable Tstats - Tier 2'!Y34+'Comm 95+% Furnace - NEW'!Y34+'Comm 95+% Furnace - Replace'!Y34+'Comm Custom'!Y34,0) -> 0 | Z34: =ROUND(+'Res .95+% Res Furnace - NEW'!Z34+'Res .95+% Res Furnace - Replace'!Z34+'Programmable Tstats - Tier 1'!Z34+'Programmable Tstats - Tier 2'!Z34+'Comm 95+% Furnace - NEW'!Z34+'Comm 95+% Furnace - Replace'!Z34+'Comm Custom'!Z34,0) -> 0 | AA34: =ROUND(+'Res .95+% Res Furnace - NEW'!AA34+'Res .95+% Res Furnace - Replace'!AA34+'Programmable Tstats - Tier 1'!AA34+'Programmable Tstats - Tier 2'!AA34+'Comm 95+% Furnace - NEW'!AA34+'Comm 95+% Furnace - Replace'!AA34+'Comm Custom'!AA34,0) -> 0 | AB34: =ROUND(+'Res .95+% Res Furnace - NEW'!AB34+'Res .95+% Res Furnace - Replace'!AB34+'Programmable Tstats - Tier 1'!AB34+'Programmable Tstats - Tier 2'!AB34+'Comm 95+% Furnace - NEW'!AB34+'Comm 95+% Furnace - Replace'!AB34+'Comm Custom'!AB34,0) -> 0 | AE34: 2043 | AF34: 0 | AG34: 0 | AH34: 0 | AJ34: 0 | AK34: 0 | AL34: 0 | AN34: 0 | AQ34: 2043 | AR34: 0 | AS34: 0 | AU34: =ROUND(+'Res .95+% Res Furnace - NEW'!AU34+'Res .95+% Res Furnace - Replace'!AU34+'Programmable Tstats - Tier 1'!AU34+'Programmable Tstats - Tier 2'!AU34+'Comm 95+% Furnace - NEW'!AU34+'Comm 95+% Furnace - Replace'!AU34+'Comm Custom'!AU34,0) -> 0 | AW34: =ROUND(+'Res .95+% Res Furnace - NEW'!AW34+'Res .95+% Res Furnace - Replace'!AW34+'Programmable Tstats - Tier 1'!AW34+'Programmable Tstats - Tier 2'!AW34+'Comm 95+% Furnace - NEW'!AW34+'Comm 95+% Furnace - Replace'!AW34+'Comm Custom'!AW34,0) -> 0 | AZ34: 0 | BB34: =ROUND(+'Res .95+% Res Furnace - NEW'!BB34+'Res .95+% Res Furnace - Replace'!BB34+'Programmable Tstats - Tier 1'!BB34+'Programmable Tstats - Tier 2'!BB34+'Comm 95+% Furnace - NEW'!BB34+'Comm 95+% Furnace - Replace'!BB34+'Comm Custom'!BB34,0) -> 0 | BC34: =ROUND(+'Res .95+% Res Furnace - NEW'!BC34+'Res .95+% Res Furnace - Replace'!BC34+'Programmable Tstats - Tier 1'!BC34+'Programmable Tstats - Tier 2'!BC34+'Comm 95+% Furnace - NEW'!BC34+'Comm 95+% Furnace - Replace'!BC34+'Comm Custom'!BC34,0) -> 0 | BD34: 0 | BE34: 0 | BH34: 2043 | BI34: =ROUND(+'Res .95+% Res Furnace - NEW'!BI34+'Res .95+% Res Furnace - Replace'!BI34+'Programmable Tstats - Tier 1'!BI34+'Programmable Tstats - Tier 2'!BI34+'Comm 95+% Furnace - NEW'!BI34+'Comm 95+% Furnace - Replace'!BI34+'Comm Custom'!BI34,0) -> 0 | BJ34: =ROUND(+'Res .95+% Res Furnace - NEW'!BJ34+'Res .95+% Res Furnace - Replace'!BJ34+'Programmable Tstats - Tier 1'!BJ34+'Programmable Tstats - Tier 2'!BJ34+'Comm 95+% Furnace - NEW'!BJ34+'Comm 95+% Furnace - Replace'!BJ34+'Comm Custom'!BJ34,0) -> 0 | BL34: =ROUND(+'Res .95+% Res Furnace - NEW'!BL34+'Res .95+% Res Furnace - Replace'!BL34+'Programmable Tstats - Tier 1'!BL34+'Programmable Tstats - Tier 2'!BL34+'Comm 95+% Furnace - NEW'!BL34+'Comm 95+% Furnace - Replace'!BL34+'Comm Custom'!BL34,0) -> 0 | BN34: =ROUND(+'Res .95+% Res Furnace - NEW'!BN34+'Res .95+% Res Furnace - Replace'!BN34+'Programmable Tstats - Tier 1'!BN34+'Programmable Tstats - Tier 2'!BN34+'Comm 95+% Furnace - NEW'!BN34+'Comm 95+% Furnace - Replace'!BN34+'Comm Custom'!BN34,0) -> 0 | BP34: 0 | BR34: =ROUND(+'Res .95+% Res Furnace - NEW'!BR34+'Res .95+% Res Furnace - Replace'!BR34+'Programmable Tstats - Tier 1'!BR34+'Programmable Tstats - Tier 2'!BR34+'Comm 95+% Furnace - NEW'!BR34+'Comm 95+% Furnace - Replace'!BR34+'Comm Custom'!BR34,0) -> 0 | BT34: 0 | BW34: 2043 | BX34: 0 | BY34: 0 | BZ34: 0 | CA34: 0 | CC34: 0 | CD34: 0 | CE34: 0 | CG34: 0
J35: 21 | L35: 2044 | M35: =ROUND(+'Res .95+% Res Furnace - NEW'!M35+'Res .95+% Res Furnace - Replace'!M35+'Programmable Tstats - Tier 1'!M35+'Programmable Tstats - Tier 2'!M35+'Comm 95+% Furnace - NEW'!M35+'Comm 95+% Furnace - Replace'!M35+'Comm Custom'!M35,0) -> 0 | O35: =ROUND(+'Res .95+% Res Furnace - NEW'!O35+'Res .95+% Res Furnace - Replace'!O35+'Programmable Tstats - Tier 1'!O35+'Programmable Tstats - Tier 2'!O35+'Comm 95+% Furnace - NEW'!O35+'Comm 95+% Furnace - Replace'!O35+'Comm Custom'!O35,0) -> 0 | Q35: =ROUND(+'Res .95+% Res Furnace - NEW'!Q35+'Res .95+% Res Furnace - Replace'!Q35+'Programmable Tstats - Tier 1'!Q35+'Programmable Tstats - Tier 2'!Q35+'Comm 95+% Furnace - NEW'!Q35+'Comm 95+% Furnace - Replace'!Q35+'Comm Custom'!Q35,0) -> 0 | R35: =ROUND(+'Res .95+% Res Furnace - NEW'!R35+'Res .95+% Res Furnace - Replace'!R35+'Programmable Tstats - Tier 1'!R35+'Programmable Tstats - Tier 2'!R35+'Comm 95+% Furnace - NEW'!R35+'Comm 95+% Furnace - Replace'!R35+'Comm Custom'!R35,0) -> 0 | S35: =ROUND(+'Res .95+% Res Furnace - NEW'!S35+'Res .95+% Res Furnace - Replace'!S35+'Programmable Tstats - Tier 1'!S35+'Programmable Tstats - Tier 2'!S35+'Comm 95+% Furnace - NEW'!S35+'Comm 95+% Furnace - Replace'!S35+'Comm Custom'!S35,0) -> 0 | U35: =ROUND(+'Res .95+% Res Furnace - NEW'!U35+'Res .95+% Res Furnace - Replace'!U35+'Programmable Tstats - Tier 1'!U35+'Programmable Tstats - Tier 2'!U35+'Comm 95+% Furnace - NEW'!U35+'Comm 95+% Furnace - Replace'!U35+'Comm Custom'!U35,0) -> 0 | V35: =ROUND(+'Res .95+% Res Furnace - NEW'!V35+'Res .95+% Res Furnace - Replace'!V35+'Programmable Tstats - Tier 1'!V35+'Programmable Tstats - Tier 2'!V35+'Comm 95+% Furnace - NEW'!V35+'Comm 95+% Furnace - Replace'!V35+'Comm Custom'!V35,0) -> 0 | X35: =ROUND(+'Res .95+% Res Furnace - NEW'!X35+'Res .95+% Res Furnace - Replace'!X35+'Programmable Tstats - Tier 1'!X35+'Programmable Tstats - Tier 2'!X35+'Comm 95+% Furnace - NEW'!X35+'Comm 95+% Furnace - Replace'!X35+'Comm Custom'!X35,0) -> 0 | Y35: =ROUND(+'Res .95+% Res Furnace - NEW'!Y35+'Res .95+% Res Furnace - Replace'!Y35+'Programmable Tstats - Tier 1'!Y35+'Programmable Tstats - Tier 2'!Y35+'Comm 95+% Furnace - NEW'!Y35+'Comm 95+% Furnace - Replace'!Y35+'Comm Custom'!Y35,0) -> 0 | Z35: =ROUND(+'Res .95+% Res Furnace - NEW'!Z35+'Res .95+% Res Furnace - Replace'!Z35+'Programmable Tstats - Tier 1'!Z35+'Programmable Tstats - Tier 2'!Z35+'Comm 95+% Furnace - NEW'!Z35+'Comm 95+% Furnace - Replace'!Z35+'Comm Custom'!Z35,0) -> 0 | AA35: =ROUND(+'Res .95+% Res Furnace - NEW'!AA35+'Res .95+% Res Furnace - Replace'!AA35+'Programmable Tstats - Tier 1'!AA35+'Programmable Tstats - Tier 2'!AA35+'Comm 95+% Furnace - NEW'!AA35+'Comm 95+% Furnace - Replace'!AA35+'Comm Custom'!AA35,0) -> 0 | AB35: =ROUND(+'Res .95+% Res Furnace - NEW'!AB35+'Res .95+% Res Furnace - Replace'!AB35+'Programmable Tstats - Tier 1'!AB35+'Programmable Tstats - Tier 2'!AB35+'Comm 95+% Furnace - NEW'!AB35+'Comm 95+% Furnace - Replace'!AB35+'Comm Custom'!AB35,0) -> 0 | AE35: 2044 | AF35: =+R35 -> 0 | AG35: =+U35 -> 0 | AH35: =+AG35+AF35 -> 0 | AJ35: =ROUND(Y35,0) -> 0 | AK35: =ROUND(Z35,0) -> 0 | AL35: =SUM(AJ35:AK35) -> 0 | AN35: =+AH35-AL35 -> 0 | AQ35: 2044 | AR35: =AF35 -> 0 | AS35: =+AG35 -> 0 | AU35: =ROUND(+'Res .95+% Res Furnace - NEW'!AU35+'Res .95+% Res Furnace - Replace'!AU35+'Programmable Tstats - Tier 1'!AU35+'Programmable Tstats - Tier 2'!AU35+'Comm 95+% Furnace - NEW'!AU35+'Comm 95+% Furnace - Replace'!AU35+'Comm Custom'!AU35,0) -> 0 | AW35: =ROUND(+'Res .95+% Res Furnace - NEW'!AW35+'Res .95+% Res Furnace - Replace'!AW35+'Programmable Tstats - Tier 1'!AW35+'Programmable Tstats - Tier 2'!AW35+'Comm 95+% Furnace - NEW'!AW35+'Comm 95+% Furnace - Replace'!AW35+'Comm Custom'!AW35,0) -> 0 | AZ35: =ROUND(AR35+AS35+AU35+AW35+AY35,0) -> 0 | BB35: =ROUND(+'Res .95+% Res Furnace - NEW'!BB35+'Res .95+% Res Furnace - Replace'!BB35+'Programmable Tstats - Tier 1'!BB35+'Programmable Tstats - Tier 2'!BB35+'Comm 95+% Furnace - NEW'!BB35+'Comm 95+% Furnace - Replace'!BB35+'Comm Custom'!BB35,0) -> 0 | BC35: =ROUND(+'Res .95+% Res Furnace - NEW'!BC35+'Res .95+% Res Furnace - Replace'!BC35+'Programmable Tstats - Tier 1'!BC35+'Programmable Tstats - Tier 2'!BC35+'Comm 95+% Furnace - NEW'!BC35+'Comm 95+% Furnace - Replace'!BC35+'Comm Custom'!BC35,0) -> 0 | BD35: =BB35+BC35 -> 0 | BE35: =AZ35-BD35 -> 0 | BH35: 2044 | BI35: =ROUND(+'Res .95+% Res Furnace - NEW'!BI35+'Res .95+% Res Furnace - Replace'!BI35+'Programmable Tstats - Tier 1'!BI35+'Programmable Tstats - Tier 2'!BI35+'Comm 95+% Furnace - NEW'!BI35+'Comm 95+% Furnace - Replace'!BI35+'Comm Custom'!BI35,0) -> 0 | BJ35: =ROUND(+'Res .95+% Res Furnace - NEW'!BJ35+'Res .95+% Res Furnace - Replace'!BJ35+'Programmable Tstats - Tier 1'!BJ35+'Programmable Tstats - Tier 2'!BJ35+'Comm 95+% Furnace - NEW'!BJ35+'Comm 95+% Furnace - Replace'!BJ35+'Comm Custom'!BJ35,0) -> 0 | BL35: =ROUND(+'Res .95+% Res Furnace - NEW'!BL35+'Res .95+% Res Furnace - Replace'!BL35+'Programmable Tstats - Tier 1'!BL35+'Programmable Tstats - Tier 2'!BL35+'Comm 95+% Furnace - NEW'!BL35+'Comm 95+% Furnace - Replace'!BL35+'Comm Custom'!BL35,0) -> 0 | BN35: =ROUND(+'Res .95+% Res Furnace - NEW'!BN35+'Res .95+% Res Furnace - Replace'!BN35+'Programmable Tstats - Tier 1'!BN35+'Programmable Tstats - Tier 2'!BN35+'Comm 95+% Furnace - NEW'!BN35+'Comm 95+% Furnace - Replace'!BN35+'Comm Custom'!BN35,0) -> 0 | BP35: =BI35+BL35+BN35+BO35 -> 0 | BR35: =ROUND(+'Res .95+% Res Furnace - NEW'!BR35+'Res .95+% Res Furnace - Replace'!BR35+'Programmable Tstats - Tier 1'!BR35+'Programmable Tstats - Tier 2'!BR35+'Comm 95+% Furnace - NEW'!BR35+'Comm 95+% Furnace - Replace'!BR35+'Comm Custom'!BR35,0) -> 0 | BT35: =BP35-BR35 -> 0 | BW35: 2044 | BX35: 0 | BY35: =U35 -> 0 | BZ35: =AU35 -> 0 | CA35: =SUM(BX35:BZ35) -> 0 | CC35: =BB35 -> 0 | CD35: =BC35 -> 0 | CE35: =SUM(CC35:CD35) -> 0 | CG35: =CA35-CE35 -> 0
A36: 10) Non Gas Fuel Environmental Damage Factor = | E36: 26) Distribution Delivery Charge | J36: 22 | L36: 2045 | M36: =ROUND(+'Res .95+% Res Furnace - NEW'!M36+'Res .95+% Res Furnace - Replace'!M36+'Programmable Tstats - Tier 1'!M36+'Programmable Tstats - Tier 2'!M36+'Comm 95+% Furnace - NEW'!M36+'Comm 95+% Furnace - Replace'!M36+'Comm Custom'!M36,0) -> 0 | O36: =ROUND(+'Res .95+% Res Furnace - NEW'!O36+'Res .95+% Res Furnace - Replace'!O36+'Programmable Tstats - Tier 1'!O36+'Programmable Tstats - Tier 2'!O36+'Comm 95+% Furnace - NEW'!O36+'Comm 95+% Furnace - Replace'!O36+'Comm Custom'!O36,0) -> 0 | Q36: =ROUND(+'Res .95+% Res Furnace - NEW'!Q36+'Res .95+% Res Furnace - Replace'!Q36+'Programmable Tstats - Tier 1'!Q36+'Programmable Tstats - Tier 2'!Q36+'Comm 95+% Furnace - NEW'!Q36+'Comm 95+% Furnace - Replace'!Q36+'Comm Custom'!Q36,0) -> 0 | R36: =ROUND(+'Res .95+% Res Furnace - NEW'!R36+'Res .95+% Res Furnace - Replace'!R36+'Programmable Tstats - Tier 1'!R36+'Programmable Tstats - Tier 2'!R36+'Comm 95+% Furnace - NEW'!R36+'Comm 95+% Furnace - Replace'!R36+'Comm Custom'!R36,0) -> 0 | S36: =ROUND(+'Res .95+% Res Furnace - NEW'!S36+'Res .95+% Res Furnace - Replace'!S36+'Programmable Tstats - Tier 1'!S36+'Programmable Tstats - Tier 2'!S36+'Comm 95+% Furnace - NEW'!S36+'Comm 95+% Furnace - Replace'!S36+'Comm Custom'!S36,0) -> 0 | U36: =ROUND(+'Res .95+% Res Furnace - NEW'!U36+'Res .95+% Res Furnace - Replace'!U36+'Programmable Tstats - Tier 1'!U36+'Programmable Tstats - Tier 2'!U36+'Comm 95+% Furnace - NEW'!U36+'Comm 95+% Furnace - Replace'!U36+'Comm Custom'!U36,0) -> 0 | V36: =ROUND(+'Res .95+% Res Furnace - NEW'!V36+'Res .95+% Res Furnace - Replace'!V36+'Programmable Tstats - Tier 1'!V36+'Programmable Tstats - Tier 2'!V36+'Comm 95+% Furnace - NEW'!V36+'Comm 95+% Furnace - Replace'!V36+'Comm Custom'!V36,0) -> 0 | X36: =ROUND(+'Res .95+% Res Furnace - NEW'!X36+'Res .95+% Res Furnace - Replace'!X36+'Programmable Tstats - Tier 1'!X36+'Programmable Tstats - Tier 2'!X36+'Comm 95+% Furnace - NEW'!X36+'Comm 95+% Furnace - Replace'!X36+'Comm Custom'!X36,0) -> 0 | Y36: =ROUND(+'Res .95+% Res Furnace - NEW'!Y36+'Res .95+% Res Furnace - Replace'!Y36+'Programmable Tstats - Tier 1'!Y36+'Programmable Tstats - Tier 2'!Y36+'Comm 95+% Furnace - NEW'!Y36+'Comm 95+% Furnace - Replace'!Y36+'Comm Custom'!Y36,0) -> 0 | Z36: =ROUND(+'Res .95+% Res Furnace - NEW'!Z36+'Res .95+% Res Furnace - Replace'!Z36+'Programmable Tstats - Tier 1'!Z36+'Programmable Tstats - Tier 2'!Z36+'Comm 95+% Furnace - NEW'!Z36+'Comm 95+% Furnace - Replace'!Z36+'Comm Custom'!Z36,0) -> 0 | AA36: =ROUND(+'Res .95+% Res Furnace - NEW'!AA36+'Res .95+% Res Furnace - Replace'!AA36+'Programmable Tstats - Tier 1'!AA36+'Programmable Tstats - Tier 2'!AA36+'Comm 95+% Furnace - NEW'!AA36+'Comm 95+% Furnace - Replace'!AA36+'Comm Custom'!AA36,0) -> 0 | AB36: =ROUND(+'Res .95+% Res Furnace - NEW'!AB36+'Res .95+% Res Furnace - Replace'!AB36+'Programmable Tstats - Tier 1'!AB36+'Programmable Tstats - Tier 2'!AB36+'Comm 95+% Furnace - NEW'!AB36+'Comm 95+% Furnace - Replace'!AB36+'Comm Custom'!AB36,0) -> 0 | AE36: 2045 | AF36: 0 | AG36: 0 | AH36: 0 | AJ36: 0 | AK36: 0 | AL36: 0 | AN36: 0 | AQ36: 2045 | AR36: 0 | AS36: 0 | AU36: =ROUND(+'Res .95+% Res Furnace - NEW'!AU36+'Res .95+% Res Furnace - Replace'!AU36+'Programmable Tstats - Tier 1'!AU36+'Programmable Tstats - Tier 2'!AU36+'Comm 95+% Furnace - NEW'!AU36+'Comm 95+% Furnace - Replace'!AU36+'Comm Custom'!AU36,0) -> 0 | AW36: =ROUND(+'Res .95+% Res Furnace - NEW'!AW36+'Res .95+% Res Furnace - Replace'!AW36+'Programmable Tstats - Tier 1'!AW36+'Programmable Tstats - Tier 2'!AW36+'Comm 95+% Furnace - NEW'!AW36+'Comm 95+% Furnace - Replace'!AW36+'Comm Custom'!AW36,0) -> 0 | AZ36: 0 | BB36: =ROUND(+'Res .95+% Res Furnace - NEW'!BB36+'Res .95+% Res Furnace - Replace'!BB36+'Programmable Tstats - Tier 1'!BB36+'Programmable Tstats - Tier 2'!BB36+'Comm 95+% Furnace - NEW'!BB36+'Comm 95+% Furnace - Replace'!BB36+'Comm Custom'!BB36,0) -> 0 | BC36: =ROUND(+'Res .95+% Res Furnace - NEW'!BC36+'Res .95+% Res Furnace - Replace'!BC36+'Programmable Tstats - Tier 1'!BC36+'Programmable Tstats - Tier 2'!BC36+'Comm 95+% Furnace - NEW'!BC36+'Comm 95+% Furnace - Replace'!BC36+'Comm Custom'!BC36,0) -> 0 | BD36: 0 | BE36: 0 | BH36: 2045 | BI36: =ROUND(+'Res .95+% Res Furnace - NEW'!BI36+'Res .95+% Res Furnace - Replace'!BI36+'Programmable Tstats - Tier 1'!BI36+'Programmable Tstats - Tier 2'!BI36+'Comm 95+% Furnace - NEW'!BI36+'Comm 95+% Furnace - Replace'!BI36+'Comm Custom'!BI36,0) -> 0 | BJ36: =ROUND(+'Res .95+% Res Furnace - NEW'!BJ36+'Res .95+% Res Furnace - Replace'!BJ36+'Programmable Tstats - Tier 1'!BJ36+'Programmable Tstats - Tier 2'!BJ36+'Comm 95+% Furnace - NEW'!BJ36+'Comm 95+% Furnace - Replace'!BJ36+'Comm Custom'!BJ36,0) -> 0 | BL36: =ROUND(+'Res .95+% Res Furnace - NEW'!BL36+'Res .95+% Res Furnace - Replace'!BL36+'Programmable Tstats - Tier 1'!BL36+'Programmable Tstats - Tier 2'!BL36+'Comm 95+% Furnace - NEW'!BL36+'Comm 95+% Furnace - Replace'!BL36+'Comm Custom'!BL36,0) -> 0 | BN36: =ROUND(+'Res .95+% Res Furnace - NEW'!BN36+'Res .95+% Res Furnace - Replace'!BN36+'Programmable Tstats - Tier 1'!BN36+'Programmable Tstats - Tier 2'!BN36+'Comm 95+% Furnace - NEW'!BN36+'Comm 95+% Furnace - Replace'!BN36+'Comm Custom'!BN36,0) -> 0 | BP36: 0 | BR36: =ROUND(+'Res .95+% Res Furnace - NEW'!BR36+'Res .95+% Res Furnace - Replace'!BR36+'Programmable Tstats - Tier 1'!BR36+'Programmable Tstats - Tier 2'!BR36+'Comm 95+% Furnace - NEW'!BR36+'Comm 95+% Furnace - Replace'!BR36+'Comm Custom'!BR36,0) -> 0 | BT36: 0 | BW36: 2045 | BX36: 0 | BY36: 0 | BZ36: 0 | CA36: 0 | CC36: 0 | CD36: 0 | CE36: 0 | CG36: 0
A37: Escalation Rate =
E38: 27) Effective Income Tax Rate = | K38: Total = | M38: =SUM(M14:M36) -> 117110 | V38: =SUM(V14:V36) -> 640410 | AA38: =SUM(AA14:AA36) -> 332229 | AB38: =SUM(AB14:AB36) -> 308181 | AD38: Total = | AH38: =SUM(AH14:AH36) -> 640410 | AL38: =SUM(AL14:AL36) -> 118847 | AN38: =SUM(AN14:AN36) -> 521563 | AP38: Total = | AZ38: =SUM(AZ14:AZ36) -> 1054402 | BD38: =SUM(BD14:BD36) -> 248974 | BE38: =SUM(BE14:BE36) -> 805428 | BG38: Total = | BJ38: =SUM(BJ14:BJ36) -> 117110 | BP38: =SUM(BP14:BP36) -> 1761827 | BR38: =SUM(BR14:BR36) -> 230391 | BT38: =SUM(BT14:BT36) -> 1531436 | BZ38: Total = | CA38: =SUM(CA14:CA36) -> 754948 | CE38: =SUM(CE14:CE36) -> 248974 | CG38: =SUM(CG14:CG36) -> 505974
A39: 11) Participant Discount Rate = | C39: =+'Gas Input Table Summary'!$D$26 -> 0.1032 | E39: (Federal & State Taxes) | T39: NPV = | V39: =ROUND(V14+NPV($C$41,V15:V36),0) -> 353141 | AA39: =ROUND(AA14+NPV($C$41,AA15:AA36),0) -> 235052 | AB39: =ROUND(AB14+NPV($C$41,AB15:AB36),0) -> 118090 | AG39: NPV = | AH39: =ROUND(AH14+NPV($C$41,AH15:AH36),0) -> 353141 | AL39: =ROUND(AL14+NPV($C$41,AL15:AL36),0) -> 118847 | AN39: =+AH39-AL39 -> 234294 | AW39: NPV = | AZ39: =ROUND(AZ14+NPV($C$43,AZ15:AZ36),0) -> 851182 | BD39: =ROUND(BD14+NPV($C$43,BD15:BD36),0) -> 248974 | BE39: =AZ39-BD39 -> 602208 | BN39: NPV = | BP39: =ROUND(BP14+NPV($C$39,BP15:BP36),0) -> 824262 | BR39: =ROUND(BR14+NPV($C$39,BR15:BR36),0) -> 230391 | BT39: =ROUND(BT14+NPV($C$39,BT15:BT36),0) -> 593871 | BZ39: NPV = | CA39: =ROUND(CA14+NPV($C$41,CA15:CA36),0) -> 413430 | CE39: =ROUND(CE14+NPV($C$41,CE15:CE36),0) -> 248974 | CG39: =ROUND(CG14+NPV($C$41,CG15:CG36),0) -> 164456
A41: 12) Utility Discount Rate = | C41: =+'Gas Input Table Summary'!$D$27 -> 0.07216 | E41: Test Results | F41: NPV | G41: B/C | K41: Total NPV = | N41: =AB39 -> 118090 | AD41: Total NPV = | AG41: =AN39 -> 234294 | AP41: Total NPV = | AS41: =BE39 -> 602208 | BG41: Total NPV = | BJ41: =BT39 -> 593871 | BV41: Total NPV = | BY41: =CG39 -> 164456
E42: Ratepayer Impact Measure Test | F42: =N41 -> 118090 | G42: =N42 -> 1.5 | K42: Benefit/Cost Ratio = | N42: =ROUND(V39/AA39,2) -> 1.5 | AD42: Benefit/Cost Ratio = | AG42: =ROUND(AH39/AL39,2) -> 2.97 | AP42: Benefit/Cost Ratio = | AS42: =ROUND(AZ39/BD39,2) -> 3.42 | BG42: Benefit/Cost Ratio = | BJ42: =ROUND(BP39/BR39,20) -> 3.577665794 | BV42: Benefit/Cost Ratio = | BY42: =ROUND(CA39/CE39,2) -> 1.66
A43: 13) Societal Discount Rate = | C43: =+'Gas Input Table Summary'!$D$28 -> 0.0231 | E43: Utility Cost Test | F43: =AG41 -> 234294 | G43: =AG42 -> 2.97
E44: Societal Test | F44: =AS41 -> 602208 | G44: =AS42 -> 3.42 | J44: Worksheet Calculations | BV44: Worksheet Calculations
A45: 14) General Input Data Year = | C45: =+'Gas Input Table Summary'!$D$29 -> 2023 | E45: Participant Test | F45: =BJ41 -> 593871 | G45: =BJ42 -> 3.577665794 | J45: (A) | K45: = Average Dk/Participant Saved (21) x Number of Participants (23) for Project Life (20) | T45: (I) | U45: = (G) x (H) | AD45: Worksheet Calculations | AP45: Worksheet Calculations | BG45: Worksheet Calculations | BV45: (A) | BW45: = Table 1 (F)
E46: Total Resource Cost Test | F46: =BY41 -> 164456 | G46: =BY42 -> 1.66 | J46: (B) | K46: = Commodity Cost (3) escalated | T46: (J) | U46: = (F) + (I) | AD46: (A) | AE46: = Table 1 (F) | AP46: (A) | AQ46: = Table 1 (F) | AW46: (H) | AZ46: = Table 2 (F) | BG46: (A) | BH46: = Table 1 (N) | BL46: (G) | BM46: = (A) + (D) + (F) | BV46: (B) | BW46: = Table 1 (I)
A47: 15) Project Analysis Year 1 = | C47: =+'Total Program Inputs'!C6 -> 2023 | J47: (C) | K47: = (A) x (B) | T47: (K) | U47: = Distribution Delivery Charge (26) escalated. | AD47: (B) | AE47: = Table 1 (I) | AP47: (G) | AQ47: = Table 1 (I) | AW47: (I) | AZ47: = Direct Part. Costs (17) x No. of Part. (23) - Table 1 (N) | BG47: (B) | BH47: = Table 1 (A) | BL47: (H) | BM47: = Direct Participant Costs (17) x Number of Participants (23) | BV47: (C) | BW47: = Table 3 (D)
J48: (D) | K48: = Variable O&M Cost (6), escalated | T48: (L) | U48: = (A) x (K) x (1-Inverse of Tax Rate (27) | AD48: (C) | AE48: = Table 1 (J) | AP48: (C) | AQ48: = Non-Gas Fuel Cost (7), adjusted for losses (8), escalated.. | AW48: (J) | AZ48: = (H) + (I) | BG48: (C) | BH48: = Retail Rate (1) escalated. | BL48: (I) | BM48: = (G) - (H) | BV48: (D) | BW48: = (A) + (B) + (C)
J49: (E) | K49: = (A) x (D) | T49: (M) | U49: = Admin & Operating Costs (16a) | AD49: (D) | AE49: = Table 1 (M) | AP49: (D) | AQ49: = (C) x [Avg. Non-Gas Fuel Units/Part.Saved (22) x No. of Part. (23) | AW49: (K) | AZ49: = (G) - (J) | BG49: (D) | BH49: =(B) x (C) | BV49: (E) | BW49: = Table 3 (H)
J50: (F) | K50: = (C) + (E) | T50: (N) | U50: = Incentive Costs (16b) | AD50: (E) | AE50: = Table 1 (N) | AP50: (E) | AQ50: = Gas Environmental Damage Factor (9), escalated | BG50: (E) | BH50: = Non-Gas Fuel Retail Rate (2), escalated. | BV50: (F) | BW50: = Table 3 (I)
J51: (G) | K51: = (A) x Peak Reduction Factor (5) | T51: (O) | U51: = (L) + (M) + (N) | AD51: (F) | AE51: = (D) + (E) | AP51: (F) | AQ51: = Table 1 (A) x (E) | BG51: (F) | BH51: = (E) x [Avg. Non-Gas Fuel Units/Part.Saved (22) x No. of Part. (23) | BV51: (G) | BW51: = (E) + (F)
J52: (H) | K52: = Demand Cost (4) escalated. | T52: (P) | U52: = (J) - (O) | AD52: (G) | AE52: = (C) - (F) | AP52: (G) | AQ52: = (A) + (B) + (D) + (F) | BV52: (H) | BW52: = (D) - (G)
AB59: =+V57/AA57 -> 

Sheet Res .95+% Res Furnace - NEW
A1: NATURAL GAS CONSERVATION PROGRAMS/DEMAND-SIDE MANAGEMENT | K1: Table 1 | AD1: Table 2 | AP1: Table 3 | BG1: Table 4 | BV1: Table 5
A2: BEN/COST ANALYSIS FOR GAS CONSERVATION | K2: Ratepayer Impact Measure Test | AD2: Utility Cost Test | AP2: Societal Test | BG2: Participant Test | BV2: Total Resource Cost Test
A4: Company: | B4: Montana-Dakota Utilities Co. | K4: Company: | M4: =B4 -> Montana-Dakota Utilities Co. | AD4: Company: | AF4: =B4 -> Montana-Dakota Utilities Co. | AP4: Company: | AR4: =AF4 -> Montana-Dakota Utilities Co. | BH4: Company: | BI4: =AR4 -> Montana-Dakota Utilities Co. | BW4: Company: | BX4: =BI4 -> Montana-Dakota Utilities Co.
A5: Project: | B5: Residential 95+% AFUE Furnace - New | K5: Project: | M5: =$B$5 -> Residential 95+% AFUE Furnace - New | AD5: Project: | AF5: =$B$5 -> Residential 95+% AFUE Furnace - New | AP5: Project: | AR5: =$B$5 -> Residential 95+% AFUE Furnace - New | BH5: Project: | BI5: =$B$5 -> Residential 95+% AFUE Furnace - New | BW5: Project: | BX5: =$B$5 -> Residential 95+% AFUE Furnace - New
A6: Program Years: | B6: ='Total Program'!$B$6 -> 2023
N7: Benefits | X7: Costs | AF7: Benefits | AJ7: Costs | AR7: Benefits | BB7: Costs | BI7: Benefits | BR7: Costs | BX7: Benefits | CC7: Costs
A8: Input Data | F8: =+'Total Program Inputs'!C6 -> 2023 | AB8: Annual | AN8: Annual | AT8: Non-Gas | BE8: Annual | BT8: Annual | CG8: Annual
M9: Total | N9: Gas | O9: Gas | P9: Variable | Q9: Variable | R9: Total | S9: Peak Dk | T9: Demand | U9: Total | W9: Distribution | Y9: Program | AA9: Total | AB9: Benefits | AF9: Total | AG9: Total | AH9: Annual | AJ9: Program | AL9: Utility | AN9: Benefits | AR9: Total | AS9: Total | AT9: Energy | AU9: Non-Gas | AV9: Environmental | AW9: Environmental | AZ9: Annual | BB9: Utility | BC9: Participants' | BD9: Annual | BE9: Benefits | BJ9: Total | BL9: Gas | BM9: Non-Gas | BN9: Non-Gas | BP9: Total | BR9: Direct | BT9: Benefits | BX9: Total | BY9: Total | BZ9: Non-Gas | CA9: Total | CC9: Utility | CD9: Participants' | CG9: Benefits
A10: 1) Retail Rate ($/Dk) = | C10: =+'Gas Input Table Summary'!$D$7 -> 6.902 | E10: 16) Utility Project Costs | M10: Energy | N10: Commodity | O10: Commodity | P10: O & M | Q10: O & M | R10: Energy | S10: Demand | T10: Savings | U10: Demand | V10: Total | W10: Delivery | X10: Lost | Y10: Admin | Z10: Incentive | AA10: Program | AB10: Less | AF10: Energy | AG10: Demand | AH10: Total | AJ10: Admin | AK10: Incentive | AL10: Program | AN10: Less | AR10: Energy | AS10: Demand | AT10: Savings | AU10: Energy | AV10: Damage | AW10: Damage | AZ10: Total | BB10: Program | BC10: Costs Net | BD10: Total | BE10: Less | BI10: Incentives | BJ10: Energy | BK10: Retail | BL10: Bill | BM10: Fuel | BN10: Energy | BP10: Annual | BR10: Participant | BT10: Less | BX10: Energy | BY10: Demand | BZ10: Energy | CA10: Annual | CC10: Program | CD10: Costs Net | CE10: Total | CG10: Less
A11: Escalation Rate = | C11: =+'Gas Input Table Summary'!$D$8 -> 0.03 | E11: 16a) Administrative & Operating Costs = | F11: =+'Total Program Inputs'!M11 -> 2725 | J11: t | M11: Reduction | N11: Cost/Dk | O11: Savings | P11: Cost/Dk | Q11: Savings | R11: Savings | S11: Reduction | T11: Per Unit | U11: Savings | V11: Savings | W11: Charge | X11: Margin | Y11: Costs | Z11: Costs | AA11: Costs | AB11: Costs | AF11: Savings | AG11: Savings | AH11: Savings | AJ11: Costs | AK11: Costs | AL11: Costs | AN11: Costs | AR11: Savings | AS11: Savings | AT11: ($/Part.) | AU11: Savings | AV11: Savings/Dk | AW11: Savings | AZ11: Savings | BB11: Costs | BC11: of Rebate | BD11: Costs | BE11: Costs | BI11: Received | BJ11: Reduction | BK11: Rate | BL11: Savings | BM11: Retail Rate | BN11: Savings | BP11: Benefits | BR11: Costs | BT11: Costs | BX11: Savings | BY11: Savings | BZ11: Savings | CA11: Benefits | CC11: Costs | CD11: of Rebate | CE11: Costs | CG11: Costs
E12: 16b) Incentive Costs = | F12: =+'Total Program Inputs'!I11 -> 14700 | L12: Year | M12: (A) | N12: (B) | O12: (C) | P12: (D) | Q12: (E) | R12: (F) | S12: (G) | T12: (H) | U12: (I) | V12: (J) | W12: (K) | X12: (L) | Y12: (M) | Z12: (N) | AA12: (O) | AB12: (P) | AE12: Year | AF12: (A) | AG12: (B) | AH12: (C) | AJ12: (D) | AK12: (E) | AL12: (F) | AN12: (G) | AQ12: Year | AR12: (A) | AS12: (B) | AT12: (C) | AU12: (D) | AV12: (E) | AW12: (F) | AZ12: (G) | BB12: (H) | BC12: (I) | BD12: (J) | BE12: (K) | BH12: Year | BI12: (A) | BJ12: (B) | BK12: (C) | BL12: (D) | BM12: (E) | BN12: (F) | BP12: (G) | BR12: (H) | BT12: (I) | BW12: Year | BX12: (A) | BY12: (B) | BZ12: (C) | CA12: (D) | CC12: (E) | CD12: (F) | CE12: (G) | CG12: (H)
A13: 2) Non-Gas Fuel Retail Rate ($/Fuel Unit) = | C13: =+'Gas Input Table Summary'!$D$9 -> 0.13068 | E13: 16c) Total Utility Project Costs = | F13: =SUM(F11:F12) -> 17425
A14: Escalation Rate = | C14: =+'Gas Input Table Summary'!$D$10 -> 0.03 | J14: =$C$47-$C$45 -> 0 | L14: =$C$47 -> 2023 | M14: =ROUND(IF($C$47+$F$23>L14,F25*F30,0),0) -> 506 | N14: =ROUND($C$17*(1+$C$18)^J14,3) -> 2.789 | O14: =ROUND(M14*N14,0) -> 1411 | P14: =ROUND($C$25*(1+$C$26)^J14,3) -> 0 | Q14: =ROUND(M14*P14,0) -> 0 | R14: =O14+Q14 -> 1411 | S14: =ROUND(M14*$C$23,1) -> 5.1 | T14: =ROUND($C$20*(1+$C$21)^J14,0) -> 163 | U14: =ROUND(S14*T14,0) -> 831 | V14: =ROUND(+U14+R14,0) -> 2242 | W14: =ROUND($H$36*(1+$C$11)^J14,3) -> 1.836 | X14: =ROUND((1-$H$38)*(W14*M14),0) -> 734 | Y14: =ROUND($F$11,0) -> 2725 | Z14: =ROUND($F$12,0) -> 14700 | AA14: =SUM(X14:Z14) -> 18159 | AB14: =V14-AA14 -> -15917 | AE14: =$C$47 -> 2023 | AF14: =+R14 -> 1411 | AG14: =+U14 -> 831 | AH14: =+AG14+AF14 -> 2242 | AJ14: =ROUND(Y14,0) -> 2725 | AK14: =ROUND(Z14,0) -> 14700 | AL14: =SUM(AJ14:AK14) -> 17425 | AN14: =+AH14-AL14 -> -15183 | AQ14: =$C$47 -> 2023 | AR14: =AF14 -> 1411 | AS14: =+AG14 -> 831 | AT14: =ROUND(($C$28/(1-$C$31))*(1+$C$29)^J14,3) -> 0.025 | AU14: =ROUND(IF($C$47+$F$23>$AQ14,$F$30*$F$27,0)*AT14,0) -> 0 | AV14: =ROUND($C$33*(1+$C$34)^J14,3) -> 2.07 | AW14: =ROUND(AV14*M14,0) -> 1047 | AZ14: =ROUND(AR14+AS14+AU14+AW14+AY14,0) -> 3289 | BB14: =ROUND($F$13,0) -> 17425 | BC14: =ROUND((F15*F30)-Z14,0) -> 1470 | BD14: =BB14+BC14 -> 18895 | BE14: =AZ14-BD14 -> -15606 | BH14: =$C$47 -> 2023 | BI14: =+F12 -> 14700 | BJ14: =+M14 -> 506 | BK14: =ROUND($C$10*(1+$C$11)^J14,3) -> 6.902 | BL14: =ROUND(BJ14*BK14,0) -> 3492 | BM14: =ROUND($C$13*(1+$C$14)^J14,3) -> 0.131 | BN14: =ROUND(IF($C$47+$F$23>$BH14,$F$30*$F$27,0)*BM14,0) -> 0 | BP14: =BI14+BL14+BN14+BO14 -> 18192 | BR14: =ROUND(F15*F30,0) -> 16170 | BT14: =BP14-BR14 -> 2022 | BW14: =$C$47 -> 2023 | BX14: =$R14 -> 1411 | BY14: =U14 -> 831 | BZ14: =AU14 -> 0 | CA14: =SUM(BX14:BZ14) -> 2242 | CC14: =BB14 -> 17425 | CD14: =BC14 -> 1470 | CE14: =SUM(CC14:CD14) -> 18895 | CG14: =CA14-CE14 -> -16653
A15: Non-Gas Fuel Units (ie. kWh,Gallons, etc) = | C15: =+'Gas Input Table Summary'!$D$11 -> Kwh | E15: 17) Direct Participant Costs ($/Part.) = | F15: =ROUND('Database Inputs'!K10,0) -> 165 | J15: =J14+1 -> 1 | L15: =L14+1 -> 2024 | M15: =ROUND(IF($C$47+$F$23>L15,$F$25*$F$30,0)+IF($C$48+$G$23>L15,$G$25*$G$30,0),0) -> 506 | N15: =ROUND($C$17*(1+$C$18)^J15,3) -> 2.873 | O15: =ROUND(M15*N15,0) -> 1454 | P15: 0 | Q15: =ROUND(M15*P15,0) -> 0 | R15: =O15+Q15 -> 1454 | S15: =ROUND(M15*$C$23,1) -> 5.1 | T15: =ROUND($C$20*(1+$C$21)^J15,0) -> 164 | U15: =ROUND(S15*T15,0) -> 836 | V15: =ROUND(+U15+R15,0) -> 2290 | W15: =ROUND($H$36*(1+$C$11)^J15,3) -> 1.891 | X15: =ROUND((1-$H$38)*(W15*M15),0) -> 756 | Y15: =ROUND($G$11,0) -> 0 | Z15: =ROUND($G$12,0) -> 0 | AA15: =SUM(X15:Z15) -> 756 | AB15: =V15-AA15 -> 1534 | AE15: =AE14+1 -> 2024 | AF15: =+R15 -> 1454 | AG15: =+U15 -> 836 | AH15: =+AG15+AF15 -> 2290 | AJ15: =ROUND(Y15,0) -> 0 | AK15: 0 | AL15: =SUM(AJ15:AK15) -> 0 | AN15: =+AH15-AL15 -> 2290 | AQ15: =AQ14+1 -> 2024 | AR15: 1454 | AS15: 836 | AT15: =ROUND(($C$28/(1-$C$31))*(1+$C$29)^J15,3) -> 0.025 | AU15: =ROUND((IF($C$47+$F$23>$AQ15,$F$27*$F$30,0)+IF($C$48+$G$23>AQ15,$G$27*$G$30,0))*AT15,0) -> 0 | AV15: =ROUND($C$33*(1+$C$34)^J15,3) -> 2.118 | AW15: =ROUND(AV15*M15,0) -> 1072 | AZ15: =ROUND(AR15+AS15+AU15+AW15+AY15,0) -> 3362 | BB15: =ROUND($G$13,0) -> 0 | BC15: =ROUND(($G$15*$G$30)-$Z$15,0) -> 0 | BD15: =BB15+BC15 -> 0 | BE15: =AZ15-BD15 -> 3362 | BH15: =BH14+1 -> 2024 | BI15: =+G12 -> 0 | BJ15: 506 | BK15: =ROUND($C$10*(1+$C$11)^J15,3) -> 7.109 | BL15: =ROUND(BJ15*BK15,0) -> 3597 | BM15: =ROUND($C$13*(1+$C$14)^J15,3) -> 0.135 | BN15: =ROUND((IF($C$47+$F$23>BH15,$F$27*$F$30,0)+IF($C$48+$G$23>BH15,$G$27*$G$30,0))*BM15,0) -> 0 | BP15: =BI15+BL15+BN15+BO15 -> 3597 | BR15: =ROUND($G$15*$G$30,0) -> 0 | BT15: =BP15-BR15 -> 3597 | BW15: =BW14+1 -> 2024 | BX15: 1454 | BY15: =U15 -> 836 | BZ15: =AU15 -> 0 | CA15: =SUM(BX15:BZ15) -> 2290 | CC15: =BB15 -> 0 | CD15: 0 | CE15: =SUM(CC15:CD15) -> 0 | CG15: =CA15-CE15 -> 2290
J16: 2 | L16: 2025 | M16: =ROUND(IF($C$47+$F$23>L16,$F$25*$F$30,0)+IF($C$48+$G$23>L16,$G$25*$G$30,0)+IF($C$49+$H$23>L16,$H$25*$H$30,0),0) -> 506 | N16: =ROUND($C$17*(1+$C$18)^J16,3) -> 2.959 | O16: =ROUND(M16*N16,0) -> 1497 | P16: 0 | Q16: 0 | R16: =O16+Q16 -> 1497 | S16: =ROUND(M16*$C$23,1) -> 5.1 | T16: =ROUND($C$20*(1+$C$21)^J16,0) -> 166 | U16: =ROUND(S16*T16,0) -> 847 | V16: 2344 | W16: 1.948 | X16: =ROUND((1-$H$38)*(W16*M16),0) -> 779 | Y16: =ROUND($H$11,0) -> 0 | Z16: =ROUND($H$12,0) -> 0 | AA16: 779 | AB16: 1565 | AE16: 2025 | AF16: =+R16 -> 1497 | AG16: =+U16 -> 847 | AH16: =+AG16+AF16 -> 2344 | AJ16: 0 | AK16: 0 | AL16: =SUM(AJ16:AK16) -> 0 | AN16: 2344 | AQ16: 2025 | AR16: 1497 | AS16: 847 | AT16: 0.026 | AU16: =ROUND((IF($C$47+$F$23>$AQ16,$F$27*$F$30,0)+IF($C$48+$G$23>AQ16,$G$27*$G$30,0)+IF($C$49+$H$23>AQ16,$H$27*$H$30,0))*AT16,0) -> 0 | AV16: 2.166 | AW16: 1096 | AZ16: 3440 | BB16: =ROUND($H$13,0) -> 0 | BC16: =ROUND(($H$15*$H$30)-$Z$16,0) -> 0 | BD16: 0 | BE16: =AZ16-BD16 -> 3440 | BH16: 2025 | BI16: =ROUND(H12,0) -> 0 | BJ16: 506 | BK16: 7.322 | BL16: =ROUND(BJ16*BK16,0) -> 3705 | BM16: 0.139 | BN16: =ROUND((IF($C$47+$F$23>BH16,$F$27*$F$30,0)+IF($C$49+$H$23>BH16,$H$27*$H$30,0)+IF($C$48+$G$23>BH16,$G$27*$G$30,0))*BM16,0) -> 0 | BP16: =BI16+BL16+BN16+BO16 -> 3705 | BR16: =ROUND($H$15*$H$30,0) -> 0 | BT16: 3705 | BW16: 2025 | BX16: 1497 | BY16: 847 | BZ16: 0 | CA16: 2344 | CC16: 0 | CD16: 0 | CE16: 0 | CG16: =CA16-CE16 -> 2344
A17: 3) Commodity Cost ($/Dk) = | C17: =+'Gas Input Table Summary'!$D$12 -> 2.789 | E17: 18) Participant Non-Energy Costs (Annual $/Part.) = | F17: =+'Gas Input Table Summary'!$D$35 -> 0 | J17: 3 | L17: 2026 | M17: =ROUND(IF($C$47+$F$23>L17,$F$25*$F$30,0)+IF($C$48+$G$23>L17,$G$25*$G$30,0)+IF($C$49+$H$23>L17,$H$25*$H$30,0),0) -> 506 | N17: 3.048 | O17: 1542 | P17: 0 | Q17: 0 | R17: =O17+Q17 -> 1542 | S17: 5.1 | T17: 168 | U17: 857 | V17: 2399 | W17: =ROUND($H$36*(1+$C$11)^J17,3) -> 2.006 | X17: =ROUND((1-$H$38)*(W17*M17),0) -> 802 | Y17: 0 | Z17: 0 | AA17: 802 | AB17: 1597 | AE17: 2026 | AF17: 1542 | AG17: 857 | AH17: 2399 | AJ17: 0 | AK17: 0 | AL17: 0 | AN17: 2399 | AQ17: 2026 | AR17: 1542 | AS17: 857 | AT17: 0.027 | AU17: =ROUND((IF($C$47+$F$23>$AQ17,$F$27*$F$30,0)+IF($C$48+$G$23>AQ17,$G$27*$G$30,0)+IF($C$49+$H$23>AQ17,$H$27*$H$30,0))*AT17,0) -> 0 | AV17: 2.216 | AW17: 1121 | AZ17: 3520 | BB17: 0 | BC17: 0 | BD17: 0 | BE17: 3520 | BH17: 2026 | BI17: 0 | BJ17: 506 | BK17: 7.542 | BL17: 3816 | BM17: 0.143 | BN17: =ROUND((IF($C$47+$F$23>BH17,$F$27*$F$30,0)+IF($C$49+$H$23>BH17,$H$27*$H$30,0)+IF($C$48+$G$23>BH17,$G$27*$G$30,0))*BM17,0) -> 0 | BP17: 3816 | BR17: =+BC17 -> 0 | BT17: 3816 | BW17: 2026 | BX17: 1542 | BY17: 857 | BZ17: 0 | CA17: 2399 | CC17: 0 | CD17: 0 | CE17: 0 | CG17: 2399
A18: Escalation Rate = | C18: =+'Gas Input Table Summary'!$D$13 -> 0.03 | E18: Escalation Rate = | F18: =+'Gas Input Table Summary'!$D$38 -> 0 | J18: 4 | L18: 2027 | M18: =ROUND(IF($C$47+$F$23>L18,$F$25*$F$30,0)+IF($C$48+$G$23>L18,$G$25*$G$30,0)+IF($C$49+$H$23>L18,$H$25*$H$30,0),0) -> 506 | N18: 3.139 | O18: 1588 | P18: 0 | Q18: 0 | R18: 1588 | S18: 5.1 | T18: 169 | U18: 862 | V18: =ROUND(+U18+R18,0) -> 2450 | W18: 2.066 | X18: 826 | Y18: 0 | Z18: 0 | AA18: 826 | AB18: 1624 | AE18: 2027 | AF18: 1588 | AG18: 862 | AH18: 2450 | AJ18: 0 | AK18: 0 | AL18: 0 | AN18: 2450 | AQ18: 2027 | AR18: 1588 | AS18: 862 | AT18: 0.028 | AU18: 0 | AV18: 2.267 | AW18: 1147 | AZ18: 3597 | BB18: 0 | BC18: 0 | BD18: 0 | BE18: 3597 | BH18: 2027 | BI18: 0 | BJ18: 506 | BK18: 7.768 | BL18: 3931 | BM18: 0.147 | BN18: 0 | BP18: 3931 | BR18: 0 | BT18: 3931 | BW18: 2027 | BX18: 1588 | BY18: 862 | BZ18: 0 | CA18: 2450 | CC18: 0 | CD18: 0 | CE18: 0 | CG18: 2450
J19: 5 | L19: 2028 | M19: 506 | N19: 3.233 | O19: 1636 | P19: 0 | Q19: 0 | R19: 1636 | S19: 5.1 | T19: 171 | U19: 872 | V19: 2508 | W19: 2.128 | X19: 851 | Y19: 0 | Z19: 0 | AA19: 851 | AB19: 1657 | AE19: 2028 | AF19: 1636 | AG19: 872 | AH19: 2508 | AJ19: 0 | AK19: 0 | AL19: 0 | AN19: 2508 | AQ19: 2028 | AR19: 1636 | AS19: 872 | AT19: 0.029 | AU19: 0 | AV19: 2.319 | AW19: 1173 | AZ19: 3681 | BB19: 0 | BC19: 0 | BD19: 0 | BE19: 3681 | BH19: 2028 | BI19: 0 | BJ19: 506 | BK19: 8.001 | BL19: 4049 | BM19: 0.151 | BN19: 0 | BP19: 4049 | BR19: 0 | BT19: 4049 | BW19: 2028 | BX19: 1636 | BY19: 872 | BZ19: 0 | CA19: 2508 | CC19: 0 | CD19: 0 | CE19: 0 | CG19: 2508
A20: 4) Demand Cost ($/Unit/Yr) = | C20: =+'Gas Input Table Summary'!$D$14 -> 162.85 | E20: 19) Participant Non-Energy Savings (Annual $/Part) = | F20: =+'Gas Input Table Summary'!$D$41 -> 0 | J20: 6 | L20: 2029 | M20: 506 | N20: 3.33 | O20: 1685 | P20: 0 | Q20: 0 | R20: 1685 | S20: 5.1 | T20: 173 | U20: 882 | V20: 2567 | W20: =ROUND($H$36*(1+$C$11)^J20,3) -> 2.192 | X20: 876 | Y20: 0 | Z20: 0 | AA20: 876 | AB20: 1691 | AE20: 2029 | AF20: 1685 | AG20: 882 | AH20: 2567 | AJ20: 0 | AK20: 0 | AL20: 0 | AN20: 2567 | AQ20: 2029 | AR20: 1685 | AS20: 882 | AT20: 0.029 | AU20: =ROUND((IF($C$47+$F$23>$AQ20,$F$27*$F$30,0)+IF($C$48+$G$23>AQ20,$G$27*$G$30,0)+IF($C$49+$H$23>AQ20,$H$27*$H$30,0))*AT20,0) -> 0 | AV20: 2.373 | AW20: 1201 | AZ20: 3768 | BB20: 0 | BC20: 0 | BD20: 0 | BE20: 3768 | BH20: 2029 | BI20: 0 | BJ20: 506 | BK20: 8.241 | BL20: 4170 | BM20: 0.156 | BN20: =ROUND((IF($C$47+$F$23>BH20,$F$27*$F$30,0)+IF($C$49+$H$23>BH20,$H$27*$H$30,0)+IF($C$48+$G$23>BH20,$G$27*$G$30,0))*BM20,0) -> 0 | BP20: 4170 | BR20: 0 | BT20: 4170 | BW20: 2029 | BX20: 1685 | BY20: 882 | BZ20: 0 | CA20: 2567 | CC20: 0 | CD20: 0 | CE20: 0 | CG20: 2567
A21: Escalation Rate = | C21: =+'Gas Input Table Summary'!$D$15 -> 0.01 | E21: Escalation Rate = | F21: =+'Gas Input Table Summary'!$D$44 -> 0 | J21: 7 | L21: 2030 | M21: 506 | N21: 3.43 | O21: 1736 | P21: 0 | Q21: 0 | R21: 1736 | S21: 5.1 | T21: 175 | U21: 893 | V21: 2629 | W21: 2.258 | X21: 903 | Y21: 0 | Z21: 0 | AA21: 903 | AB21: 1726 | AE21: 2030 | AF21: 1736 | AG21: 893 | AH21: 2629 | AJ21: 0 | AK21: 0 | AL21: 0 | AN21: 2629 | AQ21: 2030 | AR21: 1736 | AS21: 893 | AT21: 0.03 | AU21: 0 | AV21: 2.427 | AW21: 1228 | AZ21: 3857 | BB21: 0 | BC21: 0 | BD21: 0 | BE21: 3857 | BH21: 2030 | BI21: 0 | BJ21: 506 | BK21: 8.489 | BL21: 4295 | BM21: 0.161 | BN21: 0 | BP21: 4295 | BR21: 0 | BT21: 4295 | BW21: 2030 | BX21: 1736 | BY21: 893 | BZ21: 0 | CA21: 2629 | CC21: 0 | CD21: 0 | CE21: 0 | CG21: 2629
J22: 8 | L22: 2031 | M22: 506 | N22: 3.533 | O22: 1788 | P22: 0 | Q22: 0 | R22: 1788 | S22: 5.1 | T22: 176 | U22: 898 | V22: 2686 | W22: 2.326 | X22: 930 | Y22: 0 | Z22: 0 | AA22: 930 | AB22: 1756 | AE22: 2031 | AF22: 1788 | AG22: 898 | AH22: 2686 | AJ22: 0 | AK22: 0 | AL22: 0 | AN22: 2686 | AQ22: 2031 | AR22: 1788 | AS22: 898 | AT22: 0.031 | AU22: 0 | AV22: 2.483 | AW22: 1256 | AZ22: 3942 | BB22: 0 | BC22: 0 | BD22: 0 | BE22: 3942 | BH22: 2031 | BI22: 0 | BJ22: 506 | BK22: 8.743 | BL22: 4424 | BM22: 0.166 | BN22: 0 | BP22: 4424 | BR22: 0 | BT22: 4424 | BW22: 2031 | BX22: 1788 | BY22: 898 | BZ22: 0 | CA22: 2686 | CC22: 0 | CD22: 0 | CE22: 0 | CG22: 2686
A23: 5) Peak Reduction Factor = | C23: =+'Gas Input Table Summary'!$D$16 -> 0.01 | E23: 20) Project Life (Years) = | F23: =ROUND('Database Inputs'!D10,0) -> 20 | J23: 9 | L23: 2032 | M23: 506 | N23: 3.639 | O23: 1841 | P23: 0 | Q23: 0 | R23: 1841 | S23: 5.1 | T23: 178 | U23: 908 | V23: 2749 | W23: 2.396 | X23: 958 | Y23: 0 | Z23: 0 | AA23: 958 | AB23: 1791 | AE23: 2032 | AF23: 1841 | AG23: 908 | AH23: 2749 | AJ23: 0 | AK23: 0 | AL23: 0 | AN23: 2749 | AQ23: 2032 | AR23: 1841 | AS23: 908 | AT23: 0.032 | AU23: 0 | AV23: 2.54 | AW23: 1285 | AZ23: 4034 | BB23: 0 | BC23: 0 | BD23: 0 | BE23: 4034 | BH23: 2032 | BI23: 0 | BJ23: 506 | BK23: 9.006 | BL23: 4557 | BM23: 0.171 | BN23: 0 | BP23: 4557 | BR23: 0 | BT23: 4557 | BW23: 2032 | BX23: 1841 | BY23: 908 | BZ23: 0 | CA23: 2749 | CC23: 0 | CD23: 0 | CE23: 0 | CG23: 2749
J24: 10 | L24: 2033 | M24: 506 | N24: 3.748 | O24: 1896 | P24: 0 | Q24: 0 | R24: 1896 | S24: 5.1 | T24: 180 | U24: 918 | V24: 2814 | W24: 2.467 | X24: 986 | Y24: 0 | Z24: 0 | AA24: 986 | AB24: 1828 | AE24: 2033 | AF24: 1896 | AG24: 918 | AH24: 2814 | AJ24: 0 | AK24: 0 | AL24: 0 | AN24: 2814 | AQ24: 2033 | AR24: 1896 | AS24: 918 | AT24: 0.033 | AU24: 0 | AV24: 2.599 | AW24: 1315 | AZ24: 4129 | BB24: 0 | BC24: 0 | BD24: 0 | BE24: 4129 | BH24: 2033 | BI24: 0 | BJ24: 506 | BK24: 9.276 | BL24: 4694 | BM24: 0.176 | BN24: 0 | BP24: 4694 | BR24: 0 | BT24: 4694 | BW24: 2033 | BX24: 1896 | BY24: 918 | BZ24: 0 | CA24: =SUM(BX24:BZ24) -> 2814 | CC24: 0 | CD24: 0 | CE24: 0 | CG24: 2814
A25: 6) Variable O&M ($/Dk) = | C25: =+'Gas Input Table Summary'!$D$17 -> 0 | E25: 21) Avg. Dk/Part. Saved = | F25: =+ROUND(F32/F30,3) -> 5.163 | J25: 11 | L25: 2034 | M25: 506 | N25: 3.861 | O25: 1954 | P25: 0 | Q25: 0 | R25: 1954 | S25: 5.1 | T25: 182 | U25: 928 | V25: 2882 | W25: 2.541 | X25: 1016 | Y25: 0 | Z25: 0 | AA25: 1016 | AB25: 1866 | AE25: 2034 | AF25: 1954 | AG25: 928 | AH25: 2882 | AJ25: 0 | AK25: 0 | AL25: 0 | AN25: 2882 | AQ25: 2034 | AR25: 1954 | AS25: 928 | AT25: 0.034 | AU25: 0 | AV25: 2.658 | AW25: =ROUND(AV25*M25,0) -> 1345 | AZ25: 4227 | BB25: 0 | BC25: 0 | BD25: 0 | BE25: 4227 | BH25: 2034 | BI25: 0 | BJ25: 506 | BK25: 9.554 | BL25: 4834 | BM25: 0.181 | BN25: 0 | BP25: 4834 | BR25: 0 | BT25: 4834 | BW25: 2034 | BX25: 1954 | BY25: 928 | BZ25: 0 | CA25: 2882 | CC25: 0 | CD25: 0 | CE25: 0 | CG25: 2882
A26: Escalation Rate = | C26: =+'Gas Input Table Summary'!$D$18 -> 0 | J26: 12 | L26: 2035 | M26: 506 | N26: =ROUND($C$17*(1+$C$18)^J26,3) -> 3.976 | O26: 2012 | P26: 0 | Q26: 0 | R26: 2012 | S26: 5.1 | T26: 184 | U26: 938 | V26: 2950 | W26: 2.618 | X26: 1047 | Y26: 0 | Z26: 0 | AA26: 1047 | AB26: 1903 | AE26: 2035 | AF26: 2012 | AG26: 938 | AH26: 2950 | AJ26: 0 | AK26: 0 | AL26: 0 | AN26: 2950 | AQ26: 2035 | AR26: 2012 | AS26: 938 | AT26: 0.035 | AU26: 0 | AV26: 2.719 | AW26: =ROUND(AV26*M26,0) -> 1376 | AZ26: 4326 | BB26: 0 | BC26: 0 | BD26: 0 | BE26: 4326 | BH26: 2035 | BI26: 0 | BJ26: 506 | BK26: 9.841 | BL26: 4980 | BM26: 0.186 | BN26: 0 | BP26: 4980 | BR26: 0 | BT26: 4980 | BW26: 2035 | BX26: 2012 | BY26: 938 | BZ26: 0 | CA26: 2950 | CC26: 0 | CD26: 0 | CE26: 0 | CG26: 2950
E27: 22) Avg Non-Gas Fuel Units/Part. Saved = | F27: =+'Database Inputs'!H10 -> 0 | J27: 13 | L27: 2036 | M27: 506 | N27: 4.096 | O27: 2073 | P27: 0 | Q27: 0 | R27: 2073 | S27: 5.1 | T27: 185 | U27: =ROUND(S27*T27,0) -> 944 | V27: 3017 | W27: =ROUND($H$36*(1+$C$11)^J27,3) -> 2.696 | X27: 1078 | Y27: 0 | Z27: 0 | AA27: 1078 | AB27: 1939 | AE27: 2036 | AF27: 2073 | AG27: 944 | AH27: 3017 | AJ27: 0 | AK27: 0 | AL27: 0 | AN27: 3017 | AQ27: 2036 | AR27: 2073 | AS27: 944 | AT27: 0.036 | AU27: 0 | AV27: 2.782 | AW27: 1408 | AZ27: 4425 | BB27: 0 | BC27: 0 | BD27: 0 | BE27: 4425 | BH27: 2036 | BI27: 0 | BJ27: 506 | BK27: 10.136 | BL27: 5129 | BM27: 0.192 | BN27: 0 | BP27: 5129 | BR27: 0 | BT27: 5129 | BW27: 2036 | BX27: 2073 | BY27: 944 | BZ27: 0 | CA27: 3017 | CC27: 0 | CD27: 0 | CE27: 0 | CG27: 3017
A28: 7) Non-Gas Fuel Cost ($/Fuel Unit) = | C28: =+'Gas Input Table Summary'!$D$19 -> 0.02284 | E28: 22a) Avg Additional Non-Gas Fuel Units/ Part. Used = | F28: 0 | J28: 14 | L28: 2037 | M28: 506 | N28: 4.219 | O28: 2135 | P28: 0 | Q28: 0 | R28: 2135 | S28: 5.1 | T28: 187 | U28: 954 | V28: 3089 | W28: 2.777 | X28: 1110 | Y28: 0 | Z28: 0 | AA28: 1110 | AB28: 1979 | AE28: 2037 | AF28: 2135 | AG28: 954 | AH28: 3089 | AJ28: 0 | AK28: 0 | AL28: 0 | AN28: 3089 | AQ28: 2037 | AR28: 2135 | AS28: 954 | AT28: 0.037 | AU28: 0 | AV28: 2.846 | AW28: 1440 | AZ28: 4529 | BB28: 0 | BC28: 0 | BD28: 0 | BE28: 4529 | BH28: 2037 | BI28: 0 | BJ28: 506 | BK28: 10.44 | BL28: 5283 | BM28: 0.198 | BN28: 0 | BP28: 5283 | BR28: 0 | BT28: 5283 | BW28: 2037 | BX28: 2135 | BY28: 954 | BZ28: 0 | CA28: 3089 | CC28: 0 | CD28: 0 | CE28: 0 | CG28: 3089
A29: Escalation Rate = | C29: =+'Gas Input Table Summary'!$D$20 -> 0.03 | J29: 15 | L29: 2038 | M29: 506 | N29: 4.345 | O29: 2199 | P29: 0 | Q29: 0 | R29: 2199 | S29: 5.1 | T29: 189 | U29: 964 | V29: 3163 | W29: 2.86 | X29: =ROUND((1-$H$38)*(W29*M29),0) -> 1143 | Y29: 0 | Z29: 0 | AA29: 1143 | AB29: 2020 | AE29: 2038 | AF29: 2199 | AG29: 964 | AH29: 3163 | AJ29: 0 | AK29: 0 | AL29: 0 | AN29: 3163 | AQ29: 2038 | AR29: 2199 | AS29: 964 | AT29: 0.038 | AU29: 0 | AV29: 2.911 | AW29: 1473 | AZ29: 4636 | BB29: 0 | BC29: 0 | BD29: 0 | BE29: 4636 | BH29: 2038 | BI29: 0 | BJ29: 506 | BK29: 10.753 | BL29: 5441 | BM29: 0.204 | BN29: 0 | BP29: 5441 | BR29: 0 | BT29: 5441 | BW29: 2038 | BX29: 2199 | BY29: 964 | BZ29: 0 | CA29: 3163 | CC29: 0 | CD29: 0 | CE29: 0 | CG29: 3163
E30: 23) Number of Participants = | F30: =ROUND('Database Inputs'!C10,0) -> 98 | J30: 16 | L30: 2039 | M30: 506 | N30: 4.476 | O30: 2265 | P30: 0 | Q30: 0 | R30: 2265 | S30: 5.1 | T30: 191 | U30: 974 | V30: =ROUND(+U30+R30,0) -> 3239 | W30: 2.946 | X30: =ROUND((1-$H$38)*(W30*M30),0) -> 1178 | Y30: 0 | Z30: 0 | AA30: 1178 | AB30: 2061 | AE30: 2039 | AF30: 2265 | AG30: 974 | AH30: 3239 | AJ30: 0 | AK30: 0 | AL30: 0 | AN30: 3239 | AQ30: 2039 | AR30: 2265 | AS30: 974 | AT30: 0.04 | AU30: 0 | AV30: 2.978 | AW30: 1507 | AZ30: 4746 | BB30: 0 | BC30: 0 | BD30: 0 | BE30: 4746 | BH30: 2039 | BI30: 0 | BJ30: 506 | BK30: 11.076 | BL30: 5604 | BM30: 0.21 | BN30: 0 | BP30: 5604 | BR30: 0 | BT30: 5604 | BW30: 2039 | BX30: 2265 | BY30: 974 | BZ30: 0 | CA30: 3239 | CC30: 0 | CD30: 0 | CE30: 0 | CG30: 3239
A31: 8) Non-Gas Fuel Loss Factor | C31: =+'Gas Input Table Summary'!$D$21 -> 0.073 | J31: 17 | L31: 2040 | M31: =ROUND(IF($C$47+$F$23>L31,$F$25*$F$30,0)+IF($C$48+$G$23>L31,$G$25*$G$30,0)+IF($C$49+$H$23>L31,$H$25*$H$30,0),0) -> 506 | N31: 4.61 | O31: 2333 | P31: 0 | Q31: 0 | R31: 2333 | S31: 5.1 | T31: 193 | U31: 984 | V31: =ROUND(+U31+R31,0) -> 3317 | W31: 3.035 | X31: 1213 | Y31: 0 | Z31: 0 | AA31: 1213 | AB31: 2104 | AE31: 2040 | AF31: 2333 | AG31: 984 | AH31: 3317 | AJ31: 0 | AK31: 0 | AL31: 0 | AN31: 3317 | AQ31: 2040 | AR31: 2333 | AS31: 984 | AT31: 0.041 | AU31: 0 | AV31: 3.047 | AW31: 1542 | AZ31: 4859 | BB31: 0 | BC31: 0 | BD31: 0 | BE31: 4859 | BH31: 2040 | BI31: 0 | BJ31: 506 | BK31: 11.408 | BL31: 5772 | BM31: 0.216 | BN31: 0 | BP31: 5772 | BR31: 0 | BT31: 5772 | BW31: 2040 | BX31: 2333 | BY31: 984 | BZ31: 0 | CA31: 3317 | CC31: 0 | CD31: 0 | CE31: 0 | CG31: 3317
E32: 24) Total Annual Dk Saved = | F32: =+'Total Program Inputs'!G11 -> 506 | J32: 18 | L32: 2041 | M32: 506 | N32: 4.748 | O32: 2402 | P32: 0 | Q32: 0 | R32: 2402 | S32: 5.1 | T32: 195 | U32: 995 | V32: 3397 | W32: 3.126 | X32: 1250 | Y32: 0 | Z32: 0 | AA32: 1250 | AB32: 2147 | AE32: 2041 | AF32: 2402 | AG32: 995 | AH32: 3397 | AJ32: 0 | AK32: 0 | AL32: 0 | AN32: 3397 | AQ32: 2041 | AR32: 2402 | AS32: 995 | AT32: 0.042 | AU32: 0 | AV32: 3.117 | AW32: 1577 | AZ32: 4974 | BB32: 0 | BC32: 0 | BD32: 0 | BE32: 4974 | BH32: 2041 | BI32: 0 | BJ32: 506 | BK32: 11.75 | BL32: 5946 | BM32: 0.222 | BN32: 0 | BP32: 5946 | BR32: 0 | BT32: 5946 | BW32: 2041 | BX32: 2402 | BY32: 995 | BZ32: 0 | CA32: 3397 | CC32: 0 | CD32: 0 | CE32: 0 | CG32: 3397
A33: 9) Gas Environmental Damage Factor = | C33: =+'Gas Input Table Summary'!$D$22 -> 2.07 | J33: 19 | L33: 2042 | M33: 506 | N33: 4.891 | O33: 2475 | P33: 0 | Q33: 0 | R33: 2475 | S33: 5.1 | T33: 197 | U33: 1005 | V33: 3480 | W33: 3.219 | X33: 1287 | Y33: 0 | Z33: 0 | AA33: 1287 | AB33: 2193 | AE33: 2042 | AF33: 2475 | AG33: 1005 | AH33: 3480 | AJ33: 0 | AK33: 0 | AL33: 0 | AN33: 3480 | AQ33: 2042 | AR33: 2475 | AS33: 1005 | AT33: 0.043 | AU33: 0 | AV33: 3.189 | AW33: 1614 | AZ33: 5094 | BB33: 0 | BC33: 0 | BD33: 0 | BE33: 5094 | BH33: 2042 | BI33: 0 | BJ33: 506 | BK33: 12.103 | BL33: 6124 | BM33: 0.229 | BN33: 0 | BP33: 6124 | BR33: 0 | BT33: 6124 | BW33: 2042 | BX33: 2475 | BY33: 1005 | BZ33: 0 | CA33: 3480 | CC33: 0 | CD33: 0 | CE33: 0 | CG33: 3480
A34: Escalation Rate = | C34: =+'Gas Input Table Summary'!$D$23 -> 0.023 | E34: 25) Incentive/Participant = | F34: =ROUND('Database Inputs'!L10,0) -> 150 | J34: 20 | L34: 2043 | M34: =ROUND(IF($C$47+$F$23>L34,$F$25*$F$30,0)+IF($C$48+$G$23>L34,$G$25*$G$30,0)+IF($C$49+$H$23>L34,$H$25*$H$30,0),0) -> 0 | N34: 5.037 | O34: 0 | P34: 0 | Q34: 0 | R34: 0 | S34: 0 | T34: 199 | U34: 0 | V34: 0 | W34: 3.316 | X34: 0 | Y34: 0 | Z34: 0 | AA34: 0 | AB34: 0 | AE34: 2043 | AF34: =+R34 -> 0 | AG34: 0 | AH34: 0 | AJ34: 0 | AK34: 0 | AL34: 0 | AN34: 0 | AQ34: 2043 | AR34: 0 | AS34: 0 | AT34: 0.045 | AU34: 0 | AV34: 3.262 | AW34: 0 | AZ34: 0 | BB34: 0 | BC34: 0 | BD34: 0 | BE34: 0 | BH34: 2043 | BI34: 0 | BJ34: 0 | BK34: 12.466 | BL34: 0 | BM34: 0.236 | BN34: 0 | BP34: 0 | BR34: 0 | BT34: 0 | BW34: 2043 | BX34: 0 | BY34: 0 | BZ34: 0 | CA34: 0 | CC34: 0 | CD34: 0 | CE34: 0 | CG34: 0
J35: 21 | L35: 2044 | M35: =ROUND(IF($C$47+$F$23>L35,$F$25*$F$30,0)+IF($C$48+$G$23>L35,$G$25*$G$30,0)+IF($C$49+$H$23>L35,$H$25*$H$30,0),0) -> 0 | N35: =ROUND($C$17*(1+$C$18)^J35,3) -> 5.188 | O35: =ROUND(M35*N35,0) -> 0 | P35: =ROUND($C$25*(1+$C$26)^J35,3) -> 0 | Q35: =ROUND(M35*P35,0) -> 0 | R35: =O35+Q35 -> 0 | S35: =ROUND(M35*$C$23,1) -> 0 | T35: =ROUND($C$20*(1+$C$21)^J35,0) -> 201 | U35: =ROUND(S35*T35,0) -> 0 | V35: =ROUND(+U35+R35,0) -> 0 | W35: =ROUND($H$36*(1+$C$11)^J35,3) -> 3.416 | X35: =ROUND((1-$H$38)*(W35*M35),0) -> 0 | Y35: 0 | Z35: 0 | AA35: =SUM(X35:Z35) -> 0 | AB35: =V35-AA35 -> 0 | AE35: 2044 | AF35: =+R35 -> 0 | AG35: =+U35 -> 0 | AH35: =+AG35+AF35 -> 0 | AJ35: =ROUND(Y35,0) -> 0 | AK35: =ROUND(Z35,0) -> 0 | AL35: =SUM(AJ35:AK35) -> 0 | AN35: =+AH35-AL35 -> 0 | AQ35: 2044 | AR35: =AF35 -> 0 | AS35: =+AG35 -> 0 | AT35: =ROUND(($C$28/(1-$C$31))*(1+$C$29)^J35,3) -> 0.046 | AU35: =ROUND((IF($C$47+$F$23>$AQ35,$F$27*$F$30,0)+IF($C$48+$G$23>AQ35,$G$27*$G$30,0)+IF($C$49+$H$23>AQ35,$H$27*$H$30,0))*AT35,0) -> 0 | AV35: =ROUND($C$33*(1+$C$34)^J35,3) -> 3.337 | AW35: =ROUND(AV35*M35,0) -> 0 | AZ35: =ROUND(AR35+AS35+AU35+AW35+AY35,0) -> 0 | BB35: 0 | BC35: 0 | BD35: =BB35+BC35 -> 0 | BE35: =AZ35-BD35 -> 0 | BH35: 2044 | BI35: 0 | BJ35: =+M35 -> 0 | BK35: =ROUND($C$10*(1+$C$11)^J35,3) -> 12.84 | BL35: =ROUND(BJ35*BK35,0) -> 0 | BM35: =ROUND($C$13*(1+$C$14)^J35,3) -> 0.243 | BN35: =ROUND((IF($C$47+$F$23>BH35,$F$27*$F$30,0)+IF($C$49+$H$23>BH35,$H$27*$H$30,0)+IF($C$48+$G$23>BH35,$G$27*$G$30,0))*BM35,0) -> 0 | BP35: =BI35+BL35+BN35+BO35 -> 0 | BR35: =+BC35 -> 0 | BT35: =BP35-BR35 -> 0 | BW35: 2044 | BX35: 0 | BY35: =U35 -> 0 | BZ35: =AU35 -> 0 | CA35: =SUM(BX35:BZ35) -> 0 | CC35: =BB35 -> 0 | CD35: =BC35 -> 0 | CE35: =SUM(CC35:CD35) -> 0 | CG35: =CA35-CE35 -> 0
A36: 10) Non Gas Fuel Environmental Damage Factor = | C36: =+'Gas Input Table Summary'!$D$24 -> 0 | E36: 26) Distribution Delivery Charge | H36: =+'Gas Input Table Summary'!$D$58 -> 1.836 | J36: 22 | L36: 2045 | M36: =ROUND(IF($C$47+$F$23>L36,$F$25*$F$30,0)+IF($C$48+$G$23>L36,$G$25*$G$30,0)+IF($C$49+$H$23>L36,$H$25*$H$30,0),0) -> 0 | N36: 5.344 | O36: 0 | P36: 0 | Q36: 0 | R36: 0 | S36: 0 | T36: 203 | U36: 0 | V36: =ROUND(+U36+R36,0) -> 0 | W36: 3.518 | X36: 0 | Y36: 0 | Z36: 0 | AA36: 0 | AB36: 0 | AE36: 2045 | AF36: 0 | AG36: 0 | AH36: 0 | AJ36: 0 | AK36: 0 | AL36: 0 | AN36: 0 | AQ36: 2045 | AR36: =AF36 -> 0 | AS36: 0 | AT36: 0.047 | AU36: 0 | AV36: 3.414 | AW36: 0 | AZ36: 0 | BB36: 0 | BC36: 0 | BD36: 0 | BE36: 0 | BH36: 2045 | BI36: 0 | BJ36: 0 | BK36: 13.225 | BL36: 0 | BM36: 0.25 | BN36: 0 | BP36: 0 | BR36: 0 | BT36: =BP36-BR36 -> 0 | BW36: 2045 | BX36: 0 | BY36: 0 | BZ36: 0 | CA36: 0 | CC36: 0 | CD36: 0 | CE36: 0 | CG36: 0
A37: Escalation Rate = | C37: =+'Gas Input Table Summary'!$D$25 -> 0
E38: 27) Effective Income Tax Rate = | H38: =+'Gas Input Table Summary'!$D$59 -> 0.21 | K38: Total = | M38: =SUM(M14:M36) -> 10120 | V38: =SUM(V14:V36) -> 56212 | AA38: =SUM(AA14:AA36) -> 37148 | AB38: =SUM(AB14:AB36) -> 19064 | AD38: Total = | AH38: =SUM(AH14:AH36) -> 56212 | AL38: =SUM(AL14:AL36) -> 17425 | AN38: =SUM(AN14:AN36) -> 38787 | AP38: Total = | AZ38: =SUM(AZ14:AZ36) -> 82435 | BD38: =SUM(BD14:BD36) -> 18895 | BE38: =SUM(BE14:BE36) -> 63540 | BG38: Total = | BJ38: =SUM(BJ14:BJ36) -> 10120 | BP38: =SUM(BP14:BP36) -> 108543 | BR38: =SUM(BR14:BR36) -> 16170 | BT38: =SUM(BT14:BT36) -> 92373 | BZ38: Total = | CA38: =SUM(CA14:CA36) -> 56212 | CE38: =SUM(CE14:CE36) -> 18895 | CG38: =SUM(CG14:CG36) -> 37317
A39: 11) Participant Discount Rate = | C39: =+'Gas Input Table Summary'!$D$26 -> 0.1032 | E39: (Federal & State Taxes) | T39: NPV = | V39: =ROUND(V14+NPV($C$41,V15:V36),0) -> 29787 | AA39: =ROUND(AA14+NPV($C$41,AA15:AA36),0) -> 27724 | AB39: =ROUND(AB14+NPV($C$41,AB15:AB36),0) -> 2063 | AG39: NPV = | AH39: =ROUND(AH14+NPV($C$41,AH15:AH36),0) -> 29787 | AL39: =ROUND(AL14+NPV($C$41,AL15:AL36),0) -> 17425 | AN39: =+AH39-AL39 -> 12362 | AW39: NPV = | AZ39: =ROUND(AZ14+NPV($C$43,AZ15:AZ36),0) -> 65776 | BD39: =ROUND(BD14+NPV($C$43,BD15:BD36),0) -> 18895 | BE39: =AZ39-BD39 -> 46881 | BN39: NPV = | BP39: =ROUND(BP14+NPV($C$39,BP15:BP36),0) -> 54001 | BR39: =ROUND(BR14+NPV($C$39,BR15:BR36),0) -> 16170 | BT39: =ROUND(BT14+NPV($C$39,BT15:BT36),0) -> 37831 | BZ39: NPV = | CA39: =ROUND(CA14+NPV($C$41,CA15:CA36),0) -> 29787 | CE39: =ROUND(CE14+NPV($C$41,CE15:CE36),0) -> 18895 | CG39: =ROUND(CG14+NPV($C$41,CG15:CG36),0) -> 10892
A41: 12) Utility Discount Rate = | C41: =+'Gas Input Table Summary'!$D$27 -> 0.07216 | E41: Test Results | F41: NPV | G41: B/C | K41: Total NPV = | N41: =AB39 -> 2063 | AD41: Total NPV = | AG41: =AN39 -> 12362 | AP41: Total NPV = | AS41: =BE39 -> 46881 | BG41: Total NPV = | BJ41: =BT39 -> 37831 | BV41: Total NPV = | BY41: =CG39 -> 10892
E42: Ratepayer Impact Measure Test | F42: =N41 -> 2063 | G42: =N42 -> 1.07 | K42: Benefit/Cost Ratio = | N42: =ROUND(V39/AA39,2) -> 1.07 | AD42: Benefit/Cost Ratio = | AG42: =ROUND(AH39/AL39,2) -> 1.71 | AP42: Benefit/Cost Ratio = | AS42: =ROUND(AZ39/BD39,2) -> 3.48 | BG42: Benefit/Cost Ratio = | BJ42: =ROUND(BP39/BR39,2) -> 3.34 | BV42: Benefit/Cost Ratio = | BY42: =ROUND(CA39/CE39,2) -> 1.58
A43: 13) Societal Discount Rate = | C43: =+'Gas Input Table Summary'!$D$28 -> 0.0231 | E43: Utility Cost Test | F43: =AG41 -> 12362 | G43: =AG42 -> 1.71
E44: Societal Test | F44: =AS41 -> 46881 | G44: =AS42 -> 3.48 | J44: Worksheet Calculations | BV44: Worksheet Calculations
A45: 14) General Input Data Year = | C45: =+'Gas Input Table Summary'!$D$29 -> 2023 | E45: Participant Test | F45: =BJ41 -> 37831 | G45: =BJ42 -> 3.34 | J45: (A) | K45: = Average Dk/Participant Saved (21) x Number of Participants (23) for Project Life (20) | T45: (I) | U45: = (G) x (H) | AD45: Worksheet Calculations | AP45: Worksheet Calculations | BG45: Worksheet Calculations | BV45: (A) | BW45: = Table 1 (F)
E46: Total Resource Cost Test | F46: =BY41 -> 10892 | G46: =BY42 -> 1.58 | J46: (B) | K46: = Commodity Cost (3) escalated | T46: (J) | U46: = (F) + (I) | AD46: (A) | AE46: = Table 1 (F) | AP46: (A) | AQ46: = Table 1 (F) | AW46: (H) | AZ46: = Table 2 (F) | BG46: (A) | BH46: = Table 1 (N) | BL46: (G) | BM46: = (A) + (D) + (F) | BV46: (B) | BW46: = Table 1 (I)
A47: 15) Project Analysis Year 1 = | C47: =+'Total Program Inputs'!C6 -> 2023 | J47: (C) | K47: = (A) x (B) | T47: (K) | U47: = Distribution Delivery Charge (26) escalated. | AD47: (B) | AE47: = Table 1 (I) | AP47: (G) | AQ47: = Table 1 (I) | AW47: (I) | AZ47: = Direct Part. Costs (17) x No. of Part. (23) - Table 1 (N) | BG47: (B) | BH47: = Table 1 (A) | BL47: (H) | BM47: = Direct Participant Costs (17) x Number of Participants (23) | BV47: (C) | BW47: = Table 3 (D)
J48: (D) | K48: = Variable O&M Cost (6), escalated | T48: (L) | U48: = (A) x (K) x (1-Inverse of Tax Rate (27) | AD48: (C) | AE48: = Table 1 (J) | AP48: (C) | AQ48: = Non-Gas Fuel Cost (7), adjusted for losses (8), escalated.. | AW48: (J) | AZ48: = (H) + (I) | BG48: (C) | BH48: = Retail Rate (1) escalated. | BL48: (I) | BM48: = (G) - (H) | BV48: (D) | BW48: = (A) + (B) + (C)
J49: (E) | K49: = (A) x (D) | T49: (M) | U49: = Admin & Operating Costs (16a) | AD49: (D) | AE49: = Table 1 (M) | AP49: (D) | AQ49: = (C) x [Avg. Non-Gas Fuel Units/Part.Saved (22) x No. of Part. (23) | AW49: (K) | AZ49: = (G) - (J) | BG49: (D) | BH49: =(B) x (C) | BV49: (E) | BW49: = Table 3 (H)
J50: (F) | K50: = (C) + (E) | T50: (N) | U50: = Incentive Costs (16b) | AD50: (E) | AE50: = Table 1 (N) | AP50: (E) | AQ50: = Gas Environmental Damage Factor (9), escalated | BG50: (E) | BH50: = Non-Gas Fuel Retail Rate (2), escalated. | BV50: (F) | BW50: = Table 3 (I)
J51: (G) | K51: = (A) x Peak Reduction Factor (5) | T51: (O) | U51: = (L) + (M) + (N) | AD51: (F) | AE51: = (D) + (E) | AP51: (F) | AQ51: = Table 1 (A) x (E) | BG51: (F) | BH51: = (E) x [Avg. Non-Gas Fuel Units/Part.Saved (22) x No. of Part. (23) | BV51: (G) | BW51: = (E) + (F)
J52: (H) | K52: = Demand Cost (4) escalated. | T52: (P) | U52: = (J) - (O) | AD52: (G) | AE52: = (C) - (F) | AP52: (G) | AQ52: = (A) + (B) + (D) + (F) | BV52: (H) | BW52: = (D) - (G)

Sheet Res .95+% Res Furnace - Replace
A1: NATURAL GAS CONSERVATION PROGRAMS/DEMAND-SIDE MANAGEMENT | K1: Table 1 | AD1: Table 2 | AP1: Table 3 | BG1: Table 4 | BV1: Table 5
A2: BEN/COST ANALYSIS FOR GAS CONSERVATION | K2: Ratepayer Impact Measure Test | AD2: Utility Cost Test | AP2: Societal Test | BG2: Participant Test | BV2: Total Resource Cost Test
A4: Company: | B4: Montana-Dakota Utilities Co. | K4: Company: | M4: =B4 -> Montana-Dakota Utilities Co. | AD4: Company: | AF4: =B4 -> Montana-Dakota Utilities Co. | AP4: Company: | AR4: =AF4 -> Montana-Dakota Utilities Co. | BH4: Company: | BI4: =AR4 -> Montana-Dakota Utilities Co. | BW4: Company: | BX4: =BI4 -> Montana-Dakota Utilities Co.
A5: Project: | B5: Residential 95+% AFUE Furnace - Replacement | K5: Project: | M5: =$B$5 -> Residential 95+% AFUE Furnace - Replacement | AD5: Project: | AF5: =$B$5 -> Residential 95+% AFUE Furnace - Replacement | AP5: Project: | AR5: =$B$5 -> Residential 95+% AFUE Furnace - Replacement | BH5: Project: | BI5: =$B$5 -> Residential 95+% AFUE Furnace - Replacement | BW5: Project: | BX5: =$B$5 -> Residential 95+% AFUE Furnace - Replacement
A6: Program Years: | B6: ='Total Program'!$B$6 -> 2023
N7: Benefits | X7: Costs | AF7: Benefits | AJ7: Costs | AR7: Benefits | BB7: Costs | BI7: Benefits | BR7: Costs | BX7: Benefits | CC7: Costs
A8: Input Data | F8: =+'Total Program Inputs'!C6 -> 2023 | AB8: Annual | AN8: Annual | AT8: Non-Gas | BE8: Annual | BT8: Annual | CG8: Annual
M9: Total | N9: Gas | O9: Gas | P9: Variable | Q9: Variable | R9: Total | S9: Peak Dk | T9: Demand | U9: Total | W9: Distribution | Y9: Program | AA9: Total | AB9: Benefits | AF9: Total | AG9: Total | AH9: Annual | AJ9: Program | AL9: Utility | AN9: Benefits | AR9: Total | AS9: Total | AT9: Energy | AU9: Non-Gas | AV9: Environmental | AW9: Environmental | AZ9: Annual | BB9: Utility | BC9: Participants' | BD9: Annual | BE9: Benefits | BJ9: Total | BL9: Gas | BM9: Non-Gas | BN9: Non-Gas | BP9: Total | BR9: Direct | BT9: Benefits | BX9: Total | BY9: Total | BZ9: Non-Gas | CA9: Total | CC9: Utility | CD9: Participants' | CG9: Benefits
A10: 1) Retail Rate ($/Dk) = | C10: =+'Gas Input Table Summary'!$D$7 -> 6.902 | E10: 16) Utility Project Costs | M10: Energy | N10: Commodity | O10: Commodity | P10: O & M | Q10: O & M | R10: Energy | S10: Demand | T10: Savings | U10: Demand | V10: Total | W10: Delivery | X10: Lost | Y10: Admin | Z10: Incentive | AA10: Program | AB10: Less | AF10: Energy | AG10: Demand | AH10: Total | AJ10: Admin | AK10: Incentive | AL10: Program | AN10: Less | AR10: Energy | AS10: Demand | AT10: Savings | AU10: Energy | AV10: Damage | AW10: Damage | AZ10: Total | BB10: Program | BC10: Costs Net | BD10: Total | BE10: Less | BI10: Incentives | BJ10: Energy | BK10: Retail | BL10: Bill | BM10: Fuel | BN10: Energy | BP10: Annual | BR10: Participant | BT10: Less | BX10: Energy | BY10: Demand | BZ10: Energy | CA10: Annual | CC10: Program | CD10: Costs Net | CE10: Total | CG10: Less
A11: Escalation Rate = | C11: =+'Gas Input Table Summary'!$D$8 -> 0.03 | E11: 16a) Administrative & Operating Costs = | F11: =+'Total Program Inputs'!M12 -> 12454 | J11: t | M11: Reduction | N11: Cost/Dk | O11: Savings | P11: Cost/Dk | Q11: Savings | R11: Savings | S11: Reduction | T11: Per Unit | U11: Savings | V11: Savings | W11: Charge | X11: Margin | Y11: Costs | Z11: Costs | AA11: Costs | AB11: Costs | AF11: Savings | AG11: Savings | AH11: Savings | AJ11: Costs | AK11: Costs | AL11: Costs | AN11: Costs | AR11: Savings | AS11: Savings | AT11: ($/Part.) | AU11: Savings | AV11: Savings/Dk | AW11: Savings | AZ11: Savings | BB11: Costs | BC11: of Rebate | BD11: Costs | BE11: Costs | BI11: Received | BJ11: Reduction | BK11: Rate | BL11: Savings | BM11: Retail Rate | BN11: Savings | BP11: Benefits | BR11: Costs | BT11: Costs | BX11: Savings | BY11: Savings | BZ11: Savings | CA11: Benefits | CC11: Costs | CD11: of Rebate | CE11: Costs | CG11: Costs
E12: 16b) Incentive Costs = | F12: =+'Total Program Inputs'!I12 -> 67200 | L12: Year | M12: (A) | N12: (B) | O12: (C) | P12: (D) | Q12: (E) | R12: (F) | S12: (G) | T12: (H) | U12: (I) | V12: (J) | W12: (K) | X12: (L) | Y12: (M) | Z12: (N) | AA12: (O) | AB12: (P) | AE12: Year | AF12: (A) | AG12: (B) | AH12: (C) | AJ12: (D) | AK12: (E) | AL12: (F) | AN12: (G) | AQ12: Year | AR12: (A) | AS12: (B) | AT12: (C) | AU12: (D) | AV12: (E) | AW12: (F) | AZ12: (G) | BB12: (H) | BC12: (I) | BD12: (J) | BE12: (K) | BH12: Year | BI12: (A) | BJ12: (B) | BK12: (C) | BL12: (D) | BM12: (E) | BN12: (F) | BP12: (G) | BR12: (H) | BT12: (I) | BW12: Year | BX12: (A) | BY12: (B) | BZ12: (C) | CA12: (D) | CC12: (E) | CD12: (F) | CE12: (G) | CG12: (H)
A13: 2) Non-Gas Fuel Retail Rate ($/Fuel Unit) = | C13: =+'Gas Input Table Summary'!$D$9 -> 0.13068 | E13: 16c) Total Utility Project Costs = | F13: =SUM(F11:F12) -> 79654
A14: Escalation Rate = | C14: =+'Gas Input Table Summary'!$D$10 -> 0.03 | J14: =$C$47-$C$45 -> 0 | L14: =$C$47 -> 2023 | M14: =ROUND(IF($C$47+$F$23>L14,F25*F30,0),0) -> 4099 | N14: =ROUND($C$17*(1+$C$18)^J14,3) -> 2.789 | O14: =ROUND(M14*N14,0) -> 11432 | P14: =ROUND($C$25*(1+$C$26)^J14,3) -> 0 | Q14: =ROUND(M14*P14,0) -> 0 | R14: =O14+Q14 -> 11432 | S14: =ROUND(M14*$C$23,1) -> 41 | T14: =ROUND($C$20*(1+$C$21)^J14,0) -> 163 | U14: =ROUND(S14*T14,0) -> 6683 | V14: =ROUND(+U14+R14,0) -> 18115 | W14: =ROUND($H$36*(1+$C$11)^J14,3) -> 1.836 | X14: =ROUND((1-$H$38)*(W14*M14),0) -> 5945 | Y14: =ROUND($F$11,0) -> 12454 | Z14: =ROUND($F$12,0) -> 67200 | AA14: =SUM(X14:Z14) -> 85599 | AB14: =V14-AA14 -> -67484 | AE14: =$C$47 -> 2023 | AF14: =+R14 -> 11432 | AG14: =+U14 -> 6683 | AH14: =+AG14+AF14 -> 18115 | AJ14: =ROUND(Y14,0) -> 12454 | AK14: =ROUND(Z14,0) -> 67200 | AL14: =SUM(AJ14:AK14) -> 79654 | AN14: =+AH14-AL14 -> -61539 | AQ14: =$C$47 -> 2023 | AR14: =AF14 -> 11432 | AS14: =+AG14 -> 6683 | AT14: =ROUND(($C$28/(1-$C$31))*(1+$C$29)^J14,3) -> 0.025 | AU14: =ROUND(IF($C$47+$F$23>$AQ14,$F$30*$F$27,0)*AT14,0) -> 4032 | AV14: =ROUND($C$33*(1+$C$34)^J14,3) -> 2.07 | AW14: =ROUND(AV14*M14,0) -> 8485 | AZ14: =ROUND(AR14+AS14+AU14+AW14+AY14,0) -> 30632 | BB14: =ROUND($F$13,0) -> 79654 | BC14: =ROUND((F15*F30)-Z14,0) -> 97664 | BD14: =BB14+BC14 -> 177318 | BE14: =AZ14-BD14 -> -146686 | BH14: =$C$47 -> 2023 | BI14: =+F12 -> 67200 | BJ14: =+M14 -> 4099 | BK14: =ROUND($C$10*(1+$C$11)^J14,3) -> 6.902 | BL14: =ROUND(BJ14*BK14,0) -> 28291 | BM14: =ROUND($C$13*(1+$C$14)^J14,3) -> 0.131 | BN14: =ROUND(IF($C$47+$F$23>$BH14,$F$30*$F$27,0)*BM14,0) -> 21128 | BP14: =BI14+BL14+BN14+BO14 -> 116619 | BR14: =ROUND(F15*F30,0) -> 164864 | BT14: =BP14-BR14 -> -48245 | BW14: =$C$47 -> 2023 | BX14: =$R14 -> 11432 | BY14: =U14 -> 6683 | BZ14: =AU14 -> 4032 | CA14: =SUM(BX14:BZ14) -> 22147 | CC14: =BB14 -> 79654 | CD14: =BC14 -> 97664 | CE14: =SUM(CC14:CD14) -> 177318 | CG14: =CA14-CE14 -> -155171
A15: Non-Gas Fuel Units (ie. kWh,Gallons, etc) = | C15: =+'Gas Input Table Summary'!$D$11 -> Kwh | E15: 17) Direct Participant Costs ($/Part.) = | F15: =ROUND('Database Inputs'!K11,0) -> 736 | J15: =J14+1 -> 1 | L15: =L14+1 -> 2024 | M15: =ROUND(IF($C$47+$F$23>L15,$F$25*$F$30,0)+IF($C$48+$G$23>L15,$G$25*$G$30,0),0) -> 4099 | N15: 2.873 | O15: 11776 | P15: 0 | Q15: =ROUND(M15*P15,0) -> 0 | R15: =O15+Q15 -> 11776 | S15: =ROUND(M15*$C$23,1) -> 41 | T15: =ROUND($C$20*(1+$C$21)^J15,0) -> 164 | U15: =ROUND(S15*T15,0) -> 6724 | V15: =ROUND(+U15+R15,0) -> 18500 | W15: =ROUND($H$36*(1+$C$11)^J15,3) -> 1.891 | X15: =ROUND((1-$H$38)*(W15*M15),0) -> 6123 | Y15: =ROUND($G$11,0) -> 0 | Z15: =ROUND($G$12,0) -> 0 | AA15: =SUM(X15:Z15) -> 6123 | AB15: =V15-AA15 -> 12377 | AE15: =AE14+1 -> 2024 | AF15: 11776 | AG15: 6724 | AH15: =+AG15+AF15 -> 18500 | AJ15: =ROUND(Y15,0) -> 0 | AK15: 0 | AL15: 0 | AN15: 18500 | AQ15: =AQ14+1 -> 2024 | AR15: 11776 | AS15: =+AG15 -> 6724 | AT15: =ROUND(($C$28/(1-$C$31))*(1+$C$29)^J15,3) -> 0.025 | AU15: =ROUND((IF($C$47+$F$23>$AQ15,$F$27*$F$30,0)+IF($C$48+$G$23>AQ15,$G$27*$G$30,0))*AT15,0) -> 4032 | AV15: =ROUND($C$33*(1+$C$34)^J15,3) -> 2.118 | AW15: =ROUND(AV15*M15,0) -> 8682 | AZ15: =ROUND(AR15+AS15+AU15+AW15+AY15,0) -> 31214 | BB15: =ROUND($G$13,0) -> 0 | BC15: =ROUND(($G$15*$G$30)-$Z$15,0) -> 0 | BD15: =BB15+BC15 -> 0 | BE15: 31214 | BH15: =BH14+1 -> 2024 | BI15: =+G12 -> 0 | BJ15: 4099 | BK15: =ROUND($C$10*(1+$C$11)^J15,3) -> 7.109 | BL15: =ROUND(BJ15*BK15,0) -> 29140 | BM15: =ROUND($C$13*(1+$C$14)^J15,3) -> 0.135 | BN15: =ROUND((IF($C$47+$F$23>BH15,$F$27*$F$30,0)+IF($C$48+$G$23>BH15,$G$27*$G$30,0))*BM15,0) -> 21773 | BP15: 50913 | BR15: =ROUND($G$15*$G$30,0) -> 0 | BT15: =BP15-BR15 -> 50913 | BW15: =BW14+1 -> 2024 | BX15: 11776 | BY15: =U15 -> 6724 | BZ15: =AU15 -> 4032 | CA15: =SUM(BX15:BZ15) -> 22532 | CC15: =BB15 -> 0 | CD15: 0 | CE15: =SUM(CC15:CD15) -> 0 | CG15: =CA15-CE15 -> 22532
J16: 2 | L16: 2025 | M16: =ROUND(IF($C$47+$F$23>L16,$F$25*$F$30,0)+IF($C$48+$G$23>L16,$G$25*$G$30,0)+IF($C$49+$H$23>L16,$H$25*$H$30,0),0) -> 4099 | N16: 2.959 | O16: 12129 | P16: 0 | Q16: 0 | R16: 12129 | S16: 41 | T16: 166 | U16: =ROUND(S16*T16,0) -> 6806 | V16: =ROUND(+U16+R16,0) -> 18935 | W16: 1.948 | X16: 6308 | Y16: =ROUND($H$11,0) -> 0 | Z16: =ROUND($H$12,0) -> 0 | AA16: =SUM(X16:Z16) -> 6308 | AB16: =V16-AA16 -> 12627 | AE16: 2025 | AF16: 12129 | AG16: 6806 | AH16: =+AG16+AF16 -> 18935 | AJ16: 0 | AK16: 0 | AL16: =SUM(AJ16:AK16) -> 0 | AN16: =+AH16-AL16 -> 18935 | AQ16: 2025 | AR16: 12129 | AS16: 6806 | AT16: =ROUND(($C$28/(1-$C$31))*(1+$C$29)^J16,3) -> 0.026 | AU16: =ROUND((IF($C$47+$F$23>$AQ16,$F$27*$F$30,0)+IF($C$48+$G$23>AQ16,$G$27*$G$30,0)+IF($C$49+$H$23>AQ16,$H$27*$H$30,0))*AT16,0) -> 4193 | AV16: =ROUND($C$33*(1+$C$34)^J16,3) -> 2.166 | AW16: =ROUND(AV16*M16,0) -> 8878 | AZ16: =ROUND(AR16+AS16+AU16+AW16+AY16,0) -> 32006 | BB16: =ROUND($H$13,0) -> 0 | BC16: =ROUND(($H$15*$H$30)-$Z$16,0) -> 0 | BD16: =BB16+BC16 -> 0 | BE16: 32006 | BH16: 2025 | BI16: =ROUND(H12,0) -> 0 | BJ16: 4099 | BK16: 7.322 | BL16: =ROUND(BJ16*BK16,0) -> 30013 | BM16: 0.139 | BN16: =ROUND((IF($C$47+$F$23>BH16,$F$27*$F$30,0)+IF($C$49+$H$23>BH16,$H$27*$H$30,0)+IF($C$48+$G$23>BH16,$G$27*$G$30,0))*BM16,0) -> 22418 | BP16: =BI16+BL16+BN16+BO16 -> 52431 | BR16: =ROUND($H$15*$H$30,0) -> 0 | BT16: =BP16-BR16 -> 52431 | BW16: 2025 | BX16: 12129 | BY16: 6806 | BZ16: 4193 | CA16: =SUM(BX16:BZ16) -> 23128 | CC16: 0 | CD16: 0 | CE16: =SUM(CC16:CD16) -> 0 | CG16: =CA16-CE16 -> 23128
A17: 3) Commodity Cost ($/Dk) = | C17: =+'Gas Input Table Summary'!$D$12 -> 2.789 | E17: 18) Participant Non-Energy Costs (Annual $/Part.) = | F17: =+'Gas Input Table Summary'!$D$35 -> 0 | J17: 3 | L17: 2026 | M17: =ROUND(IF($C$47+$F$23>L17,$F$25*$F$30,0)+IF($C$48+$G$23>L17,$G$25*$G$30,0)+IF($C$49+$H$23>L17,$H$25*$H$30,0),0) -> 4099 | N17: 3.048 | O17: 12494 | P17: 0 | Q17: 0 | R17: 12494 | S17: 41 | T17: 168 | U17: 6888 | V17: 19382 | W17: 2.006 | X17: 6496 | Y17: 0 | Z17: 0 | AA17: 6496 | AB17: =V17-AA17 -> 12886 | AE17: 2026 | AF17: 12494 | AG17: 6888 | AH17: 19382 | AJ17: 0 | AK17: 0 | AL17: 0 | AN17: 19382 | AQ17: 2026 | AR17: 12494 | AS17: 6888 | AT17: 0.027 | AU17: =ROUND((IF($C$47+$F$23>$AQ17,$F$27*$F$30,0)+IF($C$48+$G$23>AQ17,$G$27*$G$30,0)+IF($C$49+$H$23>AQ17,$H$27*$H$30,0))*AT17,0) -> 4355 | AV17: 2.216 | AW17: 9083 | AZ17: 32820 | BB17: 0 | BC17: 0 | BD17: 0 | BE17: 32820 | BH17: 2026 | BI17: 0 | BJ17: 4099 | BK17: 7.542 | BL17: 30915 | BM17: 0.143 | BN17: =ROUND((IF($C$47+$F$23>BH17,$F$27*$F$30,0)+IF($C$49+$H$23>BH17,$H$27*$H$30,0)+IF($C$48+$G$23>BH17,$G$27*$G$30,0))*BM17,0) -> 23063 | BP17: 53978 | BR17: =+BC17 -> 0 | BT17: 53978 | BW17: 2026 | BX17: 12494 | BY17: 6888 | BZ17: 4355 | CA17: 23737 | CC17: 0 | CD17: 0 | CE17: 0 | CG17: 23737
A18: Escalation Rate = | C18: =+'Gas Input Table Summary'!$D$13 -> 0.03 | E18: Escalation Rate = | F18: =+'Gas Input Table Summary'!$D$38 -> 0 | J18: 4 | L18: 2027 | M18: 4099 | N18: 3.139 | O18: 12867 | P18: 0 | Q18: 0 | R18: 12867 | S18: 41 | T18: 169 | U18: 6929 | V18: 19796 | W18: 2.066 | X18: 6690 | Y18: 0 | Z18: 0 | AA18: 6690 | AB18: 13106 | AE18: 2027 | AF18: 12867 | AG18: 6929 | AH18: 19796 | AJ18: 0 | AK18: 0 | AL18: 0 | AN18: 19796 | AQ18: 2027 | AR18: 12867 | AS18: 6929 | AT18: 0.028 | AU18: 4516 | AV18: 2.267 | AW18: 9292 | AZ18: 33604 | BB18: 0 | BC18: 0 | BD18: 0 | BE18: 33604 | BH18: 2027 | BI18: 0 | BJ18: 4099 | BK18: 7.768 | BL18: 31841 | BM18: 0.147 | BN18: 23708 | BP18: 55549 | BR18: 0 | BT18: 55549 | BW18: 2027 | BX18: 12867 | BY18: 6929 | BZ18: 4516 | CA18: 24312 | CC18: 0 | CD18: 0 | CE18: 0 | CG18: 24312
J19: 5 | L19: 2028 | M19: 4099 | N19: 3.233 | O19: 13252 | P19: 0 | Q19: 0 | R19: 13252 | S19: 41 | T19: 171 | U19: 7011 | V19: 20263 | W19: 2.128 | X19: 6891 | Y19: 0 | Z19: 0 | AA19: 6891 | AB19: 13372 | AE19: 2028 | AF19: 13252 | AG19: 7011 | AH19: 20263 | AJ19: 0 | AK19: 0 | AL19: 0 | AN19: 20263 | AQ19: 2028 | AR19: 13252 | AS19: 7011 | AT19: 0.029 | AU19: 4677 | AV19: 2.319 | AW19: 9506 | AZ19: 34446 | BB19: 0 | BC19: 0 | BD19: 0 | BE19: 34446 | BH19: 2028 | BI19: 0 | BJ19: 4099 | BK19: 8.001 | BL19: 32796 | BM19: 0.151 | BN19: 24353 | BP19: 57149 | BR19: 0 | BT19: 57149 | BW19: 2028 | BX19: 13252 | BY19: 7011 | BZ19: 4677 | CA19: 24940 | CC19: 0 | CD19: 0 | CE19: 0 | CG19: 24940
A20: 4) Demand Cost ($/Unit/Yr) = | C20: =+'Gas Input Table Summary'!$D$14 -> 162.85 | E20: 19) Participant Non-Energy Savings (Annual $/Part) = | F20: =+'Gas Input Table Summary'!$D$41 -> 0 | J20: 6 | L20: 2029 | M20: 4099 | N20: 3.33 | O20: 13650 | P20: 0 | Q20: 0 | R20: 13650 | S20: 41 | T20: 173 | U20: 7093 | V20: 20743 | W20: 2.192 | X20: 7098 | Y20: 0 | Z20: 0 | AA20: 7098 | AB20: 13645 | AE20: 2029 | AF20: 13650 | AG20: 7093 | AH20: 20743 | AJ20: 0 | AK20: 0 | AL20: 0 | AN20: 20743 | AQ20: 2029 | AR20: 13650 | AS20: 7093 | AT20: 0.029 | AU20: 4677 | AV20: 2.373 | AW20: 9727 | AZ20: 35147 | BB20: 0 | BC20: 0 | BD20: 0 | BE20: 35147 | BH20: 2029 | BI20: 0 | BJ20: 4099 | BK20: 8.241 | BL20: 33780 | BM20: 0.156 | BN20: 25160 | BP20: 58940 | BR20: 0 | BT20: 58940 | BW20: 2029 | BX20: 13650 | BY20: 7093 | BZ20: 4677 | CA20: 25420 | CC20: 0 | CD20: 0 | CE20: 0 | CG20: 25420
A21: Escalation Rate = | C21: =+'Gas Input Table Summary'!$D$15 -> 0.01 | E21: Escalation Rate = | F21: =+'Gas Input Table Summary'!$D$44 -> 0 | J21: 7 | L21: 2030 | M21: 4099 | N21: 3.43 | O21: 14060 | P21: 0 | Q21: 0 | R21: 14060 | S21: 41 | T21: 175 | U21: 7175 | V21: 21235 | W21: 2.258 | X21: 7312 | Y21: 0 | Z21: 0 | AA21: 7312 | AB21: 13923 | AE21: 2030 | AF21: 14060 | AG21: 7175 | AH21: 21235 | AJ21: 0 | AK21: 0 | AL21: 0 | AN21: 21235 | AQ21: 2030 | AR21: 14060 | AS21: 7175 | AT21: 0.03 | AU21: 4838 | AV21: 2.427 | AW21: 9948 | AZ21: 36021 | BB21: 0 | BC21: 0 | BD21: 0 | BE21: 36021 | BH21: 2030 | BI21: 0 | BJ21: 4099 | BK21: 8.489 | BL21: 34796 | BM21: 0.161 | BN21: 25966 | BP21: 60762 | BR21: 0 | BT21: 60762 | BW21: 2030 | BX21: 14060 | BY21: 7175 | BZ21: 4838 | CA21: 26073 | CC21: 0 | CD21: 0 | CE21: 0 | CG21: 26073
J22: 8 | L22: 2031 | M22: 4099 | N22: 3.533 | O22: 14482 | P22: 0 | Q22: 0 | R22: 14482 | S22: 41 | T22: 176 | U22: 7216 | V22: 21698 | W22: 2.326 | X22: 7532 | Y22: 0 | Z22: 0 | AA22: 7532 | AB22: 14166 | AE22: 2031 | AF22: 14482 | AG22: 7216 | AH22: 21698 | AJ22: 0 | AK22: 0 | AL22: 0 | AN22: 21698 | AQ22: 2031 | AR22: 14482 | AS22: 7216 | AT22: 0.031 | AU22: 5000 | AV22: 2.483 | AW22: 10178 | AZ22: 36876 | BB22: 0 | BC22: 0 | BD22: 0 | BE22: 36876 | BH22: 2031 | BI22: 0 | BJ22: 4099 | BK22: 8.743 | BL22: 35838 | BM22: 0.166 | BN22: 26772 | BP22: 62610 | BR22: 0 | BT22: 62610 | BW22: 2031 | BX22: 14482 | BY22: 7216 | BZ22: 5000 | CA22: 26698 | CC22: 0 | CD22: 0 | CE22: 0 | CG22: 26698
A23: 5) Peak Reduction Factor = | C23: =+'Gas Input Table Summary'!$D$16 -> 0.01 | E23: 20) Project Life (Years) = | F23: =ROUND('Database Inputs'!D11,0) -> 20 | J23: 9 | L23: 2032 | M23: 4099 | N23: 3.639 | O23: 14916 | P23: 0 | Q23: 0 | R23: 14916 | S23: 41 | T23: 178 | U23: 7298 | V23: 22214 | W23: 2.396 | X23: 7759 | Y23: 0 | Z23: 0 | AA23: 7759 | AB23: 14455 | AE23: 2032 | AF23: 14916 | AG23: 7298 | AH23: 22214 | AJ23: 0 | AK23: 0 | AL23: 0 | AN23: 22214 | AQ23: 2032 | AR23: 14916 | AS23: 7298 | AT23: 0.032 | AU23: 5161 | AV23: 2.54 | AW23: 10411 | AZ23: 37786 | BB23: 0 | BC23: 0 | BD23: 0 | BE23: 37786 | BH23: 2032 | BI23: 0 | BJ23: 4099 | BK23: 9.006 | BL23: 36916 | BM23: 0.171 | BN23: 27579 | BP23: 64495 | BR23: 0 | BT23: 64495 | BW23: 2032 | BX23: 14916 | BY23: 7298 | BZ23: 5161 | CA23: 27375 | CC23: 0 | CD23: 0 | CE23: 0 | CG23: 27375
J24: 10 | L24: 2033 | M24: 4099 | N24: 3.748 | O24: 15363 | P24: 0 | Q24: 0 | R24: 15363 | S24: 41 | T24: 180 | U24: 7380 | V24: 22743 | W24: 2.467 | X24: 7989 | Y24: 0 | Z24: 0 | AA24: 7989 | AB24: 14754 | AE24: 2033 | AF24: 15363 | AG24: 7380 | AH24: 22743 | AJ24: 0 | AK24: 0 | AL24: 0 | AN24: 22743 | AQ24: 2033 | AR24: 15363 | AS24: 7380 | AT24: 0.033 | AU24: 5322 | AV24: 2.599 | AW24: 10653 | AZ24: 38718 | BB24: 0 | BC24: 0 | BD24: 0 | BE24: 38718 | BH24: 2033 | BI24: 0 | BJ24: 4099 | BK24: 9.276 | BL24: 38022 | BM24: 0.176 | BN24: 28385 | BP24: 66407 | BR24: 0 | BT24: 66407 | BW24: 2033 | BX24: 15363 | BY24: 7380 | BZ24: 5322 | CA24: 28065 | CC24: 0 | CD24: 0 | CE24: 0 | CG24: 28065
A25: 6) Variable O&M ($/Dk) = | C25: =+'Gas Input Table Summary'!$D$17 -> 0 | E25: 21) Avg. Dk/Part. Saved = | F25: =+ROUND(F32/F30,3) -> 18.299 | J25: 11 | L25: 2034 | M25: 4099 | N25: 3.861 | O25: 15826 | P25: 0 | Q25: 0 | R25: 15826 | S25: 41 | T25: 182 | U25: 7462 | V25: 23288 | W25: 2.541 | X25: 8228 | Y25: 0 | Z25: 0 | AA25: 8228 | AB25: 15060 | AE25: 2034 | AF25: 15826 | AG25: 7462 | AH25: 23288 | AJ25: 0 | AK25: 0 | AL25: 0 | AN25: 23288 | AQ25: 2034 | AR25: 15826 | AS25: 7462 | AT25: 0.034 | AU25: 5484 | AV25: 2.658 | AW25: 10895 | AZ25: 39667 | BB25: 0 | BC25: 0 | BD25: 0 | BE25: 39667 | BH25: 2034 | BI25: 0 | BJ25: 4099 | BK25: 9.554 | BL25: 39162 | BM25: 0.181 | BN25: 29192 | BP25: 68354 | BR25: 0 | BT25: 68354 | BW25: 2034 | BX25: 15826 | BY25: 7462 | BZ25: 5484 | CA25: 28772 | CC25: 0 | CD25: 0 | CE25: 0 | CG25: 28772
A26: Escalation Rate = | C26: =+'Gas Input Table Summary'!$D$18 -> 0 | J26: 12 | L26: 2035 | M26: 4099 | N26: 3.976 | O26: 16298 | P26: 0 | Q26: 0 | R26: 16298 | S26: 41 | T26: 184 | U26: 7544 | V26: 23842 | W26: 2.618 | X26: 8478 | Y26: 0 | Z26: 0 | AA26: 8478 | AB26: 15364 | AE26: 2035 | AF26: 16298 | AG26: 7544 | AH26: 23842 | AJ26: 0 | AK26: 0 | AL26: 0 | AN26: 23842 | AQ26: 2035 | AR26: 16298 | AS26: 7544 | AT26: 0.035 | AU26: 5645 | AV26: 2.719 | AW26: 11145 | AZ26: 40632 | BB26: 0 | BC26: 0 | BD26: 0 | BE26: 40632 | BH26: 2035 | BI26: 0 | BJ26: 4099 | BK26: 9.841 | BL26: 40338 | BM26: 0.186 | BN26: 29998 | BP26: 70336 | BR26: 0 | BT26: 70336 | BW26: 2035 | BX26: 16298 | BY26: 7544 | BZ26: 5645 | CA26: 29487 | CC26: 0 | CD26: 0 | CE26: 0 | CG26: 29487
E27: 22) Avg Non-Gas Fuel Units/Part. Saved = | F27: =+'Database Inputs'!H11 -> 720 | J27: 13 | L27: 2036 | M27: 4099 | N27: 4.096 | O27: 16790 | P27: 0 | Q27: 0 | R27: 16790 | S27: 41 | T27: 185 | U27: 7585 | V27: 24375 | W27: 2.696 | X27: 8730 | Y27: 0 | Z27: 0 | AA27: 8730 | AB27: 15645 | AE27: 2036 | AF27: 16790 | AG27: 7585 | AH27: 24375 | AJ27: 0 | AK27: 0 | AL27: 0 | AN27: 24375 | AQ27: 2036 | AR27: 16790 | AS27: 7585 | AT27: 0.036 | AU27: 5806 | AV27: 2.782 | AW27: 11403 | AZ27: 41584 | BB27: 0 | BC27: 0 | BD27: 0 | BE27: 41584 | BH27: 2036 | BI27: 0 | BJ27: 4099 | BK27: 10.136 | BL27: 41547 | BM27: 0.192 | BN27: 30966 | BP27: 72513 | BR27: 0 | BT27: 72513 | BW27: 2036 | BX27: 16790 | BY27: 7585 | BZ27: 5806 | CA27: 30181 | CC27: 0 | CD27: 0 | CE27: 0 | CG27: 30181
A28: 7) Non-Gas Fuel Cost ($/Fuel Unit) = | C28: =+'Gas Input Table Summary'!$D$19 -> 0.02284 | E28: 22a) Avg Additional Non-Gas Fuel Units/ Part. Used = | F28: 0 | J28: 14 | L28: 2037 | M28: 4099 | N28: 4.219 | O28: 17294 | P28: 0 | Q28: 0 | R28: 17294 | S28: 41 | T28: 187 | U28: 7667 | V28: 24961 | W28: 2.777 | X28: 8993 | Y28: 0 | Z28: 0 | AA28: 8993 | AB28: 15968 | AE28: 2037 | AF28: 17294 | AG28: 7667 | AH28: 24961 | AJ28: 0 | AK28: 0 | AL28: 0 | AN28: 24961 | AQ28: 2037 | AR28: 17294 | AS28: 7667 | AT28: 0.037 | AU28: 5967 | AV28: 2.846 | AW28: 11666 | AZ28: 42594 | BB28: 0 | BC28: 0 | BD28: 0 | BE28: 42594 | BH28: 2037 | BI28: 0 | BJ28: 4099 | BK28: 10.44 | BL28: 42794 | BM28: 0.198 | BN28: 31933 | BP28: 74727 | BR28: 0 | BT28: 74727 | BW28: 2037 | BX28: 17294 | BY28: 7667 | BZ28: 5967 | CA28: 30928 | CC28: 0 | CD28: 0 | CE28: 0 | CG28: 30928
A29: Escalation Rate = | C29: =+'Gas Input Table Summary'!$D$20 -> 0.03 | J29: 15 | L29: 2038 | M29: 4099 | N29: 4.345 | O29: 17810 | P29: 0 | Q29: 0 | R29: 17810 | S29: 41 | T29: 189 | U29: 7749 | V29: 25559 | W29: 2.86 | X29: 9261 | Y29: 0 | Z29: 0 | AA29: 9261 | AB29: 16298 | AE29: 2038 | AF29: 17810 | AG29: 7749 | AH29: 25559 | AJ29: 0 | AK29: 0 | AL29: 0 | AN29: 25559 | AQ29: 2038 | AR29: 17810 | AS29: 7749 | AT29: 0.038 | AU29: 6129 | AV29: 2.911 | AW29: 11932 | AZ29: 43620 | BB29: 0 | BC29: 0 | BD29: 0 | BE29: 43620 | BH29: 2038 | BI29: 0 | BJ29: 4099 | BK29: 10.753 | BL29: 44077 | BM29: 0.204 | BN29: 32901 | BP29: 76978 | BR29: 0 | BT29: 76978 | BW29: 2038 | BX29: 17810 | BY29: 7749 | BZ29: 6129 | CA29: 31688 | CC29: 0 | CD29: 0 | CE29: 0 | CG29: 31688
E30: 23) Number of Participants = | F30: =ROUND('Database Inputs'!C11,0) -> 224 | J30: 16 | L30: 2039 | M30: 4099 | N30: 4.476 | O30: 18347 | P30: 0 | Q30: 0 | R30: 18347 | S30: 41 | T30: 191 | U30: 7831 | V30: 26178 | W30: 2.946 | X30: 9540 | Y30: 0 | Z30: 0 | AA30: 9540 | AB30: 16638 | AE30: 2039 | AF30: 18347 | AG30: 7831 | AH30: 26178 | AJ30: 0 | AK30: 0 | AL30: 0 | AN30: 26178 | AQ30: 2039 | AR30: 18347 | AS30: 7831 | AT30: 0.04 | AU30: 6451 | AV30: 2.978 | AW30: 12207 | AZ30: 44836 | BB30: 0 | BC30: 0 | BD30: 0 | BE30: 44836 | BH30: 2039 | BI30: 0 | BJ30: 4099 | BK30: 11.076 | BL30: 45401 | BM30: 0.21 | BN30: 33869 | BP30: 79270 | BR30: 0 | BT30: 79270 | BW30: 2039 | BX30: 18347 | BY30: 7831 | BZ30: 6451 | CA30: 32629 | CC30: 0 | CD30: 0 | CE30: 0 | CG30: 32629
A31: 8) Non-Gas Fuel Loss Factor | C31: =+'Gas Input Table Summary'!$D$21 -> 0.073 | J31: 17 | L31: 2040 | M31: 4099 | N31: 4.61 | O31: 18896 | P31: 0 | Q31: 0 | R31: 18896 | S31: 41 | T31: 193 | U31: 7913 | V31: 26809 | W31: 3.035 | X31: 9828 | Y31: 0 | Z31: 0 | AA31: 9828 | AB31: 16981 | AE31: 2040 | AF31: 18896 | AG31: 7913 | AH31: 26809 | AJ31: 0 | AK31: 0 | AL31: 0 | AN31: 26809 | AQ31: 2040 | AR31: 18896 | AS31: 7913 | AT31: 0.041 | AU31: 6612 | AV31: 3.047 | AW31: 12490 | AZ31: 45911 | BB31: 0 | BC31: 0 | BD31: 0 | BE31: 45911 | BH31: 2040 | BI31: 0 | BJ31: 4099 | BK31: 11.408 | BL31: 46761 | BM31: 0.216 | BN31: 34836 | BP31: 81597 | BR31: 0 | BT31: 81597 | BW31: 2040 | BX31: 18896 | BY31: 7913 | BZ31: 6612 | CA31: 33421 | CC31: 0 | CD31: 0 | CE31: 0 | CG31: 33421
E32: 24) Total Annual Dk Saved = | F32: =+'Total Program Inputs'!G12 -> 4099 | J32: 18 | L32: 2041 | M32: 4099 | N32: 4.748 | O32: 19462 | P32: 0 | Q32: 0 | R32: 19462 | S32: 41 | T32: 195 | U32: 7995 | V32: 27457 | W32: 3.126 | X32: 10123 | Y32: 0 | Z32: 0 | AA32: 10123 | AB32: 17334 | AE32: 2041 | AF32: 19462 | AG32: 7995 | AH32: 27457 | AJ32: 0 | AK32: 0 | AL32: 0 | AN32: 27457 | AQ32: 2041 | AR32: 19462 | AS32: 7995 | AT32: 0.042 | AU32: 6774 | AV32: 3.117 | AW32: 12777 | AZ32: 47008 | BB32: 0 | BC32: 0 | BD32: 0 | BE32: 47008 | BH32: 2041 | BI32: 0 | BJ32: 4099 | BK32: 11.75 | BL32: 48163 | BM32: 0.222 | BN32: 35804 | BP32: 83967 | BR32: 0 | BT32: 83967 | BW32: 2041 | BX32: 19462 | BY32: 7995 | BZ32: 6774 | CA32: 34231 | CC32: 0 | CD32: 0 | CE32: 0 | CG32: 34231
A33: 9) Gas Environmental Damage Factor = | C33: =+'Gas Input Table Summary'!$D$22 -> 2.07 | J33: 19 | L33: 2042 | M33: 4099 | N33: 4.891 | O33: 20048 | P33: 0 | Q33: 0 | R33: 20048 | S33: 41 | T33: 197 | U33: 8077 | V33: 28125 | W33: 3.219 | X33: 10424 | Y33: 0 | Z33: 0 | AA33: 10424 | AB33: 17701 | AE33: 2042 | AF33: 20048 | AG33: 8077 | AH33: 28125 | AJ33: 0 | AK33: 0 | AL33: 0 | AN33: 28125 | AQ33: 2042 | AR33: 20048 | AS33: 8077 | AT33: 0.043 | AU33: 6935 | AV33: 3.189 | AW33: 13072 | AZ33: 48132 | BB33: 0 | BC33: 0 | BD33: 0 | BE33: 48132 | BH33: 2042 | BI33: 0 | BJ33: 4099 | BK33: 12.103 | BL33: 49610 | BM33: 0.229 | BN33: 36933 | BP33: 86543 | BR33: 0 | BT33: 86543 | BW33: 2042 | BX33: 20048 | BY33: 8077 | BZ33: 6935 | CA33: 35060 | CC33: 0 | CD33: 0 | CE33: 0 | CG33: 35060
A34: Escalation Rate = | C34: =+'Gas Input Table Summary'!$D$23 -> 0.023 | E34: 25) Incentive/Participant = | F34: =ROUND('Database Inputs'!L11,0) -> 300 | J34: 20 | L34: 2043 | M34: 0 | N34: 5.037 | O34: 0 | P34: 0 | Q34: 0 | R34: 0 | S34: 0 | T34: 199 | U34: 0 | V34: 0 | W34: 3.316 | X34: 0 | Y34: 0 | Z34: 0 | AA34: 0 | AB34: 0 | AE34: 2043 | AF34: 0 | AG34: 0 | AH34: 0 | AJ34: 0 | AK34: 0 | AL34: 0 | AN34: 0 | AQ34: 2043 | AR34: 0 | AS34: 0 | AT34: 0.045 | AU34: 0 | AV34: 3.262 | AW34: 0 | AZ34: 0 | BB34: 0 | BC34: 0 | BD34: 0 | BE34: 0 | BH34: 2043 | BI34: 0 | BJ34: 0 | BK34: 12.466 | BL34: 0 | BM34: 0.236 | BN34: 0 | BP34: 0 | BR34: 0 | BT34: 0 | BW34: 2043 | BX34: 0 | BY34: 0 | BZ34: 0 | CA34: 0 | CC34: 0 | CD34: 0 | CE34: 0 | CG34: 0
J35: 21 | L35: 2044 | M35: =ROUND(IF($C$47+$F$23>L35,$F$25*$F$30,0)+IF($C$48+$G$23>L35,$G$25*$G$30,0)+IF($C$49+$H$23>L35,$H$25*$H$30,0),0) -> 0 | N35: =ROUND($C$17*(1+$C$18)^J35,3) -> 5.188 | O35: =ROUND(M35*N35,0) -> 0 | P35: =ROUND($C$25*(1+$C$26)^J35,3) -> 0 | Q35: =ROUND(M35*P35,0) -> 0 | R35: =O35+Q35 -> 0 | S35: =ROUND(M35*$C$23,1) -> 0 | T35: =ROUND($C$20*(1+$C$21)^J35,0) -> 201 | U35: =ROUND(S35*T35,0) -> 0 | V35: =ROUND(+U35+R35,0) -> 0 | W35: =ROUND($H$36*(1+$C$11)^J35,3) -> 3.416 | X35: =ROUND((1-$H$38)*(W35*M35),0) -> 0 | Y35: 0 | Z35: 0 | AA35: =SUM(X35:Z35) -> 0 | AB35: =V35-AA35 -> 0 | AE35: 2044 | AF35: =+R35 -> 0 | AG35: =+U35 -> 0 | AH35: =+AG35+AF35 -> 0 | AJ35: =ROUND(Y35,0) -> 0 | AK35: =ROUND(Z35,0) -> 0 | AL35: =SUM(AJ35:AK35) -> 0 | AN35: =+AH35-AL35 -> 0 | AQ35: 2044 | AR35: =AF35 -> 0 | AS35: =+AG35 -> 0 | AT35: =ROUND(($C$28/(1-$C$31))*(1+$C$29)^J35,3) -> 0.046 | AU35: =ROUND((IF($C$47+$F$23>$AQ35,$F$27*$F$30,0)+IF($C$48+$G$23>AQ35,$G$27*$G$30,0)+IF($C$49+$H$23>AQ35,$H$27*$H$30,0))*AT35,0) -> 0 | AV35: =ROUND($C$33*(1+$C$34)^J35,3) -> 3.337 | AW35: =ROUND(AV35*M35,0) -> 0 | AZ35: =ROUND(AR35+AS35+AU35+AW35+AY35,0) -> 0 | BB35: 0 | BC35: 0 | BD35: =BB35+BC35 -> 0 | BE35: =AZ35-BD35 -> 0 | BH35: 2044 | BI35: 0 | BJ35: =+M35 -> 0 | BK35: =ROUND($C$10*(1+$C$11)^J35,3) -> 12.84 | BL35: =ROUND(BJ35*BK35,0) -> 0 | BM35: =ROUND($C$13*(1+$C$14)^J35,3) -> 0.243 | BN35: =ROUND((IF($C$47+$F$23>BH35,$F$27*$F$30,0)+IF($C$49+$H$23>BH35,$H$27*$H$30,0)+IF($C$48+$G$23>BH35,$G$27*$G$30,0))*BM35,0) -> 0 | BP35: =BI35+BL35+BN35+BO35 -> 0 | BR35: =+BC35 -> 0 | BT35: =BP35-BR35 -> 0 | BW35: 2044 | BX35: 0 | BY35: =U35 -> 0 | BZ35: =AU35 -> 0 | CA35: =SUM(BX35:BZ35) -> 0 | CC35: =BB35 -> 0 | CD35: =BC35 -> 0 | CE35: =SUM(CC35:CD35) -> 0 | CG35: =CA35-CE35 -> 0
A36: 10) Non Gas Fuel Environmental Damage Factor = | C36: =+'Gas Input Table Summary'!$D$24 -> 0 | E36: 26) Distribution Delivery Charge | H36: =+'Gas Input Table Summary'!D58 -> 1.836 | J36: 22 | L36: 2045 | M36: 0 | N36: 5.344 | O36: 0 | P36: 0 | Q36: 0 | R36: 0 | S36: 0 | T36: 203 | U36: 0 | V36: 0 | W36: 3.518 | X36: 0 | Y36: 0 | Z36: 0 | AA36: 0 | AB36: 0 | AE36: 2045 | AF36: 0 | AG36: 0 | AH36: 0 | AJ36: 0 | AK36: 0 | AL36: 0 | AN36: 0 | AQ36: 2045 | AR36: 0 | AS36: 0 | AT36: 0.047 | AU36: 0 | AV36: 3.414 | AW36: 0 | AZ36: 0 | BB36: 0 | BC36: 0 | BD36: 0 | BE36: 0 | BH36: 2045 | BI36: 0 | BJ36: 0 | BK36: 13.225 | BL36: 0 | BM36: 0.25 | BN36: 0 | BP36: 0 | BR36: 0 | BT36: 0 | BW36: 2045 | BX36: 0 | BY36: 0 | BZ36: 0 | CA36: 0 | CC36: 0 | CD36: 0 | CE36: 0 | CG36: 0
A37: Escalation Rate = | C37: =+'Gas Input Table Summary'!$D$25 -> 0
E38: 27) Effective Income Tax Rate = | H38: =+'Gas Input Table Summary'!D59 -> 0.21 | K38: Total = | M38: =SUM(M14:M36) -> 81980 | V38: =SUM(V14:V36) -> 454218 | AA38: =SUM(AA14:AA36) -> 239402 | AB38: =SUM(AB14:AB36) -> 214816 | AD38: Total = | AH38: =SUM(AH14:AH36) -> 454218 | AL38: =SUM(AL14:AL36) -> 79654 | AN38: =SUM(AN14:AN36) -> 374564 | AP38: Total = | AZ38: =SUM(AZ14:AZ36) -> 773254 | BD38: =SUM(BD14:BD36) -> 177318 | BE38: =SUM(BE14:BE36) -> 595936 | BG38: Total = | BJ38: =SUM(BJ14:BJ36) -> 81980 | BP38: =SUM(BP14:BP36) -> 1394138 | BR38: =SUM(BR14:BR36) -> 164864 | BT38: =SUM(BT14:BT36) -> 1229274 | BZ38: Total = | CA38: =SUM(CA14:CA36) -> 560824 | CE38: =SUM(CE14:CE36) -> 177318 | CG38: =SUM(CG14:CG36) -> 383506
A39: 11) Participant Discount Rate = | C39: =+'Gas Input Table Summary'!$D$26 -> 0.1032 | E39: (Federal & State Taxes) | T39: NPV = | V39: =ROUND(V14+NPV($C$41,V15:V36),0) -> 240679 | AA39: =ROUND(AA14+NPV($C$41,AA15:AA36),0) -> 163067 | AB39: =ROUND(AB14+NPV($C$41,AB15:AB36),0) -> 77613 | AG39: NPV = | AH39: =ROUND(AH14+NPV($C$41,AH15:AH36),0) -> 240679 | AL39: =ROUND(AL14+NPV($C$41,AL15:AL36),0) -> 79654 | AN39: =+AH39-AL39 -> 161025 | AW39: NPV = | AZ39: =ROUND(AZ14+NPV($C$43,AZ15:AZ36),0) -> 616567 | BD39: =ROUND(BD14+NPV($C$43,BD15:BD36),0) -> 177318 | BE39: =AZ39-BD39 -> 439249 | BN39: NPV = | BP39: =ROUND(BP14+NPV($C$39,BP15:BP36),0) -> 622996 | BR39: =ROUND(BR14+NPV($C$39,BR15:BR36),0) -> 164864 | BT39: =ROUND(BT14+NPV($C$39,BT15:BT36),0) -> 458132 | BZ39: NPV = | CA39: =ROUND(CA14+NPV($C$41,CA15:CA36),0) -> 296356 | CE39: =ROUND(CE14+NPV($C$41,CE15:CE36),0) -> 177318 | CG39: =ROUND(CG14+NPV($C$41,CG15:CG36),0) -> 119038
A41: 12) Utility Discount Rate = | C41: =+'Gas Input Table Summary'!$D$27 -> 0.07216 | E41: Test Results | F41: NPV | G41: B/C | K41: Total NPV = | N41: =AB39 -> 77613 | AD41: Total NPV = | AG41: =AN39 -> 161025 | AP41: Total NPV = | AS41: =BE39 -> 439249 | BG41: Total NPV = | BJ41: =BT39 -> 458132 | BV41: Total NPV = | BY41: =CG39 -> 119038
E42: Ratepayer Impact Measure Test | F42: =N41 -> 77613 | G42: =N42 -> 1.48 | K42: Benefit/Cost Ratio = | N42: =ROUND(V39/AA39,2) -> 1.48 | AD42: Benefit/Cost Ratio = | AG42: =ROUND(AH39/AL39,2) -> 3.02 | AP42: Benefit/Cost Ratio = | AS42: =ROUND(AZ39/BD39,2) -> 3.48 | BG42: Benefit/Cost Ratio = | BJ42: =ROUND(BP39/BR39,2) -> 3.78 | BV42: Benefit/Cost Ratio = | BY42: =ROUND(CA39/CE39,2) -> 1.67
A43: 13) Societal Discount Rate = | C43: =+'Gas Input Table Summary'!$D$28 -> 0.0231 | E43: Utility Cost Test | F43: =AG41 -> 161025 | G43: =AG42 -> 3.02
E44: Societal Test | F44: =AS41 -> 439249 | G44: =AS42 -> 3.48 | J44: Worksheet Calculations | BV44: Worksheet Calculations
A45: 14) General Input Data Year = | C45: =+'Gas Input Table Summary'!$D$29 -> 2023 | E45: Participant Test | F45: =BJ41 -> 458132 | G45: =BJ42 -> 3.78 | J45: (A) | K45: = Average Dk/Participant Saved (21) x Number of Participants (23) for Project Life (20) | T45: (I) | U45: = (G) x (H) | AD45: Worksheet Calculations | AP45: Worksheet Calculations | BG45: Worksheet Calculations | BV45: (A) | BW45: = Table 1 (F)
E46: Total Resource Cost Test | F46: =BY41 -> 119038 | G46: =BY42 -> 1.67 | J46: (B) | K46: = Commodity Cost (3) escalated | T46: (J) | U46: = (F) + (I) | AD46: (A) | AE46: = Table 1 (F) | AP46: (A) | AQ46: = Table 1 (F) | AW46: (H) | AZ46: = Table 2 (F) | BG46: (A) | BH46: = Table 1 (N) | BL46: (G) | BM46: = (A) + (D) + (F) | BV46: (B) | BW46: = Table 1 (I)
A47: 15) Project Analysis Year 1 = | C47: =+'Total Program Inputs'!C6 -> 2023 | J47: (C) | K47: = (A) x (B) | T47: (K) | U47: = Distribution Delivery Charge (26) escalated. | AD47: (B) | AE47: = Table 1 (I) | AP47: (G) | AQ47: = Table 1 (I) | AW47: (I) | AZ47: = Direct Part. Costs (17) x No. of Part. (23) - Table 1 (N) | BG47: (B) | BH47: = Table 1 (A) | BL47: (H) | BM47: = Direct Participant Costs (17) x Number of Participants (23) | BV47: (C) | BW47: = Table 3 (D)
J48: (D) | K48: = Variable O&M Cost (6), escalated | T48: (L) | U48: = (A) x (K) x (1-Inverse of Tax Rate (27) | AD48: (C) | AE48: = Table 1 (J) | AP48: (C) | AQ48: = Non-Gas Fuel Cost (7), adjusted for losses (8), escalated.. | AW48: (J) | AZ48: = (H) + (I) | BG48: (C) | BH48: = Retail Rate (1) escalated. | BL48: (I) | BM48: = (G) - (H) | BV48: (D) | BW48: = (A) + (B) + (C)
J49: (E) | K49: = (A) x (D) | T49: (M) | U49: = Admin & Operating Costs (16a) | AD49: (D) | AE49: = Table 1 (M) | AP49: (D) | AQ49: = (C) x [Avg. Non-Gas Fuel Units/Part.Saved (22) x No. of Part. (23) | AW49: (K) | AZ49: = (G) - (J) | BG49: (D) | BH49: =(B) x (C) | BV49: (E) | BW49: = Table 3 (H)
J50: (F) | K50: = (C) + (E) | T50: (N) | U50: = Incentive Costs (16b) | AD50: (E) | AE50: = Table 1 (N) | AP50: (E) | AQ50: = Gas Environmental Damage Factor (9), escalated | BG50: (E) | BH50: = Non-Gas Fuel Retail Rate (2), escalated. | BV50: (F) | BW50: = Table 3 (I)
J51: (G) | K51: = (A) x Peak Reduction Factor (5) | T51: (O) | U51: = (L) + (M) + (N) | AD51: (F) | AE51: = (D) + (E) | AP51: (F) | AQ51: = Table 1 (A) x (E) | BG51: (F) | BH51: = (E) x [Avg. Non-Gas Fuel Units/Part.Saved (22) x No. of Part. (23) | BV51: (G) | BW51: = (E) + (F)
J52: (H) | K52: = Demand Cost (4) escalated. | T52: (P) | U52: = (J) - (O) | AD52: (G) | AE52: = (C) - (F) | AP52: (G) | AQ52: = (A) + (B) + (D) + (F) | BV52: (H) | BW52: = (D) - (G)

Sheet Programmable Tstats - Tier 1
A1: NATURAL GAS CONSERVATION PROGRAMS/DEMAND-SIDE MANAGEMENT | K1: Table 1 | AD1: Table 2 | AP1: Table 3 | BG1: Table 4 | BV1: Table 5
A2: BEN/COST ANALYSIS FOR GAS CONSERVATION | K2: Ratepayer Impact Measure Test | AD2: Utility Cost Test | AP2: Societal Test | BG2: Participant Test | BV2: Total Resource Cost Test
A4: Company: | B4: Montana-Dakota Utilities Co. | K4: Company: | M4: =B4 -> Montana-Dakota Utilities Co. | AD4: Company: | AF4: =B4 -> Montana-Dakota Utilities Co. | AP4: Company: | AR4: =AF4 -> Montana-Dakota Utilities Co. | BH4: Company: | BI4: =AR4 -> Montana-Dakota Utilities Co. | BW4: Company: | BX4: =BI4 -> Montana-Dakota Utilities Co.
A5: Project: | B5: ='Database Inputs'!A12 -> Programmable Thermostats - Tier 1 | K5: Project: | M5: =$B$5 -> Programmable Thermostats - Tier 1 | AD5: Project: | AF5: =$B$5 -> Programmable Thermostats - Tier 1 | AP5: Project: | AR5: =$B$5 -> Programmable Thermostats - Tier 1 | BH5: Project: | BI5: =$B$5 -> Programmable Thermostats - Tier 1 | BW5: Project: | BX5: =$B$5 -> Programmable Thermostats - Tier 1
A6: Program Years: | B6: ='Total Program'!$B$6 -> 2023
N7: Benefits | X7: Costs | AF7: Benefits | AJ7: Costs | AR7: Benefits | BB7: Costs | BI7: Benefits | BR7: Costs | BX7: Benefits | CC7: Costs
A8: Input Data | F8: =+'Total Program Inputs'!C6 -> 2023 | AB8: Annual | AN8: Annual | AT8: Non-Gas | BE8: Annual | BT8: Annual | CG8: Annual
M9: Total | N9: Gas | O9: Gas | P9: Variable | Q9: Variable | R9: Total | S9: Peak Dk | T9: Demand | U9: Total | W9: Distribution | Y9: Program | AA9: Total | AB9: Benefits | AF9: Total | AG9: Total | AH9: Annual | AJ9: Program | AL9: Utility | AN9: Benefits | AR9: Total | AS9: Total | AT9: Energy | AU9: Non-Gas | AV9: Environmental | AW9: Environmental | AZ9: Annual | BB9: Utility | BC9: Participants' | BD9: Annual | BE9: Benefits | BJ9: Total | BL9: Gas | BM9: Non-Gas | BN9: Non-Gas | BP9: Total | BR9: Direct | BT9: Benefits | BX9: Total | BY9: Total | BZ9: Non-Gas | CA9: Total | CC9: Utility | CD9: Participants' | CG9: Benefits
A10: 1) Retail Rate ($/Dk) = | C10: =+'Gas Input Table Summary'!$D$7 -> 6.902 | E10: 16) Utility Project Costs | M10: Energy | N10: Commodity | O10: Commodity | P10: O & M | Q10: O & M | R10: Energy | S10: Demand | T10: Savings | U10: Demand | V10: Total | W10: Delivery | X10: Lost | Y10: Admin | Z10: Incentive | AA10: Program | AB10: Less | AF10: Energy | AG10: Demand | AH10: Total | AJ10: Admin | AK10: Incentive | AL10: Program | AN10: Less | AR10: Energy | AS10: Demand | AT10: Savings | AU10: Energy | AV10: Damage | AW10: Damage | AZ10: Total | BB10: Program | BC10: Costs Net | BD10: Total | BE10: Less | BI10: Incentives | BJ10: Energy | BK10: Retail | BL10: Bill | BM10: Fuel | BN10: Energy | BP10: Annual | BR10: Participant | BT10: Less | BX10: Energy | BY10: Demand | BZ10: Energy | CA10: Annual | CC10: Program | CD10: Costs Net | CE10: Total | CG10: Less
A11: Escalation Rate = | C11: =+'Gas Input Table Summary'!$D$8 -> 0.03 | E11: 16a) Administrative & Operating Costs = | F11: =+'Total Program Inputs'!M13 -> 203 | J11: t | M11: Reduction | N11: Cost/Dk | O11: Savings | P11: Cost/Dk | Q11: Savings | R11: Savings | S11: Reduction | T11: Per Unit | U11: Savings | V11: Savings | W11: Charge | X11: Margin | Y11: Costs | Z11: Costs | AA11: Costs | AB11: Costs | AF11: Savings | AG11: Savings | AH11: Savings | AJ11: Costs | AK11: Costs | AL11: Costs | AN11: Costs | AR11: Savings | AS11: Savings | AT11: ($/Part.) | AU11: Savings | AV11: Savings/Dk | AW11: Savings | AZ11: Savings | BB11: Costs | BC11: of Rebate | BD11: Costs | BE11: Costs | BI11: Received | BJ11: Reduction | BK11: Rate | BL11: Savings | BM11: Retail Rate | BN11: Savings | BP11: Benefits | BR11: Costs | BT11: Costs | BX11: Savings | BY11: Savings | BZ11: Savings | CA11: Benefits | CC11: Costs | CD11: of Rebate | CE11: Costs | CG11: Costs
E12: 16b) Incentive Costs = | F12: =+'Total Program Inputs'!I13 -> 1095 | L12: Year | M12: (A) | N12: (B) | O12: (C) | P12: (D) | Q12: (E) | R12: (F) | S12: (G) | T12: (H) | U12: (I) | V12: (J) | W12: (K) | X12: (L) | Y12: (M) | Z12: (N) | AA12: (O) | AB12: (P) | AE12: Year | AF12: (A) | AG12: (B) | AH12: (C) | AJ12: (D) | AK12: (E) | AL12: (F) | AN12: (G) | AQ12: Year | AR12: (A) | AS12: (B) | AT12: (C) | AU12: (D) | AV12: (E) | AW12: (F) | AZ12: (G) | BB12: (H) | BC12: (I) | BD12: (J) | BE12: (K) | BH12: Year | BI12: (A) | BJ12: (B) | BK12: (C) | BL12: (D) | BM12: (E) | BN12: (F) | BP12: (G) | BR12: (H) | BT12: (I) | BW12: Year | BX12: (A) | BY12: (B) | BZ12: (C) | CA12: (D) | CC12: (E) | CD12: (F) | CE12: (G) | CG12: (H)
A13: 2) Non-Gas Fuel Retail Rate ($/Fuel Unit) = | C13: =+'Gas Input Table Summary'!$D$9 -> 0.13068 | E13: 16c) Total Utility Project Costs = | F13: =SUM(F11:F12) -> 1298
A14: Escalation Rate = | C14: =+'Gas Input Table Summary'!$D$10 -> 0.03 | J14: =$C$47-$C$45 -> 0 | L14: =$C$47 -> 2023 | M14: =ROUND(IF($C$47+$F$23>L14,F25*F30,0),0) -> 168 | N14: =ROUND($C$17*(1+$C$18)^J14,3) -> 2.789 | O14: =ROUND(M14*N14,0) -> 469 | P14: =ROUND($C$25*(1+$C$26)^J14,3) -> 0 | Q14: =ROUND(M14*P14,0) -> 0 | R14: =O14+Q14 -> 469 | S14: =ROUND(M14*$C$23,1) -> 1.7 | T14: =ROUND($C$20*(1+$C$21)^J14,0) -> 163 | U14: =ROUND(S14*T14,0) -> 277 | V14: =ROUND(+U14+R14,0) -> 746 | W14: =ROUND($H$36*(1+$C$11)^J14,3) -> 1.836 | X14: =ROUND((1-$H$38)*(W14*M14),0) -> 244 | Y14: =ROUND($F$11,0) -> 203 | Z14: =ROUND($F$12,0) -> 1095 | AA14: =SUM(X14:Z14) -> 1542 | AB14: =V14-AA14 -> -796 | AE14: =$C$47 -> 2023 | AF14: =+R14 -> 469 | AG14: =+U14 -> 277 | AH14: =+AG14+AF14 -> 746 | AJ14: =ROUND(Y14,0) -> 203 | AK14: =ROUND(Z14,0) -> 1095 | AL14: =SUM(AJ14:AK14) -> 1298 | AN14: =+AH14-AL14 -> -552 | AQ14: =$C$47 -> 2023 | AR14: =AF14 -> 469 | AS14: =+AG14 -> 277 | AT14: =ROUND(($C$28/(1-$C$31))*(1+$C$29)^J14,3) -> 0.025 | AU14: =ROUND(IF($C$47+$F$23>$AQ14,$F$30*$F$27,0)*AT14,0) -> 0 | AV14: =ROUND($C$33*(1+$C$34)^J14,3) -> 2.07 | AW14: =ROUND(AV14*M14,0) -> 348 | AZ14: =ROUND(AR14+AS14+AU14+AW14+AY14,0) -> 1094 | BB14: =ROUND($F$13,0) -> 1298 | BC14: =ROUND((F15*F30)-Z14,0) -> 1095 | BD14: =BB14+BC14 -> 2393 | BE14: =AZ14-BD14 -> -1299 | BH14: =$C$47 -> 2023 | BI14: =+F12 -> 1095 | BJ14: =+M14 -> 168 | BK14: =ROUND($C$10*(1+$C$11)^J14,3) -> 6.902 | BL14: =ROUND(BJ14*BK14,0) -> 1160 | BM14: =ROUND($C$13*(1+$C$14)^J14,3) -> 0.131 | BN14: =ROUND(IF($C$47+$F$23>$BH14,$F$30*$F$27,0)*BM14,0) -> 0 | BP14: =BI14+BL14+BN14+BO14 -> 2255 | BR14: =ROUND(F15*F30,0) -> 2190 | BT14: =BP14-BR14 -> 65 | BW14: =$C$47 -> 2023 | BX14: =$R14 -> 469 | BY14: =U14 -> 277 | BZ14: =AU14 -> 0 | CA14: =SUM(BX14:BZ14) -> 746 | CC14: =BB14 -> 1298 | CD14: =BC14 -> 1095 | CE14: =SUM(CC14:CD14) -> 2393 | CG14: =CA14-CE14 -> -1647
A15: Non-Gas Fuel Units (ie. kWh,Gallons, etc) = | C15: =+'Gas Input Table Summary'!$D$11 -> Kwh | E15: 17) Direct Participant Costs ($/Part.) = | F15: =ROUND('Database Inputs'!K12,0) -> 30 | J15: =J14+1 -> 1 | L15: =L14+1 -> 2024 | M15: =ROUND(IF($C$47+$F$23>L15,$F$25*$F$30,0)+IF($C$48+$G$23>L15,$G$25*$G$30,0),0) -> 168 | N15: 2.873 | O15: 483 | P15: 0 | Q15: =ROUND(M15*P15,0) -> 0 | R15: 483 | S15: 1.7 | T15: 164 | U15: =ROUND(S15*T15,0) -> 279 | V15: =ROUND(+U15+R15,0) -> 762 | W15: =ROUND($H$36*(1+$C$11)^J15,3) -> 1.891 | X15: =ROUND((1-$H$38)*(W15*M15),0) -> 251 | Y15: =ROUND($G$11,0) -> 0 | Z15: =ROUND($G$12,0) -> 0 | AA15: =SUM(X15:Z15) -> 251 | AB15: 511 | AE15: =AE14+1 -> 2024 | AF15: 483 | AG15: 279 | AH15: =+AG15+AF15 -> 762 | AJ15: =ROUND(Y15,0) -> 0 | AK15: 0 | AL15: 0 | AN15: =+AH15-AL15 -> 762 | AQ15: =AQ14+1 -> 2024 | AR15: 483 | AS15: 279 | AT15: 0.025 | AU15: =ROUND((IF($C$47+$F$23>$AQ15,$F$27*$F$30,0)+IF($C$48+$G$23>AQ15,$G$27*$G$30,0))*AT15,0) -> 0 | AV15: 2.118 | AW15: 356 | AZ15: =ROUND(AR15+AS15+AU15+AW15+AY15,0) -> 1118 | BB15: =ROUND($G$13,0) -> 0 | BC15: =ROUND(($G$15*$G$30)-$Z$15,0) -> 0 | BD15: =BB15+BC15 -> 0 | BE15: =AZ15-BD15 -> 1118 | BH15: =BH14+1 -> 2024 | BI15: =+G12 -> 0 | BJ15: 168 | BK15: 7.109 | BL15: =ROUND(BJ15*BK15,0) -> 1194 | BM15: 0.135 | BN15: =ROUND((IF($C$47+$F$23>BH15,$F$27*$F$30,0)+IF($C$48+$G$23>BH15,$G$27*$G$30,0))*BM15,0) -> 0 | BP15: 1194 | BR15: =ROUND($G$15*$G$30,0) -> 0 | BT15: =BP15-BR15 -> 1194 | BW15: =BW14+1 -> 2024 | BX15: 483 | BY15: =U15 -> 279 | BZ15: =AU15 -> 0 | CA15: =SUM(BX15:BZ15) -> 762 | CC15: =BB15 -> 0 | CD15: 0 | CE15: =SUM(CC15:CD15) -> 0 | CG15: =CA15-CE15 -> 762
J16: 2 | L16: 2025 | M16: =ROUND(IF($C$47+$F$23>L16,$F$25*$F$30,0)+IF($C$48+$G$23>L16,$G$25*$G$30,0)+IF($C$49+$H$23>L16,$H$25*$H$30,0),0) -> 168 | N16: 2.959 | O16: 497 | P16: 0 | Q16: 0 | R16: 497 | S16: 1.7 | T16: =ROUND($C$20*(1+$C$21)^J16,0) -> 166 | U16: =ROUND(S16*T16,0) -> 282 | V16: =ROUND(+U16+R16,0) -> 779 | W16: =ROUND($H$36*(1+$C$11)^J16,3) -> 1.948 | X16: =ROUND((1-$H$38)*(W16*M16),0) -> 259 | Y16: =ROUND($H$11,0) -> 0 | Z16: =ROUND($H$12,0) -> 0 | AA16: =SUM(X16:Z16) -> 259 | AB16: =V16-AA16 -> 520 | AE16: 2025 | AF16: 497 | AG16: 282 | AH16: =+AG16+AF16 -> 779 | AJ16: 0 | AK16: 0 | AL16: =SUM(AJ16:AK16) -> 0 | AN16: =+AH16-AL16 -> 779 | AQ16: 2025 | AR16: 497 | AS16: 282 | AT16: =ROUND(($C$28/(1-$C$31))*(1+$C$29)^J16,3) -> 0.026 | AU16: =ROUND((IF($C$47+$F$23>$AQ16,$F$27*$F$30,0)+IF($C$48+$G$23>AQ16,$G$27*$G$30,0)+IF($C$49+$H$23>AQ16,$H$27*$H$30,0))*AT16,0) -> 0 | AV16: =ROUND($C$33*(1+$C$34)^J16,3) -> 2.166 | AW16: =ROUND(AV16*M16,0) -> 364 | AZ16: =ROUND(AR16+AS16+AU16+AW16+AY16,0) -> 1143 | BB16: =ROUND($H$13,0) -> 0 | BC16: =ROUND(($H$15*$H$30)-$Z$16,0) -> 0 | BD16: =BB16+BC16 -> 0 | BE16: 1143 | BH16: 2025 | BI16: =ROUND(H12,0) -> 0 | BJ16: 168 | BK16: =ROUND($C$10*(1+$C$11)^J16,3) -> 7.322 | BL16: =ROUND(BJ16*BK16,0) -> 1230 | BM16: =ROUND($C$13*(1+$C$14)^J16,3) -> 0.139 | BN16: =ROUND((IF($C$47+$F$23>BH16,$F$27*$F$30,0)+IF($C$49+$H$23>BH16,$H$27*$H$30,0)+IF($C$48+$G$23>BH16,$G$27*$G$30,0))*BM16,0) -> 0 | BP16: =BI16+BL16+BN16+BO16 -> 1230 | BR16: =ROUND($H$15*$H$30,0) -> 0 | BT16: =BP16-BR16 -> 1230 | BW16: 2025 | BX16: 497 | BY16: 282 | BZ16: 0 | CA16: 779 | CC16: 0 | CD16: 0 | CE16: =SUM(CC16:CD16) -> 0 | CG16: =CA16-CE16 -> 779
A17: 3) Commodity Cost ($/Dk) = | C17: =+'Gas Input Table Summary'!$D$12 -> 2.789 | E17: 18) Participant Non-Energy Costs (Annual $/Part.) = | F17: =+'Gas Input Table Summary'!$D$35 -> 0 | J17: 3 | L17: 2026 | M17: =ROUND(IF($C$47+$F$23>L17,$F$25*$F$30,0)+IF($C$48+$G$23>L17,$G$25*$G$30,0)+IF($C$49+$H$23>L17,$H$25*$H$30,0),0) -> 168 | N17: =ROUND($C$17*(1+$C$18)^J17,3) -> 3.048 | O17: 512 | P17: 0 | Q17: 0 | R17: 512 | S17: 1.7 | T17: 168 | U17: =ROUND(S17*T17,0) -> 286 | V17: 798 | W17: 2.006 | X17: 266 | Y17: 0 | Z17: 0 | AA17: 266 | AB17: 532 | AE17: 2026 | AF17: 512 | AG17: 286 | AH17: 798 | AJ17: 0 | AK17: 0 | AL17: 0 | AN17: 798 | AQ17: 2026 | AR17: 512 | AS17: 286 | AT17: 0.027 | AU17: =ROUND((IF($C$47+$F$23>$AQ17,$F$27*$F$30,0)+IF($C$48+$G$23>AQ17,$G$27*$G$30,0)+IF($C$49+$H$23>AQ17,$H$27*$H$30,0))*AT17,0) -> 0 | AV17: 2.216 | AW17: 372 | AZ17: 1170 | BB17: 0 | BC17: 0 | BD17: 0 | BE17: 1170 | BH17: 2026 | BI17: 0 | BJ17: 168 | BK17: 7.542 | BL17: =ROUND(BJ17*BK17,0) -> 1267 | BM17: 0.143 | BN17: =ROUND((IF($C$47+$F$23>BH17,$F$27*$F$30,0)+IF($C$49+$H$23>BH17,$H$27*$H$30,0)+IF($C$48+$G$23>BH17,$G$27*$G$30,0))*BM17,0) -> 0 | BP17: 1267 | BR17: =+BC17 -> 0 | BT17: 1267 | BW17: 2026 | BX17: 512 | BY17: 286 | BZ17: 0 | CA17: 798 | CC17: 0 | CD17: 0 | CE17: 0 | CG17: =CA17-CE17 -> 798
A18: Escalation Rate = | C18: =+'Gas Input Table Summary'!$D$13 -> 0.03 | E18: Escalation Rate = | F18: =+'Gas Input Table Summary'!$D$38 -> 0 | J18: 4 | L18: 2027 | M18: 168 | N18: 3.139 | O18: 527 | P18: 0 | Q18: 0 | R18: 527 | S18: 1.7 | T18: 169 | U18: 287 | V18: 814 | W18: 2.066 | X18: 274 | Y18: 0 | Z18: 0 | AA18: 274 | AB18: 540 | AE18: 2027 | AF18: 527 | AG18: 287 | AH18: 814 | AJ18: 0 | AK18: 0 | AL18: 0 | AN18: 814 | AQ18: 2027 | AR18: 527 | AS18: 287 | AT18: 0.028 | AU18: =ROUND((IF($C$47+$F$23>$AQ18,$F$27*$F$30,0)+IF($C$48+$G$23>AQ18,$G$27*$G$30,0)+IF($C$49+$H$23>AQ18,$H$27*$H$30,0))*AT18,0) -> 0 | AV18: 2.267 | AW18: 381 | AZ18: 1195 | BB18: 0 | BC18: 0 | BD18: 0 | BE18: 1195 | BH18: 2027 | BI18: 0 | BJ18: 168 | BK18: 7.768 | BL18: 1305 | BM18: 0.147 | BN18: 0 | BP18: 1305 | BR18: 0 | BT18: 1305 | BW18: 2027 | BX18: 527 | BY18: 287 | BZ18: 0 | CA18: 814 | CC18: 0 | CD18: 0 | CE18: 0 | CG18: 814
J19: 5 | L19: 2028 | M19: 168 | N19: =ROUND($C$17*(1+$C$18)^J19,3) -> 3.233 | O19: =ROUND(M19*N19,0) -> 543 | P19: 0 | Q19: 0 | R19: =O19+Q19 -> 543 | S19: =ROUND(M19*$C$23,1) -> 1.7 | T19: 171 | U19: 291 | V19: 834 | W19: 2.128 | X19: 282 | Y19: 0 | Z19: 0 | AA19: 282 | AB19: 552 | AE19: 2028 | AF19: 543 | AG19: 291 | AH19: 834 | AJ19: 0 | AK19: 0 | AL19: 0 | AN19: 834 | AQ19: 2028 | AR19: 543 | AS19: 291 | AT19: 0.029 | AU19: 0 | AV19: =ROUND($C$33*(1+$C$34)^J19,3) -> 2.319 | AW19: 390 | AZ19: 1224 | BB19: 0 | BC19: 0 | BD19: 0 | BE19: 1224 | BH19: 2028 | BI19: 0 | BJ19: 168 | BK19: 8.001 | BL19: 1344 | BM19: 0.151 | BN19: 0 | BP19: 1344 | BR19: 0 | BT19: 1344 | BW19: 2028 | BX19: 543 | BY19: 291 | BZ19: 0 | CA19: 834 | CC19: 0 | CD19: 0 | CE19: 0 | CG19: 834
A20: 4) Demand Cost ($/Unit/Yr) = | C20: =+'Gas Input Table Summary'!$D$14 -> 162.85 | E20: 19) Participant Non-Energy Savings (Annual $/Part) = | F20: =+'Gas Input Table Summary'!$D$41 -> 0 | J20: 6 | L20: 2029 | M20: 168 | N20: 3.33 | O20: 559 | P20: 0 | Q20: 0 | R20: 559 | S20: 1.7 | T20: 173 | U20: 294 | V20: 853 | W20: 2.192 | X20: 291 | Y20: 0 | Z20: 0 | AA20: 291 | AB20: 562 | AE20: 2029 | AF20: 559 | AG20: 294 | AH20: 853 | AJ20: 0 | AK20: 0 | AL20: 0 | AN20: 853 | AQ20: 2029 | AR20: 559 | AS20: 294 | AT20: 0.029 | AU20: 0 | AV20: 2.373 | AW20: 399 | AZ20: 1252 | BB20: 0 | BC20: 0 | BD20: 0 | BE20: 1252 | BH20: 2029 | BI20: 0 | BJ20: 168 | BK20: 8.241 | BL20: 1384 | BM20: 0.156 | BN20: 0 | BP20: 1384 | BR20: 0 | BT20: 1384 | BW20: 2029 | BX20: 559 | BY20: 294 | BZ20: 0 | CA20: =SUM(BX20:BZ20) -> 853 | CC20: 0 | CD20: 0 | CE20: 0 | CG20: 853
A21: Escalation Rate = | C21: =+'Gas Input Table Summary'!$D$15 -> 0.01 | E21: Escalation Rate = | F21: =+'Gas Input Table Summary'!$D$44 -> 0 | J21: 7 | L21: 2030 | M21: 168 | N21: 3.43 | O21: 576 | P21: 0 | Q21: 0 | R21: 576 | S21: 1.7 | T21: 175 | U21: 298 | V21: 874 | W21: 2.258 | X21: 300 | Y21: 0 | Z21: 0 | AA21: 300 | AB21: 574 | AE21: 2030 | AF21: 576 | AG21: 298 | AH21: 874 | AJ21: 0 | AK21: 0 | AL21: 0 | AN21: 874 | AQ21: 2030 | AR21: 576 | AS21: 298 | AT21: 0.03 | AU21: 0 | AV21: 2.427 | AW21: 408 | AZ21: 1282 | BB21: 0 | BC21: 0 | BD21: 0 | BE21: 1282 | BH21: 2030 | BI21: 0 | BJ21: 168 | BK21: 8.489 | BL21: 1426 | BM21: 0.161 | BN21: 0 | BP21: 1426 | BR21: 0 | BT21: 1426 | BW21: 2030 | BX21: 576 | BY21: 298 | BZ21: 0 | CA21: 874 | CC21: 0 | CD21: 0 | CE21: 0 | CG21: 874
J22: 8 | L22: 2031 | M22: 168 | N22: 3.533 | O22: 594 | P22: 0 | Q22: 0 | R22: 594 | S22: 1.7 | T22: 176 | U22: 299 | V22: 893 | W22: 2.326 | X22: 309 | Y22: 0 | Z22: 0 | AA22: 309 | AB22: 584 | AE22: 2031 | AF22: 594 | AG22: 299 | AH22: 893 | AJ22: 0 | AK22: 0 | AL22: 0 | AN22: 893 | AQ22: 2031 | AR22: 594 | AS22: 299 | AT22: 0.031 | AU22: 0 | AV22: 2.483 | AW22: 417 | AZ22: 1310 | BB22: 0 | BC22: 0 | BD22: 0 | BE22: 1310 | BH22: 2031 | BI22: 0 | BJ22: 168 | BK22: 8.743 | BL22: 1469 | BM22: 0.166 | BN22: 0 | BP22: 1469 | BR22: 0 | BT22: 1469 | BW22: 2031 | BX22: 594 | BY22: 299 | BZ22: 0 | CA22: 893 | CC22: 0 | CD22: 0 | CE22: 0 | CG22: 893
A23: 5) Peak Reduction Factor = | C23: =+'Gas Input Table Summary'!$D$16 -> 0.01 | E23: 20) Project Life (Years) = | F23: =ROUND('Database Inputs'!D12,0) -> 10 | J23: 9 | L23: 2032 | M23: 168 | N23: 3.639 | O23: 611 | P23: 0 | Q23: 0 | R23: 611 | S23: 1.7 | T23: 178 | U23: 303 | V23: 914 | W23: 2.396 | X23: 318 | Y23: 0 | Z23: 0 | AA23: 318 | AB23: 596 | AE23: 2032 | AF23: 611 | AG23: 303 | AH23: 914 | AJ23: 0 | AK23: 0 | AL23: 0 | AN23: 914 | AQ23: 2032 | AR23: 611 | AS23: 303 | AT23: 0.032 | AU23: 0 | AV23: 2.54 | AW23: 427 | AZ23: 1341 | BB23: 0 | BC23: 0 | BD23: 0 | BE23: 1341 | BH23: 2032 | BI23: 0 | BJ23: 168 | BK23: 9.006 | BL23: 1513 | BM23: 0.171 | BN23: 0 | BP23: 1513 | BR23: 0 | BT23: 1513 | BW23: 2032 | BX23: 611 | BY23: 303 | BZ23: 0 | CA23: 914 | CC23: 0 | CD23: 0 | CE23: 0 | CG23: 914
J24: 10 | L24: 2033 | M24: =ROUND(IF($C$47+$F$23>L24,$F$25*$F$30,0)+IF($C$48+$G$23>L24,$G$25*$G$30,0)+IF($C$49+$H$23>L24,$H$25*$H$30,0),0) -> 0 | N24: 3.748 | O24: 0 | P24: 0 | Q24: 0 | R24: 0 | S24: 0 | T24: 180 | U24: 0 | V24: 0 | W24: 2.467 | X24: 0 | Y24: 0 | Z24: 0 | AA24: 0 | AB24: 0 | AE24: 2033 | AF24: 0 | AG24: 0 | AH24: 0 | AJ24: 0 | AK24: 0 | AL24: 0 | AN24: 0 | AQ24: 2033 | AR24: 0 | AS24: 0 | AT24: 0.033 | AU24: 0 | AV24: 2.599 | AW24: 0 | AZ24: 0 | BB24: 0 | BC24: 0 | BD24: 0 | BE24: 0 | BH24: 2033 | BI24: 0 | BJ24: 0 | BK24: 9.276 | BL24: 0 | BM24: 0.176 | BN24: 0 | BP24: 0 | BR24: 0 | BT24: 0 | BW24: 2033 | BX24: 0 | BY24: 0 | BZ24: 0 | CA24: 0 | CC24: 0 | CD24: 0 | CE24: 0 | CG24: 0
A25: 6) Variable O&M ($/Dk) = | C25: =+'Gas Input Table Summary'!$D$17 -> 0 | E25: 21) Avg. Dk/Part. Saved = | F25: =+ROUND(F32/F30,3) -> 2.301 | J25: 11 | L25: 2034 | M25: =ROUND(IF($C$47+$F$23>L25,$F$25*$F$30,0)+IF($C$48+$G$23>L25,$G$25*$G$30,0)+IF($C$49+$H$23>L25,$H$25*$H$30,0),0) -> 0 | N25: =ROUND($C$17*(1+$C$18)^J25,3) -> 3.861 | O25: =ROUND(M25*N25,0) -> 0 | P25: 0 | Q25: 0 | R25: 0 | S25: =ROUND(M25*$C$23,1) -> 0 | T25: =ROUND($C$20*(1+$C$21)^J25,0) -> 182 | U25: 0 | V25: 0 | W25: 2.541 | X25: 0 | Y25: 0 | Z25: 0 | AA25: 0 | AB25: 0 | AE25: 2034 | AF25: 0 | AG25: 0 | AH25: 0 | AJ25: 0 | AK25: 0 | AL25: 0 | AN25: 0 | AQ25: 2034 | AR25: 0 | AS25: 0 | AT25: 0.034 | AU25: 0 | AV25: 2.658 | AW25: 0 | AZ25: 0 | BB25: 0 | BC25: 0 | BD25: 0 | BE25: 0 | BH25: 2034 | BI25: 0 | BJ25: 0 | BK25: 9.554 | BL25: 0 | BM25: 0.181 | BN25: 0 | BP25: 0 | BR25: 0 | BT25: 0 | BW25: 2034 | BX25: 0 | BY25: 0 | BZ25: 0 | CA25: 0 | CC25: 0 | CD25: 0 | CE25: 0 | CG25: 0
A26: Escalation Rate = | C26: =+'Gas Input Table Summary'!$D$18 -> 0 | J26: 12 | L26: 2035 | M26: 0 | N26: 3.976 | O26: 0 | P26: 0 | Q26: 0 | R26: 0 | S26: 0 | T26: 184 | U26: 0 | V26: 0 | W26: 2.618 | X26: 0 | Y26: 0 | Z26: 0 | AA26: 0 | AB26: 0 | AE26: 2035 | AF26: 0 | AG26: 0 | AH26: 0 | AJ26: 0 | AK26: 0 | AL26: 0 | AN26: 0 | AQ26: 2035 | AR26: 0 | AS26: 0 | AT26: 0.035 | AU26: 0 | AV26: 2.719 | AW26: 0 | AZ26: 0 | BB26: 0 | BC26: 0 | BD26: 0 | BE26: 0 | BH26: 2035 | BI26: 0 | BJ26: 0 | BK26: 9.841 | BL26: 0 | BM26: 0.186 | BN26: 0 | BP26: 0 | BR26: 0 | BT26: 0 | BW26: 2035 | BX26: 0 | BY26: 0 | BZ26: 0 | CA26: 0 | CC26: 0 | CD26: 0 | CE26: 0 | CG26: 0
E27: 22) Avg Non-Gas Fuel Units/Part. Saved = | F27: =+'Database Inputs'!H12 -> 0 | J27: 13 | L27: 2036 | M27: 0 | N27: =ROUND($C$17*(1+$C$18)^J27,3) -> 4.096 | O27: 0 | P27: 0 | Q27: 0 | R27: 0 | S27: 0 | T27: 185 | U27: 0 | V27: 0 | W27: 2.696 | X27: 0 | Y27: 0 | Z27: 0 | AA27: 0 | AB27: 0 | AE27: 2036 | AF27: 0 | AG27: 0 | AH27: 0 | AJ27: 0 | AK27: 0 | AL27: 0 | AN27: 0 | AQ27: 2036 | AR27: 0 | AS27: 0 | AT27: 0.036 | AU27: 0 | AV27: 2.782 | AW27: 0 | AZ27: 0 | BB27: 0 | BC27: 0 | BD27: 0 | BE27: 0 | BH27: 2036 | BI27: 0 | BJ27: 0 | BK27: 10.136 | BL27: 0 | BM27: 0.192 | BN27: 0 | BP27: 0 | BR27: 0 | BT27: 0 | BW27: 2036 | BX27: 0 | BY27: 0 | BZ27: 0 | CA27: 0 | CC27: 0 | CD27: 0 | CE27: 0 | CG27: 0
A28: 7) Non-Gas Fuel Cost ($/Fuel Unit) = | C28: =+'Gas Input Table Summary'!$D$19 -> 0.02284 | E28: 22a) Avg Additional Non-Gas Fuel Units/ Part. Used = | F28: 0 | J28: 14 | L28: 2037 | M28: 0 | N28: 4.219 | O28: 0 | P28: 0 | Q28: 0 | R28: 0 | S28: 0 | T28: 187 | U28: 0 | V28: 0 | W28: 2.777 | X28: 0 | Y28: 0 | Z28: 0 | AA28: 0 | AB28: 0 | AE28: 2037 | AF28: 0 | AG28: 0 | AH28: 0 | AJ28: 0 | AK28: 0 | AL28: 0 | AN28: 0 | AQ28: 2037 | AR28: 0 | AS28: 0 | AT28: 0.037 | AU28: 0 | AV28: 2.846 | AW28: 0 | AZ28: 0 | BB28: 0 | BC28: 0 | BD28: 0 | BE28: 0 | BH28: 2037 | BI28: 0 | BJ28: 0 | BK28: 10.44 | BL28: 0 | BM28: 0.198 | BN28: 0 | BP28: 0 | BR28: 0 | BT28: 0 | BW28: 2037 | BX28: 0 | BY28: 0 | BZ28: 0 | CA28: 0 | CC28: 0 | CD28: 0 | CE28: 0 | CG28: 0
A29: Escalation Rate = | C29: =+'Gas Input Table Summary'!$D$20 -> 0.03 | J29: 15 | L29: 2038 | M29: 0 | N29: 4.345 | O29: 0 | P29: 0 | Q29: 0 | R29: 0 | S29: 0 | T29: 189 | U29: 0 | V29: 0 | W29: 2.86 | X29: 0 | Y29: 0 | Z29: 0 | AA29: 0 | AB29: 0 | AE29: 2038 | AF29: 0 | AG29: 0 | AH29: 0 | AJ29: 0 | AK29: 0 | AL29: 0 | AN29: 0 | AQ29: 2038 | AR29: 0 | AS29: 0 | AT29: 0.038 | AU29: 0 | AV29: 2.911 | AW29: 0 | AZ29: 0 | BB29: 0 | BC29: 0 | BD29: 0 | BE29: 0 | BH29: 2038 | BI29: 0 | BJ29: 0 | BK29: 10.753 | BL29: 0 | BM29: 0.204 | BN29: 0 | BP29: 0 | BR29: 0 | BT29: 0 | BW29: 2038 | BX29: 0 | BY29: 0 | BZ29: 0 | CA29: 0 | CC29: 0 | CD29: 0 | CE29: 0 | CG29: 0
E30: 23) Number of Participants = | F30: =ROUND('Database Inputs'!C12,0) -> 73 | J30: 16 | L30: 2039 | M30: 0 | N30: 4.476 | O30: 0 | P30: 0 | Q30: 0 | R30: 0 | S30: 0 | T30: 191 | U30: 0 | V30: 0 | W30: 2.946 | X30: 0 | Y30: 0 | Z30: 0 | AA30: 0 | AB30: 0 | AE30: 2039 | AF30: 0 | AG30: 0 | AH30: 0 | AJ30: 0 | AK30: 0 | AL30: 0 | AN30: 0 | AQ30: 2039 | AR30: 0 | AS30: 0 | AT30: 0.04 | AU30: 0 | AV30: 2.978 | AW30: 0 | AZ30: 0 | BB30: 0 | BC30: 0 | BD30: 0 | BE30: 0 | BH30: 2039 | BI30: 0 | BJ30: 0 | BK30: 11.076 | BL30: 0 | BM30: 0.21 | BN30: 0 | BP30: 0 | BR30: 0 | BT30: 0 | BW30: 2039 | BX30: 0 | BY30: 0 | BZ30: 0 | CA30: 0 | CC30: 0 | CD30: 0 | CE30: 0 | CG30: 0
A31: 8) Non-Gas Fuel Loss Factor | C31: =+'Gas Input Table Summary'!$D$21 -> 0.073 | J31: 17 | L31: 2040 | M31: 0 | N31: 4.61 | O31: 0 | P31: 0 | Q31: 0 | R31: 0 | S31: 0 | T31: 193 | U31: 0 | V31: 0 | W31: 3.035 | X31: 0 | Y31: 0 | Z31: 0 | AA31: 0 | AB31: 0 | AE31: 2040 | AF31: 0 | AG31: 0 | AH31: 0 | AJ31: 0 | AK31: 0 | AL31: 0 | AN31: 0 | AQ31: 2040 | AR31: 0 | AS31: 0 | AT31: 0.041 | AU31: 0 | AV31: 3.047 | AW31: 0 | AZ31: 0 | BB31: 0 | BC31: 0 | BD31: 0 | BE31: 0 | BH31: 2040 | BI31: 0 | BJ31: 0 | BK31: 11.408 | BL31: 0 | BM31: 0.216 | BN31: 0 | BP31: 0 | BR31: 0 | BT31: 0 | BW31: 2040 | BX31: 0 | BY31: 0 | BZ31: 0 | CA31: 0 | CC31: 0 | CD31: 0 | CE31: 0 | CG31: 0
E32: 24) Total Annual Dk Saved = | F32: =+'Total Program Inputs'!G13 -> 168 | J32: 18 | L32: 2041 | M32: 0 | N32: 4.748 | O32: 0 | P32: 0 | Q32: 0 | R32: 0 | S32: 0 | T32: 195 | U32: 0 | V32: 0 | W32: 3.126 | X32: 0 | Y32: 0 | Z32: 0 | AA32: 0 | AB32: 0 | AE32: 2041 | AF32: 0 | AG32: 0 | AH32: 0 | AJ32: 0 | AK32: 0 | AL32: 0 | AN32: 0 | AQ32: 2041 | AR32: 0 | AS32: 0 | AT32: 0.042 | AU32: 0 | AV32: 3.117 | AW32: 0 | AZ32: 0 | BB32: 0 | BC32: 0 | BD32: 0 | BE32: 0 | BH32: 2041 | BI32: 0 | BJ32: 0 | BK32: 11.75 | BL32: 0 | BM32: 0.222 | BN32: 0 | BP32: 0 | BR32: 0 | BT32: 0 | BW32: 2041 | BX32: 0 | BY32: 0 | BZ32: 0 | CA32: 0 | CC32: 0 | CD32: 0 | CE32: 0 | CG32: 0
A33: 9) Gas Environmental Damage Factor = | C33: =+'Gas Input Table Summary'!$D$22 -> 2.07 | J33: 19 | L33: 2042 | M33: 0 | N33: 4.891 | O33: 0 | P33: 0 | Q33: 0 | R33: 0 | S33: 0 | T33: 197 | U33: 0 | V33: 0 | W33: 3.219 | X33: 0 | Y33: 0 | Z33: 0 | AA33: 0 | AB33: 0 | AE33: 2042 | AF33: 0 | AG33: 0 | AH33: 0 | AJ33: 0 | AK33: 0 | AL33: 0 | AN33: 0 | AQ33: 2042 | AR33: 0 | AS33: 0 | AT33: 0.043 | AU33: 0 | AV33: 3.189 | AW33: 0 | AZ33: 0 | BB33: 0 | BC33: 0 | BD33: 0 | BE33: 0 | BH33: 2042 | BI33: 0 | BJ33: 0 | BK33: 12.103 | BL33: 0 | BM33: 0.229 | BN33: 0 | BP33: 0 | BR33: 0 | BT33: 0 | BW33: 2042 | BX33: 0 | BY33: 0 | BZ33: 0 | CA33: 0 | CC33: 0 | CD33: 0 | CE33: 0 | CG33: 0
A34: Escalation Rate = | C34: =+'Gas Input Table Summary'!$D$23 -> 0.023 | E34: 25) Incentive/Participant = | F34: ='Database Inputs'!L12 -> 15 | J34: 20 | L34: 2043 | M34: 0 | N34: 5.037 | O34: 0 | P34: 0 | Q34: 0 | R34: 0 | S34: 0 | T34: 199 | U34: 0 | V34: 0 | W34: 3.316 | X34: 0 | Y34: 0 | Z34: 0 | AA34: 0 | AB34: 0 | AE34: 2043 | AF34: 0 | AG34: 0 | AH34: 0 | AJ34: 0 | AK34: 0 | AL34: 0 | AN34: 0 | AQ34: 2043 | AR34: 0 | AS34: 0 | AT34: 0.045 | AU34: 0 | AV34: 3.262 | AW34: 0 | AZ34: 0 | BB34: 0 | BC34: 0 | BD34: 0 | BE34: 0 | BH34: 2043 | BI34: 0 | BJ34: 0 | BK34: 12.466 | BL34: 0 | BM34: 0.236 | BN34: 0 | BP34: 0 | BR34: 0 | BT34: 0 | BW34: 2043 | BX34: 0 | BY34: 0 | BZ34: 0 | CA34: 0 | CC34: 0 | CD34: 0 | CE34: 0 | CG34: 0
J35: 21 | L35: 2044 | M35: =ROUND(IF($C$47+$F$23>L35,$F$25*$F$30,0)+IF($C$48+$G$23>L35,$G$25*$G$30,0)+IF($C$49+$H$23>L35,$H$25*$H$30,0),0) -> 0 | N35: =ROUND($C$17*(1+$C$18)^J35,3) -> 5.188 | O35: =ROUND(M35*N35,0) -> 0 | P35: =ROUND($C$25*(1+$C$26)^J35,3) -> 0 | Q35: =ROUND(M35*P35,0) -> 0 | R35: =O35+Q35 -> 0 | S35: =ROUND(M35*$C$23,1) -> 0 | T35: =ROUND($C$20*(1+$C$21)^J35,0) -> 201 | U35: =ROUND(S35*T35,0) -> 0 | V35: =ROUND(+U35+R35,0) -> 0 | W35: =ROUND($H$36*(1+$C$11)^J35,3) -> 3.416 | X35: =ROUND((1-$H$38)*(W35*M35),0) -> 0 | Y35: 0 | Z35: 0 | AA35: =SUM(X35:Z35) -> 0 | AB35: =V35-AA35 -> 0 | AE35: 2044 | AF35: =+R35 -> 0 | AG35: =+U35 -> 0 | AH35: =+AG35+AF35 -> 0 | AJ35: =ROUND(Y35,0) -> 0 | AK35: =ROUND(Z35,0) -> 0 | AL35: =SUM(AJ35:AK35) -> 0 | AN35: =+AH35-AL35 -> 0 | AQ35: 2044 | AR35: =AF35 -> 0 | AS35: =+AG35 -> 0 | AT35: =ROUND(($C$28/(1-$C$31))*(1+$C$29)^J35,3) -> 0.046 | AU35: =ROUND((IF($C$47+$F$23>$AQ35,$F$27*$F$30,0)+IF($C$48+$G$23>AQ35,$G$27*$G$30,0)+IF($C$49+$H$23>AQ35,$H$27*$H$30,0))*AT35,0) -> 0 | AV35: =ROUND($C$33*(1+$C$34)^J35,3) -> 3.337 | AW35: =ROUND(AV35*M35,0) -> 0 | AZ35: =ROUND(AR35+AS35+AU35+AW35+AY35,0) -> 0 | BB35: 0 | BC35: 0 | BD35: =BB35+BC35 -> 0 | BE35: =AZ35-BD35 -> 0 | BH35: 2044 | BI35: 0 | BJ35: =+M35 -> 0 | BK35: =ROUND($C$10*(1+$C$11)^J35,3) -> 12.84 | BL35: =ROUND(BJ35*BK35,0) -> 0 | BM35: =ROUND($C$13*(1+$C$14)^J35,3) -> 0.243 | BN35: =ROUND((IF($C$47+$F$23>BH35,$F$27*$F$30,0)+IF($C$49+$H$23>BH35,$H$27*$H$30,0)+IF($C$48+$G$23>BH35,$G$27*$G$30,0))*BM35,0) -> 0 | BP35: =BI35+BL35+BN35+BO35 -> 0 | BR35: =+BC35 -> 0 | BT35: =BP35-BR35 -> 0 | BW35: 2044 | BX35: 0 | BY35: =U35 -> 0 | BZ35: =AU35 -> 0 | CA35: =SUM(BX35:BZ35) -> 0 | CC35: =BB35 -> 0 | CD35: =BC35 -> 0 | CE35: =SUM(CC35:CD35) -> 0 | CG35: =CA35-CE35 -> 0
A36: 10) Non Gas Fuel Environmental Damage Factor = | C36: =+'Gas Input Table Summary'!$D$24 -> 0 | E36: 26) Distribution Delivery Charge | H36: =+'Gas Input Table Summary'!D58 -> 1.836 | J36: 22 | L36: 2045 | M36: 0 | N36: 5.344 | O36: 0 | P36: 0 | Q36: 0 | R36: 0 | S36: 0 | T36: 203 | U36: 0 | V36: 0 | W36: 3.518 | X36: 0 | Y36: 0 | Z36: 0 | AA36: 0 | AB36: 0 | AE36: 2045 | AF36: 0 | AG36: 0 | AH36: 0 | AJ36: 0 | AK36: 0 | AL36: 0 | AN36: 0 | AQ36: 2045 | AR36: 0 | AS36: 0 | AT36: 0.047 | AU36: 0 | AV36: 3.414 | AW36: 0 | AZ36: 0 | BB36: 0 | BC36: 0 | BD36: 0 | BE36: 0 | BH36: 2045 | BI36: 0 | BJ36: 0 | BK36: 13.225 | BL36: 0 | BM36: 0.25 | BN36: 0 | BP36: 0 | BR36: 0 | BT36: 0 | BW36: 2045 | BX36: 0 | BY36: 0 | BZ36: 0 | CA36: 0 | CC36: 0 | CD36: 0 | CE36: 0 | CG36: 0
A37: Escalation Rate = | C37: =+'Gas Input Table Summary'!$D$25 -> 0
E38: 27) Effective Income Tax Rate = | H38: =+'Gas Input Table Summary'!D59 -> 0.21 | K38: Total = | M38: =SUM(M14:M36) -> 1680 | V38: =SUM(V14:V36) -> 8267 | AA38: =SUM(AA14:AA36) -> 4092 | AB38: =SUM(AB14:AB36) -> 4175 | AD38: Total = | AH38: =SUM(AH14:AH36) -> 8267 | AL38: =SUM(AL14:AL36) -> 1298 | AN38: =SUM(AN14:AN36) -> 6969 | AP38: Total = | AZ38: =SUM(AZ14:AZ36) -> 12129 | BD38: =SUM(BD14:BD36) -> 2393 | BE38: =SUM(BE14:BE36) -> 9736 | BG38: Total = | BJ38: =SUM(BJ14:BJ36) -> 1680 | BP38: =SUM(BP14:BP36) -> 14387 | BR38: =SUM(BR14:BR36) -> 2190 | BT38: =SUM(BT14:BT36) -> 12197 | BZ38: Total = | CA38: =SUM(CA14:CA36) -> 8267 | CE38: =SUM(CE14:CE36) -> 2393 | CG38: =SUM(CG14:CG36) -> 5874
A39: 11) Participant Discount Rate = | C39: =+'Gas Input Table Summary'!$D$26 -> 0.1032 | E39: (Federal & State Taxes) | T39: NPV = | V39: =ROUND(V14+NPV($C$41,V15:V36),0) -> 6084 | AA39: =ROUND(AA14+NPV($C$41,AA15:AA36),0) -> 3346 | AB39: =ROUND(AB14+NPV($C$41,AB15:AB36),0) -> 2738 | AG39: NPV = | AH39: =ROUND(AH14+NPV($C$41,AH15:AH36),0) -> 6084 | AL39: =ROUND(AL14+NPV($C$41,AL15:AL36),0) -> 1298 | AN39: =+AH39-AL39 -> 4786 | AW39: NPV = | AZ39: =ROUND(AZ14+NPV($C$43,AZ15:AZ36),0) -> 10921 | BD39: =ROUND(BD14+NPV($C$43,BD15:BD36),0) -> 2393 | BE39: =AZ39-BD39 -> 8528 | BN39: NPV = | BP39: =ROUND(BP14+NPV($C$39,BP15:BP36),0) -> 9775 | BR39: =ROUND(BR14+NPV($C$39,BR15:BR36),0) -> 2190 | BT39: =ROUND(BT14+NPV($C$39,BT15:BT36),0) -> 7585 | BZ39: NPV = | CA39: =ROUND(CA14+NPV($C$41,CA15:CA36),0) -> 6084 | CE39: =ROUND(CE14+NPV($C$41,CE15:CE36),0) -> 2393 | CG39: =ROUND(CG14+NPV($C$41,CG15:CG36),0) -> 3691
A41: 12) Utility Discount Rate = | C41: =+'Gas Input Table Summary'!$D$27 -> 0.07216 | E41: Test Results | F41: NPV | G41: B/C | K41: Total NPV = | N41: =AB39 -> 2738 | AD41: Total NPV = | AG41: =AN39 -> 4786 | AP41: Total NPV = | AS41: =BE39 -> 8528 | BG41: Total NPV = | BJ41: =BT39 -> 7585 | BV41: Total NPV = | BY41: =CG39 -> 3691
E42: Ratepayer Impact Measure Test | F42: =N41 -> 2738 | G42: =N42 -> 1.82 | K42: Benefit/Cost Ratio = | N42: =ROUND(V39/AA39,2) -> 1.82 | AD42: Benefit/Cost Ratio = | AG42: =ROUND(AH39/AL39,2) -> 4.69 | AP42: Benefit/Cost Ratio = | AS42: =ROUND(AZ39/BD39,2) -> 4.56 | BG42: Benefit/Cost Ratio = | BJ42: =ROUND(BP39/BR39,2) -> 4.46 | BV42: Benefit/Cost Ratio = | BY42: =ROUND(CA39/CE39,2) -> 2.54
A43: 13) Societal Discount Rate = | C43: =+'Gas Input Table Summary'!$D$28 -> 0.0231 | E43: Utility Cost Test | F43: =AG41 -> 4786 | G43: =AG42 -> 4.69
E44: Societal Test | F44: =AS41 -> 8528 | G44: =AS42 -> 4.56 | J44: Worksheet Calculations | BV44: Worksheet Calculations
A45: 14) General Input Data Year = | C45: =+'Gas Input Table Summary'!$D$29 -> 2023 | E45: Participant Test | F45: =BJ41 -> 7585 | G45: =BJ42 -> 4.46 | J45: (A) | K45: = Average Dk/Participant Saved (21) x Number of Participants (23) for Project Life (20) | T45: (I) | U45: = (G) x (H) | AD45: Worksheet Calculations | AP45: Worksheet Calculations | BG45: Worksheet Calculations | BV45: (A) | BW45: = Table 1 (F)
E46: Total Resource Cost Test | F46: =BY41 -> 3691 | G46: =BY42 -> 2.54 | J46: (B) | K46: = Commodity Cost (3) escalated | T46: (J) | U46: = (F) + (I) | AD46: (A) | AE46: = Table 1 (F) | AP46: (A) | AQ46: = Table 1 (F) | AW46: (H) | AZ46: = Table 2 (F) | BG46: (A) | BH46: = Table 1 (N) | BL46: (G) | BM46: = (A) + (D) + (F) | BV46: (B) | BW46: = Table 1 (I)
A47: 15) Project Analysis Year 1 = | C47: =+'Total Program Inputs'!C6 -> 2023 | J47: (C) | K47: = (A) x (B) | T47: (K) | U47: = Distribution Delivery Charge (26) escalated. | AD47: (B) | AE47: = Table 1 (I) | AP47: (G) | AQ47: = Table 1 (I) | AW47: (I) | AZ47: = Direct Part. Costs (17) x No. of Part. (23) - Table 1 (N) | BG47: (B) | BH47: = Table 1 (A) | BL47: (H) | BM47: = Direct Participant Costs (17) x Number of Participants (23) | BV47: (C) | BW47: = Table 3 (D)
J48: (D) | K48: = Variable O&M Cost (6), escalated | T48: (L) | U48: = (A) x (K) x (1-Inverse of Tax Rate (27) | AD48: (C) | AE48: = Table 1 (J) | AP48: (C) | AQ48: = Non-Gas Fuel Cost (7), adjusted for losses (8), escalated.. | AW48: (J) | AZ48: = (H) + (I) | BG48: (C) | BH48: = Retail Rate (1) escalated. | BL48: (I) | BM48: = (G) - (H) | BV48: (D) | BW48: = (A) + (B) + (C)
J49: (E) | K49: = (A) x (D) | T49: (M) | U49: = Admin & Operating Costs (16a) | AD49: (D) | AE49: = Table 1 (M) | AP49: (D) | AQ49: = (C) x [Avg. Non-Gas Fuel Units/Part.Saved (22) x No. of Part. (23) | AW49: (K) | AZ49: = (G) - (J) | BG49: (D) | BH49: =(B) x (C) | BV49: (E) | BW49: = Table 3 (H)
J50: (F) | K50: = (C) + (E) | T50: (N) | U50: = Incentive Costs (16b) | AD50: (E) | AE50: = Table 1 (N) | AP50: (E) | AQ50: = Gas Environmental Damage Factor (9), escalated | BG50: (E) | BH50: = Non-Gas Fuel Retail Rate (2), escalated. | BV50: (F) | BW50: = Table 3 (I)
J51: (G) | K51: = (A) x Peak Reduction Factor (5) | T51: (O) | U51: = (L) + (M) + (N) | AD51: (F) | AE51: = (D) + (E) | AP51: (F) | AQ51: = Table 1 (A) x (E) | BG51: (F) | BH51: = (E) x [Avg. Non-Gas Fuel Units/Part.Saved (22) x No. of Part. (23) | BV51: (G) | BW51: = (E) + (F)
J52: (H) | K52: = Demand Cost (4) escalated. | T52: (P) | U52: = (J) - (O) | AD52: (G) | AE52: = (C) - (F) | AP52: (G) | AQ52: = (A) + (B) + (D) + (F) | BV52: (H) | BW52: = (D) - (G)

Sheet Programmable Tstats - Tier 2
A1: NATURAL GAS CONSERVATION PROGRAMS/DEMAND-SIDE MANAGEMENT | K1: Table 1 | AD1: Table 2 | AP1: Table 3 | BG1: Table 4 | BV1: Table 5
A2: BEN/COST ANALYSIS FOR GAS CONSERVATION | K2: Ratepayer Impact Measure Test | AD2: Utility Cost Test | AP2: Societal Test | BG2: Participant Test | BV2: Total Resource Cost Test
A4: Company: | B4: Montana-Dakota Utilities Co. | K4: Company: | M4: =B4 -> Montana-Dakota Utilities Co. | AD4: Company: | AF4: =B4 -> Montana-Dakota Utilities Co. | AP4: Company: | AR4: =AF4 -> Montana-Dakota Utilities Co. | BH4: Company: | BI4: =AR4 -> Montana-Dakota Utilities Co. | BW4: Company: | BX4: =BI4 -> Montana-Dakota Utilities Co.
A5: Project: | B5: ='Database Inputs'!A13 -> Programmable Thermostats - Tier 2 | K5: Project: | M5: =$B$5 -> Programmable Thermostats - Tier 2 | AD5: Project: | AF5: =$B$5 -> Programmable Thermostats - Tier 2 | AP5: Project: | AR5: =$B$5 -> Programmable Thermostats - Tier 2 | BH5: Project: | BI5: =$B$5 -> Programmable Thermostats - Tier 2 | BW5: Project: | BX5: =$B$5 -> Programmable Thermostats - Tier 2
A6: Program Years: | B6: ='Total Program'!$B$6 -> 2023
N7: Benefits | X7: Costs | AF7: Benefits | AJ7: Costs | AR7: Benefits | BB7: Costs | BI7: Benefits | BR7: Costs | BX7: Benefits | CC7: Costs
A8: Input Data | F8: =+'Total Program Inputs'!C6 -> 2023 | AB8: Annual | AN8: Annual | AT8: Non-Gas | BE8: Annual | BT8: Annual | CG8: Annual
M9: Total | N9: Gas | O9: Gas | P9: Variable | Q9: Variable | R9: Total | S9: Peak Dk | T9: Demand | U9: Total | W9: Distribution | Y9: Program | AA9: Total | AB9: Benefits | AF9: Total | AG9: Total | AH9: Annual | AJ9: Program | AL9: Utility | AN9: Benefits | AR9: Total | AS9: Total | AT9: Energy | AU9: Non-Gas | AV9: Environmental | AW9: Environmental | AZ9: Annual | BB9: Utility | BC9: Participants' | BD9: Annual | BE9: Benefits | BJ9: Total | BL9: Gas | BM9: Non-Gas | BN9: Non-Gas | BP9: Total | BR9: Direct | BT9: Benefits | BX9: Total | BY9: Total | BZ9: Non-Gas | CA9: Total | CC9: Utility | CD9: Participants' | CG9: Benefits
A10: 1) Retail Rate ($/Dk) = | C10: =+'Gas Input Table Summary'!$D$7 -> 6.902 | E10: 16) Utility Project Costs | M10: Energy | N10: Commodity | O10: Commodity | P10: O & M | Q10: O & M | R10: Energy | S10: Demand | T10: Savings | U10: Demand | V10: Total | W10: Delivery | X10: Lost | Y10: Admin | Z10: Incentive | AA10: Program | AB10: Less | AF10: Energy | AG10: Demand | AH10: Total | AJ10: Admin | AK10: Incentive | AL10: Program | AN10: Less | AR10: Energy | AS10: Demand | AT10: Savings | AU10: Energy | AV10: Damage | AW10: Damage | AZ10: Total | BB10: Program | BC10: Costs Net | BD10: Total | BE10: Less | BI10: Incentives | BJ10: Energy | BK10: Retail | BL10: Bill | BM10: Fuel | BN10: Energy | BP10: Annual | BR10: Participant | BT10: Less | BX10: Energy | BY10: Demand | BZ10: Energy | CA10: Annual | CC10: Program | CD10: Costs Net | CE10: Total | CG10: Less
A11: Escalation Rate = | C11: =+'Gas Input Table Summary'!$D$8 -> 0.03 | E11: 16a) Administrative & Operating Costs = | F11: =+'Total Program Inputs'!M14 -> 2135 | J11: t | M11: Reduction | N11: Cost/Dk | O11: Savings | P11: Cost/Dk | Q11: Savings | R11: Savings | S11: Reduction | T11: Per Unit | U11: Savings | V11: Savings | W11: Charge | X11: Margin | Y11: Costs | Z11: Costs | AA11: Costs | AB11: Costs | AF11: Savings | AG11: Savings | AH11: Savings | AJ11: Costs | AK11: Costs | AL11: Costs | AN11: Costs | AR11: Savings | AS11: Savings | AT11: ($/Part.) | AU11: Savings | AV11: Savings/Dk | AW11: Savings | AZ11: Savings | BB11: Costs | BC11: of Rebate | BD11: Costs | BE11: Costs | BI11: Received | BJ11: Reduction | BK11: Rate | BL11: Savings | BM11: Retail Rate | BN11: Savings | BP11: Benefits | BR11: Costs | BT11: Costs | BX11: Savings | BY11: Savings | BZ11: Savings | CA11: Benefits | CC11: Costs | CD11: of Rebate | CE11: Costs | CG11: Costs
E12: 16b) Incentive Costs = | F12: =+'Total Program Inputs'!I14 -> 11516 | L12: Year | M12: (A) | N12: (B) | O12: (C) | P12: (D) | Q12: (E) | R12: (F) | S12: (G) | T12: (H) | U12: (I) | V12: (J) | W12: (K) | X12: (L) | Y12: (M) | Z12: (N) | AA12: (O) | AB12: (P) | AE12: Year | AF12: (A) | AG12: (B) | AH12: (C) | AJ12: (D) | AK12: (E) | AL12: (F) | AN12: (G) | AQ12: Year | AR12: (A) | AS12: (B) | AT12: (C) | AU12: (D) | AV12: (E) | AW12: (F) | AZ12: (G) | BB12: (H) | BC12: (I) | BD12: (J) | BE12: (K) | BH12: Year | BI12: (A) | BJ12: (B) | BK12: (C) | BL12: (D) | BM12: (E) | BN12: (F) | BP12: (G) | BR12: (H) | BT12: (I) | BW12: Year | BX12: (A) | BY12: (B) | BZ12: (C) | CA12: (D) | CC12: (E) | CD12: (F) | CE12: (G) | CG12: (H)
A13: 2) Non-Gas Fuel Retail Rate ($/Fuel Unit) = | C13: =+'Gas Input Table Summary'!$D$9 -> 0.13068 | E13: 16c) Total Utility Project Costs = | F13: =SUM(F11:F12) -> 13651
A14: Escalation Rate = | C14: =+'Gas Input Table Summary'!$D$10 -> 0.03 | J14: =$C$47-$C$45 -> 0 | L14: =$C$47 -> 2023 | M14: =ROUND(IF($C$47+$F$23>L14,F25*F30,0),0) -> 1197 | N14: =ROUND($C$17*(1+$C$18)^J14,3) -> 2.789 | O14: =ROUND(M14*N14,0) -> 3338 | P14: =ROUND($C$25*(1+$C$26)^J14,3) -> 0 | Q14: =ROUND(M14*P14,0) -> 0 | R14: =O14+Q14 -> 3338 | S14: =ROUND(M14*$C$23,1) -> 12 | T14: =ROUND($C$20*(1+$C$21)^J14,0) -> 163 | U14: =ROUND(S14*T14,0) -> 1956 | V14: =ROUND(+U14+R14,0) -> 5294 | W14: =ROUND($H$36*(1+$C$11)^J14,3) -> 1.836 | X14: =ROUND((1-$H$38)*(W14*M14),0) -> 1736 | Y14: =ROUND($F$11,0) -> 2135 | Z14: =ROUND($F$12,0) -> 11516 | AA14: =SUM(X14:Z14) -> 15387 | AB14: =V14-AA14 -> -10093 | AE14: =$C$47 -> 2023 | AF14: =+R14 -> 3338 | AG14: =+U14 -> 1956 | AH14: =+AG14+AF14 -> 5294 | AJ14: =ROUND(Y14,0) -> 2135 | AK14: =ROUND(Z14,0) -> 11516 | AL14: =SUM(AJ14:AK14) -> 13651 | AN14: =+AH14-AL14 -> -8357 | AQ14: =$C$47 -> 2023 | AR14: =AF14 -> 3338 | AS14: =+AG14 -> 1956 | AT14: =ROUND(($C$28/(1-$C$31))*(1+$C$29)^J14,3) -> 0.025 | AU14: =ROUND(IF($C$47+$F$23>$AQ14,$F$30*$F$27,0)*AT14,0) -> 197 | AV14: =ROUND($C$33*(1+$C$34)^J14,3) -> 2.07 | AW14: =ROUND(AV14*M14,0) -> 2478 | AZ14: =ROUND(AR14+AS14+AU14+AW14+AY14,0) -> 7969 | BB14: =ROUND($F$13,0) -> 13651 | BC14: =ROUND((F15*F30)-Z14,0) -> 18244 | BD14: =BB14+BC14 -> 31895 | BE14: =AZ14-BD14 -> -23926 | BH14: =$C$47 -> 2023 | BI14: =+F12 -> 11516 | BJ14: =+M14 -> 1197 | BK14: =ROUND($C$10*(1+$C$11)^J14,3) -> 6.902 | BL14: =ROUND(BJ14*BK14,0) -> 8262 | BM14: =ROUND($C$13*(1+$C$14)^J14,3) -> 0.131 | BN14: =ROUND(IF($C$47+$F$23>$BH14,$F$30*$F$27,0)*BM14,0) -> 1031 | BP14: =BI14+BL14+BN14+BO14 -> 20809 | BR14: =ROUND(F15*F30,0) -> 29760 | BT14: =BP14-BR14 -> -8951 | BW14: =$C$47 -> 2023 | BX14: =$R14 -> 3338 | BY14: =U14 -> 1956 | BZ14: =AU14 -> 197 | CA14: =SUM(BX14:BZ14) -> 5491 | CC14: =BB14 -> 13651 | CD14: =BC14 -> 18244 | CE14: =SUM(CC14:CD14) -> 31895 | CG14: =CA14-CE14 -> -26404
A15: Non-Gas Fuel Units (ie. kWh,Gallons, etc) = | C15: =+'Gas Input Table Summary'!$D$11 -> Kwh | E15: 17) Direct Participant Costs ($/Part.) = | F15: =ROUND('Database Inputs'!K13,0) -> 155 | J15: =J14+1 -> 1 | L15: =L14+1 -> 2024 | M15: =ROUND(IF($C$47+$F$23>L15,$F$25*$F$30,0)+IF($C$48+$G$23>L15,$G$25*$G$30,0),0) -> 1197 | N15: 2.873 | O15: 3439 | P15: 0 | Q15: =ROUND(M15*P15,0) -> 0 | R15: 3439 | S15: 12 | T15: 164 | U15: =ROUND(S15*T15,0) -> 1968 | V15: =ROUND(+U15+R15,0) -> 5407 | W15: 1.891 | X15: 1788 | Y15: =ROUND($G$11,0) -> 0 | Z15: =ROUND($G$12,0) -> 0 | AA15: 1788 | AB15: 3619 | AE15: =AE14+1 -> 2024 | AF15: =+R15 -> 3439 | AG15: =+U15 -> 1968 | AH15: =+AG15+AF15 -> 5407 | AJ15: =ROUND(Y15,0) -> 0 | AK15: 0 | AL15: 0 | AN15: =+AH15-AL15 -> 5407 | AQ15: =AQ14+1 -> 2024 | AR15: 3439 | AS15: 1968 | AT15: 0.025 | AU15: =ROUND((IF($C$47+$F$23>$AQ15,$F$27*$F$30,0)+IF($C$48+$G$23>AQ15,$G$27*$G$30,0))*AT15,0) -> 197 | AV15: 2.118 | AW15: 2535 | AZ15: =ROUND(AR15+AS15+AU15+AW15+AY15,0) -> 8139 | BB15: =ROUND($G$13,0) -> 0 | BC15: =ROUND(($G$15*$G$30)-$Z$15,0) -> 0 | BD15: =BB15+BC15 -> 0 | BE15: 8139 | BH15: =BH14+1 -> 2024 | BI15: =+G12 -> 0 | BJ15: 1197 | BK15: 7.109 | BL15: =ROUND(BJ15*BK15,0) -> 8509 | BM15: 0.135 | BN15: =ROUND((IF($C$47+$F$23>BH15,$F$27*$F$30,0)+IF($C$48+$G$23>BH15,$G$27*$G$30,0))*BM15,0) -> 1063 | BP15: 9572 | BR15: =ROUND($G$15*$G$30,0) -> 0 | BT15: =BP15-BR15 -> 9572 | BW15: =BW14+1 -> 2024 | BX15: 3439 | BY15: =U15 -> 1968 | BZ15: =AU15 -> 197 | CA15: =SUM(BX15:BZ15) -> 5604 | CC15: =BB15 -> 0 | CD15: 0 | CE15: =SUM(CC15:CD15) -> 0 | CG15: =CA15-CE15 -> 5604
J16: 2 | L16: 2025 | M16: =ROUND(IF($C$47+$F$23>L16,$F$25*$F$30,0)+IF($C$48+$G$23>L16,$G$25*$G$30,0)+IF($C$49+$H$23>L16,$H$25*$H$30,0),0) -> 1197 | N16: =ROUND($C$17*(1+$C$18)^J16,3) -> 2.959 | O16: =ROUND(M16*N16,0) -> 3542 | P16: =ROUND($C$25*(1+$C$26)^J16,3) -> 0 | Q16: 0 | R16: =O16+Q16 -> 3542 | S16: =ROUND(M16*$C$23,1) -> 12 | T16: =ROUND($C$20*(1+$C$21)^J16,0) -> 166 | U16: =ROUND(S16*T16,0) -> 1992 | V16: =ROUND(+U16+R16,0) -> 5534 | W16: =ROUND($H$36*(1+$C$11)^J16,3) -> 1.948 | X16: =ROUND((1-$H$38)*(W16*M16),0) -> 1842 | Y16: =ROUND($H$11,0) -> 0 | Z16: =ROUND($H$12,0) -> 0 | AA16: 1842 | AB16: =V16-AA16 -> 3692 | AE16: 2025 | AF16: 3542 | AG16: 1992 | AH16: =+AG16+AF16 -> 5534 | AJ16: 0 | AK16: 0 | AL16: 0 | AN16: 5534 | AQ16: 2025 | AR16: 3542 | AS16: 1992 | AT16: =ROUND(($C$28/(1-$C$31))*(1+$C$29)^J16,3) -> 0.026 | AU16: =ROUND((IF($C$47+$F$23>$AQ16,$F$27*$F$30,0)+IF($C$48+$G$23>AQ16,$G$27*$G$30,0)+IF($C$49+$H$23>AQ16,$H$27*$H$30,0))*AT16,0) -> 205 | AV16: 2.166 | AW16: 2593 | AZ16: 8332 | BB16: =ROUND($H$13,0) -> 0 | BC16: =ROUND(($H$15*$H$30)-$Z$16,0) -> 0 | BD16: 0 | BE16: 8332 | BH16: 2025 | BI16: =ROUND(H12,0) -> 0 | BJ16: 1197 | BK16: 7.322 | BL16: =ROUND(BJ16*BK16,0) -> 8764 | BM16: 0.139 | BN16: =ROUND((IF($C$47+$F$23>BH16,$F$27*$F$30,0)+IF($C$49+$H$23>BH16,$H$27*$H$30,0)+IF($C$48+$G$23>BH16,$G$27*$G$30,0))*BM16,0) -> 1094 | BP16: 9858 | BR16: =ROUND($H$15*$H$30,0) -> 0 | BT16: 9858 | BW16: 2025 | BX16: 3542 | BY16: 1992 | BZ16: 205 | CA16: 5739 | CC16: 0 | CD16: 0 | CE16: 0 | CG16: =CA16-CE16 -> 5739
A17: 3) Commodity Cost ($/Dk) = | C17: =+'Gas Input Table Summary'!$D$12 -> 2.789 | E17: 18) Participant Non-Energy Costs (Annual $/Part.) = | F17: =+'Gas Input Table Summary'!D35 -> 0 | J17: 3 | L17: 2026 | M17: =ROUND(IF($C$47+$F$23>L17,$F$25*$F$30,0)+IF($C$48+$G$23>L17,$G$25*$G$30,0)+IF($C$49+$H$23>L17,$H$25*$H$30,0),0) -> 1197 | N17: 3.048 | O17: 3648 | P17: 0 | Q17: 0 | R17: 3648 | S17: 12 | T17: 168 | U17: =ROUND(S17*T17,0) -> 2016 | V17: 5664 | W17: 2.006 | X17: 1897 | Y17: 0 | Z17: 0 | AA17: 1897 | AB17: 3767 | AE17: 2026 | AF17: 3648 | AG17: 2016 | AH17: 5664 | AJ17: 0 | AK17: 0 | AL17: 0 | AN17: 5664 | AQ17: 2026 | AR17: 3648 | AS17: 2016 | AT17: =ROUND(($C$28/(1-$C$31))*(1+$C$29)^J17,3) -> 0.027 | AU17: =ROUND((IF($C$47+$F$23>$AQ17,$F$27*$F$30,0)+IF($C$48+$G$23>AQ17,$G$27*$G$30,0)+IF($C$49+$H$23>AQ17,$H$27*$H$30,0))*AT17,0) -> 213 | AV17: 2.216 | AW17: 2653 | AZ17: 8530 | BB17: 0 | BC17: 0 | BD17: 0 | BE17: 8530 | BH17: 2026 | BI17: 0 | BJ17: 1197 | BK17: 7.542 | BL17: 9028 | BM17: 0.143 | BN17: =ROUND((IF($C$47+$F$23>BH17,$F$27*$F$30,0)+IF($C$49+$H$23>BH17,$H$27*$H$30,0)+IF($C$48+$G$23>BH17,$G$27*$G$30,0))*BM17,0) -> 1126 | BP17: 10154 | BR17: =+BC17 -> 0 | BT17: 10154 | BW17: 2026 | BX17: 3648 | BY17: 2016 | BZ17: 213 | CA17: 5877 | CC17: 0 | CD17: 0 | CE17: 0 | CG17: 5877
A18: Escalation Rate = | C18: =+'Gas Input Table Summary'!$D$13 -> 0.03 | E18: Escalation Rate = | F18: =+'Gas Input Table Summary'!D38 -> 0 | J18: 4 | L18: 2027 | M18: 1197 | N18: 3.139 | O18: 3757 | P18: 0 | Q18: 0 | R18: 3757 | S18: 12 | T18: 169 | U18: 2028 | V18: 5785 | W18: 2.066 | X18: 1954 | Y18: 0 | Z18: 0 | AA18: 1954 | AB18: 3831 | AE18: 2027 | AF18: 3757 | AG18: 2028 | AH18: 5785 | AJ18: 0 | AK18: 0 | AL18: 0 | AN18: 5785 | AQ18: 2027 | AR18: 3757 | AS18: 2028 | AT18: 0.028 | AU18: 220 | AV18: 2.267 | AW18: 2714 | AZ18: 8719 | BB18: 0 | BC18: 0 | BD18: 0 | BE18: 8719 | BH18: 2027 | BI18: 0 | BJ18: 1197 | BK18: 7.768 | BL18: 9298 | BM18: 0.147 | BN18: 1157 | BP18: 10455 | BR18: 0 | BT18: 10455 | BW18: 2027 | BX18: 3757 | BY18: 2028 | BZ18: 220 | CA18: 6005 | CC18: 0 | CD18: 0 | CE18: 0 | CG18: 6005
J19: 5 | L19: 2028 | M19: =ROUND(IF($C$47+$F$23>L19,$F$25*$F$30,0)+IF($C$48+$G$23>L19,$G$25*$G$30,0)+IF($C$49+$H$23>L19,$H$25*$H$30,0),0) -> 1197 | N19: 3.233 | O19: 3870 | P19: 0 | Q19: 0 | R19: 3870 | S19: 12 | T19: 171 | U19: 2052 | V19: 5922 | W19: 2.128 | X19: 2012 | Y19: 0 | Z19: 0 | AA19: 2012 | AB19: 3910 | AE19: 2028 | AF19: 3870 | AG19: 2052 | AH19: 5922 | AJ19: 0 | AK19: 0 | AL19: 0 | AN19: 5922 | AQ19: 2028 | AR19: 3870 | AS19: 2052 | AT19: 0.029 | AU19: 228 | AV19: 2.319 | AW19: 2776 | AZ19: 8926 | BB19: 0 | BC19: 0 | BD19: 0 | BE19: 8926 | BH19: 2028 | BI19: 0 | BJ19: 1197 | BK19: 8.001 | BL19: 9577 | BM19: 0.151 | BN19: 1189 | BP19: 10766 | BR19: 0 | BT19: 10766 | BW19: 2028 | BX19: 3870 | BY19: 2052 | BZ19: 228 | CA19: 6150 | CC19: 0 | CD19: 0 | CE19: 0 | CG19: 6150
A20: 4) Demand Cost ($/Unit/Yr) = | C20: =+'Gas Input Table Summary'!$D$14 -> 162.85 | E20: 19) Participant Non-Energy Savings (Annual $/Part) = | F20: =+'Gas Input Table Summary'!D41 -> 0 | J20: 6 | L20: 2029 | M20: 1197 | N20: 3.33 | O20: 3986 | P20: 0 | Q20: 0 | R20: 3986 | S20: 12 | T20: 173 | U20: 2076 | V20: 6062 | W20: 2.192 | X20: 2073 | Y20: 0 | Z20: 0 | AA20: 2073 | AB20: 3989 | AE20: 2029 | AF20: 3986 | AG20: 2076 | AH20: 6062 | AJ20: 0 | AK20: 0 | AL20: 0 | AN20: 6062 | AQ20: 2029 | AR20: 3986 | AS20: 2076 | AT20: 0.029 | AU20: 228 | AV20: 2.373 | AW20: 2840 | AZ20: 9130 | BB20: 0 | BC20: 0 | BD20: 0 | BE20: 9130 | BH20: 2029 | BI20: 0 | BJ20: 1197 | BK20: 8.241 | BL20: 9864 | BM20: 0.156 | BN20: 1228 | BP20: 11092 | BR20: 0 | BT20: 11092 | BW20: 2029 | BX20: 3986 | BY20: 2076 | BZ20: 228 | CA20: 6290 | CC20: 0 | CD20: 0 | CE20: 0 | CG20: 6290
A21: Escalation Rate = | C21: =+'Gas Input Table Summary'!$D$15 -> 0.01 | E21: Escalation Rate = | F21: =+'Gas Input Table Summary'!D44 -> 0 | J21: 7 | L21: 2030 | M21: 1197 | N21: 3.43 | O21: 4106 | P21: 0 | Q21: 0 | R21: 4106 | S21: 12 | T21: 175 | U21: 2100 | V21: 6206 | W21: 2.258 | X21: 2135 | Y21: 0 | Z21: 0 | AA21: 2135 | AB21: 4071 | AE21: 2030 | AF21: 4106 | AG21: 2100 | AH21: 6206 | AJ21: 0 | AK21: 0 | AL21: 0 | AN21: 6206 | AQ21: 2030 | AR21: 4106 | AS21: 2100 | AT21: 0.03 | AU21: 236 | AV21: 2.427 | AW21: 2905 | AZ21: 9347 | BB21: 0 | BC21: 0 | BD21: 0 | BE21: 9347 | BH21: 2030 | BI21: 0 | BJ21: 1197 | BK21: 8.489 | BL21: 10161 | BM21: 0.161 | BN21: 1267 | BP21: 11428 | BR21: 0 | BT21: 11428 | BW21: 2030 | BX21: 4106 | BY21: 2100 | BZ21: 236 | CA21: 6442 | CC21: 0 | CD21: 0 | CE21: 0 | CG21: 6442
J22: 8 | L22: 2031 | M22: 1197 | N22: 3.533 | O22: 4229 | P22: 0 | Q22: 0 | R22: 4229 | S22: 12 | T22: 176 | U22: 2112 | V22: 6341 | W22: 2.326 | X22: 2200 | Y22: 0 | Z22: 0 | AA22: 2200 | AB22: 4141 | AE22: 2031 | AF22: 4229 | AG22: 2112 | AH22: 6341 | AJ22: 0 | AK22: 0 | AL22: 0 | AN22: 6341 | AQ22: 2031 | AR22: 4229 | AS22: 2112 | AT22: 0.031 | AU22: 244 | AV22: 2.483 | AW22: 2972 | AZ22: 9557 | BB22: 0 | BC22: 0 | BD22: 0 | BE22: 9557 | BH22: 2031 | BI22: 0 | BJ22: 1197 | BK22: 8.743 | BL22: 10465 | BM22: 0.166 | BN22: 1307 | BP22: 11772 | BR22: 0 | BT22: 11772 | BW22: 2031 | BX22: 4229 | BY22: 2112 | BZ22: 244 | CA22: 6585 | CC22: 0 | CD22: 0 | CE22: 0 | CG22: 6585
A23: 5) Peak Reduction Factor = | C23: =+'Gas Input Table Summary'!$D$16 -> 0.01 | E23: 20) Project Life (Years) = | F23: =ROUND('Database Inputs'!D13,0) -> 10 | J23: 9 | L23: 2032 | M23: 1197 | N23: 3.639 | O23: 4356 | P23: 0 | Q23: 0 | R23: 4356 | S23: 12 | T23: 178 | U23: 2136 | V23: 6492 | W23: 2.396 | X23: 2266 | Y23: 0 | Z23: 0 | AA23: 2266 | AB23: 4226 | AE23: 2032 | AF23: 4356 | AG23: 2136 | AH23: 6492 | AJ23: 0 | AK23: 0 | AL23: 0 | AN23: 6492 | AQ23: 2032 | AR23: 4356 | AS23: 2136 | AT23: 0.032 | AU23: 252 | AV23: 2.54 | AW23: 3040 | AZ23: 9784 | BB23: 0 | BC23: 0 | BD23: 0 | BE23: 9784 | BH23: 2032 | BI23: 0 | BJ23: 1197 | BK23: 9.006 | BL23: 10780 | BM23: 0.171 | BN23: 1346 | BP23: 12126 | BR23: 0 | BT23: 12126 | BW23: 2032 | BX23: 4356 | BY23: 2136 | BZ23: 252 | CA23: 6744 | CC23: 0 | CD23: 0 | CE23: 0 | CG23: 6744
J24: 10 | L24: 2033 | M24: 0 | N24: 3.748 | O24: 0 | P24: 0 | Q24: 0 | R24: 0 | S24: 0 | T24: 180 | U24: 0 | V24: 0 | W24: 2.467 | X24: 0 | Y24: 0 | Z24: 0 | AA24: 0 | AB24: 0 | AE24: 2033 | AF24: 0 | AG24: 0 | AH24: 0 | AJ24: 0 | AK24: 0 | AL24: 0 | AN24: 0 | AQ24: 2033 | AR24: 0 | AS24: 0 | AT24: 0.033 | AU24: 0 | AV24: 2.599 | AW24: 0 | AZ24: 0 | BB24: 0 | BC24: 0 | BD24: 0 | BE24: 0 | BH24: 2033 | BI24: 0 | BJ24: 0 | BK24: 9.276 | BL24: 0 | BM24: 0.176 | BN24: 0 | BP24: 0 | BR24: 0 | BT24: 0 | BW24: 2033 | BX24: 0 | BY24: 0 | BZ24: 0 | CA24: 0 | CC24: 0 | CD24: 0 | CE24: 0 | CG24: 0
A25: 6) Variable O&M ($/Dk) = | C25: =+'Gas Input Table Summary'!$D$17 -> 0 | E25: 21) Avg. Dk/Part. Saved = | F25: =+ROUND(F32/F30,3) -> 6.234 | J25: 11 | L25: 2034 | M25: 0 | N25: 3.861 | O25: 0 | P25: 0 | Q25: 0 | R25: 0 | S25: 0 | T25: 182 | U25: 0 | V25: 0 | W25: 2.541 | X25: 0 | Y25: 0 | Z25: 0 | AA25: 0 | AB25: 0 | AE25: 2034 | AF25: 0 | AG25: 0 | AH25: 0 | AJ25: 0 | AK25: 0 | AL25: 0 | AN25: 0 | AQ25: 2034 | AR25: 0 | AS25: 0 | AT25: 0.034 | AU25: 0 | AV25: 2.658 | AW25: 0 | AZ25: 0 | BB25: 0 | BC25: 0 | BD25: 0 | BE25: 0 | BH25: 2034 | BI25: 0 | BJ25: 0 | BK25: 9.554 | BL25: 0 | BM25: 0.181 | BN25: 0 | BP25: 0 | BR25: 0 | BT25: 0 | BW25: 2034 | BX25: 0 | BY25: 0 | BZ25: 0 | CA25: 0 | CC25: 0 | CD25: 0 | CE25: 0 | CG25: 0
A26: Escalation Rate = | C26: =+'Gas Input Table Summary'!$D$18 -> 0 | J26: 12 | L26: 2035 | M26: 0 | N26: 3.976 | O26: 0 | P26: 0 | Q26: 0 | R26: 0 | S26: 0 | T26: 184 | U26: 0 | V26: 0 | W26: 2.618 | X26: 0 | Y26: 0 | Z26: 0 | AA26: 0 | AB26: 0 | AE26: 2035 | AF26: 0 | AG26: 0 | AH26: 0 | AJ26: 0 | AK26: 0 | AL26: 0 | AN26: 0 | AQ26: 2035 | AR26: 0 | AS26: 0 | AT26: 0.035 | AU26: 0 | AV26: 2.719 | AW26: 0 | AZ26: 0 | BB26: 0 | BC26: 0 | BD26: 0 | BE26: 0 | BH26: 2035 | BI26: 0 | BJ26: 0 | BK26: 9.841 | BL26: 0 | BM26: 0.186 | BN26: 0 | BP26: 0 | BR26: 0 | BT26: 0 | BW26: 2035 | BX26: 0 | BY26: 0 | BZ26: 0 | CA26: 0 | CC26: 0 | CD26: 0 | CE26: 0 | CG26: 0
E27: 22) Avg Non-Gas Fuel Units/Part. Saved = | F27: =+'Database Inputs'!H13 -> 41 | J27: 13 | L27: 2036 | M27: 0 | N27: 4.096 | O27: 0 | P27: 0 | Q27: 0 | R27: 0 | S27: 0 | T27: 185 | U27: 0 | V27: 0 | W27: 2.696 | X27: 0 | Y27: 0 | Z27: 0 | AA27: 0 | AB27: 0 | AE27: 2036 | AF27: 0 | AG27: 0 | AH27: 0 | AJ27: 0 | AK27: 0 | AL27: 0 | AN27: 0 | AQ27: 2036 | AR27: 0 | AS27: 0 | AT27: 0.036 | AU27: 0 | AV27: 2.782 | AW27: 0 | AZ27: 0 | BB27: 0 | BC27: 0 | BD27: 0 | BE27: 0 | BH27: 2036 | BI27: 0 | BJ27: 0 | BK27: 10.136 | BL27: 0 | BM27: 0.192 | BN27: 0 | BP27: 0 | BR27: 0 | BT27: 0 | BW27: 2036 | BX27: 0 | BY27: 0 | BZ27: 0 | CA27: 0 | CC27: 0 | CD27: 0 | CE27: 0 | CG27: 0
A28: 7) Non-Gas Fuel Cost ($/Fuel Unit) = | C28: =+'Gas Input Table Summary'!$D$19 -> 0.02284 | E28: 22a) Avg Additional Non-Gas Fuel Units/ Part. Used = | F28: 0 | J28: 14 | L28: 2037 | M28: 0 | N28: 4.219 | O28: 0 | P28: 0 | Q28: 0 | R28: 0 | S28: 0 | T28: 187 | U28: 0 | V28: 0 | W28: 2.777 | X28: 0 | Y28: 0 | Z28: 0 | AA28: 0 | AB28: 0 | AE28: 2037 | AF28: 0 | AG28: 0 | AH28: 0 | AJ28: 0 | AK28: 0 | AL28: 0 | AN28: 0 | AQ28: 2037 | AR28: 0 | AS28: 0 | AT28: 0.037 | AU28: 0 | AV28: 2.846 | AW28: 0 | AZ28: 0 | BB28: 0 | BC28: 0 | BD28: 0 | BE28: 0 | BH28: 2037 | BI28: 0 | BJ28: 0 | BK28: 10.44 | BL28: 0 | BM28: 0.198 | BN28: 0 | BP28: 0 | BR28: 0 | BT28: 0 | BW28: 2037 | BX28: 0 | BY28: 0 | BZ28: 0 | CA28: 0 | CC28: 0 | CD28: 0 | CE28: 0 | CG28: 0
A29: Escalation Rate = | C29: =+'Gas Input Table Summary'!$D$20 -> 0.03 | J29: 15 | L29: 2038 | M29: 0 | N29: 4.345 | O29: 0 | P29: 0 | Q29: 0 | R29: 0 | S29: 0 | T29: 189 | U29: 0 | V29: 0 | W29: 2.86 | X29: 0 | Y29: 0 | Z29: 0 | AA29: 0 | AB29: 0 | AE29: 2038 | AF29: 0 | AG29: 0 | AH29: 0 | AJ29: 0 | AK29: 0 | AL29: 0 | AN29: 0 | AQ29: 2038 | AR29: 0 | AS29: 0 | AT29: 0.038 | AU29: 0 | AV29: 2.911 | AW29: 0 | AZ29: 0 | BB29: 0 | BC29: 0 | BD29: 0 | BE29: 0 | BH29: 2038 | BI29: 0 | BJ29: 0 | BK29: 10.753 | BL29: 0 | BM29: 0.204 | BN29: 0 | BP29: 0 | BR29: 0 | BT29: 0 | BW29: 2038 | BX29: 0 | BY29: 0 | BZ29: 0 | CA29: 0 | CC29: 0 | CD29: 0 | CE29: 0 | CG29: 0
E30: 23) Number of Participants = | F30: =ROUND('Database Inputs'!C13,0) -> 192 | J30: 16 | L30: 2039 | M30: 0 | N30: 4.476 | O30: 0 | P30: 0 | Q30: 0 | R30: 0 | S30: 0 | T30: 191 | U30: 0 | V30: 0 | W30: 2.946 | X30: 0 | Y30: 0 | Z30: 0 | AA30: 0 | AB30: 0 | AE30: 2039 | AF30: 0 | AG30: 0 | AH30: 0 | AJ30: 0 | AK30: 0 | AL30: 0 | AN30: 0 | AQ30: 2039 | AR30: 0 | AS30: 0 | AT30: 0.04 | AU30: 0 | AV30: 2.978 | AW30: 0 | AZ30: 0 | BB30: 0 | BC30: 0 | BD30: 0 | BE30: 0 | BH30: 2039 | BI30: 0 | BJ30: 0 | BK30: 11.076 | BL30: 0 | BM30: 0.21 | BN30: 0 | BP30: 0 | BR30: 0 | BT30: 0 | BW30: 2039 | BX30: 0 | BY30: 0 | BZ30: 0 | CA30: 0 | CC30: 0 | CD30: 0 | CE30: 0 | CG30: 0
A31: 8) Non-Gas Fuel Loss Factor | C31: =+'Gas Input Table Summary'!$D$21 -> 0.073 | J31: 17 | L31: 2040 | M31: 0 | N31: 4.61 | O31: 0 | P31: 0 | Q31: 0 | R31: 0 | S31: 0 | T31: 193 | U31: 0 | V31: 0 | W31: 3.035 | X31: 0 | Y31: 0 | Z31: 0 | AA31: 0 | AB31: 0 | AE31: 2040 | AF31: 0 | AG31: 0 | AH31: 0 | AJ31: 0 | AK31: 0 | AL31: 0 | AN31: 0 | AQ31: 2040 | AR31: 0 | AS31: 0 | AT31: 0.041 | AU31: 0 | AV31: 3.047 | AW31: 0 | AZ31: 0 | BB31: 0 | BC31: 0 | BD31: 0 | BE31: 0 | BH31: 2040 | BI31: 0 | BJ31: 0 | BK31: 11.408 | BL31: 0 | BM31: 0.216 | BN31: 0 | BP31: 0 | BR31: 0 | BT31: 0 | BW31: 2040 | BX31: 0 | BY31: 0 | BZ31: 0 | CA31: 0 | CC31: 0 | CD31: 0 | CE31: 0 | CG31: 0
E32: 24) Total Annual Dk Saved = | F32: =+'Total Program Inputs'!G14 -> 1197 | J32: 18 | L32: 2041 | M32: 0 | N32: 4.748 | O32: 0 | P32: 0 | Q32: 0 | R32: 0 | S32: 0 | T32: 195 | U32: 0 | V32: 0 | W32: 3.126 | X32: 0 | Y32: 0 | Z32: 0 | AA32: 0 | AB32: 0 | AE32: 2041 | AF32: 0 | AG32: 0 | AH32: 0 | AJ32: 0 | AK32: 0 | AL32: 0 | AN32: 0 | AQ32: 2041 | AR32: 0 | AS32: 0 | AT32: 0.042 | AU32: 0 | AV32: 3.117 | AW32: 0 | AZ32: 0 | BB32: 0 | BC32: 0 | BD32: 0 | BE32: 0 | BH32: 2041 | BI32: 0 | BJ32: 0 | BK32: 11.75 | BL32: 0 | BM32: 0.222 | BN32: 0 | BP32: 0 | BR32: 0 | BT32: 0 | BW32: 2041 | BX32: 0 | BY32: 0 | BZ32: 0 | CA32: 0 | CC32: 0 | CD32: 0 | CE32: 0 | CG32: 0
A33: 9) Gas Environmental Damage Factor = | C33: =+'Gas Input Table Summary'!$D$22 -> 2.07 | J33: 19 | L33: 2042 | M33: 0 | N33: 4.891 | O33: 0 | P33: 0 | Q33: 0 | R33: 0 | S33: 0 | T33: 197 | U33: 0 | V33: 0 | W33: 3.219 | X33: 0 | Y33: 0 | Z33: 0 | AA33: 0 | AB33: 0 | AE33: 2042 | AF33: 0 | AG33: 0 | AH33: 0 | AJ33: 0 | AK33: 0 | AL33: 0 | AN33: 0 | AQ33: 2042 | AR33: 0 | AS33: 0 | AT33: 0.043 | AU33: 0 | AV33: 3.189 | AW33: 0 | AZ33: 0 | BB33: 0 | BC33: 0 | BD33: 0 | BE33: 0 | BH33: 2042 | BI33: 0 | BJ33: 0 | BK33: 12.103 | BL33: 0 | BM33: 0.229 | BN33: 0 | BP33: 0 | BR33: 0 | BT33: 0 | BW33: 2042 | BX33: 0 | BY33: 0 | BZ33: 0 | CA33: 0 | CC33: 0 | CD33: 0 | CE33: 0 | CG33: 0
A34: Escalation Rate = | C34: =+'Gas Input Table Summary'!$D$23 -> 0.023 | E34: 25) Incentive/Participant = | F34: =ROUND('Database Inputs'!L13,0) -> 60 | J34: 20 | L34: 2043 | M34: 0 | N34: 5.037 | O34: 0 | P34: 0 | Q34: 0 | R34: 0 | S34: 0 | T34: 199 | U34: 0 | V34: 0 | W34: 3.316 | X34: 0 | Y34: 0 | Z34: 0 | AA34: 0 | AB34: 0 | AE34: 2043 | AF34: 0 | AG34: 0 | AH34: 0 | AJ34: 0 | AK34: 0 | AL34: 0 | AN34: 0 | AQ34: 2043 | AR34: 0 | AS34: 0 | AT34: 0.045 | AU34: 0 | AV34: 3.262 | AW34: 0 | AZ34: 0 | BB34: 0 | BC34: 0 | BD34: 0 | BE34: 0 | BH34: 2043 | BI34: 0 | BJ34: 0 | BK34: 12.466 | BL34: 0 | BM34: 0.236 | BN34: 0 | BP34: 0 | BR34: 0 | BT34: 0 | BW34: 2043 | BX34: 0 | BY34: 0 | BZ34: 0 | CA34: 0 | CC34: 0 | CD34: 0 | CE34: 0 | CG34: 0
J35: 21 | L35: 2044 | M35: =ROUND(IF($C$47+$F$23>L35,$F$25*$F$30,0)+IF($C$48+$G$23>L35,$G$25*$G$30,0)+IF($C$49+$H$23>L35,$H$25*$H$30,0),0) -> 0 | N35: =ROUND($C$17*(1+$C$18)^J35,3) -> 5.188 | O35: =ROUND(M35*N35,0) -> 0 | P35: =ROUND($C$25*(1+$C$26)^J35,3) -> 0 | Q35: =ROUND(M35*P35,0) -> 0 | R35: =O35+Q35 -> 0 | S35: =ROUND(M35*$C$23,1) -> 0 | T35: =ROUND($C$20*(1+$C$21)^J35,0) -> 201 | U35: =ROUND(S35*T35,0) -> 0 | V35: =ROUND(+U35+R35,0) -> 0 | W35: =ROUND($H$36*(1+$C$11)^J35,3) -> 3.416 | X35: =ROUND((1-$H$38)*(W35*M35),0) -> 0 | Y35: 0 | Z35: 0 | AA35: =SUM(X35:Z35) -> 0 | AB35: =V35-AA35 -> 0 | AE35: 2044 | AF35: =+R35 -> 0 | AG35: =+U35 -> 0 | AH35: =+AG35+AF35 -> 0 | AJ35: =ROUND(Y35,0) -> 0 | AK35: =ROUND(Z35,0) -> 0 | AL35: =SUM(AJ35:AK35) -> 0 | AN35: =+AH35-AL35 -> 0 | AQ35: 2044 | AR35: =AF35 -> 0 | AS35: =+AG35 -> 0 | AT35: =ROUND(($C$28/(1-$C$31))*(1+$C$29)^J35,3) -> 0.046 | AU35: =ROUND((IF($C$47+$F$23>$AQ35,$F$27*$F$30,0)+IF($C$48+$G$23>AQ35,$G$27*$G$30,0)+IF($C$49+$H$23>AQ35,$H$27*$H$30,0))*AT35,0) -> 0 | AV35: =ROUND($C$33*(1+$C$34)^J35,3) -> 3.337 | AW35: =ROUND(AV35*M35,0) -> 0 | AZ35: =ROUND(AR35+AS35+AU35+AW35+AY35,0) -> 0 | BB35: 0 | BC35: 0 | BD35: =BB35+BC35 -> 0 | BE35: =AZ35-BD35 -> 0 | BH35: 2044 | BI35: 0 | BJ35: =+M35 -> 0 | BK35: =ROUND($C$10*(1+$C$11)^J35,3) -> 12.84 | BL35: =ROUND(BJ35*BK35,0) -> 0 | BM35: =ROUND($C$13*(1+$C$14)^J35,3) -> 0.243 | BN35: =ROUND((IF($C$47+$F$23>BH35,$F$27*$F$30,0)+IF($C$49+$H$23>BH35,$H$27*$H$30,0)+IF($C$48+$G$23>BH35,$G$27*$G$30,0))*BM35,0) -> 0 | BP35: =BI35+BL35+BN35+BO35 -> 0 | BR35: =+BC35 -> 0 | BT35: =BP35-BR35 -> 0 | BW35: 2044 | BX35: 0 | BY35: =U35 -> 0 | BZ35: =AU35 -> 0 | CA35: =SUM(BX35:BZ35) -> 0 | CC35: =BB35 -> 0 | CD35: =BC35 -> 0 | CE35: =SUM(CC35:CD35) -> 0 | CG35: =CA35-CE35 -> 0
A36: 10) Non Gas Fuel Environmental Damage Factor = | C36: =+'Gas Input Table Summary'!$D$24 -> 0 | E36: 26) Distribution Delivery Charge | H36: =+'Gas Input Table Summary'!D58 -> 1.836 | J36: 22 | L36: 2045 | M36: 0 | N36: 5.344 | O36: 0 | P36: 0 | Q36: 0 | R36: 0 | S36: 0 | T36: 203 | U36: 0 | V36: 0 | W36: 3.518 | X36: 0 | Y36: 0 | Z36: 0 | AA36: 0 | AB36: 0 | AE36: 2045 | AF36: 0 | AG36: 0 | AH36: 0 | AJ36: 0 | AK36: 0 | AL36: 0 | AN36: 0 | AQ36: 2045 | AR36: 0 | AS36: 0 | AT36: 0.047 | AU36: 0 | AV36: 3.414 | AW36: 0 | AZ36: 0 | BB36: 0 | BC36: 0 | BD36: 0 | BE36: 0 | BH36: 2045 | BI36: 0 | BJ36: 0 | BK36: 13.225 | BL36: 0 | BM36: 0.25 | BN36: 0 | BP36: 0 | BR36: 0 | BT36: 0 | BW36: 2045 | BX36: 0 | BY36: 0 | BZ36: 0 | CA36: 0 | CC36: 0 | CD36: 0 | CE36: 0 | CG36: 0
A37: Escalation Rate = | C37: =+'Gas Input Table Summary'!$D$25 -> 0
E38: 27) Effective Income Tax Rate = | H38: =+'Gas Input Table Summary'!D59 -> 0.21 | K38: Total = | M38: =SUM(M14:M36) -> 11970 | V38: =SUM(V14:V36) -> 58707 | AA38: =SUM(AA14:AA36) -> 33554 | AB38: =SUM(AB14:AB36) -> 25153 | AD38: Total = | AH38: =SUM(AH14:AH36) -> 58707 | AL38: =SUM(AL14:AL36) -> 13651 | AN38: =SUM(AN14:AN36) -> 45056 | AP38: Total = | AZ38: =SUM(AZ14:AZ36) -> 88433 | BD38: =SUM(BD14:BD36) -> 31895 | BE38: =SUM(BE14:BE36) -> 56538 | BG38: Total = | BJ38: =SUM(BJ14:BJ36) -> 11970 | BP38: =SUM(BP14:BP36) -> 118032 | BR38: =SUM(BR14:BR36) -> 29760 | BT38: =SUM(BT14:BT36) -> 88272 | BZ38: Total = | CA38: =SUM(CA14:CA36) -> 60927 | CE38: =SUM(CE14:CE36) -> 31895 | CG38: =SUM(CG14:CG36) -> 29032
A39: 11) Participant Discount Rate = | C39: =+'Gas Input Table Summary'!$D$26 -> 0.1032 | E39: (Federal & State Taxes) | T39: NPV = | V39: =ROUND(V14+NPV($C$41,V15:V36),0) -> 43205 | AA39: =ROUND(AA14+NPV($C$41,AA15:AA36),0) -> 28241 | AB39: =ROUND(AB14+NPV($C$41,AB15:AB36),0) -> 14964 | AG39: NPV = | AH39: =ROUND(AH14+NPV($C$41,AH15:AH36),0) -> 43205 | AL39: =ROUND(AL14+NPV($C$41,AL15:AL36),0) -> 13651 | AN39: =+AH39-AL39 -> 29554 | AW39: NPV = | AZ39: =ROUND(AZ14+NPV($C$43,AZ15:AZ36),0) -> 79624 | BD39: =ROUND(BD14+NPV($C$43,BD15:BD36),0) -> 31895 | BE39: =AZ39-BD39 -> 47729 | BN39: NPV = | BP39: =ROUND(BP14+NPV($C$39,BP15:BP36),0) -> 81070 | BR39: =ROUND(BR14+NPV($C$39,BR15:BR36),0) -> 29760 | BT39: =ROUND(BT14+NPV($C$39,BT15:BT36),0) -> 51310 | BZ39: NPV = | CA39: =ROUND(CA14+NPV($C$41,CA15:CA36),0) -> 44834 | CE39: =ROUND(CE14+NPV($C$41,CE15:CE36),0) -> 31895 | CG39: =ROUND(CG14+NPV($C$41,CG15:CG36),0) -> 12939
A41: 12) Utility Discount Rate = | C41: =+'Gas Input Table Summary'!$D$27 -> 0.07216 | E41: Test Results | F41: NPV | G41: B/C | K41: Total NPV = | N41: =AB39 -> 14964 | AD41: Total NPV = | AG41: =AN39 -> 29554 | AP41: Total NPV = | AS41: =BE39 -> 47729 | BG41: Total NPV = | BJ41: =BT39 -> 51310 | BV41: Total NPV = | BY41: =CG39 -> 12939
E42: Ratepayer Impact Measure Test | F42: =N41 -> 14964 | G42: =N42 -> 1.53 | K42: Benefit/Cost Ratio = | N42: =ROUND(V39/AA39,2) -> 1.53 | AD42: Benefit/Cost Ratio = | AG42: =ROUND(AH39/AL39,2) -> 3.16 | AP42: Benefit/Cost Ratio = | AS42: =ROUND(AZ39/BD39,2) -> 2.5 | BG42: Benefit/Cost Ratio = | BJ42: =ROUND(BP39/BR39,2) -> 2.72 | BV42: Benefit/Cost Ratio = | BY42: =ROUND(CA39/CE39,2) -> 1.41
A43: 13) Societal Discount Rate = | C43: =+'Gas Input Table Summary'!$D$28 -> 0.0231 | E43: Utility Cost Test | F43: =AG41 -> 29554 | G43: =AG42 -> 3.16
E44: Societal Test | F44: =AS41 -> 47729 | G44: =AS42 -> 2.5 | J44: Worksheet Calculations | BV44: Worksheet Calculations
A45: 14) General Input Data Year = | C45: =+'Gas Input Table Summary'!$D$29 -> 2023 | E45: Participant Test | F45: =BJ41 -> 51310 | G45: =BJ42 -> 2.72 | J45: (A) | K45: = Average Dk/Participant Saved (21) x Number of Participants (23) for Project Life (20) | T45: (I) | U45: = (G) x (H) | AD45: Worksheet Calculations | AP45: Worksheet Calculations | BG45: Worksheet Calculations | BV45: (A) | BW45: = Table 1 (F)
E46: Total Resource Cost Test | F46: =BY41 -> 12939 | G46: =BY42 -> 1.41 | J46: (B) | K46: = Commodity Cost (3) escalated | T46: (J) | U46: = (F) + (I) | AD46: (A) | AE46: = Table 1 (F) | AP46: (A) | AQ46: = Table 1 (F) | AW46: (H) | AZ46: = Table 2 (F) | BG46: (A) | BH46: = Table 1 (N) | BL46: (G) | BM46: = (A) + (D) + (F) | BV46: (B) | BW46: = Table 1 (I)
A47: 15) Project Analysis Year 1 = | C47: =+'Total Program Inputs'!C6 -> 2023 | J47: (C) | K47: = (A) x (B) | T47: (K) | U47: = Distribution Delivery Charge (26) escalated. | AD47: (B) | AE47: = Table 1 (I) | AP47: (G) | AQ47: = Table 1 (I) | AW47: (I) | AZ47: = Direct Part. Costs (17) x No. of Part. (23) - Table 1 (N) | BG47: (B) | BH47: = Table 1 (A) | BL47: (H) | BM47: = Direct Participant Costs (17) x Number of Participants (23) | BV47: (C) | BW47: = Table 3 (D)
J48: (D) | K48: = Variable O&M Cost (6), escalated | T48: (L) | U48: = (A) x (K) x (1-Inverse of Tax Rate (27) | AD48: (C) | AE48: = Table 1 (J) | AP48: (C) | AQ48: = Non-Gas Fuel Cost (7), adjusted for losses (8), escalated.. | AW48: (J) | AZ48: = (H) + (I) | BG48: (C) | BH48: = Retail Rate (1) escalated. | BL48: (I) | BM48: = (G) - (H) | BV48: (D) | BW48: = (A) + (B) + (C)
J49: (E) | K49: = (A) x (D) | T49: (M) | U49: = Admin & Operating Costs (16a) | AD49: (D) | AE49: = Table 1 (M) | AP49: (D) | AQ49: = (C) x [Avg. Non-Gas Fuel Units/Part.Saved (22) x No. of Part. (23) | AW49: (K) | AZ49: = (G) - (J) | BG49: (D) | BH49: =(B) x (C) | BV49: (E) | BW49: = Table 3 (H)
J50: (F) | K50: = (C) + (E) | T50: (N) | U50: = Incentive Costs (16b) | AD50: (E) | AE50: = Table 1 (N) | AP50: (E) | AQ50: = Gas Environmental Damage Factor (9), escalated | BG50: (E) | BH50: = Non-Gas Fuel Retail Rate (2), escalated. | BV50: (F) | BW50: = Table 3 (I)
J51: (G) | K51: = (A) x Peak Reduction Factor (5) | T51: (O) | U51: = (L) + (M) + (N) | AD51: (F) | AE51: = (D) + (E) | AP51: (F) | AQ51: = Table 1 (A) x (E) | BG51: (F) | BH51: = (E) x [Avg. Non-Gas Fuel Units/Part.Saved (22) x No. of Part. (23) | BV51: (G) | BW51: = (E) + (F)
J52: (H) | K52: = Demand Cost (4) escalated. | T52: (P) | U52: = (J) - (O) | AD52: (G) | AE52: = (C) - (F) | AP52: (G) | AQ52: = (A) + (B) + (D) + (F) | BV52: (H) | BW52: = (D) - (G)

Sheet Comm 95+% Furnace - NEW
A1: NATURAL GAS CONSERVATION PROGRAMS/DEMAND-SIDE MANAGEMENT | K1: Table 1 | AD1: Table 2 | AP1: Table 3 | BG1: Table 4 | BV1: Table 5
A2: BEN/COST ANALYSIS FOR GAS CONSERVATION | K2: Ratepayer Impact Measure Test | AD2: Utility Cost Test | AP2: Societal Test | BG2: Participant Test | BV2: Total Resource Cost Test
A4: Company: | B4: Montana-Dakota Utilities Co. | K4: Company: | M4: =B4 -> Montana-Dakota Utilities Co. | AD4: Company: | AF4: =B4 -> Montana-Dakota Utilities Co. | AP4: Company: | AR4: =AF4 -> Montana-Dakota Utilities Co. | BH4: Company: | BI4: =AR4 -> Montana-Dakota Utilities Co. | BW4: Company: | BX4: =BI4 -> Montana-Dakota Utilities Co.
A5: Project: | B5: Commercial 95+% AFUE Furnace - New | K5: Project: | M5: =$B$5 -> Commercial 95+% AFUE Furnace - New | AD5: Project: | AF5: =$B$5 -> Commercial 95+% AFUE Furnace - New | AP5: Project: | AR5: =$B$5 -> Commercial 95+% AFUE Furnace - New | BH5: Project: | BI5: =$B$5 -> Commercial 95+% AFUE Furnace - New | BW5: Project: | BX5: =$B$5 -> Commercial 95+% AFUE Furnace - New
A6: Program Years: | B6: ='Total Program'!$B$6 -> 2023
N7: Benefits | X7: Costs | AF7: Benefits | AJ7: Costs | AR7: Benefits | BB7: Costs | BI7: Benefits | BR7: Costs | BX7: Benefits | CC7: Costs
A8: Input Data | F8: =+'Total Program Inputs'!C6 -> 2023 | AB8: Annual | AN8: Annual | AT8: Non-Gas | BE8: Annual | BT8: Annual | CG8: Annual
M9: Total | N9: Gas | O9: Gas | P9: Variable | Q9: Variable | R9: Total | S9: Peak Dk | T9: Demand | U9: Total | W9: Distribution | Y9: Program | AA9: Total | AB9: Benefits | AF9: Total | AG9: Total | AH9: Annual | AJ9: Program | AL9: Utility | AN9: Benefits | AR9: Total | AS9: Total | AT9: Energy | AU9: Non-Gas | AV9: Environmental | AW9: Environmental | AZ9: Annual | BB9: Utility | BC9: Participants' | BD9: Annual | BE9: Benefits | BJ9: Total | BL9: Gas | BM9: Non-Gas | BN9: Non-Gas | BP9: Total | BR9: Direct | BT9: Benefits | BX9: Total | BY9: Total | BZ9: Non-Gas | CA9: Total | CC9: Utility | CD9: Participants' | CG9: Benefits
A10: 1) Retail Rate ($/Dk) = | C10: =+'Gas Input Table Summary'!$E$7 -> 5.996 | E10: 16) Utility Project Costs | M10: Energy | N10: Commodity | O10: Commodity | P10: O & M | Q10: O & M | R10: Energy | S10: Demand | T10: Savings | U10: Demand | V10: Total | W10: Delivery | X10: Lost | Y10: Admin | Z10: Incentive | AA10: Program | AB10: Less | AF10: Energy | AG10: Demand | AH10: Total | AJ10: Admin | AK10: Incentive | AL10: Program | AN10: Less | AR10: Energy | AS10: Demand | AT10: Savings | AU10: Energy | AV10: Damage | AW10: Damage | AZ10: Total | BB10: Program | BC10: Costs Net | BD10: Total | BE10: Less | BI10: Incentives | BJ10: Energy | BK10: Retail | BL10: Bill | BM10: Fuel | BN10: Energy | BP10: Annual | BR10: Participant | BT10: Less | BX10: Energy | BY10: Demand | BZ10: Energy | CA10: Annual | CC10: Program | CD10: Costs Net | CE10: Total | CG10: Less
A11: Escalation Rate = | C11: =+'Gas Input Table Summary'!$E$8 -> 0.03 | E11: 16a) Administrative & Operating Costs = | F11: =+'Total Program Inputs'!M18 -> 139 | J11: t | M11: Reduction | N11: Cost/Dk | O11: Savings | P11: Cost/Dk | Q11: Savings | R11: Savings | S11: Reduction | T11: Per Unit | U11: Savings | V11: Savings | W11: Charge | X11: Margin | Y11: Costs | Z11: Costs | AA11: Costs | AB11: Costs | AF11: Savings | AG11: Savings | AH11: Savings | AJ11: Costs | AK11: Costs | AL11: Costs | AN11: Costs | AR11: Savings | AS11: Savings | AT11: ($/Part.) | AU11: Savings | AV11: Savings/Dk | AW11: Savings | AZ11: Savings | BB11: Costs | BC11: of Rebate | BD11: Costs | BE11: Costs | BI11: Received | BJ11: Reduction | BK11: Rate | BL11: Savings | BM11: Retail Rate | BN11: Savings | BP11: Benefits | BR11: Costs | BT11: Costs | BX11: Savings | BY11: Savings | BZ11: Savings | CA11: Benefits | CC11: Costs | CD11: of Rebate | CE11: Costs | CG11: Costs
E12: 16b) Incentive Costs = | F12: =+'Total Program Inputs'!I18 -> 750 | L12: Year | M12: (A) | N12: (B) | O12: (C) | P12: (D) | Q12: (E) | R12: (F) | S12: (G) | T12: (H) | U12: (I) | V12: (J) | W12: (K) | X12: (L) | Y12: (M) | Z12: (N) | AA12: (O) | AB12: (P) | AE12: Year | AF12: (A) | AG12: (B) | AH12: (C) | AJ12: (D) | AK12: (E) | AL12: (F) | AN12: (G) | AQ12: Year | AR12: (A) | AS12: (B) | AT12: (C) | AU12: (D) | AV12: (E) | AW12: (F) | AZ12: (G) | BB12: (H) | BC12: (I) | BD12: (J) | BE12: (K) | BH12: Year | BI12: (A) | BJ12: (B) | BK12: (C) | BL12: (D) | BM12: (E) | BN12: (F) | BP12: (G) | BR12: (H) | BT12: (I) | BW12: Year | BX12: (A) | BY12: (B) | BZ12: (C) | CA12: (D) | CC12: (E) | CD12: (F) | CE12: (G) | CG12: (H)
A13: 2) Non-Gas Fuel Retail Rate ($/Fuel Unit) = | C13: =+'Gas Input Table Summary'!$E$9 -> 0.12684 | E13: 16c) Total Utility Project Costs = | F13: =SUM(F11:F12) -> 889
A14: Escalation Rate = | C14: =+'Gas Input Table Summary'!$E$10 -> 0.03 | J14: =$C$47-$C$45 -> 0 | L14: =$C$47 -> 2023 | M14: =ROUND(IF($C$47+$F$23>L14,F25*F30,0),0) -> 36 | N14: =ROUND($C$17*(1+$C$18)^J14,3) -> 2.789 | O14: =ROUND(M14*N14,0) -> 100 | P14: =ROUND($C$25*(1+$C$26)^J14,3) -> 0 | Q14: =ROUND(M14*P14,0) -> 0 | R14: =O14+Q14 -> 100 | S14: =ROUND(M14*$C$23,1) -> 0.4 | T14: =ROUND($C$20*(1+$C$21)^J14,0) -> 163 | U14: =ROUND(S14*T14,0) -> 65 | V14: =ROUND(+U14+R14,0) -> 165 | W14: =ROUND($H$36*(1+$C$11)^J14,3) -> 0.93 | X14: =ROUND((1-$H$38)*(W14*M14),0) -> 26 | Y14: =ROUND($F$11,0) -> 139 | Z14: =ROUND($F$12,0) -> 750 | AA14: =SUM(X14:Z14) -> 915 | AB14: =V14-AA14 -> -750 | AE14: =$C$47 -> 2023 | AF14: =+R14 -> 100 | AG14: =+U14 -> 65 | AH14: =+AG14+AF14 -> 165 | AJ14: =ROUND(Y14,0) -> 139 | AK14: =ROUND(Z14,0) -> 750 | AL14: =SUM(AJ14:AK14) -> 889 | AN14: =+AH14-AL14 -> -724 | AQ14: =$C$47 -> 2023 | AR14: =AF14 -> 100 | AS14: =+AG14 -> 65 | AT14: =ROUND(($C$28/(1-$C$31))*(1+$C$29)^J14,3) -> 0.025 | AU14: =ROUND(IF($C$47+$F$23>$AQ14,$F$30*$F$27,0)*AT14,0) -> 0 | AV14: =ROUND($C$33*(1+$C$34)^J14,3) -> 2.07 | AW14: =ROUND(AV14*M14,0) -> 75 | AZ14: =ROUND(AR14+AS14+AU14+AW14+AY14,0) -> 240 | BB14: =ROUND($F$13,0) -> 889 | BC14: =ROUND((F15*F30)-Z14,0) -> 75 | BD14: =BB14+BC14 -> 964 | BE14: =AZ14-BD14 -> -724 | BH14: =$C$47 -> 2023 | BI14: =+F12 -> 750 | BJ14: =+M14 -> 36 | BK14: =ROUND($C$10*(1+$C$11)^J14,3) -> 5.996 | BL14: =ROUND(BJ14*BK14,0) -> 216 | BM14: =ROUND($C$13*(1+$C$14)^J14,3) -> 0.127 | BN14: =ROUND(IF($C$47+$F$23>$BH14,$F$30*$F$27,0)*BM14,0) -> 0 | BP14: =BI14+BL14+BN14+BO14 -> 966 | BR14: =ROUND(F15*F30,0) -> 825 | BT14: =BP14-BR14 -> 141 | BW14: =$C$47 -> 2023 | BX14: =$R14 -> 100 | BY14: =U14 -> 65 | BZ14: =AU14 -> 0 | CA14: =SUM(BX14:BZ14) -> 165 | CC14: =BB14 -> 889 | CD14: =BC14 -> 75 | CE14: =SUM(CC14:CD14) -> 964 | CG14: =CA14-CE14 -> -799
